Workbook

Sheet Control
A1: Sheets | B1: Text File Names | C1: Description | E1: Notes: 50 sheets maximum
A2: Nbeach | B2: Project_Nbeach.txt | E2: Referenced text files must be in same root folder as this spreadsheet
A3: Ndam | B3: Project_Ndam.txt
A4: Ebeach | B4: Project_Ebeach.txt
A5: Edam | B5: Project_Edam.txt
A6: Sbeach | B6: Project_Sbeach.txt
A7: Sdam | B7: Project_Sdam.txt
A8: Cbeach | B8: Project_Cbeach.txt

Sheet PlotControl
A2: Model Name: | B2: Plant Site Version 6.0
A4: Plot: | B4: Annual Max | C4: =B2 & " Model " & IF(B4="Annual Max", "Annual Maximum", B4) & " of 'Mass Remaining' Statistics " & B6 & " in the " & B8 -> Plant Site Version 6.0 Model Annual Maximum of 'Mass Remaining' Statistics Zn in the North Beach | V4: Directory to save PDFs to: | W4: P:\Mpls\23 MN\69\2369862\WorkFiles\APA\Support Docs\Surface WQ\Workfiles\Models\GoldSim\Tailings Basin\2012 MODEL\Base Model\Output_Data\FTB\Unsat_Zones\Depletion\plots
V5: Starting figure caption | W5: Figure A-1-0001
A6: Constituent to Plot (dropdown): | B6: Zn | C6: =MATCH(B6,$A$25:$A$52,0) -> 27
V7: Note: This loops through the plot, constituent, and location drop down menus.
A8: Location to Plot (dropdown): | B8: North Beach | C8: =MATCH(B8,$A$15:$A$21,0) -> 1
A10: Initial Time for Monthly Plot (yr): | B10: 0
B11: =B10+20 -> 20
A12: Standard | B12: =VLOOKUP($B$6,$A$25:$B$52,2,FALSE) -> 0
A14: Locations
A15: North Beach
A16: North Dam
A17: East Beach
A18: East Dam
A19: South Beach
A20: South Dam
A21: Closure Beach
I23: Annual Project Results
A24: Constituent | H24: Time | I24: P10 | J24: P50 | K24: P90
A25: Ag | H25: 0 | I25: =IF(OR(LEFT($B$8,1) = "E",LEFT($B$8,1) = "S",LEFT($B$8,1) = "C"),#N/A,VLOOKUP($H25,P_All!$A$5:$V$205,3*($C$8-1)+2)) -> 216.43 | J25: =IF(OR(LEFT($B$8,1) = "E",LEFT($B$8,1) = "S",LEFT($B$8,1) = "C"),#N/A,VLOOKUP($H25,P_All!$A$5:$V$205,3*($C$8-1)+3)) -> 245.44 | K25: =IF(OR(LEFT($B$8,1) = "E",LEFT($B$8,1) = "S",LEFT($B$8,1) = "C"),#N/A,VLOOKUP($H25,P_All!$A$5:$V$205,3*($C$8-1)+4)) -> 272.42
A26: Al | H26: 1 | I26: =IF(OR(LEFT($B$8,1) = "E",LEFT($B$8,1) = "S",LEFT($B$8,1) = "C"),#N/A,VLOOKUP($H26,P_All!$A$5:$V$205,3*($C$8-1)+2)) -> 452.95 | J26: =IF(OR(LEFT($B$8,1) = "E",LEFT($B$8,1) = "S",LEFT($B$8,1) = "C"),#N/A,VLOOKUP($H26,P_All!$A$5:$V$205,3*($C$8-1)+3)) -> 493.98 | K26: =IF(OR(LEFT($B$8,1) = "E",LEFT($B$8,1) = "S",LEFT($B$8,1) = "C"),#N/A,VLOOKUP($H26,P_All!$A$5:$V$205,3*($C$8-1)+4)) -> 534.73
A27: Alkalinity | H27: 2 | I27: =IF(OR(LEFT($B$8,1) = "E",LEFT($B$8,1) = "S",LEFT($B$8,1) = "C"),#N/A,VLOOKUP($H27,P_All!$A$5:$V$205,3*($C$8-1)+2)) -> 687.31 | J27: =IF(OR(LEFT($B$8,1) = "E",LEFT($B$8,1) = "S",LEFT($B$8,1) = "C"),#N/A,VLOOKUP($H27,P_All!$A$5:$V$205,3*($C$8-1)+3)) -> 739.74 | K27: =IF(OR(LEFT($B$8,1) = "E",LEFT($B$8,1) = "S",LEFT($B$8,1) = "C"),#N/A,VLOOKUP($H27,P_All!$A$5:$V$205,3*($C$8-1)+4)) -> 792.82
A28: As | H28: 3 | I28: =IF(OR(LEFT($B$8,1) = "E",LEFT($B$8,1) = "S",LEFT($B$8,1) = "C"),#N/A,VLOOKUP($H28,P_All!$A$5:$V$205,3*($C$8-1)+2)) -> 921.32 | J28: =IF(OR(LEFT($B$8,1) = "E",LEFT($B$8,1) = "S",LEFT($B$8,1) = "C"),#N/A,VLOOKUP($H28,P_All!$A$5:$V$205,3*($C$8-1)+3)) -> 978.59 | K28: =IF(OR(LEFT($B$8,1) = "E",LEFT($B$8,1) = "S",LEFT($B$8,1) = "C"),#N/A,VLOOKUP($H28,P_All!$A$5:$V$205,3*($C$8-1)+4)) -> 1043.6
A29: B | H29: 4 | I29: =IF(OR(LEFT($B$8,1) = "E",LEFT($B$8,1) = "S",LEFT($B$8,1) = "C"),#N/A,VLOOKUP($H29,P_All!$A$5:$V$205,3*($C$8-1)+2)) -> 1149.5 | J29: =IF(OR(LEFT($B$8,1) = "E",LEFT($B$8,1) = "S",LEFT($B$8,1) = "C"),#N/A,VLOOKUP($H29,P_All!$A$5:$V$205,3*($C$8-1)+3)) -> 1215.7 | K29: =IF(OR(LEFT($B$8,1) = "E",LEFT($B$8,1) = "S",LEFT($B$8,1) = "C"),#N/A,VLOOKUP($H29,P_All!$A$5:$V$205,3*($C$8-1)+4)) -> 1290.4
A30: Ba | H30: 5 | I30: =IF(OR(LEFT($B$8,1) = "E",LEFT($B$8,1) = "S",LEFT($B$8,1) = "C"),#N/A,VLOOKUP($H30,P_All!$A$5:$V$205,3*($C$8-1)+2)) -> 1378.7 | J30: =IF(OR(LEFT($B$8,1) = "E",LEFT($B$8,1) = "S",LEFT($B$8,1) = "C"),#N/A,VLOOKUP($H30,P_All!$A$5:$V$205,3*($C$8-1)+3)) -> 1447.6 | K30: =IF(OR(LEFT($B$8,1) = "E",LEFT($B$8,1) = "S",LEFT($B$8,1) = "C"),#N/A,VLOOKUP($H30,P_All!$A$5:$V$205,3*($C$8-1)+4)) -> 1526.6
A31: Be | H31: 6 | I31: =IF(OR(LEFT($B$8,1) = "E",LEFT($B$8,1) = "S",LEFT($B$8,1) = "C"),#N/A,VLOOKUP($H31,P_All!$A$5:$V$205,3*($C$8-1)+2)) -> 1602.3 | J31: =IF(OR(LEFT($B$8,1) = "E",LEFT($B$8,1) = "S",LEFT($B$8,1) = "C"),#N/A,VLOOKUP($H31,P_All!$A$5:$V$205,3*($C$8-1)+3)) -> 1676.4 | K31: =IF(OR(LEFT($B$8,1) = "E",LEFT($B$8,1) = "S",LEFT($B$8,1) = "C"),#N/A,VLOOKUP($H31,P_All!$A$5:$V$205,3*($C$8-1)+4)) -> 1757.7
A32: Ca | H32: 7 | I32: =IF(OR(LEFT($B$8,1) = "C"),#N/A,VLOOKUP($H32,P_All!$A$5:$V$205,3*($C$8-1)+2)) -> 1691.2 | J32: =IF(OR(LEFT($B$8,1) = "C"),#N/A,VLOOKUP($H32,P_All!$A$5:$V$205,3*($C$8-1)+3)) -> 1768 | K32: =IF(OR(LEFT($B$8,1) = "C"),#N/A,VLOOKUP($H32,P_All!$A$5:$V$205,3*($C$8-1)+4)) -> 1847.4
A33: Cd | H33: 8 | I33: =IF(OR(LEFT($B$8,1) = "C"),#N/A,VLOOKUP($H33,P_All!$A$5:$V$205,3*($C$8-1)+2)) -> 1775.7 | J33: =IF(OR(LEFT($B$8,1) = "C"),#N/A,VLOOKUP($H33,P_All!$A$5:$V$205,3*($C$8-1)+3)) -> 1853 | K33: =IF(OR(LEFT($B$8,1) = "C"),#N/A,VLOOKUP($H33,P_All!$A$5:$V$205,3*($C$8-1)+4)) -> 1931.5
A34: Cl | H34: 9 | I34: =IF(OR(LEFT($B$8,1) = "C"),#N/A,VLOOKUP($H34,P_All!$A$5:$V$205,3*($C$8-1)+2)) -> 1857.9 | J34: =IF(OR(LEFT($B$8,1) = "C"),#N/A,VLOOKUP($H34,P_All!$A$5:$V$205,3*($C$8-1)+3)) -> 1936.3 | K34: =IF(OR(LEFT($B$8,1) = "C"),#N/A,VLOOKUP($H34,P_All!$A$5:$V$205,3*($C$8-1)+4)) -> 2015.9
A35: Co | H35: 10 | I35: =IF(OR(LEFT($B$8,1) = "C"),#N/A,VLOOKUP($H35,P_All!$A$5:$V$205,3*($C$8-1)+2)) -> 1939.5 | J35: =IF(OR(LEFT($B$8,1) = "C"),#N/A,VLOOKUP($H35,P_All!$A$5:$V$205,3*($C$8-1)+3)) -> 2018.1 | K35: =IF(OR(LEFT($B$8,1) = "C"),#N/A,VLOOKUP($H35,P_All!$A$5:$V$205,3*($C$8-1)+4)) -> 2101.4
A36: Cr | H36: 11 | I36: =IF(OR(LEFT($B$8,1) = "C"),#N/A,VLOOKUP($H36,P_All!$A$5:$V$205,3*($C$8-1)+2)) -> 2016.6 | J36: =IF(OR(LEFT($B$8,1) = "C"),#N/A,VLOOKUP($H36,P_All!$A$5:$V$205,3*($C$8-1)+3)) -> 2102 | K36: =IF(OR(LEFT($B$8,1) = "C"),#N/A,VLOOKUP($H36,P_All!$A$5:$V$205,3*($C$8-1)+4)) -> 2183.1
A37: Cu | H37: 12 | I37: =IF(OR(LEFT($B$8,1) = "C"),#N/A,VLOOKUP($H37,P_All!$A$5:$V$205,3*($C$8-1)+2)) -> 2099.7 | J37: =IF(OR(LEFT($B$8,1) = "C"),#N/A,VLOOKUP($H37,P_All!$A$5:$V$205,3*($C$8-1)+3)) -> 2185.3 | K37: =IF(OR(LEFT($B$8,1) = "C"),#N/A,VLOOKUP($H37,P_All!$A$5:$V$205,3*($C$8-1)+4)) -> 2269.9
A38: F | H38: 13 | I38: =IF(OR(LEFT($B$8,1) = "C"),#N/A,VLOOKUP($H38,P_All!$A$5:$V$205,3*($C$8-1)+2)) -> 2186.5 | J38: =IF(OR(LEFT($B$8,1) = "C"),#N/A,VLOOKUP($H38,P_All!$A$5:$V$205,3*($C$8-1)+3)) -> 2268.5 | K38: =IF(OR(LEFT($B$8,1) = "C"),#N/A,VLOOKUP($H38,P_All!$A$5:$V$205,3*($C$8-1)+4)) -> 2353.8
A39: Fe | H39: 14 | I39: =IF(OR(LEFT($B$8,1) = "C"),#N/A,VLOOKUP($H39,P_All!$A$5:$V$205,3*($C$8-1)+2)) -> 2267.1 | J39: =IF(OR(LEFT($B$8,1) = "C"),#N/A,VLOOKUP($H39,P_All!$A$5:$V$205,3*($C$8-1)+3)) -> 2355.2 | K39: =IF(OR(LEFT($B$8,1) = "C"),#N/A,VLOOKUP($H39,P_All!$A$5:$V$205,3*($C$8-1)+4)) -> 2437.6
A40: K | H40: 15 | I40: =IF(OR(LEFT($B$8,1) = "C"),#N/A,VLOOKUP($H40,P_All!$A$5:$V$205,3*($C$8-1)+2)) -> 2349.3 | J40: =IF(OR(LEFT($B$8,1) = "C"),#N/A,VLOOKUP($H40,P_All!$A$5:$V$205,3*($C$8-1)+3)) -> 2438.6 | K40: =IF(OR(LEFT($B$8,1) = "C"),#N/A,VLOOKUP($H40,P_All!$A$5:$V$205,3*($C$8-1)+4)) -> 2527.1
A41: Mg | H41: 16 | I41: =IF(OR(LEFT($B$8,1) = "C"),#N/A,VLOOKUP($H41,P_All!$A$5:$V$205,3*($C$8-1)+2)) -> 2427.2 | J41: =IF(OR(LEFT($B$8,1) = "C"),#N/A,VLOOKUP($H41,P_All!$A$5:$V$205,3*($C$8-1)+3)) -> 2525.4 | K41: =IF(OR(LEFT($B$8,1) = "C"),#N/A,VLOOKUP($H41,P_All!$A$5:$V$205,3*($C$8-1)+4)) -> 2617.9
A42: Mn | H42: 17 | I42: =IF(OR(LEFT($B$8,1) = "C"),#N/A,VLOOKUP($H42,P_All!$A$5:$V$205,3*($C$8-1)+2)) -> 2511.2 | J42: =IF(OR(LEFT($B$8,1) = "C"),#N/A,VLOOKUP($H42,P_All!$A$5:$V$205,3*($C$8-1)+3)) -> 2610.5 | K42: =IF(OR(LEFT($B$8,1) = "C"),#N/A,VLOOKUP($H42,P_All!$A$5:$V$205,3*($C$8-1)+4)) -> 2707
A43: Na | H43: 18 | I43: =VLOOKUP($H43,P_All!$A$5:$V$205,3*($C$8-1)+2) -> 2578.9 | J43: =VLOOKUP($H43,P_All!$A$5:$V$205,3*($C$8-1)+3) -> 2678 | K43: =VLOOKUP($H43,P_All!$A$5:$V$205,3*($C$8-1)+4) -> 2768.1
A44: Ni | H44: 19 | I44: =VLOOKUP($H44,P_All!$A$5:$V$205,3*($C$8-1)+2) -> 2657.3 | J44: =VLOOKUP($H44,P_All!$A$5:$V$205,3*($C$8-1)+3) -> 2761.1 | K44: =VLOOKUP($H44,P_All!$A$5:$V$205,3*($C$8-1)+4) -> 2865.7
A45: Pb | H45: 20 | I45: =VLOOKUP($H45,P_All!$A$5:$V$205,3*($C$8-1)+2) -> 2657.1 | J45: =VLOOKUP($H45,P_All!$A$5:$V$205,3*($C$8-1)+3) -> 2760.5 | K45: =VLOOKUP($H45,P_All!$A$5:$V$205,3*($C$8-1)+4) -> 2865.6
A46: Sb | H46: 21 | I46: =VLOOKUP($H46,P_All!$A$5:$V$205,3*($C$8-1)+2) -> 2657.1 | J46: =VLOOKUP($H46,P_All!$A$5:$V$205,3*($C$8-1)+3) -> 2760.5 | K46: =VLOOKUP($H46,P_All!$A$5:$V$205,3*($C$8-1)+4) -> 2865.6
A47: Se | H47: 22 | I47: =VLOOKUP($H47,P_All!$A$5:$V$205,3*($C$8-1)+2) -> 2657.1 | J47: =VLOOKUP($H47,P_All!$A$5:$V$205,3*($C$8-1)+3) -> 2760.5 | K47: =VLOOKUP($H47,P_All!$A$5:$V$205,3*($C$8-1)+4) -> 2865.6
A48: SO4 | H48: 23 | I48: =VLOOKUP($H48,P_All!$A$5:$V$205,3*($C$8-1)+2) -> 2657.1 | J48: =VLOOKUP($H48,P_All!$A$5:$V$205,3*($C$8-1)+3) -> 2760.5 | K48: =VLOOKUP($H48,P_All!$A$5:$V$205,3*($C$8-1)+4) -> 2865.6
A49: Tl | H49: 24 | I49: =VLOOKUP($H49,P_All!$A$5:$V$205,3*($C$8-1)+2) -> 2657.1 | J49: =VLOOKUP($H49,P_All!$A$5:$V$205,3*($C$8-1)+3) -> 2760.5 | K49: =VLOOKUP($H49,P_All!$A$5:$V$205,3*($C$8-1)+4) -> 2865.6
A50: V | H50: 25 | I50: =VLOOKUP($H50,P_All!$A$5:$V$205,3*($C$8-1)+2) -> 2657.1 | J50: =VLOOKUP($H50,P_All!$A$5:$V$205,3*($C$8-1)+3) -> 2760.4 | K50: =VLOOKUP($H50,P_All!$A$5:$V$205,3*($C$8-1)+4) -> 2865.6
A51: Zn | H51: 26 | I51: =VLOOKUP($H51,P_All!$A$5:$V$205,3*($C$8-1)+2) -> 2657 | J51: =VLOOKUP($H51,P_All!$A$5:$V$205,3*($C$8-1)+3) -> 2760.4 | K51: =VLOOKUP($H51,P_All!$A$5:$V$205,3*($C$8-1)+4) -> 2865.6
H52: 27 | I52: =VLOOKUP($H52,P_All!$A$5:$V$205,3*($C$8-1)+2) -> 2657 | J52: =VLOOKUP($H52,P_All!$A$5:$V$205,3*($C$8-1)+3) -> 2760.4 | K52: =VLOOKUP($H52,P_All!$A$5:$V$205,3*($C$8-1)+4) -> 2865.6
H53: 28 | I53: =VLOOKUP($H53,P_All!$A$5:$V$205,3*($C$8-1)+2) -> 2657 | J53: =VLOOKUP($H53,P_All!$A$5:$V$205,3*($C$8-1)+3) -> 2760.4 | K53: =VLOOKUP($H53,P_All!$A$5:$V$205,3*($C$8-1)+4) -> 2865.6
A54: Plot | H54: 29 | I54: =VLOOKUP($H54,P_All!$A$5:$V$205,3*($C$8-1)+2) -> 2657 | J54: =VLOOKUP($H54,P_All!$A$5:$V$205,3*($C$8-1)+3) -> 2760.4 | K54: =VLOOKUP($H54,P_All!$A$5:$V$205,3*($C$8-1)+4) -> 2865.6
A55: Annual Averages | H55: 30 | I55: =VLOOKUP($H55,P_All!$A$5:$V$205,3*($C$8-1)+2) -> 2657 | J55: =VLOOKUP($H55,P_All!$A$5:$V$205,3*($C$8-1)+3) -> 2760.4 | K55: =VLOOKUP($H55,P_All!$A$5:$V$205,3*($C$8-1)+4) -> 2865.6
A56: Annual Max | H56: 31 | I56: =VLOOKUP($H56,P_All!$A$5:$V$205,3*($C$8-1)+2) -> 2657 | J56: =VLOOKUP($H56,P_All!$A$5:$V$205,3*($C$8-1)+3) -> 2760.4 | K56: =VLOOKUP($H56,P_All!$A$5:$V$205,3*($C$8-1)+4) -> 2865.6
H57: 32 | I57: =VLOOKUP($H57,P_All!$A$5:$V$205,3*($C$8-1)+2) -> 2657 | J57: =VLOOKUP($H57,P_All!$A$5:$V$205,3*($C$8-1)+3) -> 2760.4 | K57: =VLOOKUP($H57,P_All!$A$5:$V$205,3*($C$8-1)+4) -> 2865.6
H58: 33 | I58: =VLOOKUP($H58,P_All!$A$5:$V$205,3*($C$8-1)+2) -> 2657 | J58: =VLOOKUP($H58,P_All!$A$5:$V$205,3*($C$8-1)+3) -> 2760.4 | K58: =VLOOKUP($H58,P_All!$A$5:$V$205,3*($C$8-1)+4) -> 2865.6
H59: 34 | I59: =VLOOKUP($H59,P_All!$A$5:$V$205,3*($C$8-1)+2) -> 2657 | J59: =VLOOKUP($H59,P_All!$A$5:$V$205,3*($C$8-1)+3) -> 2760.4 | K59: =VLOOKUP($H59,P_All!$A$5:$V$205,3*($C$8-1)+4) -> 2865.6
H60: 35 | I60: =VLOOKUP($H60,P_All!$A$5:$V$205,3*($C$8-1)+2) -> 2657 | J60: =VLOOKUP($H60,P_All!$A$5:$V$205,3*($C$8-1)+3) -> 2760.3 | K60: =VLOOKUP($H60,P_All!$A$5:$V$205,3*($C$8-1)+4) -> 2865.6
H61: 36 | I61: =VLOOKUP($H61,P_All!$A$5:$V$205,3*($C$8-1)+2) -> 2657 | J61: =VLOOKUP($H61,P_All!$A$5:$V$205,3*($C$8-1)+3) -> 2760.3 | K61: =VLOOKUP($H61,P_All!$A$5:$V$205,3*($C$8-1)+4) -> 2865.6
H62: 37 | I62: =VLOOKUP($H62,P_All!$A$5:$V$205,3*($C$8-1)+2) -> 2656.9 | J62: =VLOOKUP($H62,P_All!$A$5:$V$205,3*($C$8-1)+3) -> 2760.3 | K62: =VLOOKUP($H62,P_All!$A$5:$V$205,3*($C$8-1)+4) -> 2865.6
H63: 38 | I63: =VLOOKUP($H63,P_All!$A$5:$V$205,3*($C$8-1)+2) -> 2656.9 | J63: =VLOOKUP($H63,P_All!$A$5:$V$205,3*($C$8-1)+3) -> 2760.3 | K63: =VLOOKUP($H63,P_All!$A$5:$V$205,3*($C$8-1)+4) -> 2865.6
H64: 39 | I64: =VLOOKUP($H64,P_All!$A$5:$V$205,3*($C$8-1)+2) -> 2656.9 | J64: =VLOOKUP($H64,P_All!$A$5:$V$205,3*($C$8-1)+3) -> 2760.3 | K64: =VLOOKUP($H64,P_All!$A$5:$V$205,3*($C$8-1)+4) -> 2865.6
H65: 40 | I65: =VLOOKUP($H65,P_All!$A$5:$V$205,3*($C$8-1)+2) -> 2656.9 | J65: =VLOOKUP($H65,P_All!$A$5:$V$205,3*($C$8-1)+3) -> 2760.3 | K65: =VLOOKUP($H65,P_All!$A$5:$V$205,3*($C$8-1)+4) -> 2865.5
H66: 41 | I66: =VLOOKUP($H66,P_All!$A$5:$V$205,3*($C$8-1)+2) -> 2656.9 | J66: =VLOOKUP($H66,P_All!$A$5:$V$205,3*($C$8-1)+3) -> 2760.3 | K66: =VLOOKUP($H66,P_All!$A$5:$V$205,3*($C$8-1)+4) -> 2865.5
H67: 42 | I67: =VLOOKUP($H67,P_All!$A$5:$V$205,3*($C$8-1)+2) -> 2656.9 | J67: =VLOOKUP($H67,P_All!$A$5:$V$205,3*($C$8-1)+3) -> 2760.3 | K67: =VLOOKUP($H67,P_All!$A$5:$V$205,3*($C$8-1)+4) -> 2865.5
H68: 43 | I68: =VLOOKUP($H68,P_All!$A$5:$V$205,3*($C$8-1)+2) -> 2656.9 | J68: =VLOOKUP($H68,P_All!$A$5:$V$205,3*($C$8-1)+3) -> 2760.3 | K68: =VLOOKUP($H68,P_All!$A$5:$V$205,3*($C$8-1)+4) -> 2865.5
H69: 44 | I69: =VLOOKUP($H69,P_All!$A$5:$V$205,3*($C$8-1)+2) -> 2656.9 | J69: =VLOOKUP($H69,P_All!$A$5:$V$205,3*($C$8-1)+3) -> 2760.3 | K69: =VLOOKUP($H69,P_All!$A$5:$V$205,3*($C$8-1)+4) -> 2865.5
H70: 45 | I70: =VLOOKUP($H70,P_All!$A$5:$V$205,3*($C$8-1)+2) -> 2656.9 | J70: =VLOOKUP($H70,P_All!$A$5:$V$205,3*($C$8-1)+3) -> 2760.3 | K70: =VLOOKUP($H70,P_All!$A$5:$V$205,3*($C$8-1)+4) -> 2865.5
H71: 46 | I71: =VLOOKUP($H71,P_All!$A$5:$V$205,3*($C$8-1)+2) -> 2656.9 | J71: =VLOOKUP($H71,P_All!$A$5:$V$205,3*($C$8-1)+3) -> 2760.2 | K71: =VLOOKUP($H71,P_All!$A$5:$V$205,3*($C$8-1)+4) -> 2865.4
H72: 47 | I72: =VLOOKUP($H72,P_All!$A$5:$V$205,3*($C$8-1)+2) -> 2656.9 | J72: =VLOOKUP($H72,P_All!$A$5:$V$205,3*($C$8-1)+3) -> 2760.2 | K72: =VLOOKUP($H72,P_All!$A$5:$V$205,3*($C$8-1)+4) -> 2865.4
H73: 48 | I73: =VLOOKUP($H73,P_All!$A$5:$V$205,3*($C$8-1)+2) -> 2656.8 | J73: =VLOOKUP($H73,P_All!$A$5:$V$205,3*($C$8-1)+3) -> 2760.2 | K73: =VLOOKUP($H73,P_All!$A$5:$V$205,3*($C$8-1)+4) -> 2865.4
H74: 49 | I74: =VLOOKUP($H74,P_All!$A$5:$V$205,3*($C$8-1)+2) -> 2656.8 | J74: =VLOOKUP($H74,P_All!$A$5:$V$205,3*($C$8-1)+3) -> 2760.2 | K74: =VLOOKUP($H74,P_All!$A$5:$V$205,3*($C$8-1)+4) -> 2865.4
H75: 50 | I75: =VLOOKUP($H75,P_All!$A$5:$V$205,3*($C$8-1)+2) -> 2656.8 | J75: =VLOOKUP($H75,P_All!$A$5:$V$205,3*($C$8-1)+3) -> 2760.2 | K75: =VLOOKUP($H75,P_All!$A$5:$V$205,3*($C$8-1)+4) -> 2865.4
H76: 51 | I76: =VLOOKUP($H76,P_All!$A$5:$V$205,3*($C$8-1)+2) -> 2656.8 | J76: =VLOOKUP($H76,P_All!$A$5:$V$205,3*($C$8-1)+3) -> 2760.2 | K76: =VLOOKUP($H76,P_All!$A$5:$V$205,3*($C$8-1)+4) -> 2865.3
H77: 52 | I77: =VLOOKUP($H77,P_All!$A$5:$V$205,3*($C$8-1)+2) -> 2656.8 | J77: =VLOOKUP($H77,P_All!$A$5:$V$205,3*($C$8-1)+3) -> 2760.2 | K77: =VLOOKUP($H77,P_All!$A$5:$V$205,3*($C$8-1)+4) -> 2865.3
H78: 53 | I78: =VLOOKUP($H78,P_All!$A$5:$V$205,3*($C$8-1)+2) -> 2656.8 | J78: =VLOOKUP($H78,P_All!$A$5:$V$205,3*($C$8-1)+3) -> 2760.2 | K78: =VLOOKUP($H78,P_All!$A$5:$V$205,3*($C$8-1)+4) -> 2865.3
H79: 54 | I79: =VLOOKUP($H79,P_All!$A$5:$V$205,3*($C$8-1)+2) -> 2656.8 | J79: =VLOOKUP($H79,P_All!$A$5:$V$205,3*($C$8-1)+3) -> 2760.2 | K79: =VLOOKUP($H79,P_All!$A$5:$V$205,3*($C$8-1)+4) -> 2865.3
H80: 55 | I80: =VLOOKUP($H80,P_All!$A$5:$V$205,3*($C$8-1)+2) -> 2656.8 | J80: =VLOOKUP($H80,P_All!$A$5:$V$205,3*($C$8-1)+3) -> 2760.2 | K80: =VLOOKUP($H80,P_All!$A$5:$V$205,3*($C$8-1)+4) -> 2865.3
H81: 56 | I81: =VLOOKUP($H81,P_All!$A$5:$V$205,3*($C$8-1)+2) -> 2656.8 | J81: =VLOOKUP($H81,P_All!$A$5:$V$205,3*($C$8-1)+3) -> 2760.2 | K81: =VLOOKUP($H81,P_All!$A$5:$V$205,3*($C$8-1)+4) -> 2865.2
H82: 57 | I82: =VLOOKUP($H82,P_All!$A$5:$V$205,3*($C$8-1)+2) -> 2656.8 | J82: =VLOOKUP($H82,P_All!$A$5:$V$205,3*($C$8-1)+3) -> 2760.1 | K82: =VLOOKUP($H82,P_All!$A$5:$V$205,3*($C$8-1)+4) -> 2865.2
H83: 58 | I83: =VLOOKUP($H83,P_All!$A$5:$V$205,3*($C$8-1)+2) -> 2656.8 | J83: =VLOOKUP($H83,P_All!$A$5:$V$205,3*($C$8-1)+3) -> 2760.1 | K83: =VLOOKUP($H83,P_All!$A$5:$V$205,3*($C$8-1)+4) -> 2865.2
H84: 59 | I84: =VLOOKUP($H84,P_All!$A$5:$V$205,3*($C$8-1)+2) -> 2656.8 | J84: =VLOOKUP($H84,P_All!$A$5:$V$205,3*($C$8-1)+3) -> 2760.1 | K84: =VLOOKUP($H84,P_All!$A$5:$V$205,3*($C$8-1)+4) -> 2865.2
H85: 60 | I85: =VLOOKUP($H85,P_All!$A$5:$V$205,3*($C$8-1)+2) -> 2656.7 | J85: =VLOOKUP($H85,P_All!$A$5:$V$205,3*($C$8-1)+3) -> 2760.1 | K85: =VLOOKUP($H85,P_All!$A$5:$V$205,3*($C$8-1)+4) -> 2865.2
H86: 61 | I86: =VLOOKUP($H86,P_All!$A$5:$V$205,3*($C$8-1)+2) -> 2656.7 | J86: =VLOOKUP($H86,P_All!$A$5:$V$205,3*($C$8-1)+3) -> 2760.1 | K86: =VLOOKUP($H86,P_All!$A$5:$V$205,3*($C$8-1)+4) -> 2865.1
H87: 62 | I87: =VLOOKUP($H87,P_All!$A$5:$V$205,3*($C$8-1)+2) -> 2656.7 | J87: =VLOOKUP($H87,P_All!$A$5:$V$205,3*($C$8-1)+3) -> 2760.1 | K87: =VLOOKUP($H87,P_All!$A$5:$V$205,3*($C$8-1)+4) -> 2865.1
H88: 63 | I88: =VLOOKUP($H88,P_All!$A$5:$V$205,3*($C$8-1)+2) -> 2656.7 | J88: =VLOOKUP($H88,P_All!$A$5:$V$205,3*($C$8-1)+3) -> 2760.1 | K88: =VLOOKUP($H88,P_All!$A$5:$V$205,3*($C$8-1)+4) -> 2865.1
H89: 64 | I89: =VLOOKUP($H89,P_All!$A$5:$V$205,3*($C$8-1)+2) -> 2656.7 | J89: =VLOOKUP($H89,P_All!$A$5:$V$205,3*($C$8-1)+3) -> 2760.1 | K89: =VLOOKUP($H89,P_All!$A$5:$V$205,3*($C$8-1)+4) -> 2865.1
H90: 65 | I90: =VLOOKUP($H90,P_All!$A$5:$V$205,3*($C$8-1)+2) -> 2656.7 | J90: =VLOOKUP($H90,P_All!$A$5:$V$205,3*($C$8-1)+3) -> 2760.1 | K90: =VLOOKUP($H90,P_All!$A$5:$V$205,3*($C$8-1)+4) -> 2865.1
H91: 66 | I91: =VLOOKUP($H91,P_All!$A$5:$V$205,3*($C$8-1)+2) -> 2656.7 | J91: =VLOOKUP($H91,P_All!$A$5:$V$205,3*($C$8-1)+3) -> 2760.1 | K91: =VLOOKUP($H91,P_All!$A$5:$V$205,3*($C$8-1)+4) -> 2865.1
H92: 67 | I92: =VLOOKUP($H92,P_All!$A$5:$V$205,3*($C$8-1)+2) -> 2656.7 | J92: =VLOOKUP($H92,P_All!$A$5:$V$205,3*($C$8-1)+3) -> 2760.1 | K92: =VLOOKUP($H92,P_All!$A$5:$V$205,3*($C$8-1)+4) -> 2865
H93: 68 | I93: =VLOOKUP($H93,P_All!$A$5:$V$205,3*($C$8-1)+2) -> 2656.7 | J93: =VLOOKUP($H93,P_All!$A$5:$V$205,3*($C$8-1)+3) -> 2760 | K93: =VLOOKUP($H93,P_All!$A$5:$V$205,3*($C$8-1)+4) -> 2865
H94: 69 | I94: =VLOOKUP($H94,P_All!$A$5:$V$205,3*($C$8-1)+2) -> 2656.7 | J94: =VLOOKUP($H94,P_All!$A$5:$V$205,3*($C$8-1)+3) -> 2760 | K94: =VLOOKUP($H94,P_All!$A$5:$V$205,3*($C$8-1)+4) -> 2865
H95: 70 | I95: =VLOOKUP($H95,P_All!$A$5:$V$205,3*($C$8-1)+2) -> 2656.7 | J95: =VLOOKUP($H95,P_All!$A$5:$V$205,3*($C$8-1)+3) -> 2760 | K95: =VLOOKUP($H95,P_All!$A$5:$V$205,3*($C$8-1)+4) -> 2865
H96: 71 | I96: =VLOOKUP($H96,P_All!$A$5:$V$205,3*($C$8-1)+2) -> 2656.6 | J96: =VLOOKUP($H96,P_All!$A$5:$V$205,3*($C$8-1)+3) -> 2760 | K96: =VLOOKUP($H96,P_All!$A$5:$V$205,3*($C$8-1)+4) -> 2865
H97: 72 | I97: =VLOOKUP($H97,P_All!$A$5:$V$205,3*($C$8-1)+2) -> 2656.6 | J97: =VLOOKUP($H97,P_All!$A$5:$V$205,3*($C$8-1)+3) -> 2760 | K97: =VLOOKUP($H97,P_All!$A$5:$V$205,3*($C$8-1)+4) -> 2864.9
H98: 73 | I98: =VLOOKUP($H98,P_All!$A$5:$V$205,3*($C$8-1)+2) -> 2656.6 | J98: =VLOOKUP($H98,P_All!$A$5:$V$205,3*($C$8-1)+3) -> 2760 | K98: =VLOOKUP($H98,P_All!$A$5:$V$205,3*($C$8-1)+4) -> 2864.9
H99: 74 | I99: =VLOOKUP($H99,P_All!$A$5:$V$205,3*($C$8-1)+2) -> 2656.6 | J99: =VLOOKUP($H99,P_All!$A$5:$V$205,3*($C$8-1)+3) -> 2760 | K99: =VLOOKUP($H99,P_All!$A$5:$V$205,3*($C$8-1)+4) -> 2864.9
H100: 75 | I100: =VLOOKUP($H100,P_All!$A$5:$V$205,3*($C$8-1)+2) -> 2656.6 | J100: =VLOOKUP($H100,P_All!$A$5:$V$205,3*($C$8-1)+3) -> 2760 | K100: =VLOOKUP($H100,P_All!$A$5:$V$205,3*($C$8-1)+4) -> 2864.9
H101: 76 | I101: =VLOOKUP($H101,P_All!$A$5:$V$205,3*($C$8-1)+2) -> 2656.6 | J101: =VLOOKUP($H101,P_All!$A$5:$V$205,3*($C$8-1)+3) -> 2760 | K101: =VLOOKUP($H101,P_All!$A$5:$V$205,3*($C$8-1)+4) -> 2864.9
H102: 77 | I102: =VLOOKUP($H102,P_All!$A$5:$V$205,3*($C$8-1)+2) -> 2656.6 | J102: =VLOOKUP($H102,P_All!$A$5:$V$205,3*($C$8-1)+3) -> 2760 | K102: =VLOOKUP($H102,P_All!$A$5:$V$205,3*($C$8-1)+4) -> 2864.9
H103: 78 | I103: =VLOOKUP($H103,P_All!$A$5:$V$205,3*($C$8-1)+2) -> 2656.6 | J103: =VLOOKUP($H103,P_All!$A$5:$V$205,3*($C$8-1)+3) -> 2759.9 | K103: =VLOOKUP($H103,P_All!$A$5:$V$205,3*($C$8-1)+4) -> 2864.9
H104: 79 | I104: =VLOOKUP($H104,P_All!$A$5:$V$205,3*($C$8-1)+2) -> 2656.6 | J104: =VLOOKUP($H104,P_All!$A$5:$V$205,3*($C$8-1)+3) -> 2759.9 | K104: =VLOOKUP($H104,P_All!$A$5:$V$205,3*($C$8-1)+4) -> 2864.9
H105: 80 | I105: =VLOOKUP($H105,P_All!$A$5:$V$205,3*($C$8-1)+2) -> 2656.6 | J105: =VLOOKUP($H105,P_All!$A$5:$V$205,3*($C$8-1)+3) -> 2759.9 | K105: =VLOOKUP($H105,P_All!$A$5:$V$205,3*($C$8-1)+4) -> 2864.9
H106: 81 | I106: =VLOOKUP($H106,P_All!$A$5:$V$205,3*($C$8-1)+2) -> 2656.6 | J106: =VLOOKUP($H106,P_All!$A$5:$V$205,3*($C$8-1)+3) -> 2759.9 | K106: =VLOOKUP($H106,P_All!$A$5:$V$205,3*($C$8-1)+4) -> 2864.9
H107: 82 | I107: =VLOOKUP($H107,P_All!$A$5:$V$205,3*($C$8-1)+2) -> 2656.6 | J107: =VLOOKUP($H107,P_All!$A$5:$V$205,3*($C$8-1)+3) -> 2759.9 | K107: =VLOOKUP($H107,P_All!$A$5:$V$205,3*($C$8-1)+4) -> 2864.9
H108: 83 | I108: =VLOOKUP($H108,P_All!$A$5:$V$205,3*($C$8-1)+2) -> 2656.5 | J108: =VLOOKUP($H108,P_All!$A$5:$V$205,3*($C$8-1)+3) -> 2759.9 | K108: =VLOOKUP($H108,P_All!$A$5:$V$205,3*($C$8-1)+4) -> 2864.9
H109: 84 | I109: =VLOOKUP($H109,P_All!$A$5:$V$205,3*($C$8-1)+2) -> 2656.5 | J109: =VLOOKUP($H109,P_All!$A$5:$V$205,3*($C$8-1)+3) -> 2759.9 | K109: =VLOOKUP($H109,P_All!$A$5:$V$205,3*($C$8-1)+4) -> 2864.9
H110: 85 | I110: =VLOOKUP($H110,P_All!$A$5:$V$205,3*($C$8-1)+2) -> 2656.5 | J110: =VLOOKUP($H110,P_All!$A$5:$V$205,3*($C$8-1)+3) -> 2759.9 | K110: =VLOOKUP($H110,P_All!$A$5:$V$205,3*($C$8-1)+4) -> 2864.9
H111: 86 | I111: =VLOOKUP($H111,P_All!$A$5:$V$205,3*($C$8-1)+2) -> 2656.5 | J111: =VLOOKUP($H111,P_All!$A$5:$V$205,3*($C$8-1)+3) -> 2759.9 | K111: =VLOOKUP($H111,P_All!$A$5:$V$205,3*($C$8-1)+4) -> 2864.9
H112: 87 | I112: =VLOOKUP($H112,P_All!$A$5:$V$205,3*($C$8-1)+2) -> 2656.5 | J112: =VLOOKUP($H112,P_All!$A$5:$V$205,3*($C$8-1)+3) -> 2759.9 | K112: =VLOOKUP($H112,P_All!$A$5:$V$205,3*($C$8-1)+4) -> 2864.9
H113: 88 | I113: =VLOOKUP($H113,P_All!$A$5:$V$205,3*($C$8-1)+2) -> 2656.5 | J113: =VLOOKUP($H113,P_All!$A$5:$V$205,3*($C$8-1)+3) -> 2759.9 | K113: =VLOOKUP($H113,P_All!$A$5:$V$205,3*($C$8-1)+4) -> 2864.9
H114: 89 | I114: =VLOOKUP($H114,P_All!$A$5:$V$205,3*($C$8-1)+2) -> 2656.5 | J114: =VLOOKUP($H114,P_All!$A$5:$V$205,3*($C$8-1)+3) -> 2759.9 | K114: =VLOOKUP($H114,P_All!$A$5:$V$205,3*($C$8-1)+4) -> 2864.9
H115: 90 | I115: =VLOOKUP($H115,P_All!$A$5:$V$205,3*($C$8-1)+2) -> 2656.5 | J115: =VLOOKUP($H115,P_All!$A$5:$V$205,3*($C$8-1)+3) -> 2759.9 | K115: =VLOOKUP($H115,P_All!$A$5:$V$205,3*($C$8-1)+4) -> 2864.9
H116: 91 | I116: =VLOOKUP($H116,P_All!$A$5:$V$205,3*($C$8-1)+2) -> 2656.5 | J116: =VLOOKUP($H116,P_All!$A$5:$V$205,3*($C$8-1)+3) -> 2759.9 | K116: =VLOOKUP($H116,P_All!$A$5:$V$205,3*($C$8-1)+4) -> 2864.9
H117: 92 | I117: =VLOOKUP($H117,P_All!$A$5:$V$205,3*($C$8-1)+2) -> 2656.5 | J117: =VLOOKUP($H117,P_All!$A$5:$V$205,3*($C$8-1)+3) -> 2759.9 | K117: =VLOOKUP($H117,P_All!$A$5:$V$205,3*($C$8-1)+4) -> 2864.9
H118: 93 | I118: =VLOOKUP($H118,P_All!$A$5:$V$205,3*($C$8-1)+2) -> 2656.5 | J118: =VLOOKUP($H118,P_All!$A$5:$V$205,3*($C$8-1)+3) -> 2759.9 | K118: =VLOOKUP($H118,P_All!$A$5:$V$205,3*($C$8-1)+4) -> 2864.9
H119: 94 | I119: =VLOOKUP($H119,P_All!$A$5:$V$205,3*($C$8-1)+2) -> 2656.4 | J119: =VLOOKUP($H119,P_All!$A$5:$V$205,3*($C$8-1)+3) -> 2759.8 | K119: =VLOOKUP($H119,P_All!$A$5:$V$205,3*($C$8-1)+4) -> 2864.9
H120: 95 | I120: =VLOOKUP($H120,P_All!$A$5:$V$205,3*($C$8-1)+2) -> 2656.4 | J120: =VLOOKUP($H120,P_All!$A$5:$V$205,3*($C$8-1)+3) -> 2759.8 | K120: =VLOOKUP($H120,P_All!$A$5:$V$205,3*($C$8-1)+4) -> 2864.9
H121: 96 | I121: =VLOOKUP($H121,P_All!$A$5:$V$205,3*($C$8-1)+2) -> 2656.4 | J121: =VLOOKUP($H121,P_All!$A$5:$V$205,3*($C$8-1)+3) -> 2759.8 | K121: =VLOOKUP($H121,P_All!$A$5:$V$205,3*($C$8-1)+4) -> 2864.9
H122: 97 | I122: =VLOOKUP($H122,P_All!$A$5:$V$205,3*($C$8-1)+2) -> 2656.4 | J122: =VLOOKUP($H122,P_All!$A$5:$V$205,3*($C$8-1)+3) -> 2759.8 | K122: =VLOOKUP($H122,P_All!$A$5:$V$205,3*($C$8-1)+4) -> 2864.9
H123: 98 | I123: =VLOOKUP($H123,P_All!$A$5:$V$205,3*($C$8-1)+2) -> 2656.4 | J123: =VLOOKUP($H123,P_All!$A$5:$V$205,3*($C$8-1)+3) -> 2759.8 | K123: =VLOOKUP($H123,P_All!$A$5:$V$205,3*($C$8-1)+4) -> 2864.9
H124: 99 | I124: =VLOOKUP($H124,P_All!$A$5:$V$205,3*($C$8-1)+2) -> 2656.4 | J124: =VLOOKUP($H124,P_All!$A$5:$V$205,3*($C$8-1)+3) -> 2759.8 | K124: =VLOOKUP($H124,P_All!$A$5:$V$205,3*($C$8-1)+4) -> 2864.9
H125: 100 | I125: =VLOOKUP($H125,P_All!$A$5:$V$205,3*($C$8-1)+2) -> 2656.4 | J125: =VLOOKUP($H125,P_All!$A$5:$V$205,3*($C$8-1)+3) -> 2759.8 | K125: =VLOOKUP($H125,P_All!$A$5:$V$205,3*($C$8-1)+4) -> 2864.9
H126: 101 | I126: =VLOOKUP($H126,P_All!$A$5:$V$205,3*($C$8-1)+2) -> 2656.4 | J126: =VLOOKUP($H126,P_All!$A$5:$V$205,3*($C$8-1)+3) -> 2759.8 | K126: =VLOOKUP($H126,P_All!$A$5:$V$205,3*($C$8-1)+4) -> 2864.8
H127: 102 | I127: =VLOOKUP($H127,P_All!$A$5:$V$205,3*($C$8-1)+2) -> 2656.4 | J127: =VLOOKUP($H127,P_All!$A$5:$V$205,3*($C$8-1)+3) -> 2759.8 | K127: =VLOOKUP($H127,P_All!$A$5:$V$205,3*($C$8-1)+4) -> 2864.8
H128: 103 | I128: =VLOOKUP($H128,P_All!$A$5:$V$205,3*($C$8-1)+2) -> 2656.4 | J128: =VLOOKUP($H128,P_All!$A$5:$V$205,3*($C$8-1)+3) -> 2759.8 | K128: =VLOOKUP($H128,P_All!$A$5:$V$205,3*($C$8-1)+4) -> 2864.8
H129: 104 | I129: =VLOOKUP($H129,P_All!$A$5:$V$205,3*($C$8-1)+2) -> 2656.4 | J129: =VLOOKUP($H129,P_All!$A$5:$V$205,3*($C$8-1)+3) -> 2759.8 | K129: =VLOOKUP($H129,P_All!$A$5:$V$205,3*($C$8-1)+4) -> 2864.8
H130: 105 | I130: =VLOOKUP($H130,P_All!$A$5:$V$205,3*($C$8-1)+2) -> 2656.4 | J130: =VLOOKUP($H130,P_All!$A$5:$V$205,3*($C$8-1)+3) -> 2759.8 | K130: =VLOOKUP($H130,P_All!$A$5:$V$205,3*($C$8-1)+4) -> 2864.8
H131: 106 | I131: =VLOOKUP($H131,P_All!$A$5:$V$205,3*($C$8-1)+2) -> 2656.3 | J131: =VLOOKUP($H131,P_All!$A$5:$V$205,3*($C$8-1)+3) -> 2759.8 | K131: =VLOOKUP($H131,P_All!$A$5:$V$205,3*($C$8-1)+4) -> 2864.8
H132: 107 | I132: =VLOOKUP($H132,P_All!$A$5:$V$205,3*($C$8-1)+2) -> 2656.3 | J132: =VLOOKUP($H132,P_All!$A$5:$V$205,3*($C$8-1)+3) -> 2759.8 | K132: =VLOOKUP($H132,P_All!$A$5:$V$205,3*($C$8-1)+4) -> 2864.8
H133: 108 | I133: =VLOOKUP($H133,P_All!$A$5:$V$205,3*($C$8-1)+2) -> 2656.3 | J133: =VLOOKUP($H133,P_All!$A$5:$V$205,3*($C$8-1)+3) -> 2759.8 | K133: =VLOOKUP($H133,P_All!$A$5:$V$205,3*($C$8-1)+4) -> 2864.8
H134: 109 | I134: =VLOOKUP($H134,P_All!$A$5:$V$205,3*($C$8-1)+2) -> 2656.3 | J134: =VLOOKUP($H134,P_All!$A$5:$V$205,3*($C$8-1)+3) -> 2759.8 | K134: =VLOOKUP($H134,P_All!$A$5:$V$205,3*($C$8-1)+4) -> 2864.8
H135: 110 | I135: =VLOOKUP($H135,P_All!$A$5:$V$205,3*($C$8-1)+2) -> 2656.3 | J135: =VLOOKUP($H135,P_All!$A$5:$V$205,3*($C$8-1)+3) -> 2759.8 | K135: =VLOOKUP($H135,P_All!$A$5:$V$205,3*($C$8-1)+4) -> 2864.8
H136: 111 | I136: =VLOOKUP($H136,P_All!$A$5:$V$205,3*($C$8-1)+2) -> 2656.3 | J136: =VLOOKUP($H136,P_All!$A$5:$V$205,3*($C$8-1)+3) -> 2759.8 | K136: =VLOOKUP($H136,P_All!$A$5:$V$205,3*($C$8-1)+4) -> 2864.8
H137: 112 | I137: =VLOOKUP($H137,P_All!$A$5:$V$205,3*($C$8-1)+2) -> 2656.3 | J137: =VLOOKUP($H137,P_All!$A$5:$V$205,3*($C$8-1)+3) -> 2759.8 | K137: =VLOOKUP($H137,P_All!$A$5:$V$205,3*($C$8-1)+4) -> 2864.8
H138: 113 | I138: =VLOOKUP($H138,P_All!$A$5:$V$205,3*($C$8-1)+2) -> 2656.3 | J138: =VLOOKUP($H138,P_All!$A$5:$V$205,3*($C$8-1)+3) -> 2759.8 | K138: =VLOOKUP($H138,P_All!$A$5:$V$205,3*($C$8-1)+4) -> 2864.8
H139: 114 | I139: =VLOOKUP($H139,P_All!$A$5:$V$205,3*($C$8-1)+2) -> 2656.3 | J139: =VLOOKUP($H139,P_All!$A$5:$V$205,3*($C$8-1)+3) -> 2759.8 | K139: =VLOOKUP($H139,P_All!$A$5:$V$205,3*($C$8-1)+4) -> 2864.8
H140: 115 | I140: =VLOOKUP($H140,P_All!$A$5:$V$205,3*($C$8-1)+2) -> 2656.3 | J140: =VLOOKUP($H140,P_All!$A$5:$V$205,3*($C$8-1)+3) -> 2759.8 | K140: =VLOOKUP($H140,P_All!$A$5:$V$205,3*($C$8-1)+4) -> 2864.8
H141: 116 | I141: =VLOOKUP($H141,P_All!$A$5:$V$205,3*($C$8-1)+2) -> 2656.3 | J141: =VLOOKUP($H141,P_All!$A$5:$V$205,3*($C$8-1)+3) -> 2759.7 | K141: =VLOOKUP($H141,P_All!$A$5:$V$205,3*($C$8-1)+4) -> 2864.8
H142: 117 | I142: =VLOOKUP($H142,P_All!$A$5:$V$205,3*($C$8-1)+2) -> 2656.2 | J142: =VLOOKUP($H142,P_All!$A$5:$V$205,3*($C$8-1)+3) -> 2759.7 | K142: =VLOOKUP($H142,P_All!$A$5:$V$205,3*($C$8-1)+4) -> 2864.8
H143: 118 | I143: =VLOOKUP($H143,P_All!$A$5:$V$205,3*($C$8-1)+2) -> 2656.2 | J143: =VLOOKUP($H143,P_All!$A$5:$V$205,3*($C$8-1)+3) -> 2759.7 | K143: =VLOOKUP($H143,P_All!$A$5:$V$205,3*($C$8-1)+4) -> 2864.8
H144: 119 | I144: =VLOOKUP($H144,P_All!$A$5:$V$205,3*($C$8-1)+2) -> 2656.2 | J144: =VLOOKUP($H144,P_All!$A$5:$V$205,3*($C$8-1)+3) -> 2759.7 | K144: =VLOOKUP($H144,P_All!$A$5:$V$205,3*($C$8-1)+4) -> 2864.8
H145: 120 | I145: =VLOOKUP($H145,P_All!$A$5:$V$205,3*($C$8-1)+2) -> 2656.2 | J145: =VLOOKUP($H145,P_All!$A$5:$V$205,3*($C$8-1)+3) -> 2759.7 | K145: =VLOOKUP($H145,P_All!$A$5:$V$205,3*($C$8-1)+4) -> 2864.8
H146: 121 | I146: =VLOOKUP($H146,P_All!$A$5:$V$205,3*($C$8-1)+2) -> 2656.2 | J146: =VLOOKUP($H146,P_All!$A$5:$V$205,3*($C$8-1)+3) -> 2759.7 | K146: =VLOOKUP($H146,P_All!$A$5:$V$205,3*($C$8-1)+4) -> 2864.8
H147: 122 | I147: =VLOOKUP($H147,P_All!$A$5:$V$205,3*($C$8-1)+2) -> 2656.2 | J147: =VLOOKUP($H147,P_All!$A$5:$V$205,3*($C$8-1)+3) -> 2759.7 | K147: =VLOOKUP($H147,P_All!$A$5:$V$205,3*($C$8-1)+4) -> 2864.8
H148: 123 | I148: =VLOOKUP($H148,P_All!$A$5:$V$205,3*($C$8-1)+2) -> 2656.2 | J148: =VLOOKUP($H148,P_All!$A$5:$V$205,3*($C$8-1)+3) -> 2759.7 | K148: =VLOOKUP($H148,P_All!$A$5:$V$205,3*($C$8-1)+4) -> 2864.8
H149: 124 | I149: =VLOOKUP($H149,P_All!$A$5:$V$205,3*($C$8-1)+2) -> 2656.2 | J149: =VLOOKUP($H149,P_All!$A$5:$V$205,3*($C$8-1)+3) -> 2759.7 | K149: =VLOOKUP($H149,P_All!$A$5:$V$205,3*($C$8-1)+4) -> 2864.8
H150: 125 | I150: =VLOOKUP($H150,P_All!$A$5:$V$205,3*($C$8-1)+2) -> 2656.2 | J150: =VLOOKUP($H150,P_All!$A$5:$V$205,3*($C$8-1)+3) -> 2759.7 | K150: =VLOOKUP($H150,P_All!$A$5:$V$205,3*($C$8-1)+4) -> 2864.8
H151: 126 | I151: =VLOOKUP($H151,P_All!$A$5:$V$205,3*($C$8-1)+2) -> 2656.2 | J151: =VLOOKUP($H151,P_All!$A$5:$V$205,3*($C$8-1)+3) -> 2759.7 | K151: =VLOOKUP($H151,P_All!$A$5:$V$205,3*($C$8-1)+4) -> 2864.8
H152: 127 | I152: =VLOOKUP($H152,P_All!$A$5:$V$205,3*($C$8-1)+2) -> 2656.2 | J152: =VLOOKUP($H152,P_All!$A$5:$V$205,3*($C$8-1)+3) -> 2759.7 | K152: =VLOOKUP($H152,P_All!$A$5:$V$205,3*($C$8-1)+4) -> 2864.8
H153: 128 | I153: =VLOOKUP($H153,P_All!$A$5:$V$205,3*($C$8-1)+2) -> 2656.1 | J153: =VLOOKUP($H153,P_All!$A$5:$V$205,3*($C$8-1)+3) -> 2759.7 | K153: =VLOOKUP($H153,P_All!$A$5:$V$205,3*($C$8-1)+4) -> 2864.8
H154: 129 | I154: =VLOOKUP($H154,P_All!$A$5:$V$205,3*($C$8-1)+2) -> 2656.1 | J154: =VLOOKUP($H154,P_All!$A$5:$V$205,3*($C$8-1)+3) -> 2759.7 | K154: =VLOOKUP($H154,P_All!$A$5:$V$205,3*($C$8-1)+4) -> 2864.8
H155: 130 | I155: =VLOOKUP($H155,P_All!$A$5:$V$205,3*($C$8-1)+2) -> 2656.1 | J155: =VLOOKUP($H155,P_All!$A$5:$V$205,3*($C$8-1)+3) -> 2759.7 | K155: =VLOOKUP($H155,P_All!$A$5:$V$205,3*($C$8-1)+4) -> 2864.8
H156: 131 | I156: =VLOOKUP($H156,P_All!$A$5:$V$205,3*($C$8-1)+2) -> 2656.1 | J156: =VLOOKUP($H156,P_All!$A$5:$V$205,3*($C$8-1)+3) -> 2759.7 | K156: =VLOOKUP($H156,P_All!$A$5:$V$205,3*($C$8-1)+4) -> 2864.8
H157: 132 | I157: =VLOOKUP($H157,P_All!$A$5:$V$205,3*($C$8-1)+2) -> 2656.1 | J157: =VLOOKUP($H157,P_All!$A$5:$V$205,3*($C$8-1)+3) -> 2759.7 | K157: =VLOOKUP($H157,P_All!$A$5:$V$205,3*($C$8-1)+4) -> 2864.8
H158: 133 | I158: =VLOOKUP($H158,P_All!$A$5:$V$205,3*($C$8-1)+2) -> 2656.1 | J158: =VLOOKUP($H158,P_All!$A$5:$V$205,3*($C$8-1)+3) -> 2759.7 | K158: =VLOOKUP($H158,P_All!$A$5:$V$205,3*($C$8-1)+4) -> 2864.8
H159: 134 | I159: =VLOOKUP($H159,P_All!$A$5:$V$205,3*($C$8-1)+2) -> 2656.1 | J159: =VLOOKUP($H159,P_All!$A$5:$V$205,3*($C$8-1)+3) -> 2759.7 | K159: =VLOOKUP($H159,P_All!$A$5:$V$205,3*($C$8-1)+4) -> 2864.8
H160: 135 | I160: =VLOOKUP($H160,P_All!$A$5:$V$205,3*($C$8-1)+2) -> 2656.1 | J160: =VLOOKUP($H160,P_All!$A$5:$V$205,3*($C$8-1)+3) -> 2759.7 | K160: =VLOOKUP($H160,P_All!$A$5:$V$205,3*($C$8-1)+4) -> 2864.8
H161: 136 | I161: =VLOOKUP($H161,P_All!$A$5:$V$205,3*($C$8-1)+2) -> 2656.1 | J161: =VLOOKUP($H161,P_All!$A$5:$V$205,3*($C$8-1)+3) -> 2759.7 | K161: =VLOOKUP($H161,P_All!$A$5:$V$205,3*($C$8-1)+4) -> 2864.8
H162: 137 | I162: =VLOOKUP($H162,P_All!$A$5:$V$205,3*($C$8-1)+2) -> 2656.1 | J162: =VLOOKUP($H162,P_All!$A$5:$V$205,3*($C$8-1)+3) -> 2759.7 | K162: =VLOOKUP($H162,P_All!$A$5:$V$205,3*($C$8-1)+4) -> 2864.8
H163: 138 | I163: =VLOOKUP($H163,P_All!$A$5:$V$205,3*($C$8-1)+2) -> 2656.1 | J163: =VLOOKUP($H163,P_All!$A$5:$V$205,3*($C$8-1)+3) -> 2759.7 | K163: =VLOOKUP($H163,P_All!$A$5:$V$205,3*($C$8-1)+4) -> 2864.8
H164: 139 | I164: =VLOOKUP($H164,P_All!$A$5:$V$205,3*($C$8-1)+2) -> 2656.1 | J164: =VLOOKUP($H164,P_All!$A$5:$V$205,3*($C$8-1)+3) -> 2759.6 | K164: =VLOOKUP($H164,P_All!$A$5:$V$205,3*($C$8-1)+4) -> 2864.8
H165: 140 | I165: =VLOOKUP($H165,P_All!$A$5:$V$205,3*($C$8-1)+2) -> 2656 | J165: =VLOOKUP($H165,P_All!$A$5:$V$205,3*($C$8-1)+3) -> 2759.6 | K165: =VLOOKUP($H165,P_All!$A$5:$V$205,3*($C$8-1)+4) -> 2864.8
H166: 141 | I166: =VLOOKUP($H166,P_All!$A$5:$V$205,3*($C$8-1)+2) -> 2656 | J166: =VLOOKUP($H166,P_All!$A$5:$V$205,3*($C$8-1)+3) -> 2759.6 | K166: =VLOOKUP($H166,P_All!$A$5:$V$205,3*($C$8-1)+4) -> 2864.8
H167: 142 | I167: =VLOOKUP($H167,P_All!$A$5:$V$205,3*($C$8-1)+2) -> 2656 | J167: =VLOOKUP($H167,P_All!$A$5:$V$205,3*($C$8-1)+3) -> 2759.6 | K167: =VLOOKUP($H167,P_All!$A$5:$V$205,3*($C$8-1)+4) -> 2864.8
H168: 143 | I168: =VLOOKUP($H168,P_All!$A$5:$V$205,3*($C$8-1)+2) -> 2656 | J168: =VLOOKUP($H168,P_All!$A$5:$V$205,3*($C$8-1)+3) -> 2759.6 | K168: =VLOOKUP($H168,P_All!$A$5:$V$205,3*($C$8-1)+4) -> 2864.8
H169: 144 | I169: =VLOOKUP($H169,P_All!$A$5:$V$205,3*($C$8-1)+2) -> 2656 | J169: =VLOOKUP($H169,P_All!$A$5:$V$205,3*($C$8-1)+3) -> 2759.6 | K169: =VLOOKUP($H169,P_All!$A$5:$V$205,3*($C$8-1)+4) -> 2864.8
H170: 145 | I170: =VLOOKUP($H170,P_All!$A$5:$V$205,3*($C$8-1)+2) -> 2656 | J170: =VLOOKUP($H170,P_All!$A$5:$V$205,3*($C$8-1)+3) -> 2759.6 | K170: =VLOOKUP($H170,P_All!$A$5:$V$205,3*($C$8-1)+4) -> 2864.8
H171: 146 | I171: =VLOOKUP($H171,P_All!$A$5:$V$205,3*($C$8-1)+2) -> 2656 | J171: =VLOOKUP($H171,P_All!$A$5:$V$205,3*($C$8-1)+3) -> 2759.6 | K171: =VLOOKUP($H171,P_All!$A$5:$V$205,3*($C$8-1)+4) -> 2864.8
H172: 147 | I172: =VLOOKUP($H172,P_All!$A$5:$V$205,3*($C$8-1)+2) -> 2656 | J172: =VLOOKUP($H172,P_All!$A$5:$V$205,3*($C$8-1)+3) -> 2759.6 | K172: =VLOOKUP($H172,P_All!$A$5:$V$205,3*($C$8-1)+4) -> 2864.8
H173: 148 | I173: =VLOOKUP($H173,P_All!$A$5:$V$205,3*($C$8-1)+2) -> 2656 | J173: =VLOOKUP($H173,P_All!$A$5:$V$205,3*($C$8-1)+3) -> 2759.6 | K173: =VLOOKUP($H173,P_All!$A$5:$V$205,3*($C$8-1)+4) -> 2864.8
H174: 149 | I174: =VLOOKUP($H174,P_All!$A$5:$V$205,3*($C$8-1)+2) -> 2656 | J174: =VLOOKUP($H174,P_All!$A$5:$V$205,3*($C$8-1)+3) -> 2759.6 | K174: =VLOOKUP($H174,P_All!$A$5:$V$205,3*($C$8-1)+4) -> 2864.8
H175: 150 | I175: =VLOOKUP($H175,P_All!$A$5:$V$205,3*($C$8-1)+2) -> 2656 | J175: =VLOOKUP($H175,P_All!$A$5:$V$205,3*($C$8-1)+3) -> 2759.6 | K175: =VLOOKUP($H175,P_All!$A$5:$V$205,3*($C$8-1)+4) -> 2864.8
H176: 151 | I176: =VLOOKUP($H176,P_All!$A$5:$V$205,3*($C$8-1)+2) -> 2655.9 | J176: =VLOOKUP($H176,P_All!$A$5:$V$205,3*($C$8-1)+3) -> 2759.6 | K176: =VLOOKUP($H176,P_All!$A$5:$V$205,3*($C$8-1)+4) -> 2864.8
H177: 152 | I177: =VLOOKUP($H177,P_All!$A$5:$V$205,3*($C$8-1)+2) -> 2655.9 | J177: =VLOOKUP($H177,P_All!$A$5:$V$205,3*($C$8-1)+3) -> 2759.6 | K177: =VLOOKUP($H177,P_All!$A$5:$V$205,3*($C$8-1)+4) -> 2864.8
H178: 153 | I178: =VLOOKUP($H178,P_All!$A$5:$V$205,3*($C$8-1)+2) -> 2655.9 | J178: =VLOOKUP($H178,P_All!$A$5:$V$205,3*($C$8-1)+3) -> 2759.6 | K178: =VLOOKUP($H178,P_All!$A$5:$V$205,3*($C$8-1)+4) -> 2864.8
H179: 154 | I179: =VLOOKUP($H179,P_All!$A$5:$V$205,3*($C$8-1)+2) -> 2655.9 | J179: =VLOOKUP($H179,P_All!$A$5:$V$205,3*($C$8-1)+3) -> 2759.6 | K179: =VLOOKUP($H179,P_All!$A$5:$V$205,3*($C$8-1)+4) -> 2864.8
H180: 155 | I180: =VLOOKUP($H180,P_All!$A$5:$V$205,3*($C$8-1)+2) -> 2655.9 | J180: =VLOOKUP($H180,P_All!$A$5:$V$205,3*($C$8-1)+3) -> 2759.6 | K180: =VLOOKUP($H180,P_All!$A$5:$V$205,3*($C$8-1)+4) -> 2864.8
H181: 156 | I181: =VLOOKUP($H181,P_All!$A$5:$V$205,3*($C$8-1)+2) -> 2655.9 | J181: =VLOOKUP($H181,P_All!$A$5:$V$205,3*($C$8-1)+3) -> 2759.6 | K181: =VLOOKUP($H181,P_All!$A$5:$V$205,3*($C$8-1)+4) -> 2864.8
H182: 157 | I182: =VLOOKUP($H182,P_All!$A$5:$V$205,3*($C$8-1)+2) -> 2655.9 | J182: =VLOOKUP($H182,P_All!$A$5:$V$205,3*($C$8-1)+3) -> 2759.6 | K182: =VLOOKUP($H182,P_All!$A$5:$V$205,3*($C$8-1)+4) -> 2864.8
H183: 158 | I183: =VLOOKUP($H183,P_All!$A$5:$V$205,3*($C$8-1)+2) -> 2655.9 | J183: =VLOOKUP($H183,P_All!$A$5:$V$205,3*($C$8-1)+3) -> 2759.6 | K183: =VLOOKUP($H183,P_All!$A$5:$V$205,3*($C$8-1)+4) -> 2864.8
H184: 159 | I184: =VLOOKUP($H184,P_All!$A$5:$V$205,3*($C$8-1)+2) -> 2655.9 | J184: =VLOOKUP($H184,P_All!$A$5:$V$205,3*($C$8-1)+3) -> 2759.6 | K184: =VLOOKUP($H184,P_All!$A$5:$V$205,3*($C$8-1)+4) -> 2864.8
H185: 160 | I185: =VLOOKUP($H185,P_All!$A$5:$V$205,3*($C$8-1)+2) -> 2655.9 | J185: =VLOOKUP($H185,P_All!$A$5:$V$205,3*($C$8-1)+3) -> 2759.6 | K185: =VLOOKUP($H185,P_All!$A$5:$V$205,3*($C$8-1)+4) -> 2864.8
H186: 161 | I186: =VLOOKUP($H186,P_All!$A$5:$V$205,3*($C$8-1)+2) -> 2655.9 | J186: =VLOOKUP($H186,P_All!$A$5:$V$205,3*($C$8-1)+3) -> 2759.6 | K186: =VLOOKUP($H186,P_All!$A$5:$V$205,3*($C$8-1)+4) -> 2864.8
H187: 162 | I187: =VLOOKUP($H187,P_All!$A$5:$V$205,3*($C$8-1)+2) -> 2655.8 | J187: =VLOOKUP($H187,P_All!$A$5:$V$205,3*($C$8-1)+3) -> 2759.6 | K187: =VLOOKUP($H187,P_All!$A$5:$V$205,3*($C$8-1)+4) -> 2864.8
H188: 163 | I188: =VLOOKUP($H188,P_All!$A$5:$V$205,3*($C$8-1)+2) -> 2655.8 | J188: =VLOOKUP($H188,P_All!$A$5:$V$205,3*($C$8-1)+3) -> 2759.5 | K188: =VLOOKUP($H188,P_All!$A$5:$V$205,3*($C$8-1)+4) -> 2864.8
H189: 164 | I189: =VLOOKUP($H189,P_All!$A$5:$V$205,3*($C$8-1)+2) -> 2655.8 | J189: =VLOOKUP($H189,P_All!$A$5:$V$205,3*($C$8-1)+3) -> 2759.5 | K189: =VLOOKUP($H189,P_All!$A$5:$V$205,3*($C$8-1)+4) -> 2864.8
H190: 165 | I190: =VLOOKUP($H190,P_All!$A$5:$V$205,3*($C$8-1)+2) -> 2655.8 | J190: =VLOOKUP($H190,P_All!$A$5:$V$205,3*($C$8-1)+3) -> 2759.5 | K190: =VLOOKUP($H190,P_All!$A$5:$V$205,3*($C$8-1)+4) -> 2864.8
H191: 166 | I191: =VLOOKUP($H191,P_All!$A$5:$V$205,3*($C$8-1)+2) -> 2655.8 | J191: =VLOOKUP($H191,P_All!$A$5:$V$205,3*($C$8-1)+3) -> 2759.5 | K191: =VLOOKUP($H191,P_All!$A$5:$V$205,3*($C$8-1)+4) -> 2864.8
H192: 167 | I192: =VLOOKUP($H192,P_All!$A$5:$V$205,3*($C$8-1)+2) -> 2655.8 | J192: =VLOOKUP($H192,P_All!$A$5:$V$205,3*($C$8-1)+3) -> 2759.5 | K192: =VLOOKUP($H192,P_All!$A$5:$V$205,3*($C$8-1)+4) -> 2864.8
H193: 168 | I193: =VLOOKUP($H193,P_All!$A$5:$V$205,3*($C$8-1)+2) -> 2655.8 | J193: =VLOOKUP($H193,P_All!$A$5:$V$205,3*($C$8-1)+3) -> 2759.5 | K193: =VLOOKUP($H193,P_All!$A$5:$V$205,3*($C$8-1)+4) -> 2864.8
H194: 169 | I194: =VLOOKUP($H194,P_All!$A$5:$V$205,3*($C$8-1)+2) -> 2655.8 | J194: =VLOOKUP($H194,P_All!$A$5:$V$205,3*($C$8-1)+3) -> 2759.5 | K194: =VLOOKUP($H194,P_All!$A$5:$V$205,3*($C$8-1)+4) -> 2864.8
H195: 170 | I195: =VLOOKUP($H195,P_All!$A$5:$V$205,3*($C$8-1)+2) -> 2655.8 | J195: =VLOOKUP($H195,P_All!$A$5:$V$205,3*($C$8-1)+3) -> 2759.5 | K195: =VLOOKUP($H195,P_All!$A$5:$V$205,3*($C$8-1)+4) -> 2864.8
H196: 171 | I196: =VLOOKUP($H196,P_All!$A$5:$V$205,3*($C$8-1)+2) -> 2655.8 | J196: =VLOOKUP($H196,P_All!$A$5:$V$205,3*($C$8-1)+3) -> 2759.5 | K196: =VLOOKUP($H196,P_All!$A$5:$V$205,3*($C$8-1)+4) -> 2864.8
H197: 172 | I197: =VLOOKUP($H197,P_All!$A$5:$V$205,3*($C$8-1)+2) -> 2655.8 | J197: =VLOOKUP($H197,P_All!$A$5:$V$205,3*($C$8-1)+3) -> 2759.5 | K197: =VLOOKUP($H197,P_All!$A$5:$V$205,3*($C$8-1)+4) -> 2864.8
H198: 173 | I198: =VLOOKUP($H198,P_All!$A$5:$V$205,3*($C$8-1)+2) -> 2655.8 | J198: =VLOOKUP($H198,P_All!$A$5:$V$205,3*($C$8-1)+3) -> 2759.5 | K198: =VLOOKUP($H198,P_All!$A$5:$V$205,3*($C$8-1)+4) -> 2864.8
H199: 174 | I199: =VLOOKUP($H199,P_All!$A$5:$V$205,3*($C$8-1)+2) -> 2655.7 | J199: =VLOOKUP($H199,P_All!$A$5:$V$205,3*($C$8-1)+3) -> 2759.5 | K199: =VLOOKUP($H199,P_All!$A$5:$V$205,3*($C$8-1)+4) -> 2864.8
H200: 175 | I200: =VLOOKUP($H200,P_All!$A$5:$V$205,3*($C$8-1)+2) -> 2655.7 | J200: =VLOOKUP($H200,P_All!$A$5:$V$205,3*($C$8-1)+3) -> 2759.5 | K200: =VLOOKUP($H200,P_All!$A$5:$V$205,3*($C$8-1)+4) -> 2864.8
H201: 176 | I201: =VLOOKUP($H201,P_All!$A$5:$V$205,3*($C$8-1)+2) -> 2655.7 | J201: =VLOOKUP($H201,P_All!$A$5:$V$205,3*($C$8-1)+3) -> 2759.5 | K201: =VLOOKUP($H201,P_All!$A$5:$V$205,3*($C$8-1)+4) -> 2864.8
H202: 177 | I202: =VLOOKUP($H202,P_All!$A$5:$V$205,3*($C$8-1)+2) -> 2655.7 | J202: =VLOOKUP($H202,P_All!$A$5:$V$205,3*($C$8-1)+3) -> 2759.5 | K202: =VLOOKUP($H202,P_All!$A$5:$V$205,3*($C$8-1)+4) -> 2864.8
H203: 178 | I203: =VLOOKUP($H203,P_All!$A$5:$V$205,3*($C$8-1)+2) -> 2655.7 | J203: =VLOOKUP($H203,P_All!$A$5:$V$205,3*($C$8-1)+3) -> 2759.5 | K203: =VLOOKUP($H203,P_All!$A$5:$V$205,3*($C$8-1)+4) -> 2864.8
H204: 179 | I204: =VLOOKUP($H204,P_All!$A$5:$V$205,3*($C$8-1)+2) -> 2655.7 | J204: =VLOOKUP($H204,P_All!$A$5:$V$205,3*($C$8-1)+3) -> 2759.5 | K204: =VLOOKUP($H204,P_All!$A$5:$V$205,3*($C$8-1)+4) -> 2864.8
H205: 180 | I205: =VLOOKUP($H205,P_All!$A$5:$V$205,3*($C$8-1)+2) -> 2655.7 | J205: =VLOOKUP($H205,P_All!$A$5:$V$205,3*($C$8-1)+3) -> 2759.5 | K205: =VLOOKUP($H205,P_All!$A$5:$V$205,3*($C$8-1)+4) -> 2864.7
... 19 more rows

Sheet P_All
B1: Values shown for constituent selected on PlotControl tab
B2: =PlotControl!$A$15 -> North Beach | E2: =PlotControl!$A$16 -> North Dam | H2: =PlotControl!$A$17 -> East Beach | K2: =PlotControl!$A$18 -> East Dam | N2: =PlotControl!$A$19 -> South Beach | Q2: =PlotControl!$A$20 -> South Dam | T2: =PlotControl!$A$21 -> Closure Beach
B3: Annual Project Results | E3: Annual Project Results | H3: Annual Project Results | K3: Annual Project Results | N3: Annual Project Results | Q3: Annual Project Results | T3: Annual Project Results
A4: Time | B4: P10 | C4: P50 | D4: P90 | E4: P10 | F4: P50 | G4: P90 | H4: P10 | I4: P50 | J4: P90 | K4: P10 | L4: P50 | M4: P90 | N4: P10 | O4: P50 | P4: P90 | Q4: P10 | R4: P50 | S4: P90 | T4: P10 | U4: P50 | V4: P90
A5: 0 | B5: =IF(PlotControl!$B$4 = "Annual Max",MAX(OFFSET(Nbeach!$C$10,12*$A5,4*(PlotControl!$C$6-1),12,1)),AVERAGE(OFFSET(Nbeach!$C$10,12*$A5,4*(PlotControl!$C$6-1),12,1))) -> 216.43 | C5: =IF(PlotControl!$B$4 = "Annual Max",MAX(OFFSET(Nbeach!$D$10,12*$A5,4*(PlotControl!$C$6-1),12,1)),AVERAGE(OFFSET(Nbeach!$D$10,12*$A5,4*(PlotControl!$C$6-1),12,1))) -> 245.44 | D5: =IF(PlotControl!$B$4 = "Annual Max",MAX(OFFSET(Nbeach!$E$10,12*$A5,4*(PlotControl!$C$6-1),12,1)),AVERAGE(OFFSET(Nbeach!$E$10,12*$A5,4*(PlotControl!$C$6-1),12,1))) -> 272.42 | E5: =IF(PlotControl!$B$4 = "Annual Max",MAX(OFFSET(Ndam!$C$10,12*$A5,4*(PlotControl!$C$6-1),12,1)),AVERAGE(OFFSET(Ndam!$C$10,12*$A5,4*(PlotControl!$C$6-1),12,1))) -> 26.823 | F5: =IF(PlotControl!$B$4 = "Annual Max",MAX(OFFSET(Ndam!$D$10,12*$A5,4*(PlotControl!$C$6-1),12,1)),AVERAGE(OFFSET(Ndam!$D$10,12*$A5,4*(PlotControl!$C$6-1),12,1))) -> 26.823 | G5: =IF(PlotControl!$B$4 = "Annual Max",MAX(OFFSET(Ndam!$E$10,12*$A5,4*(PlotControl!$C$6-1),12,1)),AVERAGE(OFFSET(Ndam!$E$10,12*$A5,4*(PlotControl!$C$6-1),12,1))) -> 26.823 | H5: =IF(PlotControl!$B$4 = "Annual Max",MAX(OFFSET(Ebeach!$C$10,12*$A5,4*(PlotControl!$C$6-1),12,1)),AVERAGE(OFFSET(Ebeach!$C$10,12*$A5,4*(PlotControl!$C$6-1),12,1))) -> 0 | I5: =IF(PlotControl!$B$4 = "Annual Max",MAX(OFFSET(Ebeach!$D$10,12*$A5,4*(PlotControl!$C$6-1),12,1)),AVERAGE(OFFSET(Ebeach!$D$10,12*$A5,4*(PlotControl!$C$6-1),12,1))) -> 0 | J5: =IF(PlotControl!$B$4 = "Annual Max",MAX(OFFSET(Ebeach!$E$10,12*$A5,4*(PlotControl!$C$6-1),12,1)),AVERAGE(OFFSET(Ebeach!$E$10,12*$A5,4*(PlotControl!$C$6-1),12,1))) -> 0 | K5: =IF(PlotControl!$B$4 = "Annual Max",MAX(OFFSET(Edam!$C$10,12*$A5,4*(PlotControl!$C$6-1),12,1)),AVERAGE(OFFSET(Edam!$C$10,12*$A5,4*(PlotControl!$C$6-1),12,1))) -> 0 | L5: =IF(PlotControl!$B$4 = "Annual Max",MAX(OFFSET(Edam!$D$10,12*$A5,4*(PlotControl!$C$6-1),12,1)),AVERAGE(OFFSET(Edam!$D$10,12*$A5,4*(PlotControl!$C$6-1),12,1))) -> 0 | M5: =IF(PlotControl!$B$4 = "Annual Max",MAX(OFFSET(Edam!$E$10,12*$A5,4*(PlotControl!$C$6-1),12,1)),AVERAGE(OFFSET(Edam!$E$10,12*$A5,4*(PlotControl!$C$6-1),12,1))) -> 0 | N5: =IF(PlotControl!$B$4 = "Annual Max",MAX(OFFSET(Sbeach!$C$10,12*$A5,4*(PlotControl!$C$6-1),12,1)),AVERAGE(OFFSET(Sbeach!$C$10,12*$A5,4*(PlotControl!$C$6-1),12,1))) -> 0 | O5: =IF(PlotControl!$B$4 = "Annual Max",MAX(OFFSET(Sbeach!$D$10,12*$A5,4*(PlotControl!$C$6-1),12,1)),AVERAGE(OFFSET(Sbeach!$D$10,12*$A5,4*(PlotControl!$C$6-1),12,1))) -> 0 | P5: =IF(PlotControl!$B$4 = "Annual Max",MAX(OFFSET(Sbeach!$E$10,12*$A5,4*(PlotControl!$C$6-1),12,1)),AVERAGE(OFFSET(Sbeach!$E$10,12*$A5,4*(PlotControl!$C$6-1),12,1))) -> 0 | Q5: =IF(PlotControl!$B$4 = "Annual Max",MAX(OFFSET(Sdam!$C$10,12*$A5,4*(PlotControl!$C$6-1),12,1)),AVERAGE(OFFSET(Sdam!$C$10,12*$A5,4*(PlotControl!$C$6-1),12,1))) -> 0 | R5: =IF(PlotControl!$B$4 = "Annual Max",MAX(OFFSET(Sdam!$D$10,12*$A5,4*(PlotControl!$C$6-1),12,1)),AVERAGE(OFFSET(Sdam!$D$10,12*$A5,4*(PlotControl!$C$6-1),12,1))) -> 0 | S5: =IF(PlotControl!$B$4 = "Annual Max",MAX(OFFSET(Sdam!$E$10,12*$A5,4*(PlotControl!$C$6-1),12,1)),AVERAGE(OFFSET(Sdam!$E$10,12*$A5,4*(PlotControl!$C$6-1),12,1))) -> 0 | T5: =IF(PlotControl!$B$4 = "Annual Max",MAX(OFFSET(Cbeach!$C$10,12*$A5,4*(PlotControl!$C$6-1),12,1)),AVERAGE(OFFSET(Cbeach!$C$10,12*$A5,4*(PlotControl!$C$6-1),12,1))) -> 0 | U5: =IF(PlotControl!$B$4 = "Annual Max",MAX(OFFSET(Cbeach!$D$10,12*$A5,4*(PlotControl!$C$6-1),12,1)),AVERAGE(OFFSET(Cbeach!$D$10,12*$A5,4*(PlotControl!$C$6-1),12,1))) -> 0 | V5: =IF(PlotControl!$B$4 = "Annual Max",MAX(OFFSET(Cbeach!$E$10,12*$A5,4*(PlotControl!$C$6-1),12,1)),AVERAGE(OFFSET(Cbeach!$E$10,12*$A5,4*(PlotControl!$C$6-1),12,1))) -> 0
A6: 1 | B6: =IF(PlotControl!$B$4 = "Annual Max",MAX(OFFSET(Nbeach!$C$10,12*$A6,4*(PlotControl!$C$6-1),12,1)),AVERAGE(OFFSET(Nbeach!$C$10,12*$A6,4*(PlotControl!$C$6-1),12,1))) -> 452.95 | C6: =IF(PlotControl!$B$4 = "Annual Max",MAX(OFFSET(Nbeach!$D$10,12*$A6,4*(PlotControl!$C$6-1),12,1)),AVERAGE(OFFSET(Nbeach!$D$10,12*$A6,4*(PlotControl!$C$6-1),12,1))) -> 493.98 | D6: =IF(PlotControl!$B$4 = "Annual Max",MAX(OFFSET(Nbeach!$E$10,12*$A6,4*(PlotControl!$C$6-1),12,1)),AVERAGE(OFFSET(Nbeach!$E$10,12*$A6,4*(PlotControl!$C$6-1),12,1))) -> 534.73 | E6: =IF(PlotControl!$B$4 = "Annual Max",MAX(OFFSET(Ndam!$C$10,12*$A6,4*(PlotControl!$C$6-1),12,1)),AVERAGE(OFFSET(Ndam!$C$10,12*$A6,4*(PlotControl!$C$6-1),12,1))) -> 38.455 | F6: =IF(PlotControl!$B$4 = "Annual Max",MAX(OFFSET(Ndam!$D$10,12*$A6,4*(PlotControl!$C$6-1),12,1)),AVERAGE(OFFSET(Ndam!$D$10,12*$A6,4*(PlotControl!$C$6-1),12,1))) -> 38.455 | G6: =IF(PlotControl!$B$4 = "Annual Max",MAX(OFFSET(Ndam!$E$10,12*$A6,4*(PlotControl!$C$6-1),12,1)),AVERAGE(OFFSET(Ndam!$E$10,12*$A6,4*(PlotControl!$C$6-1),12,1))) -> 38.455 | H6: =IF(PlotControl!$B$4 = "Annual Max",MAX(OFFSET(Ebeach!$C$10,12*$A6,4*(PlotControl!$C$6-1),12,1)),AVERAGE(OFFSET(Ebeach!$C$10,12*$A6,4*(PlotControl!$C$6-1),12,1))) -> 0 | I6: =IF(PlotControl!$B$4 = "Annual Max",MAX(OFFSET(Ebeach!$D$10,12*$A6,4*(PlotControl!$C$6-1),12,1)),AVERAGE(OFFSET(Ebeach!$D$10,12*$A6,4*(PlotControl!$C$6-1),12,1))) -> 0 | J6: =IF(PlotControl!$B$4 = "Annual Max",MAX(OFFSET(Ebeach!$E$10,12*$A6,4*(PlotControl!$C$6-1),12,1)),AVERAGE(OFFSET(Ebeach!$E$10,12*$A6,4*(PlotControl!$C$6-1),12,1))) -> 0 | K6: =IF(PlotControl!$B$4 = "Annual Max",MAX(OFFSET(Edam!$C$10,12*$A6,4*(PlotControl!$C$6-1),12,1)),AVERAGE(OFFSET(Edam!$C$10,12*$A6,4*(PlotControl!$C$6-1),12,1))) -> 0 | L6: =IF(PlotControl!$B$4 = "Annual Max",MAX(OFFSET(Edam!$D$10,12*$A6,4*(PlotControl!$C$6-1),12,1)),AVERAGE(OFFSET(Edam!$D$10,12*$A6,4*(PlotControl!$C$6-1),12,1))) -> 0 | M6: =IF(PlotControl!$B$4 = "Annual Max",MAX(OFFSET(Edam!$E$10,12*$A6,4*(PlotControl!$C$6-1),12,1)),AVERAGE(OFFSET(Edam!$E$10,12*$A6,4*(PlotControl!$C$6-1),12,1))) -> 0 | N6: =IF(PlotControl!$B$4 = "Annual Max",MAX(OFFSET(Sbeach!$C$10,12*$A6,4*(PlotControl!$C$6-1),12,1)),AVERAGE(OFFSET(Sbeach!$C$10,12*$A6,4*(PlotControl!$C$6-1),12,1))) -> 0 | O6: =IF(PlotControl!$B$4 = "Annual Max",MAX(OFFSET(Sbeach!$D$10,12*$A6,4*(PlotControl!$C$6-1),12,1)),AVERAGE(OFFSET(Sbeach!$D$10,12*$A6,4*(PlotControl!$C$6-1),12,1))) -> 0 | P6: =IF(PlotControl!$B$4 = "Annual Max",MAX(OFFSET(Sbeach!$E$10,12*$A6,4*(PlotControl!$C$6-1),12,1)),AVERAGE(OFFSET(Sbeach!$E$10,12*$A6,4*(PlotControl!$C$6-1),12,1))) -> 0 | Q6: =IF(PlotControl!$B$4 = "Annual Max",MAX(OFFSET(Sdam!$C$10,12*$A6,4*(PlotControl!$C$6-1),12,1)),AVERAGE(OFFSET(Sdam!$C$10,12*$A6,4*(PlotControl!$C$6-1),12,1))) -> 0 | R6: =IF(PlotControl!$B$4 = "Annual Max",MAX(OFFSET(Sdam!$D$10,12*$A6,4*(PlotControl!$C$6-1),12,1)),AVERAGE(OFFSET(Sdam!$D$10,12*$A6,4*(PlotControl!$C$6-1),12,1))) -> 0 | S6: =IF(PlotControl!$B$4 = "Annual Max",MAX(OFFSET(Sdam!$E$10,12*$A6,4*(PlotControl!$C$6-1),12,1)),AVERAGE(OFFSET(Sdam!$E$10,12*$A6,4*(PlotControl!$C$6-1),12,1))) -> 0 | T6: =IF(PlotControl!$B$4 = "Annual Max",MAX(OFFSET(Cbeach!$C$10,12*$A6,4*(PlotControl!$C$6-1),12,1)),AVERAGE(OFFSET(Cbeach!$C$10,12*$A6,4*(PlotControl!$C$6-1),12,1))) -> 0 | U6: =IF(PlotControl!$B$4 = "Annual Max",MAX(OFFSET(Cbeach!$D$10,12*$A6,4*(PlotControl!$C$6-1),12,1)),AVERAGE(OFFSET(Cbeach!$D$10,12*$A6,4*(PlotControl!$C$6-1),12,1))) -> 0 | V6: =IF(PlotControl!$B$4 = "Annual Max",MAX(OFFSET(Cbeach!$E$10,12*$A6,4*(PlotControl!$C$6-1),12,1)),AVERAGE(OFFSET(Cbeach!$E$10,12*$A6,4*(PlotControl!$C$6-1),12,1))) -> 0
A7: 2 | B7: =IF(PlotControl!$B$4 = "Annual Max",MAX(OFFSET(Nbeach!$C$10,12*$A7,4*(PlotControl!$C$6-1),12,1)),AVERAGE(OFFSET(Nbeach!$C$10,12*$A7,4*(PlotControl!$C$6-1),12,1))) -> 687.31 | C7: =IF(PlotControl!$B$4 = "Annual Max",MAX(OFFSET(Nbeach!$D$10,12*$A7,4*(PlotControl!$C$6-1),12,1)),AVERAGE(OFFSET(Nbeach!$D$10,12*$A7,4*(PlotControl!$C$6-1),12,1))) -> 739.74 | D7: =IF(PlotControl!$B$4 = "Annual Max",MAX(OFFSET(Nbeach!$E$10,12*$A7,4*(PlotControl!$C$6-1),12,1)),AVERAGE(OFFSET(Nbeach!$E$10,12*$A7,4*(PlotControl!$C$6-1),12,1))) -> 792.82 | E7: =IF(PlotControl!$B$4 = "Annual Max",MAX(OFFSET(Ndam!$C$10,12*$A7,4*(PlotControl!$C$6-1),12,1)),AVERAGE(OFFSET(Ndam!$C$10,12*$A7,4*(PlotControl!$C$6-1),12,1))) -> 48.484 | F7: =IF(PlotControl!$B$4 = "Annual Max",MAX(OFFSET(Ndam!$D$10,12*$A7,4*(PlotControl!$C$6-1),12,1)),AVERAGE(OFFSET(Ndam!$D$10,12*$A7,4*(PlotControl!$C$6-1),12,1))) -> 48.484 | G7: =IF(PlotControl!$B$4 = "Annual Max",MAX(OFFSET(Ndam!$E$10,12*$A7,4*(PlotControl!$C$6-1),12,1)),AVERAGE(OFFSET(Ndam!$E$10,12*$A7,4*(PlotControl!$C$6-1),12,1))) -> 48.484 | H7: =IF(PlotControl!$B$4 = "Annual Max",MAX(OFFSET(Ebeach!$C$10,12*$A7,4*(PlotControl!$C$6-1),12,1)),AVERAGE(OFFSET(Ebeach!$C$10,12*$A7,4*(PlotControl!$C$6-1),12,1))) -> 0 | I7: =IF(PlotControl!$B$4 = "Annual Max",MAX(OFFSET(Ebeach!$D$10,12*$A7,4*(PlotControl!$C$6-1),12,1)),AVERAGE(OFFSET(Ebeach!$D$10,12*$A7,4*(PlotControl!$C$6-1),12,1))) -> 0 | J7: =IF(PlotControl!$B$4 = "Annual Max",MAX(OFFSET(Ebeach!$E$10,12*$A7,4*(PlotControl!$C$6-1),12,1)),AVERAGE(OFFSET(Ebeach!$E$10,12*$A7,4*(PlotControl!$C$6-1),12,1))) -> 0 | K7: =IF(PlotControl!$B$4 = "Annual Max",MAX(OFFSET(Edam!$C$10,12*$A7,4*(PlotControl!$C$6-1),12,1)),AVERAGE(OFFSET(Edam!$C$10,12*$A7,4*(PlotControl!$C$6-1),12,1))) -> 0 | L7: =IF(PlotControl!$B$4 = "Annual Max",MAX(OFFSET(Edam!$D$10,12*$A7,4*(PlotControl!$C$6-1),12,1)),AVERAGE(OFFSET(Edam!$D$10,12*$A7,4*(PlotControl!$C$6-1),12,1))) -> 0 | M7: =IF(PlotControl!$B$4 = "Annual Max",MAX(OFFSET(Edam!$E$10,12*$A7,4*(PlotControl!$C$6-1),12,1)),AVERAGE(OFFSET(Edam!$E$10,12*$A7,4*(PlotControl!$C$6-1),12,1))) -> 0 | N7: =IF(PlotControl!$B$4 = "Annual Max",MAX(OFFSET(Sbeach!$C$10,12*$A7,4*(PlotControl!$C$6-1),12,1)),AVERAGE(OFFSET(Sbeach!$C$10,12*$A7,4*(PlotControl!$C$6-1),12,1))) -> 0 | O7: =IF(PlotControl!$B$4 = "Annual Max",MAX(OFFSET(Sbeach!$D$10,12*$A7,4*(PlotControl!$C$6-1),12,1)),AVERAGE(OFFSET(Sbeach!$D$10,12*$A7,4*(PlotControl!$C$6-1),12,1))) -> 0 | P7: =IF(PlotControl!$B$4 = "Annual Max",MAX(OFFSET(Sbeach!$E$10,12*$A7,4*(PlotControl!$C$6-1),12,1)),AVERAGE(OFFSET(Sbeach!$E$10,12*$A7,4*(PlotControl!$C$6-1),12,1))) -> 0 | Q7: =IF(PlotControl!$B$4 = "Annual Max",MAX(OFFSET(Sdam!$C$10,12*$A7,4*(PlotControl!$C$6-1),12,1)),AVERAGE(OFFSET(Sdam!$C$10,12*$A7,4*(PlotControl!$C$6-1),12,1))) -> 0 | R7: =IF(PlotControl!$B$4 = "Annual Max",MAX(OFFSET(Sdam!$D$10,12*$A7,4*(PlotControl!$C$6-1),12,1)),AVERAGE(OFFSET(Sdam!$D$10,12*$A7,4*(PlotControl!$C$6-1),12,1))) -> 0 | S7: =IF(PlotControl!$B$4 = "Annual Max",MAX(OFFSET(Sdam!$E$10,12*$A7,4*(PlotControl!$C$6-1),12,1)),AVERAGE(OFFSET(Sdam!$E$10,12*$A7,4*(PlotControl!$C$6-1),12,1))) -> 0 | T7: =IF(PlotControl!$B$4 = "Annual Max",MAX(OFFSET(Cbeach!$C$10,12*$A7,4*(PlotControl!$C$6-1),12,1)),AVERAGE(OFFSET(Cbeach!$C$10,12*$A7,4*(PlotControl!$C$6-1),12,1))) -> 0 | U7: =IF(PlotControl!$B$4 = "Annual Max",MAX(OFFSET(Cbeach!$D$10,12*$A7,4*(PlotControl!$C$6-1),12,1)),AVERAGE(OFFSET(Cbeach!$D$10,12*$A7,4*(PlotControl!$C$6-1),12,1))) -> 0 | V7: =IF(PlotControl!$B$4 = "Annual Max",MAX(OFFSET(Cbeach!$E$10,12*$A7,4*(PlotControl!$C$6-1),12,1)),AVERAGE(OFFSET(Cbeach!$E$10,12*$A7,4*(PlotControl!$C$6-1),12,1))) -> 0
A8: 3 | B8: =IF(PlotControl!$B$4 = "Annual Max",MAX(OFFSET(Nbeach!$C$10,12*$A8,4*(PlotControl!$C$6-1),12,1)),AVERAGE(OFFSET(Nbeach!$C$10,12*$A8,4*(PlotControl!$C$6-1),12,1))) -> 921.32 | C8: =IF(PlotControl!$B$4 = "Annual Max",MAX(OFFSET(Nbeach!$D$10,12*$A8,4*(PlotControl!$C$6-1),12,1)),AVERAGE(OFFSET(Nbeach!$D$10,12*$A8,4*(PlotControl!$C$6-1),12,1))) -> 978.59 | D8: =IF(PlotControl!$B$4 = "Annual Max",MAX(OFFSET(Nbeach!$E$10,12*$A8,4*(PlotControl!$C$6-1),12,1)),AVERAGE(OFFSET(Nbeach!$E$10,12*$A8,4*(PlotControl!$C$6-1),12,1))) -> 1043.6 | E8: =IF(PlotControl!$B$4 = "Annual Max",MAX(OFFSET(Ndam!$C$10,12*$A8,4*(PlotControl!$C$6-1),12,1)),AVERAGE(OFFSET(Ndam!$C$10,12*$A8,4*(PlotControl!$C$6-1),12,1))) -> 58.297 | F8: =IF(PlotControl!$B$4 = "Annual Max",MAX(OFFSET(Ndam!$D$10,12*$A8,4*(PlotControl!$C$6-1),12,1)),AVERAGE(OFFSET(Ndam!$D$10,12*$A8,4*(PlotControl!$C$6-1),12,1))) -> 58.297 | G8: =IF(PlotControl!$B$4 = "Annual Max",MAX(OFFSET(Ndam!$E$10,12*$A8,4*(PlotControl!$C$6-1),12,1)),AVERAGE(OFFSET(Ndam!$E$10,12*$A8,4*(PlotControl!$C$6-1),12,1))) -> 58.297 | H8: =IF(PlotControl!$B$4 = "Annual Max",MAX(OFFSET(Ebeach!$C$10,12*$A8,4*(PlotControl!$C$6-1),12,1)),AVERAGE(OFFSET(Ebeach!$C$10,12*$A8,4*(PlotControl!$C$6-1),12,1))) -> 0 | I8: =IF(PlotControl!$B$4 = "Annual Max",MAX(OFFSET(Ebeach!$D$10,12*$A8,4*(PlotControl!$C$6-1),12,1)),AVERAGE(OFFSET(Ebeach!$D$10,12*$A8,4*(PlotControl!$C$6-1),12,1))) -> 0 | J8: =IF(PlotControl!$B$4 = "Annual Max",MAX(OFFSET(Ebeach!$E$10,12*$A8,4*(PlotControl!$C$6-1),12,1)),AVERAGE(OFFSET(Ebeach!$E$10,12*$A8,4*(PlotControl!$C$6-1),12,1))) -> 0 | K8: =IF(PlotControl!$B$4 = "Annual Max",MAX(OFFSET(Edam!$C$10,12*$A8,4*(PlotControl!$C$6-1),12,1)),AVERAGE(OFFSET(Edam!$C$10,12*$A8,4*(PlotControl!$C$6-1),12,1))) -> 0 | L8: =IF(PlotControl!$B$4 = "Annual Max",MAX(OFFSET(Edam!$D$10,12*$A8,4*(PlotControl!$C$6-1),12,1)),AVERAGE(OFFSET(Edam!$D$10,12*$A8,4*(PlotControl!$C$6-1),12,1))) -> 0 | M8: =IF(PlotControl!$B$4 = "Annual Max",MAX(OFFSET(Edam!$E$10,12*$A8,4*(PlotControl!$C$6-1),12,1)),AVERAGE(OFFSET(Edam!$E$10,12*$A8,4*(PlotControl!$C$6-1),12,1))) -> 0 | N8: =IF(PlotControl!$B$4 = "Annual Max",MAX(OFFSET(Sbeach!$C$10,12*$A8,4*(PlotControl!$C$6-1),12,1)),AVERAGE(OFFSET(Sbeach!$C$10,12*$A8,4*(PlotControl!$C$6-1),12,1))) -> 0 | O8: =IF(PlotControl!$B$4 = "Annual Max",MAX(OFFSET(Sbeach!$D$10,12*$A8,4*(PlotControl!$C$6-1),12,1)),AVERAGE(OFFSET(Sbeach!$D$10,12*$A8,4*(PlotControl!$C$6-1),12,1))) -> 0 | P8: =IF(PlotControl!$B$4 = "Annual Max",MAX(OFFSET(Sbeach!$E$10,12*$A8,4*(PlotControl!$C$6-1),12,1)),AVERAGE(OFFSET(Sbeach!$E$10,12*$A8,4*(PlotControl!$C$6-1),12,1))) -> 0 | Q8: =IF(PlotControl!$B$4 = "Annual Max",MAX(OFFSET(Sdam!$C$10,12*$A8,4*(PlotControl!$C$6-1),12,1)),AVERAGE(OFFSET(Sdam!$C$10,12*$A8,4*(PlotControl!$C$6-1),12,1))) -> 0 | R8: =IF(PlotControl!$B$4 = "Annual Max",MAX(OFFSET(Sdam!$D$10,12*$A8,4*(PlotControl!$C$6-1),12,1)),AVERAGE(OFFSET(Sdam!$D$10,12*$A8,4*(PlotControl!$C$6-1),12,1))) -> 0 | S8: =IF(PlotControl!$B$4 = "Annual Max",MAX(OFFSET(Sdam!$E$10,12*$A8,4*(PlotControl!$C$6-1),12,1)),AVERAGE(OFFSET(Sdam!$E$10,12*$A8,4*(PlotControl!$C$6-1),12,1))) -> 0 | T8: =IF(PlotControl!$B$4 = "Annual Max",MAX(OFFSET(Cbeach!$C$10,12*$A8,4*(PlotControl!$C$6-1),12,1)),AVERAGE(OFFSET(Cbeach!$C$10,12*$A8,4*(PlotControl!$C$6-1),12,1))) -> 0 | U8: =IF(PlotControl!$B$4 = "Annual Max",MAX(OFFSET(Cbeach!$D$10,12*$A8,4*(PlotControl!$C$6-1),12,1)),AVERAGE(OFFSET(Cbeach!$D$10,12*$A8,4*(PlotControl!$C$6-1),12,1))) -> 0 | V8: =IF(PlotControl!$B$4 = "Annual Max",MAX(OFFSET(Cbeach!$E$10,12*$A8,4*(PlotControl!$C$6-1),12,1)),AVERAGE(OFFSET(Cbeach!$E$10,12*$A8,4*(PlotControl!$C$6-1),12,1))) -> 0
A9: 4 | B9: =IF(PlotControl!$B$4 = "Annual Max",MAX(OFFSET(Nbeach!$C$10,12*$A9,4*(PlotControl!$C$6-1),12,1)),AVERAGE(OFFSET(Nbeach!$C$10,12*$A9,4*(PlotControl!$C$6-1),12,1))) -> 1149.5 | C9: =IF(PlotControl!$B$4 = "Annual Max",MAX(OFFSET(Nbeach!$D$10,12*$A9,4*(PlotControl!$C$6-1),12,1)),AVERAGE(OFFSET(Nbeach!$D$10,12*$A9,4*(PlotControl!$C$6-1),12,1))) -> 1215.7 | D9: =IF(PlotControl!$B$4 = "Annual Max",MAX(OFFSET(Nbeach!$E$10,12*$A9,4*(PlotControl!$C$6-1),12,1)),AVERAGE(OFFSET(Nbeach!$E$10,12*$A9,4*(PlotControl!$C$6-1),12,1))) -> 1290.4 | E9: =IF(PlotControl!$B$4 = "Annual Max",MAX(OFFSET(Ndam!$C$10,12*$A9,4*(PlotControl!$C$6-1),12,1)),AVERAGE(OFFSET(Ndam!$C$10,12*$A9,4*(PlotControl!$C$6-1),12,1))) -> 68.09 | F9: =IF(PlotControl!$B$4 = "Annual Max",MAX(OFFSET(Ndam!$D$10,12*$A9,4*(PlotControl!$C$6-1),12,1)),AVERAGE(OFFSET(Ndam!$D$10,12*$A9,4*(PlotControl!$C$6-1),12,1))) -> 68.09 | G9: =IF(PlotControl!$B$4 = "Annual Max",MAX(OFFSET(Ndam!$E$10,12*$A9,4*(PlotControl!$C$6-1),12,1)),AVERAGE(OFFSET(Ndam!$E$10,12*$A9,4*(PlotControl!$C$6-1),12,1))) -> 68.09 | H9: =IF(PlotControl!$B$4 = "Annual Max",MAX(OFFSET(Ebeach!$C$10,12*$A9,4*(PlotControl!$C$6-1),12,1)),AVERAGE(OFFSET(Ebeach!$C$10,12*$A9,4*(PlotControl!$C$6-1),12,1))) -> 0 | I9: =IF(PlotControl!$B$4 = "Annual Max",MAX(OFFSET(Ebeach!$D$10,12*$A9,4*(PlotControl!$C$6-1),12,1)),AVERAGE(OFFSET(Ebeach!$D$10,12*$A9,4*(PlotControl!$C$6-1),12,1))) -> 0 | J9: =IF(PlotControl!$B$4 = "Annual Max",MAX(OFFSET(Ebeach!$E$10,12*$A9,4*(PlotControl!$C$6-1),12,1)),AVERAGE(OFFSET(Ebeach!$E$10,12*$A9,4*(PlotControl!$C$6-1),12,1))) -> 0 | K9: =IF(PlotControl!$B$4 = "Annual Max",MAX(OFFSET(Edam!$C$10,12*$A9,4*(PlotControl!$C$6-1),12,1)),AVERAGE(OFFSET(Edam!$C$10,12*$A9,4*(PlotControl!$C$6-1),12,1))) -> 0 | L9: =IF(PlotControl!$B$4 = "Annual Max",MAX(OFFSET(Edam!$D$10,12*$A9,4*(PlotControl!$C$6-1),12,1)),AVERAGE(OFFSET(Edam!$D$10,12*$A9,4*(PlotControl!$C$6-1),12,1))) -> 0 | M9: =IF(PlotControl!$B$4 = "Annual Max",MAX(OFFSET(Edam!$E$10,12*$A9,4*(PlotControl!$C$6-1),12,1)),AVERAGE(OFFSET(Edam!$E$10,12*$A9,4*(PlotControl!$C$6-1),12,1))) -> 0 | N9: =IF(PlotControl!$B$4 = "Annual Max",MAX(OFFSET(Sbeach!$C$10,12*$A9,4*(PlotControl!$C$6-1),12,1)),AVERAGE(OFFSET(Sbeach!$C$10,12*$A9,4*(PlotControl!$C$6-1),12,1))) -> 0 | O9: =IF(PlotControl!$B$4 = "Annual Max",MAX(OFFSET(Sbeach!$D$10,12*$A9,4*(PlotControl!$C$6-1),12,1)),AVERAGE(OFFSET(Sbeach!$D$10,12*$A9,4*(PlotControl!$C$6-1),12,1))) -> 0 | P9: =IF(PlotControl!$B$4 = "Annual Max",MAX(OFFSET(Sbeach!$E$10,12*$A9,4*(PlotControl!$C$6-1),12,1)),AVERAGE(OFFSET(Sbeach!$E$10,12*$A9,4*(PlotControl!$C$6-1),12,1))) -> 0 | Q9: =IF(PlotControl!$B$4 = "Annual Max",MAX(OFFSET(Sdam!$C$10,12*$A9,4*(PlotControl!$C$6-1),12,1)),AVERAGE(OFFSET(Sdam!$C$10,12*$A9,4*(PlotControl!$C$6-1),12,1))) -> 0 | R9: =IF(PlotControl!$B$4 = "Annual Max",MAX(OFFSET(Sdam!$D$10,12*$A9,4*(PlotControl!$C$6-1),12,1)),AVERAGE(OFFSET(Sdam!$D$10,12*$A9,4*(PlotControl!$C$6-1),12,1))) -> 0 | S9: =IF(PlotControl!$B$4 = "Annual Max",MAX(OFFSET(Sdam!$E$10,12*$A9,4*(PlotControl!$C$6-1),12,1)),AVERAGE(OFFSET(Sdam!$E$10,12*$A9,4*(PlotControl!$C$6-1),12,1))) -> 0 | T9: =IF(PlotControl!$B$4 = "Annual Max",MAX(OFFSET(Cbeach!$C$10,12*$A9,4*(PlotControl!$C$6-1),12,1)),AVERAGE(OFFSET(Cbeach!$C$10,12*$A9,4*(PlotControl!$C$6-1),12,1))) -> 0 | U9: =IF(PlotControl!$B$4 = "Annual Max",MAX(OFFSET(Cbeach!$D$10,12*$A9,4*(PlotControl!$C$6-1),12,1)),AVERAGE(OFFSET(Cbeach!$D$10,12*$A9,4*(PlotControl!$C$6-1),12,1))) -> 0 | V9: =IF(PlotControl!$B$4 = "Annual Max",MAX(OFFSET(Cbeach!$E$10,12*$A9,4*(PlotControl!$C$6-1),12,1)),AVERAGE(OFFSET(Cbeach!$E$10,12*$A9,4*(PlotControl!$C$6-1),12,1))) -> 0
A10: 5 | B10: =IF(PlotControl!$B$4 = "Annual Max",MAX(OFFSET(Nbeach!$C$10,12*$A10,4*(PlotControl!$C$6-1),12,1)),AVERAGE(OFFSET(Nbeach!$C$10,12*$A10,4*(PlotControl!$C$6-1),12,1))) -> 1378.7 | C10: =IF(PlotControl!$B$4 = "Annual Max",MAX(OFFSET(Nbeach!$D$10,12*$A10,4*(PlotControl!$C$6-1),12,1)),AVERAGE(OFFSET(Nbeach!$D$10,12*$A10,4*(PlotControl!$C$6-1),12,1))) -> 1447.6 | D10: =IF(PlotControl!$B$4 = "Annual Max",MAX(OFFSET(Nbeach!$E$10,12*$A10,4*(PlotControl!$C$6-1),12,1)),AVERAGE(OFFSET(Nbeach!$E$10,12*$A10,4*(PlotControl!$C$6-1),12,1))) -> 1526.6 | E10: =IF(PlotControl!$B$4 = "Annual Max",MAX(OFFSET(Ndam!$C$10,12*$A10,4*(PlotControl!$C$6-1),12,1)),AVERAGE(OFFSET(Ndam!$C$10,12*$A10,4*(PlotControl!$C$6-1),12,1))) -> 77.559 | F10: =IF(PlotControl!$B$4 = "Annual Max",MAX(OFFSET(Ndam!$D$10,12*$A10,4*(PlotControl!$C$6-1),12,1)),AVERAGE(OFFSET(Ndam!$D$10,12*$A10,4*(PlotControl!$C$6-1),12,1))) -> 77.559 | G10: =IF(PlotControl!$B$4 = "Annual Max",MAX(OFFSET(Ndam!$E$10,12*$A10,4*(PlotControl!$C$6-1),12,1)),AVERAGE(OFFSET(Ndam!$E$10,12*$A10,4*(PlotControl!$C$6-1),12,1))) -> 77.559 | H10: =IF(PlotControl!$B$4 = "Annual Max",MAX(OFFSET(Ebeach!$C$10,12*$A10,4*(PlotControl!$C$6-1),12,1)),AVERAGE(OFFSET(Ebeach!$C$10,12*$A10,4*(PlotControl!$C$6-1),12,1))) -> 0 | I10: =IF(PlotControl!$B$4 = "Annual Max",MAX(OFFSET(Ebeach!$D$10,12*$A10,4*(PlotControl!$C$6-1),12,1)),AVERAGE(OFFSET(Ebeach!$D$10,12*$A10,4*(PlotControl!$C$6-1),12,1))) -> 0 | J10: =IF(PlotControl!$B$4 = "Annual Max",MAX(OFFSET(Ebeach!$E$10,12*$A10,4*(PlotControl!$C$6-1),12,1)),AVERAGE(OFFSET(Ebeach!$E$10,12*$A10,4*(PlotControl!$C$6-1),12,1))) -> 0 | K10: =IF(PlotControl!$B$4 = "Annual Max",MAX(OFFSET(Edam!$C$10,12*$A10,4*(PlotControl!$C$6-1),12,1)),AVERAGE(OFFSET(Edam!$C$10,12*$A10,4*(PlotControl!$C$6-1),12,1))) -> 0 | L10: =IF(PlotControl!$B$4 = "Annual Max",MAX(OFFSET(Edam!$D$10,12*$A10,4*(PlotControl!$C$6-1),12,1)),AVERAGE(OFFSET(Edam!$D$10,12*$A10,4*(PlotControl!$C$6-1),12,1))) -> 0 | M10: =IF(PlotControl!$B$4 = "Annual Max",MAX(OFFSET(Edam!$E$10,12*$A10,4*(PlotControl!$C$6-1),12,1)),AVERAGE(OFFSET(Edam!$E$10,12*$A10,4*(PlotControl!$C$6-1),12,1))) -> 0 | N10: =IF(PlotControl!$B$4 = "Annual Max",MAX(OFFSET(Sbeach!$C$10,12*$A10,4*(PlotControl!$C$6-1),12,1)),AVERAGE(OFFSET(Sbeach!$C$10,12*$A10,4*(PlotControl!$C$6-1),12,1))) -> 0 | O10: =IF(PlotControl!$B$4 = "Annual Max",MAX(OFFSET(Sbeach!$D$10,12*$A10,4*(PlotControl!$C$6-1),12,1)),AVERAGE(OFFSET(Sbeach!$D$10,12*$A10,4*(PlotControl!$C$6-1),12,1))) -> 0 | P10: =IF(PlotControl!$B$4 = "Annual Max",MAX(OFFSET(Sbeach!$E$10,12*$A10,4*(PlotControl!$C$6-1),12,1)),AVERAGE(OFFSET(Sbeach!$E$10,12*$A10,4*(PlotControl!$C$6-1),12,1))) -> 0 | Q10: =IF(PlotControl!$B$4 = "Annual Max",MAX(OFFSET(Sdam!$C$10,12*$A10,4*(PlotControl!$C$6-1),12,1)),AVERAGE(OFFSET(Sdam!$C$10,12*$A10,4*(PlotControl!$C$6-1),12,1))) -> 0 | R10: =IF(PlotControl!$B$4 = "Annual Max",MAX(OFFSET(Sdam!$D$10,12*$A10,4*(PlotControl!$C$6-1),12,1)),AVERAGE(OFFSET(Sdam!$D$10,12*$A10,4*(PlotControl!$C$6-1),12,1))) -> 0 | S10: =IF(PlotControl!$B$4 = "Annual Max",MAX(OFFSET(Sdam!$E$10,12*$A10,4*(PlotControl!$C$6-1),12,1)),AVERAGE(OFFSET(Sdam!$E$10,12*$A10,4*(PlotControl!$C$6-1),12,1))) -> 0 | T10: =IF(PlotControl!$B$4 = "Annual Max",MAX(OFFSET(Cbeach!$C$10,12*$A10,4*(PlotControl!$C$6-1),12,1)),AVERAGE(OFFSET(Cbeach!$C$10,12*$A10,4*(PlotControl!$C$6-1),12,1))) -> 0 | U10: =IF(PlotControl!$B$4 = "Annual Max",MAX(OFFSET(Cbeach!$D$10,12*$A10,4*(PlotControl!$C$6-1),12,1)),AVERAGE(OFFSET(Cbeach!$D$10,12*$A10,4*(PlotControl!$C$6-1),12,1))) -> 0 | V10: =IF(PlotControl!$B$4 = "Annual Max",MAX(OFFSET(Cbeach!$E$10,12*$A10,4*(PlotControl!$C$6-1),12,1)),AVERAGE(OFFSET(Cbeach!$E$10,12*$A10,4*(PlotControl!$C$6-1),12,1))) -> 0
A11: 6 | B11: =IF(PlotControl!$B$4 = "Annual Max",MAX(OFFSET(Nbeach!$C$10,12*$A11,4*(PlotControl!$C$6-1),12,1)),AVERAGE(OFFSET(Nbeach!$C$10,12*$A11,4*(PlotControl!$C$6-1),12,1))) -> 1602.3 | C11: =IF(PlotControl!$B$4 = "Annual Max",MAX(OFFSET(Nbeach!$D$10,12*$A11,4*(PlotControl!$C$6-1),12,1)),AVERAGE(OFFSET(Nbeach!$D$10,12*$A11,4*(PlotControl!$C$6-1),12,1))) -> 1676.4 | D11: =IF(PlotControl!$B$4 = "Annual Max",MAX(OFFSET(Nbeach!$E$10,12*$A11,4*(PlotControl!$C$6-1),12,1)),AVERAGE(OFFSET(Nbeach!$E$10,12*$A11,4*(PlotControl!$C$6-1),12,1))) -> 1757.7 | E11: =IF(PlotControl!$B$4 = "Annual Max",MAX(OFFSET(Ndam!$C$10,12*$A11,4*(PlotControl!$C$6-1),12,1)),AVERAGE(OFFSET(Ndam!$C$10,12*$A11,4*(PlotControl!$C$6-1),12,1))) -> 86.998 | F11: =IF(PlotControl!$B$4 = "Annual Max",MAX(OFFSET(Ndam!$D$10,12*$A11,4*(PlotControl!$C$6-1),12,1)),AVERAGE(OFFSET(Ndam!$D$10,12*$A11,4*(PlotControl!$C$6-1),12,1))) -> 86.998 | G11: =IF(PlotControl!$B$4 = "Annual Max",MAX(OFFSET(Ndam!$E$10,12*$A11,4*(PlotControl!$C$6-1),12,1)),AVERAGE(OFFSET(Ndam!$E$10,12*$A11,4*(PlotControl!$C$6-1),12,1))) -> 86.998 | H11: =IF(PlotControl!$B$4 = "Annual Max",MAX(OFFSET(Ebeach!$C$10,12*$A11,4*(PlotControl!$C$6-1),12,1)),AVERAGE(OFFSET(Ebeach!$C$10,12*$A11,4*(PlotControl!$C$6-1),12,1))) -> 0 | I11: =IF(PlotControl!$B$4 = "Annual Max",MAX(OFFSET(Ebeach!$D$10,12*$A11,4*(PlotControl!$C$6-1),12,1)),AVERAGE(OFFSET(Ebeach!$D$10,12*$A11,4*(PlotControl!$C$6-1),12,1))) -> 0 | J11: =IF(PlotControl!$B$4 = "Annual Max",MAX(OFFSET(Ebeach!$E$10,12*$A11,4*(PlotControl!$C$6-1),12,1)),AVERAGE(OFFSET(Ebeach!$E$10,12*$A11,4*(PlotControl!$C$6-1),12,1))) -> 0 | K11: =IF(PlotControl!$B$4 = "Annual Max",MAX(OFFSET(Edam!$C$10,12*$A11,4*(PlotControl!$C$6-1),12,1)),AVERAGE(OFFSET(Edam!$C$10,12*$A11,4*(PlotControl!$C$6-1),12,1))) -> 0 | L11: =IF(PlotControl!$B$4 = "Annual Max",MAX(OFFSET(Edam!$D$10,12*$A11,4*(PlotControl!$C$6-1),12,1)),AVERAGE(OFFSET(Edam!$D$10,12*$A11,4*(PlotControl!$C$6-1),12,1))) -> 0 | M11: =IF(PlotControl!$B$4 = "Annual Max",MAX(OFFSET(Edam!$E$10,12*$A11,4*(PlotControl!$C$6-1),12,1)),AVERAGE(OFFSET(Edam!$E$10,12*$A11,4*(PlotControl!$C$6-1),12,1))) -> 0 | N11: =IF(PlotControl!$B$4 = "Annual Max",MAX(OFFSET(Sbeach!$C$10,12*$A11,4*(PlotControl!$C$6-1),12,1)),AVERAGE(OFFSET(Sbeach!$C$10,12*$A11,4*(PlotControl!$C$6-1),12,1))) -> 0 | O11: =IF(PlotControl!$B$4 = "Annual Max",MAX(OFFSET(Sbeach!$D$10,12*$A11,4*(PlotControl!$C$6-1),12,1)),AVERAGE(OFFSET(Sbeach!$D$10,12*$A11,4*(PlotControl!$C$6-1),12,1))) -> 0 | P11: =IF(PlotControl!$B$4 = "Annual Max",MAX(OFFSET(Sbeach!$E$10,12*$A11,4*(PlotControl!$C$6-1),12,1)),AVERAGE(OFFSET(Sbeach!$E$10,12*$A11,4*(PlotControl!$C$6-1),12,1))) -> 0 | Q11: =IF(PlotControl!$B$4 = "Annual Max",MAX(OFFSET(Sdam!$C$10,12*$A11,4*(PlotControl!$C$6-1),12,1)),AVERAGE(OFFSET(Sdam!$C$10,12*$A11,4*(PlotControl!$C$6-1),12,1))) -> 0 | R11: =IF(PlotControl!$B$4 = "Annual Max",MAX(OFFSET(Sdam!$D$10,12*$A11,4*(PlotControl!$C$6-1),12,1)),AVERAGE(OFFSET(Sdam!$D$10,12*$A11,4*(PlotControl!$C$6-1),12,1))) -> 0 | S11: =IF(PlotControl!$B$4 = "Annual Max",MAX(OFFSET(Sdam!$E$10,12*$A11,4*(PlotControl!$C$6-1),12,1)),AVERAGE(OFFSET(Sdam!$E$10,12*$A11,4*(PlotControl!$C$6-1),12,1))) -> 0 | T11: =IF(PlotControl!$B$4 = "Annual Max",MAX(OFFSET(Cbeach!$C$10,12*$A11,4*(PlotControl!$C$6-1),12,1)),AVERAGE(OFFSET(Cbeach!$C$10,12*$A11,4*(PlotControl!$C$6-1),12,1))) -> 0 | U11: =IF(PlotControl!$B$4 = "Annual Max",MAX(OFFSET(Cbeach!$D$10,12*$A11,4*(PlotControl!$C$6-1),12,1)),AVERAGE(OFFSET(Cbeach!$D$10,12*$A11,4*(PlotControl!$C$6-1),12,1))) -> 0 | V11: =IF(PlotControl!$B$4 = "Annual Max",MAX(OFFSET(Cbeach!$E$10,12*$A11,4*(PlotControl!$C$6-1),12,1)),AVERAGE(OFFSET(Cbeach!$E$10,12*$A11,4*(PlotControl!$C$6-1),12,1))) -> 0
A12: 7 | B12: =IF(PlotControl!$B$4 = "Annual Max",MAX(OFFSET(Nbeach!$C$10,12*$A12,4*(PlotControl!$C$6-1),12,1)),AVERAGE(OFFSET(Nbeach!$C$10,12*$A12,4*(PlotControl!$C$6-1),12,1))) -> 1691.2 | C12: =IF(PlotControl!$B$4 = "Annual Max",MAX(OFFSET(Nbeach!$D$10,12*$A12,4*(PlotControl!$C$6-1),12,1)),AVERAGE(OFFSET(Nbeach!$D$10,12*$A12,4*(PlotControl!$C$6-1),12,1))) -> 1768 | D12: =IF(PlotControl!$B$4 = "Annual Max",MAX(OFFSET(Nbeach!$E$10,12*$A12,4*(PlotControl!$C$6-1),12,1)),AVERAGE(OFFSET(Nbeach!$E$10,12*$A12,4*(PlotControl!$C$6-1),12,1))) -> 1847.4 | E12: =IF(PlotControl!$B$4 = "Annual Max",MAX(OFFSET(Ndam!$C$10,12*$A12,4*(PlotControl!$C$6-1),12,1)),AVERAGE(OFFSET(Ndam!$C$10,12*$A12,4*(PlotControl!$C$6-1),12,1))) -> 95.132 | F12: =IF(PlotControl!$B$4 = "Annual Max",MAX(OFFSET(Ndam!$D$10,12*$A12,4*(PlotControl!$C$6-1),12,1)),AVERAGE(OFFSET(Ndam!$D$10,12*$A12,4*(PlotControl!$C$6-1),12,1))) -> 95.132 | G12: =IF(PlotControl!$B$4 = "Annual Max",MAX(OFFSET(Ndam!$E$10,12*$A12,4*(PlotControl!$C$6-1),12,1)),AVERAGE(OFFSET(Ndam!$E$10,12*$A12,4*(PlotControl!$C$6-1),12,1))) -> 95.132 | H12: =IF(PlotControl!$B$4 = "Annual Max",MAX(OFFSET(Ebeach!$C$10,12*$A12,4*(PlotControl!$C$6-1),12,1)),AVERAGE(OFFSET(Ebeach!$C$10,12*$A12,4*(PlotControl!$C$6-1),12,1))) -> 16.103 | I12: =IF(PlotControl!$B$4 = "Annual Max",MAX(OFFSET(Ebeach!$D$10,12*$A12,4*(PlotControl!$C$6-1),12,1)),AVERAGE(OFFSET(Ebeach!$D$10,12*$A12,4*(PlotControl!$C$6-1),12,1))) -> 18.304 | J12: =IF(PlotControl!$B$4 = "Annual Max",MAX(OFFSET(Ebeach!$E$10,12*$A12,4*(PlotControl!$C$6-1),12,1)),AVERAGE(OFFSET(Ebeach!$E$10,12*$A12,4*(PlotControl!$C$6-1),12,1))) -> 20.737 | K12: =IF(PlotControl!$B$4 = "Annual Max",MAX(OFFSET(Edam!$C$10,12*$A12,4*(PlotControl!$C$6-1),12,1)),AVERAGE(OFFSET(Edam!$C$10,12*$A12,4*(PlotControl!$C$6-1),12,1))) -> 0.68879 | L12: =IF(PlotControl!$B$4 = "Annual Max",MAX(OFFSET(Edam!$D$10,12*$A12,4*(PlotControl!$C$6-1),12,1)),AVERAGE(OFFSET(Edam!$D$10,12*$A12,4*(PlotControl!$C$6-1),12,1))) -> 0.68879 | M12: =IF(PlotControl!$B$4 = "Annual Max",MAX(OFFSET(Edam!$E$10,12*$A12,4*(PlotControl!$C$6-1),12,1)),AVERAGE(OFFSET(Edam!$E$10,12*$A12,4*(PlotControl!$C$6-1),12,1))) -> 0.68879 | N12: =IF(PlotControl!$B$4 = "Annual Max",MAX(OFFSET(Sbeach!$C$10,12*$A12,4*(PlotControl!$C$6-1),12,1)),AVERAGE(OFFSET(Sbeach!$C$10,12*$A12,4*(PlotControl!$C$6-1),12,1))) -> 95.973 | O12: =IF(PlotControl!$B$4 = "Annual Max",MAX(OFFSET(Sbeach!$D$10,12*$A12,4*(PlotControl!$C$6-1),12,1)),AVERAGE(OFFSET(Sbeach!$D$10,12*$A12,4*(PlotControl!$C$6-1),12,1))) -> 108.81 | P12: =IF(PlotControl!$B$4 = "Annual Max",MAX(OFFSET(Sbeach!$E$10,12*$A12,4*(PlotControl!$C$6-1),12,1)),AVERAGE(OFFSET(Sbeach!$E$10,12*$A12,4*(PlotControl!$C$6-1),12,1))) -> 123.33 | Q12: =IF(PlotControl!$B$4 = "Annual Max",MAX(OFFSET(Sdam!$C$10,12*$A12,4*(PlotControl!$C$6-1),12,1)),AVERAGE(OFFSET(Sdam!$C$10,12*$A12,4*(PlotControl!$C$6-1),12,1))) -> 0.68879 | R12: =IF(PlotControl!$B$4 = "Annual Max",MAX(OFFSET(Sdam!$D$10,12*$A12,4*(PlotControl!$C$6-1),12,1)),AVERAGE(OFFSET(Sdam!$D$10,12*$A12,4*(PlotControl!$C$6-1),12,1))) -> 0.68879 | S12: =IF(PlotControl!$B$4 = "Annual Max",MAX(OFFSET(Sdam!$E$10,12*$A12,4*(PlotControl!$C$6-1),12,1)),AVERAGE(OFFSET(Sdam!$E$10,12*$A12,4*(PlotControl!$C$6-1),12,1))) -> 0.68879 | T12: =IF(PlotControl!$B$4 = "Annual Max",MAX(OFFSET(Cbeach!$C$10,12*$A12,4*(PlotControl!$C$6-1),12,1)),AVERAGE(OFFSET(Cbeach!$C$10,12*$A12,4*(PlotControl!$C$6-1),12,1))) -> 0 | U12: =IF(PlotControl!$B$4 = "Annual Max",MAX(OFFSET(Cbeach!$D$10,12*$A12,4*(PlotControl!$C$6-1),12,1)),AVERAGE(OFFSET(Cbeach!$D$10,12*$A12,4*(PlotControl!$C$6-1),12,1))) -> 0 | V12: =IF(PlotControl!$B$4 = "Annual Max",MAX(OFFSET(Cbeach!$E$10,12*$A12,4*(PlotControl!$C$6-1),12,1)),AVERAGE(OFFSET(Cbeach!$E$10,12*$A12,4*(PlotControl!$C$6-1),12,1))) -> 0
A13: 8 | B13: =IF(PlotControl!$B$4 = "Annual Max",MAX(OFFSET(Nbeach!$C$10,12*$A13,4*(PlotControl!$C$6-1),12,1)),AVERAGE(OFFSET(Nbeach!$C$10,12*$A13,4*(PlotControl!$C$6-1),12,1))) -> 1775.7 | C13: =IF(PlotControl!$B$4 = "Annual Max",MAX(OFFSET(Nbeach!$D$10,12*$A13,4*(PlotControl!$C$6-1),12,1)),AVERAGE(OFFSET(Nbeach!$D$10,12*$A13,4*(PlotControl!$C$6-1),12,1))) -> 1853 | D13: =IF(PlotControl!$B$4 = "Annual Max",MAX(OFFSET(Nbeach!$E$10,12*$A13,4*(PlotControl!$C$6-1),12,1)),AVERAGE(OFFSET(Nbeach!$E$10,12*$A13,4*(PlotControl!$C$6-1),12,1))) -> 1931.5 | E13: =IF(PlotControl!$B$4 = "Annual Max",MAX(OFFSET(Ndam!$C$10,12*$A13,4*(PlotControl!$C$6-1),12,1)),AVERAGE(OFFSET(Ndam!$C$10,12*$A13,4*(PlotControl!$C$6-1),12,1))) -> 103.24 | F13: =IF(PlotControl!$B$4 = "Annual Max",MAX(OFFSET(Ndam!$D$10,12*$A13,4*(PlotControl!$C$6-1),12,1)),AVERAGE(OFFSET(Ndam!$D$10,12*$A13,4*(PlotControl!$C$6-1),12,1))) -> 103.24 | G13: =IF(PlotControl!$B$4 = "Annual Max",MAX(OFFSET(Ndam!$E$10,12*$A13,4*(PlotControl!$C$6-1),12,1)),AVERAGE(OFFSET(Ndam!$E$10,12*$A13,4*(PlotControl!$C$6-1),12,1))) -> 103.24 | H13: =IF(PlotControl!$B$4 = "Annual Max",MAX(OFFSET(Ebeach!$C$10,12*$A13,4*(PlotControl!$C$6-1),12,1)),AVERAGE(OFFSET(Ebeach!$C$10,12*$A13,4*(PlotControl!$C$6-1),12,1))) -> 33.247 | I13: =IF(PlotControl!$B$4 = "Annual Max",MAX(OFFSET(Ebeach!$D$10,12*$A13,4*(PlotControl!$C$6-1),12,1)),AVERAGE(OFFSET(Ebeach!$D$10,12*$A13,4*(PlotControl!$C$6-1),12,1))) -> 37.213 | J13: =IF(PlotControl!$B$4 = "Annual Max",MAX(OFFSET(Ebeach!$E$10,12*$A13,4*(PlotControl!$C$6-1),12,1)),AVERAGE(OFFSET(Ebeach!$E$10,12*$A13,4*(PlotControl!$C$6-1),12,1))) -> 54.291 | K13: =IF(PlotControl!$B$4 = "Annual Max",MAX(OFFSET(Edam!$C$10,12*$A13,4*(PlotControl!$C$6-1),12,1)),AVERAGE(OFFSET(Edam!$C$10,12*$A13,4*(PlotControl!$C$6-1),12,1))) -> 1.3945 | L13: =IF(PlotControl!$B$4 = "Annual Max",MAX(OFFSET(Edam!$D$10,12*$A13,4*(PlotControl!$C$6-1),12,1)),AVERAGE(OFFSET(Edam!$D$10,12*$A13,4*(PlotControl!$C$6-1),12,1))) -> 1.3945 | M13: =IF(PlotControl!$B$4 = "Annual Max",MAX(OFFSET(Edam!$E$10,12*$A13,4*(PlotControl!$C$6-1),12,1)),AVERAGE(OFFSET(Edam!$E$10,12*$A13,4*(PlotControl!$C$6-1),12,1))) -> 1.3945 | N13: =IF(PlotControl!$B$4 = "Annual Max",MAX(OFFSET(Sbeach!$C$10,12*$A13,4*(PlotControl!$C$6-1),12,1)),AVERAGE(OFFSET(Sbeach!$C$10,12*$A13,4*(PlotControl!$C$6-1),12,1))) -> 193.63 | O13: =IF(PlotControl!$B$4 = "Annual Max",MAX(OFFSET(Sbeach!$D$10,12*$A13,4*(PlotControl!$C$6-1),12,1)),AVERAGE(OFFSET(Sbeach!$D$10,12*$A13,4*(PlotControl!$C$6-1),12,1))) -> 218.33 | P13: =IF(PlotControl!$B$4 = "Annual Max",MAX(OFFSET(Sbeach!$E$10,12*$A13,4*(PlotControl!$C$6-1),12,1)),AVERAGE(OFFSET(Sbeach!$E$10,12*$A13,4*(PlotControl!$C$6-1),12,1))) -> 243.11 | Q13: =IF(PlotControl!$B$4 = "Annual Max",MAX(OFFSET(Sdam!$C$10,12*$A13,4*(PlotControl!$C$6-1),12,1)),AVERAGE(OFFSET(Sdam!$C$10,12*$A13,4*(PlotControl!$C$6-1),12,1))) -> 1.3945 | R13: =IF(PlotControl!$B$4 = "Annual Max",MAX(OFFSET(Sdam!$D$10,12*$A13,4*(PlotControl!$C$6-1),12,1)),AVERAGE(OFFSET(Sdam!$D$10,12*$A13,4*(PlotControl!$C$6-1),12,1))) -> 1.3945 | S13: =IF(PlotControl!$B$4 = "Annual Max",MAX(OFFSET(Sdam!$E$10,12*$A13,4*(PlotControl!$C$6-1),12,1)),AVERAGE(OFFSET(Sdam!$E$10,12*$A13,4*(PlotControl!$C$6-1),12,1))) -> 1.3945 | T13: =IF(PlotControl!$B$4 = "Annual Max",MAX(OFFSET(Cbeach!$C$10,12*$A13,4*(PlotControl!$C$6-1),12,1)),AVERAGE(OFFSET(Cbeach!$C$10,12*$A13,4*(PlotControl!$C$6-1),12,1))) -> 0 | U13: =IF(PlotControl!$B$4 = "Annual Max",MAX(OFFSET(Cbeach!$D$10,12*$A13,4*(PlotControl!$C$6-1),12,1)),AVERAGE(OFFSET(Cbeach!$D$10,12*$A13,4*(PlotControl!$C$6-1),12,1))) -> 0 | V13: =IF(PlotControl!$B$4 = "Annual Max",MAX(OFFSET(Cbeach!$E$10,12*$A13,4*(PlotControl!$C$6-1),12,1)),AVERAGE(OFFSET(Cbeach!$E$10,12*$A13,4*(PlotControl!$C$6-1),12,1))) -> 0
A14: 9 | B14: =IF(PlotControl!$B$4 = "Annual Max",MAX(OFFSET(Nbeach!$C$10,12*$A14,4*(PlotControl!$C$6-1),12,1)),AVERAGE(OFFSET(Nbeach!$C$10,12*$A14,4*(PlotControl!$C$6-1),12,1))) -> 1857.9 | C14: =IF(PlotControl!$B$4 = "Annual Max",MAX(OFFSET(Nbeach!$D$10,12*$A14,4*(PlotControl!$C$6-1),12,1)),AVERAGE(OFFSET(Nbeach!$D$10,12*$A14,4*(PlotControl!$C$6-1),12,1))) -> 1936.3 | D14: =IF(PlotControl!$B$4 = "Annual Max",MAX(OFFSET(Nbeach!$E$10,12*$A14,4*(PlotControl!$C$6-1),12,1)),AVERAGE(OFFSET(Nbeach!$E$10,12*$A14,4*(PlotControl!$C$6-1),12,1))) -> 2015.9 | E14: =IF(PlotControl!$B$4 = "Annual Max",MAX(OFFSET(Ndam!$C$10,12*$A14,4*(PlotControl!$C$6-1),12,1)),AVERAGE(OFFSET(Ndam!$C$10,12*$A14,4*(PlotControl!$C$6-1),12,1))) -> 111.43 | F14: =IF(PlotControl!$B$4 = "Annual Max",MAX(OFFSET(Ndam!$D$10,12*$A14,4*(PlotControl!$C$6-1),12,1)),AVERAGE(OFFSET(Ndam!$D$10,12*$A14,4*(PlotControl!$C$6-1),12,1))) -> 111.43 | G14: =IF(PlotControl!$B$4 = "Annual Max",MAX(OFFSET(Ndam!$E$10,12*$A14,4*(PlotControl!$C$6-1),12,1)),AVERAGE(OFFSET(Ndam!$E$10,12*$A14,4*(PlotControl!$C$6-1),12,1))) -> 111.43 | H14: =IF(PlotControl!$B$4 = "Annual Max",MAX(OFFSET(Ebeach!$C$10,12*$A14,4*(PlotControl!$C$6-1),12,1)),AVERAGE(OFFSET(Ebeach!$C$10,12*$A14,4*(PlotControl!$C$6-1),12,1))) -> 51.285 | I14: =IF(PlotControl!$B$4 = "Annual Max",MAX(OFFSET(Ebeach!$D$10,12*$A14,4*(PlotControl!$C$6-1),12,1)),AVERAGE(OFFSET(Ebeach!$D$10,12*$A14,4*(PlotControl!$C$6-1),12,1))) -> 61.438 | J14: =IF(PlotControl!$B$4 = "Annual Max",MAX(OFFSET(Ebeach!$E$10,12*$A14,4*(PlotControl!$C$6-1),12,1)),AVERAGE(OFFSET(Ebeach!$E$10,12*$A14,4*(PlotControl!$C$6-1),12,1))) -> 79.113 | K14: =IF(PlotControl!$B$4 = "Annual Max",MAX(OFFSET(Edam!$C$10,12*$A14,4*(PlotControl!$C$6-1),12,1)),AVERAGE(OFFSET(Edam!$C$10,12*$A14,4*(PlotControl!$C$6-1),12,1))) -> 2.0561 | L14: =IF(PlotControl!$B$4 = "Annual Max",MAX(OFFSET(Edam!$D$10,12*$A14,4*(PlotControl!$C$6-1),12,1)),AVERAGE(OFFSET(Edam!$D$10,12*$A14,4*(PlotControl!$C$6-1),12,1))) -> 2.0561 | M14: =IF(PlotControl!$B$4 = "Annual Max",MAX(OFFSET(Edam!$E$10,12*$A14,4*(PlotControl!$C$6-1),12,1)),AVERAGE(OFFSET(Edam!$E$10,12*$A14,4*(PlotControl!$C$6-1),12,1))) -> 2.0561 | N14: =IF(PlotControl!$B$4 = "Annual Max",MAX(OFFSET(Sbeach!$C$10,12*$A14,4*(PlotControl!$C$6-1),12,1)),AVERAGE(OFFSET(Sbeach!$C$10,12*$A14,4*(PlotControl!$C$6-1),12,1))) -> 296.48 | O14: =IF(PlotControl!$B$4 = "Annual Max",MAX(OFFSET(Sbeach!$D$10,12*$A14,4*(PlotControl!$C$6-1),12,1)),AVERAGE(OFFSET(Sbeach!$D$10,12*$A14,4*(PlotControl!$C$6-1),12,1))) -> 323.89 | P14: =IF(PlotControl!$B$4 = "Annual Max",MAX(OFFSET(Sbeach!$E$10,12*$A14,4*(PlotControl!$C$6-1),12,1)),AVERAGE(OFFSET(Sbeach!$E$10,12*$A14,4*(PlotControl!$C$6-1),12,1))) -> 357.16 | Q14: =IF(PlotControl!$B$4 = "Annual Max",MAX(OFFSET(Sdam!$C$10,12*$A14,4*(PlotControl!$C$6-1),12,1)),AVERAGE(OFFSET(Sdam!$C$10,12*$A14,4*(PlotControl!$C$6-1),12,1))) -> 2.0561 | R14: =IF(PlotControl!$B$4 = "Annual Max",MAX(OFFSET(Sdam!$D$10,12*$A14,4*(PlotControl!$C$6-1),12,1)),AVERAGE(OFFSET(Sdam!$D$10,12*$A14,4*(PlotControl!$C$6-1),12,1))) -> 2.0561 | S14: =IF(PlotControl!$B$4 = "Annual Max",MAX(OFFSET(Sdam!$E$10,12*$A14,4*(PlotControl!$C$6-1),12,1)),AVERAGE(OFFSET(Sdam!$E$10,12*$A14,4*(PlotControl!$C$6-1),12,1))) -> 2.0561 | T14: =IF(PlotControl!$B$4 = "Annual Max",MAX(OFFSET(Cbeach!$C$10,12*$A14,4*(PlotControl!$C$6-1),12,1)),AVERAGE(OFFSET(Cbeach!$C$10,12*$A14,4*(PlotControl!$C$6-1),12,1))) -> 0 | U14: =IF(PlotControl!$B$4 = "Annual Max",MAX(OFFSET(Cbeach!$D$10,12*$A14,4*(PlotControl!$C$6-1),12,1)),AVERAGE(OFFSET(Cbeach!$D$10,12*$A14,4*(PlotControl!$C$6-1),12,1))) -> 0 | V14: =IF(PlotControl!$B$4 = "Annual Max",MAX(OFFSET(Cbeach!$E$10,12*$A14,4*(PlotControl!$C$6-1),12,1)),AVERAGE(OFFSET(Cbeach!$E$10,12*$A14,4*(PlotControl!$C$6-1),12,1))) -> 0
A15: 10 | B15: =IF(PlotControl!$B$4 = "Annual Max",MAX(OFFSET(Nbeach!$C$10,12*$A15,4*(PlotControl!$C$6-1),12,1)),AVERAGE(OFFSET(Nbeach!$C$10,12*$A15,4*(PlotControl!$C$6-1),12,1))) -> 1939.5 | C15: =IF(PlotControl!$B$4 = "Annual Max",MAX(OFFSET(Nbeach!$D$10,12*$A15,4*(PlotControl!$C$6-1),12,1)),AVERAGE(OFFSET(Nbeach!$D$10,12*$A15,4*(PlotControl!$C$6-1),12,1))) -> 2018.1 | D15: =IF(PlotControl!$B$4 = "Annual Max",MAX(OFFSET(Nbeach!$E$10,12*$A15,4*(PlotControl!$C$6-1),12,1)),AVERAGE(OFFSET(Nbeach!$E$10,12*$A15,4*(PlotControl!$C$6-1),12,1))) -> 2101.4 | E15: =IF(PlotControl!$B$4 = "Annual Max",MAX(OFFSET(Ndam!$C$10,12*$A15,4*(PlotControl!$C$6-1),12,1)),AVERAGE(OFFSET(Ndam!$C$10,12*$A15,4*(PlotControl!$C$6-1),12,1))) -> 118.83 | F15: =IF(PlotControl!$B$4 = "Annual Max",MAX(OFFSET(Ndam!$D$10,12*$A15,4*(PlotControl!$C$6-1),12,1)),AVERAGE(OFFSET(Ndam!$D$10,12*$A15,4*(PlotControl!$C$6-1),12,1))) -> 118.83 | G15: =IF(PlotControl!$B$4 = "Annual Max",MAX(OFFSET(Ndam!$E$10,12*$A15,4*(PlotControl!$C$6-1),12,1)),AVERAGE(OFFSET(Ndam!$E$10,12*$A15,4*(PlotControl!$C$6-1),12,1))) -> 118.83 | H15: =IF(PlotControl!$B$4 = "Annual Max",MAX(OFFSET(Ebeach!$C$10,12*$A15,4*(PlotControl!$C$6-1),12,1)),AVERAGE(OFFSET(Ebeach!$C$10,12*$A15,4*(PlotControl!$C$6-1),12,1))) -> 70.454 | I15: =IF(PlotControl!$B$4 = "Annual Max",MAX(OFFSET(Ebeach!$D$10,12*$A15,4*(PlotControl!$C$6-1),12,1)),AVERAGE(OFFSET(Ebeach!$D$10,12*$A15,4*(PlotControl!$C$6-1),12,1))) -> 89.774 | J15: =IF(PlotControl!$B$4 = "Annual Max",MAX(OFFSET(Ebeach!$E$10,12*$A15,4*(PlotControl!$C$6-1),12,1)),AVERAGE(OFFSET(Ebeach!$E$10,12*$A15,4*(PlotControl!$C$6-1),12,1))) -> 111.41 | K15: =IF(PlotControl!$B$4 = "Annual Max",MAX(OFFSET(Edam!$C$10,12*$A15,4*(PlotControl!$C$6-1),12,1)),AVERAGE(OFFSET(Edam!$C$10,12*$A15,4*(PlotControl!$C$6-1),12,1))) -> 2.7125 | L15: =IF(PlotControl!$B$4 = "Annual Max",MAX(OFFSET(Edam!$D$10,12*$A15,4*(PlotControl!$C$6-1),12,1)),AVERAGE(OFFSET(Edam!$D$10,12*$A15,4*(PlotControl!$C$6-1),12,1))) -> 2.7125 | M15: =IF(PlotControl!$B$4 = "Annual Max",MAX(OFFSET(Edam!$E$10,12*$A15,4*(PlotControl!$C$6-1),12,1)),AVERAGE(OFFSET(Edam!$E$10,12*$A15,4*(PlotControl!$C$6-1),12,1))) -> 2.7125 | N15: =IF(PlotControl!$B$4 = "Annual Max",MAX(OFFSET(Sbeach!$C$10,12*$A15,4*(PlotControl!$C$6-1),12,1)),AVERAGE(OFFSET(Sbeach!$C$10,12*$A15,4*(PlotControl!$C$6-1),12,1))) -> 395.1 | O15: =IF(PlotControl!$B$4 = "Annual Max",MAX(OFFSET(Sbeach!$D$10,12*$A15,4*(PlotControl!$C$6-1),12,1)),AVERAGE(OFFSET(Sbeach!$D$10,12*$A15,4*(PlotControl!$C$6-1),12,1))) -> 429.81 | P15: =IF(PlotControl!$B$4 = "Annual Max",MAX(OFFSET(Sbeach!$E$10,12*$A15,4*(PlotControl!$C$6-1),12,1)),AVERAGE(OFFSET(Sbeach!$E$10,12*$A15,4*(PlotControl!$C$6-1),12,1))) -> 472.17 | Q15: =IF(PlotControl!$B$4 = "Annual Max",MAX(OFFSET(Sdam!$C$10,12*$A15,4*(PlotControl!$C$6-1),12,1)),AVERAGE(OFFSET(Sdam!$C$10,12*$A15,4*(PlotControl!$C$6-1),12,1))) -> 2.8695 | R15: =IF(PlotControl!$B$4 = "Annual Max",MAX(OFFSET(Sdam!$D$10,12*$A15,4*(PlotControl!$C$6-1),12,1)),AVERAGE(OFFSET(Sdam!$D$10,12*$A15,4*(PlotControl!$C$6-1),12,1))) -> 2.8695 | S15: =IF(PlotControl!$B$4 = "Annual Max",MAX(OFFSET(Sdam!$E$10,12*$A15,4*(PlotControl!$C$6-1),12,1)),AVERAGE(OFFSET(Sdam!$E$10,12*$A15,4*(PlotControl!$C$6-1),12,1))) -> 2.8695 | T15: =IF(PlotControl!$B$4 = "Annual Max",MAX(OFFSET(Cbeach!$C$10,12*$A15,4*(PlotControl!$C$6-1),12,1)),AVERAGE(OFFSET(Cbeach!$C$10,12*$A15,4*(PlotControl!$C$6-1),12,1))) -> 0 | U15: =IF(PlotControl!$B$4 = "Annual Max",MAX(OFFSET(Cbeach!$D$10,12*$A15,4*(PlotControl!$C$6-1),12,1)),AVERAGE(OFFSET(Cbeach!$D$10,12*$A15,4*(PlotControl!$C$6-1),12,1))) -> 0 | V15: =IF(PlotControl!$B$4 = "Annual Max",MAX(OFFSET(Cbeach!$E$10,12*$A15,4*(PlotControl!$C$6-1),12,1)),AVERAGE(OFFSET(Cbeach!$E$10,12*$A15,4*(PlotControl!$C$6-1),12,1))) -> 0
A16: 11 | B16: =IF(PlotControl!$B$4 = "Annual Max",MAX(OFFSET(Nbeach!$C$10,12*$A16,4*(PlotControl!$C$6-1),12,1)),AVERAGE(OFFSET(Nbeach!$C$10,12*$A16,4*(PlotControl!$C$6-1),12,1))) -> 2016.6 | C16: =IF(PlotControl!$B$4 = "Annual Max",MAX(OFFSET(Nbeach!$D$10,12*$A16,4*(PlotControl!$C$6-1),12,1)),AVERAGE(OFFSET(Nbeach!$D$10,12*$A16,4*(PlotControl!$C$6-1),12,1))) -> 2102 | D16: =IF(PlotControl!$B$4 = "Annual Max",MAX(OFFSET(Nbeach!$E$10,12*$A16,4*(PlotControl!$C$6-1),12,1)),AVERAGE(OFFSET(Nbeach!$E$10,12*$A16,4*(PlotControl!$C$6-1),12,1))) -> 2183.1 | E16: =IF(PlotControl!$B$4 = "Annual Max",MAX(OFFSET(Ndam!$C$10,12*$A16,4*(PlotControl!$C$6-1),12,1)),AVERAGE(OFFSET(Ndam!$C$10,12*$A16,4*(PlotControl!$C$6-1),12,1))) -> 125.94 | F16: =IF(PlotControl!$B$4 = "Annual Max",MAX(OFFSET(Ndam!$D$10,12*$A16,4*(PlotControl!$C$6-1),12,1)),AVERAGE(OFFSET(Ndam!$D$10,12*$A16,4*(PlotControl!$C$6-1),12,1))) -> 125.94 | G16: =IF(PlotControl!$B$4 = "Annual Max",MAX(OFFSET(Ndam!$E$10,12*$A16,4*(PlotControl!$C$6-1),12,1)),AVERAGE(OFFSET(Ndam!$E$10,12*$A16,4*(PlotControl!$C$6-1),12,1))) -> 125.94 | H16: =IF(PlotControl!$B$4 = "Annual Max",MAX(OFFSET(Ebeach!$C$10,12*$A16,4*(PlotControl!$C$6-1),12,1)),AVERAGE(OFFSET(Ebeach!$C$10,12*$A16,4*(PlotControl!$C$6-1),12,1))) -> 92.515 | I16: =IF(PlotControl!$B$4 = "Annual Max",MAX(OFFSET(Ebeach!$D$10,12*$A16,4*(PlotControl!$C$6-1),12,1)),AVERAGE(OFFSET(Ebeach!$D$10,12*$A16,4*(PlotControl!$C$6-1),12,1))) -> 116.5 | J16: =IF(PlotControl!$B$4 = "Annual Max",MAX(OFFSET(Ebeach!$E$10,12*$A16,4*(PlotControl!$C$6-1),12,1)),AVERAGE(OFFSET(Ebeach!$E$10,12*$A16,4*(PlotControl!$C$6-1),12,1))) -> 142.21 | K16: =IF(PlotControl!$B$4 = "Annual Max",MAX(OFFSET(Edam!$C$10,12*$A16,4*(PlotControl!$C$6-1),12,1)),AVERAGE(OFFSET(Edam!$C$10,12*$A16,4*(PlotControl!$C$6-1),12,1))) -> 3.4072 | L16: =IF(PlotControl!$B$4 = "Annual Max",MAX(OFFSET(Edam!$D$10,12*$A16,4*(PlotControl!$C$6-1),12,1)),AVERAGE(OFFSET(Edam!$D$10,12*$A16,4*(PlotControl!$C$6-1),12,1))) -> 3.4072 | M16: =IF(PlotControl!$B$4 = "Annual Max",MAX(OFFSET(Edam!$E$10,12*$A16,4*(PlotControl!$C$6-1),12,1)),AVERAGE(OFFSET(Edam!$E$10,12*$A16,4*(PlotControl!$C$6-1),12,1))) -> 3.4072 | N16: =IF(PlotControl!$B$4 = "Annual Max",MAX(OFFSET(Sbeach!$C$10,12*$A16,4*(PlotControl!$C$6-1),12,1)),AVERAGE(OFFSET(Sbeach!$C$10,12*$A16,4*(PlotControl!$C$6-1),12,1))) -> 491.85 | O16: =IF(PlotControl!$B$4 = "Annual Max",MAX(OFFSET(Sbeach!$D$10,12*$A16,4*(PlotControl!$C$6-1),12,1)),AVERAGE(OFFSET(Sbeach!$D$10,12*$A16,4*(PlotControl!$C$6-1),12,1))) -> 530.81 | P16: =IF(PlotControl!$B$4 = "Annual Max",MAX(OFFSET(Sbeach!$E$10,12*$A16,4*(PlotControl!$C$6-1),12,1)),AVERAGE(OFFSET(Sbeach!$E$10,12*$A16,4*(PlotControl!$C$6-1),12,1))) -> 577.38 | Q16: =IF(PlotControl!$B$4 = "Annual Max",MAX(OFFSET(Sdam!$C$10,12*$A16,4*(PlotControl!$C$6-1),12,1)),AVERAGE(OFFSET(Sdam!$C$10,12*$A16,4*(PlotControl!$C$6-1),12,1))) -> 3.8738 | R16: =IF(PlotControl!$B$4 = "Annual Max",MAX(OFFSET(Sdam!$D$10,12*$A16,4*(PlotControl!$C$6-1),12,1)),AVERAGE(OFFSET(Sdam!$D$10,12*$A16,4*(PlotControl!$C$6-1),12,1))) -> 3.8738 | S16: =IF(PlotControl!$B$4 = "Annual Max",MAX(OFFSET(Sdam!$E$10,12*$A16,4*(PlotControl!$C$6-1),12,1)),AVERAGE(OFFSET(Sdam!$E$10,12*$A16,4*(PlotControl!$C$6-1),12,1))) -> 3.8738 | T16: =IF(PlotControl!$B$4 = "Annual Max",MAX(OFFSET(Cbeach!$C$10,12*$A16,4*(PlotControl!$C$6-1),12,1)),AVERAGE(OFFSET(Cbeach!$C$10,12*$A16,4*(PlotControl!$C$6-1),12,1))) -> 0 | U16: =IF(PlotControl!$B$4 = "Annual Max",MAX(OFFSET(Cbeach!$D$10,12*$A16,4*(PlotControl!$C$6-1),12,1)),AVERAGE(OFFSET(Cbeach!$D$10,12*$A16,4*(PlotControl!$C$6-1),12,1))) -> 0 | V16: =IF(PlotControl!$B$4 = "Annual Max",MAX(OFFSET(Cbeach!$E$10,12*$A16,4*(PlotControl!$C$6-1),12,1)),AVERAGE(OFFSET(Cbeach!$E$10,12*$A16,4*(PlotControl!$C$6-1),12,1))) -> 0
A17: 12 | B17: =IF(PlotControl!$B$4 = "Annual Max",MAX(OFFSET(Nbeach!$C$10,12*$A17,4*(PlotControl!$C$6-1),12,1)),AVERAGE(OFFSET(Nbeach!$C$10,12*$A17,4*(PlotControl!$C$6-1),12,1))) -> 2099.7 | C17: =IF(PlotControl!$B$4 = "Annual Max",MAX(OFFSET(Nbeach!$D$10,12*$A17,4*(PlotControl!$C$6-1),12,1)),AVERAGE(OFFSET(Nbeach!$D$10,12*$A17,4*(PlotControl!$C$6-1),12,1))) -> 2185.3 | D17: =IF(PlotControl!$B$4 = "Annual Max",MAX(OFFSET(Nbeach!$E$10,12*$A17,4*(PlotControl!$C$6-1),12,1)),AVERAGE(OFFSET(Nbeach!$E$10,12*$A17,4*(PlotControl!$C$6-1),12,1))) -> 2269.9 | E17: =IF(PlotControl!$B$4 = "Annual Max",MAX(OFFSET(Ndam!$C$10,12*$A17,4*(PlotControl!$C$6-1),12,1)),AVERAGE(OFFSET(Ndam!$C$10,12*$A17,4*(PlotControl!$C$6-1),12,1))) -> 132.84 | F17: =IF(PlotControl!$B$4 = "Annual Max",MAX(OFFSET(Ndam!$D$10,12*$A17,4*(PlotControl!$C$6-1),12,1)),AVERAGE(OFFSET(Ndam!$D$10,12*$A17,4*(PlotControl!$C$6-1),12,1))) -> 132.84 | G17: =IF(PlotControl!$B$4 = "Annual Max",MAX(OFFSET(Ndam!$E$10,12*$A17,4*(PlotControl!$C$6-1),12,1)),AVERAGE(OFFSET(Ndam!$E$10,12*$A17,4*(PlotControl!$C$6-1),12,1))) -> 132.84 | H17: =IF(PlotControl!$B$4 = "Annual Max",MAX(OFFSET(Ebeach!$C$10,12*$A17,4*(PlotControl!$C$6-1),12,1)),AVERAGE(OFFSET(Ebeach!$C$10,12*$A17,4*(PlotControl!$C$6-1),12,1))) -> 119.66 | I17: =IF(PlotControl!$B$4 = "Annual Max",MAX(OFFSET(Ebeach!$D$10,12*$A17,4*(PlotControl!$C$6-1),12,1)),AVERAGE(OFFSET(Ebeach!$D$10,12*$A17,4*(PlotControl!$C$6-1),12,1))) -> 145.23 | J17: =IF(PlotControl!$B$4 = "Annual Max",MAX(OFFSET(Ebeach!$E$10,12*$A17,4*(PlotControl!$C$6-1),12,1)),AVERAGE(OFFSET(Ebeach!$E$10,12*$A17,4*(PlotControl!$C$6-1),12,1))) -> 171.07 | K17: =IF(PlotControl!$B$4 = "Annual Max",MAX(OFFSET(Edam!$C$10,12*$A17,4*(PlotControl!$C$6-1),12,1)),AVERAGE(OFFSET(Edam!$C$10,12*$A17,4*(PlotControl!$C$6-1),12,1))) -> 4.1395 | L17: =IF(PlotControl!$B$4 = "Annual Max",MAX(OFFSET(Edam!$D$10,12*$A17,4*(PlotControl!$C$6-1),12,1)),AVERAGE(OFFSET(Edam!$D$10,12*$A17,4*(PlotControl!$C$6-1),12,1))) -> 4.1395 | M17: =IF(PlotControl!$B$4 = "Annual Max",MAX(OFFSET(Edam!$E$10,12*$A17,4*(PlotControl!$C$6-1),12,1)),AVERAGE(OFFSET(Edam!$E$10,12*$A17,4*(PlotControl!$C$6-1),12,1))) -> 4.1395 | N17: =IF(PlotControl!$B$4 = "Annual Max",MAX(OFFSET(Sbeach!$C$10,12*$A17,4*(PlotControl!$C$6-1),12,1)),AVERAGE(OFFSET(Sbeach!$C$10,12*$A17,4*(PlotControl!$C$6-1),12,1))) -> 589.17 | O17: =IF(PlotControl!$B$4 = "Annual Max",MAX(OFFSET(Sbeach!$D$10,12*$A17,4*(PlotControl!$C$6-1),12,1)),AVERAGE(OFFSET(Sbeach!$D$10,12*$A17,4*(PlotControl!$C$6-1),12,1))) -> 633.57 | P17: =IF(PlotControl!$B$4 = "Annual Max",MAX(OFFSET(Sbeach!$E$10,12*$A17,4*(PlotControl!$C$6-1),12,1)),AVERAGE(OFFSET(Sbeach!$E$10,12*$A17,4*(PlotControl!$C$6-1),12,1))) -> 686.58 | Q17: =IF(PlotControl!$B$4 = "Annual Max",MAX(OFFSET(Sdam!$C$10,12*$A17,4*(PlotControl!$C$6-1),12,1)),AVERAGE(OFFSET(Sdam!$C$10,12*$A17,4*(PlotControl!$C$6-1),12,1))) -> 5.0514 | R17: =IF(PlotControl!$B$4 = "Annual Max",MAX(OFFSET(Sdam!$D$10,12*$A17,4*(PlotControl!$C$6-1),12,1)),AVERAGE(OFFSET(Sdam!$D$10,12*$A17,4*(PlotControl!$C$6-1),12,1))) -> 5.0514 | S17: =IF(PlotControl!$B$4 = "Annual Max",MAX(OFFSET(Sdam!$E$10,12*$A17,4*(PlotControl!$C$6-1),12,1)),AVERAGE(OFFSET(Sdam!$E$10,12*$A17,4*(PlotControl!$C$6-1),12,1))) -> 5.0514 | T17: =IF(PlotControl!$B$4 = "Annual Max",MAX(OFFSET(Cbeach!$C$10,12*$A17,4*(PlotControl!$C$6-1),12,1)),AVERAGE(OFFSET(Cbeach!$C$10,12*$A17,4*(PlotControl!$C$6-1),12,1))) -> 0 | U17: =IF(PlotControl!$B$4 = "Annual Max",MAX(OFFSET(Cbeach!$D$10,12*$A17,4*(PlotControl!$C$6-1),12,1)),AVERAGE(OFFSET(Cbeach!$D$10,12*$A17,4*(PlotControl!$C$6-1),12,1))) -> 0 | V17: =IF(PlotControl!$B$4 = "Annual Max",MAX(OFFSET(Cbeach!$E$10,12*$A17,4*(PlotControl!$C$6-1),12,1)),AVERAGE(OFFSET(Cbeach!$E$10,12*$A17,4*(PlotControl!$C$6-1),12,1))) -> 0
A18: 13 | B18: =IF(PlotControl!$B$4 = "Annual Max",MAX(OFFSET(Nbeach!$C$10,12*$A18,4*(PlotControl!$C$6-1),12,1)),AVERAGE(OFFSET(Nbeach!$C$10,12*$A18,4*(PlotControl!$C$6-1),12,1))) -> 2186.5 | C18: =IF(PlotControl!$B$4 = "Annual Max",MAX(OFFSET(Nbeach!$D$10,12*$A18,4*(PlotControl!$C$6-1),12,1)),AVERAGE(OFFSET(Nbeach!$D$10,12*$A18,4*(PlotControl!$C$6-1),12,1))) -> 2268.5 | D18: =IF(PlotControl!$B$4 = "Annual Max",MAX(OFFSET(Nbeach!$E$10,12*$A18,4*(PlotControl!$C$6-1),12,1)),AVERAGE(OFFSET(Nbeach!$E$10,12*$A18,4*(PlotControl!$C$6-1),12,1))) -> 2353.8 | E18: =IF(PlotControl!$B$4 = "Annual Max",MAX(OFFSET(Ndam!$C$10,12*$A18,4*(PlotControl!$C$6-1),12,1)),AVERAGE(OFFSET(Ndam!$C$10,12*$A18,4*(PlotControl!$C$6-1),12,1))) -> 139.55 | F18: =IF(PlotControl!$B$4 = "Annual Max",MAX(OFFSET(Ndam!$D$10,12*$A18,4*(PlotControl!$C$6-1),12,1)),AVERAGE(OFFSET(Ndam!$D$10,12*$A18,4*(PlotControl!$C$6-1),12,1))) -> 139.55 | G18: =IF(PlotControl!$B$4 = "Annual Max",MAX(OFFSET(Ndam!$E$10,12*$A18,4*(PlotControl!$C$6-1),12,1)),AVERAGE(OFFSET(Ndam!$E$10,12*$A18,4*(PlotControl!$C$6-1),12,1))) -> 139.55 | H18: =IF(PlotControl!$B$4 = "Annual Max",MAX(OFFSET(Ebeach!$C$10,12*$A18,4*(PlotControl!$C$6-1),12,1)),AVERAGE(OFFSET(Ebeach!$C$10,12*$A18,4*(PlotControl!$C$6-1),12,1))) -> 145.81 | I18: =IF(PlotControl!$B$4 = "Annual Max",MAX(OFFSET(Ebeach!$D$10,12*$A18,4*(PlotControl!$C$6-1),12,1)),AVERAGE(OFFSET(Ebeach!$D$10,12*$A18,4*(PlotControl!$C$6-1),12,1))) -> 171.72 | J18: =IF(PlotControl!$B$4 = "Annual Max",MAX(OFFSET(Ebeach!$E$10,12*$A18,4*(PlotControl!$C$6-1),12,1)),AVERAGE(OFFSET(Ebeach!$E$10,12*$A18,4*(PlotControl!$C$6-1),12,1))) -> 201.69 | K18: =IF(PlotControl!$B$4 = "Annual Max",MAX(OFFSET(Edam!$C$10,12*$A18,4*(PlotControl!$C$6-1),12,1)),AVERAGE(OFFSET(Edam!$C$10,12*$A18,4*(PlotControl!$C$6-1),12,1))) -> 4.9054 | L18: =IF(PlotControl!$B$4 = "Annual Max",MAX(OFFSET(Edam!$D$10,12*$A18,4*(PlotControl!$C$6-1),12,1)),AVERAGE(OFFSET(Edam!$D$10,12*$A18,4*(PlotControl!$C$6-1),12,1))) -> 4.9054 | M18: =IF(PlotControl!$B$4 = "Annual Max",MAX(OFFSET(Edam!$E$10,12*$A18,4*(PlotControl!$C$6-1),12,1)),AVERAGE(OFFSET(Edam!$E$10,12*$A18,4*(PlotControl!$C$6-1),12,1))) -> 4.9054 | N18: =IF(PlotControl!$B$4 = "Annual Max",MAX(OFFSET(Sbeach!$C$10,12*$A18,4*(PlotControl!$C$6-1),12,1)),AVERAGE(OFFSET(Sbeach!$C$10,12*$A18,4*(PlotControl!$C$6-1),12,1))) -> 683.74 | O18: =IF(PlotControl!$B$4 = "Annual Max",MAX(OFFSET(Sbeach!$D$10,12*$A18,4*(PlotControl!$C$6-1),12,1)),AVERAGE(OFFSET(Sbeach!$D$10,12*$A18,4*(PlotControl!$C$6-1),12,1))) -> 732.99 | P18: =IF(PlotControl!$B$4 = "Annual Max",MAX(OFFSET(Sbeach!$E$10,12*$A18,4*(PlotControl!$C$6-1),12,1)),AVERAGE(OFFSET(Sbeach!$E$10,12*$A18,4*(PlotControl!$C$6-1),12,1))) -> 787.58 | Q18: =IF(PlotControl!$B$4 = "Annual Max",MAX(OFFSET(Sdam!$C$10,12*$A18,4*(PlotControl!$C$6-1),12,1)),AVERAGE(OFFSET(Sdam!$C$10,12*$A18,4*(PlotControl!$C$6-1),12,1))) -> 6.3838 | R18: =IF(PlotControl!$B$4 = "Annual Max",MAX(OFFSET(Sdam!$D$10,12*$A18,4*(PlotControl!$C$6-1),12,1)),AVERAGE(OFFSET(Sdam!$D$10,12*$A18,4*(PlotControl!$C$6-1),12,1))) -> 6.3838 | S18: =IF(PlotControl!$B$4 = "Annual Max",MAX(OFFSET(Sdam!$E$10,12*$A18,4*(PlotControl!$C$6-1),12,1)),AVERAGE(OFFSET(Sdam!$E$10,12*$A18,4*(PlotControl!$C$6-1),12,1))) -> 6.3838 | T18: =IF(PlotControl!$B$4 = "Annual Max",MAX(OFFSET(Cbeach!$C$10,12*$A18,4*(PlotControl!$C$6-1),12,1)),AVERAGE(OFFSET(Cbeach!$C$10,12*$A18,4*(PlotControl!$C$6-1),12,1))) -> 0 | U18: =IF(PlotControl!$B$4 = "Annual Max",MAX(OFFSET(Cbeach!$D$10,12*$A18,4*(PlotControl!$C$6-1),12,1)),AVERAGE(OFFSET(Cbeach!$D$10,12*$A18,4*(PlotControl!$C$6-1),12,1))) -> 0 | V18: =IF(PlotControl!$B$4 = "Annual Max",MAX(OFFSET(Cbeach!$E$10,12*$A18,4*(PlotControl!$C$6-1),12,1)),AVERAGE(OFFSET(Cbeach!$E$10,12*$A18,4*(PlotControl!$C$6-1),12,1))) -> 0
A19: 14 | B19: =IF(PlotControl!$B$4 = "Annual Max",MAX(OFFSET(Nbeach!$C$10,12*$A19,4*(PlotControl!$C$6-1),12,1)),AVERAGE(OFFSET(Nbeach!$C$10,12*$A19,4*(PlotControl!$C$6-1),12,1))) -> 2267.1 | C19: =IF(PlotControl!$B$4 = "Annual Max",MAX(OFFSET(Nbeach!$D$10,12*$A19,4*(PlotControl!$C$6-1),12,1)),AVERAGE(OFFSET(Nbeach!$D$10,12*$A19,4*(PlotControl!$C$6-1),12,1))) -> 2355.2 | D19: =IF(PlotControl!$B$4 = "Annual Max",MAX(OFFSET(Nbeach!$E$10,12*$A19,4*(PlotControl!$C$6-1),12,1)),AVERAGE(OFFSET(Nbeach!$E$10,12*$A19,4*(PlotControl!$C$6-1),12,1))) -> 2437.6 | E19: =IF(PlotControl!$B$4 = "Annual Max",MAX(OFFSET(Ndam!$C$10,12*$A19,4*(PlotControl!$C$6-1),12,1)),AVERAGE(OFFSET(Ndam!$C$10,12*$A19,4*(PlotControl!$C$6-1),12,1))) -> 147.22 | F19: =IF(PlotControl!$B$4 = "Annual Max",MAX(OFFSET(Ndam!$D$10,12*$A19,4*(PlotControl!$C$6-1),12,1)),AVERAGE(OFFSET(Ndam!$D$10,12*$A19,4*(PlotControl!$C$6-1),12,1))) -> 147.22 | G19: =IF(PlotControl!$B$4 = "Annual Max",MAX(OFFSET(Ndam!$E$10,12*$A19,4*(PlotControl!$C$6-1),12,1)),AVERAGE(OFFSET(Ndam!$E$10,12*$A19,4*(PlotControl!$C$6-1),12,1))) -> 147.22 | H19: =IF(PlotControl!$B$4 = "Annual Max",MAX(OFFSET(Ebeach!$C$10,12*$A19,4*(PlotControl!$C$6-1),12,1)),AVERAGE(OFFSET(Ebeach!$C$10,12*$A19,4*(PlotControl!$C$6-1),12,1))) -> 174.14 | I19: =IF(PlotControl!$B$4 = "Annual Max",MAX(OFFSET(Ebeach!$D$10,12*$A19,4*(PlotControl!$C$6-1),12,1)),AVERAGE(OFFSET(Ebeach!$D$10,12*$A19,4*(PlotControl!$C$6-1),12,1))) -> 201.24 | J19: =IF(PlotControl!$B$4 = "Annual Max",MAX(OFFSET(Ebeach!$E$10,12*$A19,4*(PlotControl!$C$6-1),12,1)),AVERAGE(OFFSET(Ebeach!$E$10,12*$A19,4*(PlotControl!$C$6-1),12,1))) -> 231.98 | K19: =IF(PlotControl!$B$4 = "Annual Max",MAX(OFFSET(Edam!$C$10,12*$A19,4*(PlotControl!$C$6-1),12,1)),AVERAGE(OFFSET(Edam!$C$10,12*$A19,4*(PlotControl!$C$6-1),12,1))) -> 5.8398 | L19: =IF(PlotControl!$B$4 = "Annual Max",MAX(OFFSET(Edam!$D$10,12*$A19,4*(PlotControl!$C$6-1),12,1)),AVERAGE(OFFSET(Edam!$D$10,12*$A19,4*(PlotControl!$C$6-1),12,1))) -> 5.8398 | M19: =IF(PlotControl!$B$4 = "Annual Max",MAX(OFFSET(Edam!$E$10,12*$A19,4*(PlotControl!$C$6-1),12,1)),AVERAGE(OFFSET(Edam!$E$10,12*$A19,4*(PlotControl!$C$6-1),12,1))) -> 5.8398 | N19: =IF(PlotControl!$B$4 = "Annual Max",MAX(OFFSET(Sbeach!$C$10,12*$A19,4*(PlotControl!$C$6-1),12,1)),AVERAGE(OFFSET(Sbeach!$C$10,12*$A19,4*(PlotControl!$C$6-1),12,1))) -> 780.05 | O19: =IF(PlotControl!$B$4 = "Annual Max",MAX(OFFSET(Sbeach!$D$10,12*$A19,4*(PlotControl!$C$6-1),12,1)),AVERAGE(OFFSET(Sbeach!$D$10,12*$A19,4*(PlotControl!$C$6-1),12,1))) -> 834.78 | P19: =IF(PlotControl!$B$4 = "Annual Max",MAX(OFFSET(Sbeach!$E$10,12*$A19,4*(PlotControl!$C$6-1),12,1)),AVERAGE(OFFSET(Sbeach!$E$10,12*$A19,4*(PlotControl!$C$6-1),12,1))) -> 891.7 | Q19: =IF(PlotControl!$B$4 = "Annual Max",MAX(OFFSET(Sdam!$C$10,12*$A19,4*(PlotControl!$C$6-1),12,1)),AVERAGE(OFFSET(Sdam!$C$10,12*$A19,4*(PlotControl!$C$6-1),12,1))) -> 8.1453 | R19: =IF(PlotControl!$B$4 = "Annual Max",MAX(OFFSET(Sdam!$D$10,12*$A19,4*(PlotControl!$C$6-1),12,1)),AVERAGE(OFFSET(Sdam!$D$10,12*$A19,4*(PlotControl!$C$6-1),12,1))) -> 8.1453 | S19: =IF(PlotControl!$B$4 = "Annual Max",MAX(OFFSET(Sdam!$E$10,12*$A19,4*(PlotControl!$C$6-1),12,1)),AVERAGE(OFFSET(Sdam!$E$10,12*$A19,4*(PlotControl!$C$6-1),12,1))) -> 8.1453 | T19: =IF(PlotControl!$B$4 = "Annual Max",MAX(OFFSET(Cbeach!$C$10,12*$A19,4*(PlotControl!$C$6-1),12,1)),AVERAGE(OFFSET(Cbeach!$C$10,12*$A19,4*(PlotControl!$C$6-1),12,1))) -> 0 | U19: =IF(PlotControl!$B$4 = "Annual Max",MAX(OFFSET(Cbeach!$D$10,12*$A19,4*(PlotControl!$C$6-1),12,1)),AVERAGE(OFFSET(Cbeach!$D$10,12*$A19,4*(PlotControl!$C$6-1),12,1))) -> 0 | V19: =IF(PlotControl!$B$4 = "Annual Max",MAX(OFFSET(Cbeach!$E$10,12*$A19,4*(PlotControl!$C$6-1),12,1)),AVERAGE(OFFSET(Cbeach!$E$10,12*$A19,4*(PlotControl!$C$6-1),12,1))) -> 0
A20: 15 | B20: =IF(PlotControl!$B$4 = "Annual Max",MAX(OFFSET(Nbeach!$C$10,12*$A20,4*(PlotControl!$C$6-1),12,1)),AVERAGE(OFFSET(Nbeach!$C$10,12*$A20,4*(PlotControl!$C$6-1),12,1))) -> 2349.3 | C20: =IF(PlotControl!$B$4 = "Annual Max",MAX(OFFSET(Nbeach!$D$10,12*$A20,4*(PlotControl!$C$6-1),12,1)),AVERAGE(OFFSET(Nbeach!$D$10,12*$A20,4*(PlotControl!$C$6-1),12,1))) -> 2438.6 | D20: =IF(PlotControl!$B$4 = "Annual Max",MAX(OFFSET(Nbeach!$E$10,12*$A20,4*(PlotControl!$C$6-1),12,1)),AVERAGE(OFFSET(Nbeach!$E$10,12*$A20,4*(PlotControl!$C$6-1),12,1))) -> 2527.1 | E20: =IF(PlotControl!$B$4 = "Annual Max",MAX(OFFSET(Ndam!$C$10,12*$A20,4*(PlotControl!$C$6-1),12,1)),AVERAGE(OFFSET(Ndam!$C$10,12*$A20,4*(PlotControl!$C$6-1),12,1))) -> 154.81 | F20: =IF(PlotControl!$B$4 = "Annual Max",MAX(OFFSET(Ndam!$D$10,12*$A20,4*(PlotControl!$C$6-1),12,1)),AVERAGE(OFFSET(Ndam!$D$10,12*$A20,4*(PlotControl!$C$6-1),12,1))) -> 154.81 | G20: =IF(PlotControl!$B$4 = "Annual Max",MAX(OFFSET(Ndam!$E$10,12*$A20,4*(PlotControl!$C$6-1),12,1)),AVERAGE(OFFSET(Ndam!$E$10,12*$A20,4*(PlotControl!$C$6-1),12,1))) -> 154.81 | H20: =IF(PlotControl!$B$4 = "Annual Max",MAX(OFFSET(Ebeach!$C$10,12*$A20,4*(PlotControl!$C$6-1),12,1)),AVERAGE(OFFSET(Ebeach!$C$10,12*$A20,4*(PlotControl!$C$6-1),12,1))) -> 200.6 | I20: =IF(PlotControl!$B$4 = "Annual Max",MAX(OFFSET(Ebeach!$D$10,12*$A20,4*(PlotControl!$C$6-1),12,1)),AVERAGE(OFFSET(Ebeach!$D$10,12*$A20,4*(PlotControl!$C$6-1),12,1))) -> 232.37 | J20: =IF(PlotControl!$B$4 = "Annual Max",MAX(OFFSET(Ebeach!$E$10,12*$A20,4*(PlotControl!$C$6-1),12,1)),AVERAGE(OFFSET(Ebeach!$E$10,12*$A20,4*(PlotControl!$C$6-1),12,1))) -> 265.5 | K20: =IF(PlotControl!$B$4 = "Annual Max",MAX(OFFSET(Edam!$C$10,12*$A20,4*(PlotControl!$C$6-1),12,1)),AVERAGE(OFFSET(Edam!$C$10,12*$A20,4*(PlotControl!$C$6-1),12,1))) -> 6.8152 | L20: =IF(PlotControl!$B$4 = "Annual Max",MAX(OFFSET(Edam!$D$10,12*$A20,4*(PlotControl!$C$6-1),12,1)),AVERAGE(OFFSET(Edam!$D$10,12*$A20,4*(PlotControl!$C$6-1),12,1))) -> 6.8152 | M20: =IF(PlotControl!$B$4 = "Annual Max",MAX(OFFSET(Edam!$E$10,12*$A20,4*(PlotControl!$C$6-1),12,1)),AVERAGE(OFFSET(Edam!$E$10,12*$A20,4*(PlotControl!$C$6-1),12,1))) -> 6.8152 | N20: =IF(PlotControl!$B$4 = "Annual Max",MAX(OFFSET(Sbeach!$C$10,12*$A20,4*(PlotControl!$C$6-1),12,1)),AVERAGE(OFFSET(Sbeach!$C$10,12*$A20,4*(PlotControl!$C$6-1),12,1))) -> 877.49 | O20: =IF(PlotControl!$B$4 = "Annual Max",MAX(OFFSET(Sbeach!$D$10,12*$A20,4*(PlotControl!$C$6-1),12,1)),AVERAGE(OFFSET(Sbeach!$D$10,12*$A20,4*(PlotControl!$C$6-1),12,1))) -> 935.49 | P20: =IF(PlotControl!$B$4 = "Annual Max",MAX(OFFSET(Sbeach!$E$10,12*$A20,4*(PlotControl!$C$6-1),12,1)),AVERAGE(OFFSET(Sbeach!$E$10,12*$A20,4*(PlotControl!$C$6-1),12,1))) -> 997.78 | Q20: =IF(PlotControl!$B$4 = "Annual Max",MAX(OFFSET(Sdam!$C$10,12*$A20,4*(PlotControl!$C$6-1),12,1)),AVERAGE(OFFSET(Sdam!$C$10,12*$A20,4*(PlotControl!$C$6-1),12,1))) -> 10.104 | R20: =IF(PlotControl!$B$4 = "Annual Max",MAX(OFFSET(Sdam!$D$10,12*$A20,4*(PlotControl!$C$6-1),12,1)),AVERAGE(OFFSET(Sdam!$D$10,12*$A20,4*(PlotControl!$C$6-1),12,1))) -> 10.104 | S20: =IF(PlotControl!$B$4 = "Annual Max",MAX(OFFSET(Sdam!$E$10,12*$A20,4*(PlotControl!$C$6-1),12,1)),AVERAGE(OFFSET(Sdam!$E$10,12*$A20,4*(PlotControl!$C$6-1),12,1))) -> 10.104 | T20: =IF(PlotControl!$B$4 = "Annual Max",MAX(OFFSET(Cbeach!$C$10,12*$A20,4*(PlotControl!$C$6-1),12,1)),AVERAGE(OFFSET(Cbeach!$C$10,12*$A20,4*(PlotControl!$C$6-1),12,1))) -> 0 | U20: =IF(PlotControl!$B$4 = "Annual Max",MAX(OFFSET(Cbeach!$D$10,12*$A20,4*(PlotControl!$C$6-1),12,1)),AVERAGE(OFFSET(Cbeach!$D$10,12*$A20,4*(PlotControl!$C$6-1),12,1))) -> 0 | V20: =IF(PlotControl!$B$4 = "Annual Max",MAX(OFFSET(Cbeach!$E$10,12*$A20,4*(PlotControl!$C$6-1),12,1)),AVERAGE(OFFSET(Cbeach!$E$10,12*$A20,4*(PlotControl!$C$6-1),12,1))) -> 0
A21: 16 | B21: =IF(PlotControl!$B$4 = "Annual Max",MAX(OFFSET(Nbeach!$C$10,12*$A21,4*(PlotControl!$C$6-1),12,1)),AVERAGE(OFFSET(Nbeach!$C$10,12*$A21,4*(PlotControl!$C$6-1),12,1))) -> 2427.2 | C21: =IF(PlotControl!$B$4 = "Annual Max",MAX(OFFSET(Nbeach!$D$10,12*$A21,4*(PlotControl!$C$6-1),12,1)),AVERAGE(OFFSET(Nbeach!$D$10,12*$A21,4*(PlotControl!$C$6-1),12,1))) -> 2525.4 | D21: =IF(PlotControl!$B$4 = "Annual Max",MAX(OFFSET(Nbeach!$E$10,12*$A21,4*(PlotControl!$C$6-1),12,1)),AVERAGE(OFFSET(Nbeach!$E$10,12*$A21,4*(PlotControl!$C$6-1),12,1))) -> 2617.9 | E21: =IF(PlotControl!$B$4 = "Annual Max",MAX(OFFSET(Ndam!$C$10,12*$A21,4*(PlotControl!$C$6-1),12,1)),AVERAGE(OFFSET(Ndam!$C$10,12*$A21,4*(PlotControl!$C$6-1),12,1))) -> 162.2 | F21: =IF(PlotControl!$B$4 = "Annual Max",MAX(OFFSET(Ndam!$D$10,12*$A21,4*(PlotControl!$C$6-1),12,1)),AVERAGE(OFFSET(Ndam!$D$10,12*$A21,4*(PlotControl!$C$6-1),12,1))) -> 162.2 | G21: =IF(PlotControl!$B$4 = "Annual Max",MAX(OFFSET(Ndam!$E$10,12*$A21,4*(PlotControl!$C$6-1),12,1)),AVERAGE(OFFSET(Ndam!$E$10,12*$A21,4*(PlotControl!$C$6-1),12,1))) -> 162.2 | H21: =IF(PlotControl!$B$4 = "Annual Max",MAX(OFFSET(Ebeach!$C$10,12*$A21,4*(PlotControl!$C$6-1),12,1)),AVERAGE(OFFSET(Ebeach!$C$10,12*$A21,4*(PlotControl!$C$6-1),12,1))) -> 232.65 | I21: =IF(PlotControl!$B$4 = "Annual Max",MAX(OFFSET(Ebeach!$D$10,12*$A21,4*(PlotControl!$C$6-1),12,1)),AVERAGE(OFFSET(Ebeach!$D$10,12*$A21,4*(PlotControl!$C$6-1),12,1))) -> 265.91 | J21: =IF(PlotControl!$B$4 = "Annual Max",MAX(OFFSET(Ebeach!$E$10,12*$A21,4*(PlotControl!$C$6-1),12,1)),AVERAGE(OFFSET(Ebeach!$E$10,12*$A21,4*(PlotControl!$C$6-1),12,1))) -> 299.6 | K21: =IF(PlotControl!$B$4 = "Annual Max",MAX(OFFSET(Edam!$C$10,12*$A21,4*(PlotControl!$C$6-1),12,1)),AVERAGE(OFFSET(Edam!$C$10,12*$A21,4*(PlotControl!$C$6-1),12,1))) -> 7.8165 | L21: =IF(PlotControl!$B$4 = "Annual Max",MAX(OFFSET(Edam!$D$10,12*$A21,4*(PlotControl!$C$6-1),12,1)),AVERAGE(OFFSET(Edam!$D$10,12*$A21,4*(PlotControl!$C$6-1),12,1))) -> 7.8165 | M21: =IF(PlotControl!$B$4 = "Annual Max",MAX(OFFSET(Edam!$E$10,12*$A21,4*(PlotControl!$C$6-1),12,1)),AVERAGE(OFFSET(Edam!$E$10,12*$A21,4*(PlotControl!$C$6-1),12,1))) -> 7.8166 | N21: =IF(PlotControl!$B$4 = "Annual Max",MAX(OFFSET(Sbeach!$C$10,12*$A21,4*(PlotControl!$C$6-1),12,1)),AVERAGE(OFFSET(Sbeach!$C$10,12*$A21,4*(PlotControl!$C$6-1),12,1))) -> 974.2 | O21: =IF(PlotControl!$B$4 = "Annual Max",MAX(OFFSET(Sbeach!$D$10,12*$A21,4*(PlotControl!$C$6-1),12,1)),AVERAGE(OFFSET(Sbeach!$D$10,12*$A21,4*(PlotControl!$C$6-1),12,1))) -> 1038.9 | P21: =IF(PlotControl!$B$4 = "Annual Max",MAX(OFFSET(Sbeach!$E$10,12*$A21,4*(PlotControl!$C$6-1),12,1)),AVERAGE(OFFSET(Sbeach!$E$10,12*$A21,4*(PlotControl!$C$6-1),12,1))) -> 1106 | Q21: =IF(PlotControl!$B$4 = "Annual Max",MAX(OFFSET(Sdam!$C$10,12*$A21,4*(PlotControl!$C$6-1),12,1)),AVERAGE(OFFSET(Sdam!$C$10,12*$A21,4*(PlotControl!$C$6-1),12,1))) -> 12.22 | R21: =IF(PlotControl!$B$4 = "Annual Max",MAX(OFFSET(Sdam!$D$10,12*$A21,4*(PlotControl!$C$6-1),12,1)),AVERAGE(OFFSET(Sdam!$D$10,12*$A21,4*(PlotControl!$C$6-1),12,1))) -> 12.22 | S21: =IF(PlotControl!$B$4 = "Annual Max",MAX(OFFSET(Sdam!$E$10,12*$A21,4*(PlotControl!$C$6-1),12,1)),AVERAGE(OFFSET(Sdam!$E$10,12*$A21,4*(PlotControl!$C$6-1),12,1))) -> 12.22 | T21: =IF(PlotControl!$B$4 = "Annual Max",MAX(OFFSET(Cbeach!$C$10,12*$A21,4*(PlotControl!$C$6-1),12,1)),AVERAGE(OFFSET(Cbeach!$C$10,12*$A21,4*(PlotControl!$C$6-1),12,1))) -> 0 | U21: =IF(PlotControl!$B$4 = "Annual Max",MAX(OFFSET(Cbeach!$D$10,12*$A21,4*(PlotControl!$C$6-1),12,1)),AVERAGE(OFFSET(Cbeach!$D$10,12*$A21,4*(PlotControl!$C$6-1),12,1))) -> 0 | V21: =IF(PlotControl!$B$4 = "Annual Max",MAX(OFFSET(Cbeach!$E$10,12*$A21,4*(PlotControl!$C$6-1),12,1)),AVERAGE(OFFSET(Cbeach!$E$10,12*$A21,4*(PlotControl!$C$6-1),12,1))) -> 0
A22: 17 | B22: =IF(PlotControl!$B$4 = "Annual Max",MAX(OFFSET(Nbeach!$C$10,12*$A22,4*(PlotControl!$C$6-1),12,1)),AVERAGE(OFFSET(Nbeach!$C$10,12*$A22,4*(PlotControl!$C$6-1),12,1))) -> 2511.2 | C22: =IF(PlotControl!$B$4 = "Annual Max",MAX(OFFSET(Nbeach!$D$10,12*$A22,4*(PlotControl!$C$6-1),12,1)),AVERAGE(OFFSET(Nbeach!$D$10,12*$A22,4*(PlotControl!$C$6-1),12,1))) -> 2610.5 | D22: =IF(PlotControl!$B$4 = "Annual Max",MAX(OFFSET(Nbeach!$E$10,12*$A22,4*(PlotControl!$C$6-1),12,1)),AVERAGE(OFFSET(Nbeach!$E$10,12*$A22,4*(PlotControl!$C$6-1),12,1))) -> 2707 | E22: =IF(PlotControl!$B$4 = "Annual Max",MAX(OFFSET(Ndam!$C$10,12*$A22,4*(PlotControl!$C$6-1),12,1)),AVERAGE(OFFSET(Ndam!$C$10,12*$A22,4*(PlotControl!$C$6-1),12,1))) -> 169.44 | F22: =IF(PlotControl!$B$4 = "Annual Max",MAX(OFFSET(Ndam!$D$10,12*$A22,4*(PlotControl!$C$6-1),12,1)),AVERAGE(OFFSET(Ndam!$D$10,12*$A22,4*(PlotControl!$C$6-1),12,1))) -> 169.44 | G22: =IF(PlotControl!$B$4 = "Annual Max",MAX(OFFSET(Ndam!$E$10,12*$A22,4*(PlotControl!$C$6-1),12,1)),AVERAGE(OFFSET(Ndam!$E$10,12*$A22,4*(PlotControl!$C$6-1),12,1))) -> 169.44 | H22: =IF(PlotControl!$B$4 = "Annual Max",MAX(OFFSET(Ebeach!$C$10,12*$A22,4*(PlotControl!$C$6-1),12,1)),AVERAGE(OFFSET(Ebeach!$C$10,12*$A22,4*(PlotControl!$C$6-1),12,1))) -> 267.05 | I22: =IF(PlotControl!$B$4 = "Annual Max",MAX(OFFSET(Ebeach!$D$10,12*$A22,4*(PlotControl!$C$6-1),12,1)),AVERAGE(OFFSET(Ebeach!$D$10,12*$A22,4*(PlotControl!$C$6-1),12,1))) -> 300.79 | J22: =IF(PlotControl!$B$4 = "Annual Max",MAX(OFFSET(Ebeach!$E$10,12*$A22,4*(PlotControl!$C$6-1),12,1)),AVERAGE(OFFSET(Ebeach!$E$10,12*$A22,4*(PlotControl!$C$6-1),12,1))) -> 335.45 | K22: =IF(PlotControl!$B$4 = "Annual Max",MAX(OFFSET(Edam!$C$10,12*$A22,4*(PlotControl!$C$6-1),12,1)),AVERAGE(OFFSET(Edam!$C$10,12*$A22,4*(PlotControl!$C$6-1),12,1))) -> 8.8413 | L22: =IF(PlotControl!$B$4 = "Annual Max",MAX(OFFSET(Edam!$D$10,12*$A22,4*(PlotControl!$C$6-1),12,1)),AVERAGE(OFFSET(Edam!$D$10,12*$A22,4*(PlotControl!$C$6-1),12,1))) -> 8.8413 | M22: =IF(PlotControl!$B$4 = "Annual Max",MAX(OFFSET(Edam!$E$10,12*$A22,4*(PlotControl!$C$6-1),12,1)),AVERAGE(OFFSET(Edam!$E$10,12*$A22,4*(PlotControl!$C$6-1),12,1))) -> 8.8413 | N22: =IF(PlotControl!$B$4 = "Annual Max",MAX(OFFSET(Sbeach!$C$10,12*$A22,4*(PlotControl!$C$6-1),12,1)),AVERAGE(OFFSET(Sbeach!$C$10,12*$A22,4*(PlotControl!$C$6-1),12,1))) -> 1076 | O22: =IF(PlotControl!$B$4 = "Annual Max",MAX(OFFSET(Sbeach!$D$10,12*$A22,4*(PlotControl!$C$6-1),12,1)),AVERAGE(OFFSET(Sbeach!$D$10,12*$A22,4*(PlotControl!$C$6-1),12,1))) -> 1138.9 | P22: =IF(PlotControl!$B$4 = "Annual Max",MAX(OFFSET(Sbeach!$E$10,12*$A22,4*(PlotControl!$C$6-1),12,1)),AVERAGE(OFFSET(Sbeach!$E$10,12*$A22,4*(PlotControl!$C$6-1),12,1))) -> 1209.4 | Q22: =IF(PlotControl!$B$4 = "Annual Max",MAX(OFFSET(Sdam!$C$10,12*$A22,4*(PlotControl!$C$6-1),12,1)),AVERAGE(OFFSET(Sdam!$C$10,12*$A22,4*(PlotControl!$C$6-1),12,1))) -> 14.479 | R22: =IF(PlotControl!$B$4 = "Annual Max",MAX(OFFSET(Sdam!$D$10,12*$A22,4*(PlotControl!$C$6-1),12,1)),AVERAGE(OFFSET(Sdam!$D$10,12*$A22,4*(PlotControl!$C$6-1),12,1))) -> 14.479 | S22: =IF(PlotControl!$B$4 = "Annual Max",MAX(OFFSET(Sdam!$E$10,12*$A22,4*(PlotControl!$C$6-1),12,1)),AVERAGE(OFFSET(Sdam!$E$10,12*$A22,4*(PlotControl!$C$6-1),12,1))) -> 14.479 | T22: =IF(PlotControl!$B$4 = "Annual Max",MAX(OFFSET(Cbeach!$C$10,12*$A22,4*(PlotControl!$C$6-1),12,1)),AVERAGE(OFFSET(Cbeach!$C$10,12*$A22,4*(PlotControl!$C$6-1),12,1))) -> 0 | U22: =IF(PlotControl!$B$4 = "Annual Max",MAX(OFFSET(Cbeach!$D$10,12*$A22,4*(PlotControl!$C$6-1),12,1)),AVERAGE(OFFSET(Cbeach!$D$10,12*$A22,4*(PlotControl!$C$6-1),12,1))) -> 0 | V22: =IF(PlotControl!$B$4 = "Annual Max",MAX(OFFSET(Cbeach!$E$10,12*$A22,4*(PlotControl!$C$6-1),12,1)),AVERAGE(OFFSET(Cbeach!$E$10,12*$A22,4*(PlotControl!$C$6-1),12,1))) -> 0
A23: 18 | B23: =IF(PlotControl!$B$4 = "Annual Max",MAX(OFFSET(Nbeach!$C$10,12*$A23,4*(PlotControl!$C$6-1),12,1)),AVERAGE(OFFSET(Nbeach!$C$10,12*$A23,4*(PlotControl!$C$6-1),12,1))) -> 2578.9 | C23: =IF(PlotControl!$B$4 = "Annual Max",MAX(OFFSET(Nbeach!$D$10,12*$A23,4*(PlotControl!$C$6-1),12,1)),AVERAGE(OFFSET(Nbeach!$D$10,12*$A23,4*(PlotControl!$C$6-1),12,1))) -> 2678 | D23: =IF(PlotControl!$B$4 = "Annual Max",MAX(OFFSET(Nbeach!$E$10,12*$A23,4*(PlotControl!$C$6-1),12,1)),AVERAGE(OFFSET(Nbeach!$E$10,12*$A23,4*(PlotControl!$C$6-1),12,1))) -> 2768.1 | E23: =IF(PlotControl!$B$4 = "Annual Max",MAX(OFFSET(Ndam!$C$10,12*$A23,4*(PlotControl!$C$6-1),12,1)),AVERAGE(OFFSET(Ndam!$C$10,12*$A23,4*(PlotControl!$C$6-1),12,1))) -> 176.25 | F23: =IF(PlotControl!$B$4 = "Annual Max",MAX(OFFSET(Ndam!$D$10,12*$A23,4*(PlotControl!$C$6-1),12,1)),AVERAGE(OFFSET(Ndam!$D$10,12*$A23,4*(PlotControl!$C$6-1),12,1))) -> 176.25 | G23: =IF(PlotControl!$B$4 = "Annual Max",MAX(OFFSET(Ndam!$E$10,12*$A23,4*(PlotControl!$C$6-1),12,1)),AVERAGE(OFFSET(Ndam!$E$10,12*$A23,4*(PlotControl!$C$6-1),12,1))) -> 176.25 | H23: =IF(PlotControl!$B$4 = "Annual Max",MAX(OFFSET(Ebeach!$C$10,12*$A23,4*(PlotControl!$C$6-1),12,1)),AVERAGE(OFFSET(Ebeach!$C$10,12*$A23,4*(PlotControl!$C$6-1),12,1))) -> 332.13 | I23: =IF(PlotControl!$B$4 = "Annual Max",MAX(OFFSET(Ebeach!$D$10,12*$A23,4*(PlotControl!$C$6-1),12,1)),AVERAGE(OFFSET(Ebeach!$D$10,12*$A23,4*(PlotControl!$C$6-1),12,1))) -> 367.86 | J23: =IF(PlotControl!$B$4 = "Annual Max",MAX(OFFSET(Ebeach!$E$10,12*$A23,4*(PlotControl!$C$6-1),12,1)),AVERAGE(OFFSET(Ebeach!$E$10,12*$A23,4*(PlotControl!$C$6-1),12,1))) -> 405.14 | K23: =IF(PlotControl!$B$4 = "Annual Max",MAX(OFFSET(Edam!$C$10,12*$A23,4*(PlotControl!$C$6-1),12,1)),AVERAGE(OFFSET(Edam!$C$10,12*$A23,4*(PlotControl!$C$6-1),12,1))) -> 9.8698 | L23: =IF(PlotControl!$B$4 = "Annual Max",MAX(OFFSET(Edam!$D$10,12*$A23,4*(PlotControl!$C$6-1),12,1)),AVERAGE(OFFSET(Edam!$D$10,12*$A23,4*(PlotControl!$C$6-1),12,1))) -> 9.8698 | M23: =IF(PlotControl!$B$4 = "Annual Max",MAX(OFFSET(Edam!$E$10,12*$A23,4*(PlotControl!$C$6-1),12,1)),AVERAGE(OFFSET(Edam!$E$10,12*$A23,4*(PlotControl!$C$6-1),12,1))) -> 9.8698 | N23: =IF(PlotControl!$B$4 = "Annual Max",MAX(OFFSET(Sbeach!$C$10,12*$A23,4*(PlotControl!$C$6-1),12,1)),AVERAGE(OFFSET(Sbeach!$C$10,12*$A23,4*(PlotControl!$C$6-1),12,1))) -> 1139.1 | O23: =IF(PlotControl!$B$4 = "Annual Max",MAX(OFFSET(Sbeach!$D$10,12*$A23,4*(PlotControl!$C$6-1),12,1)),AVERAGE(OFFSET(Sbeach!$D$10,12*$A23,4*(PlotControl!$C$6-1),12,1))) -> 1204.9 | P23: =IF(PlotControl!$B$4 = "Annual Max",MAX(OFFSET(Sbeach!$E$10,12*$A23,4*(PlotControl!$C$6-1),12,1)),AVERAGE(OFFSET(Sbeach!$E$10,12*$A23,4*(PlotControl!$C$6-1),12,1))) -> 1281.7 | Q23: =IF(PlotControl!$B$4 = "Annual Max",MAX(OFFSET(Sdam!$C$10,12*$A23,4*(PlotControl!$C$6-1),12,1)),AVERAGE(OFFSET(Sdam!$C$10,12*$A23,4*(PlotControl!$C$6-1),12,1))) -> 16.787 | R23: =IF(PlotControl!$B$4 = "Annual Max",MAX(OFFSET(Sdam!$D$10,12*$A23,4*(PlotControl!$C$6-1),12,1)),AVERAGE(OFFSET(Sdam!$D$10,12*$A23,4*(PlotControl!$C$6-1),12,1))) -> 16.787 | S23: =IF(PlotControl!$B$4 = "Annual Max",MAX(OFFSET(Sdam!$E$10,12*$A23,4*(PlotControl!$C$6-1),12,1)),AVERAGE(OFFSET(Sdam!$E$10,12*$A23,4*(PlotControl!$C$6-1),12,1))) -> 16.787 | T23: =IF(PlotControl!$B$4 = "Annual Max",MAX(OFFSET(Cbeach!$C$10,12*$A23,4*(PlotControl!$C$6-1),12,1)),AVERAGE(OFFSET(Cbeach!$C$10,12*$A23,4*(PlotControl!$C$6-1),12,1))) -> 139.28 | U23: =IF(PlotControl!$B$4 = "Annual Max",MAX(OFFSET(Cbeach!$D$10,12*$A23,4*(PlotControl!$C$6-1),12,1)),AVERAGE(OFFSET(Cbeach!$D$10,12*$A23,4*(PlotControl!$C$6-1),12,1))) -> 162.3 | V23: =IF(PlotControl!$B$4 = "Annual Max",MAX(OFFSET(Cbeach!$E$10,12*$A23,4*(PlotControl!$C$6-1),12,1)),AVERAGE(OFFSET(Cbeach!$E$10,12*$A23,4*(PlotControl!$C$6-1),12,1))) -> 185.29
A24: 19 | B24: =IF(PlotControl!$B$4 = "Annual Max",MAX(OFFSET(Nbeach!$C$10,12*$A24,4*(PlotControl!$C$6-1),12,1)),AVERAGE(OFFSET(Nbeach!$C$10,12*$A24,4*(PlotControl!$C$6-1),12,1))) -> 2657.3 | C24: =IF(PlotControl!$B$4 = "Annual Max",MAX(OFFSET(Nbeach!$D$10,12*$A24,4*(PlotControl!$C$6-1),12,1)),AVERAGE(OFFSET(Nbeach!$D$10,12*$A24,4*(PlotControl!$C$6-1),12,1))) -> 2761.1 | D24: =IF(PlotControl!$B$4 = "Annual Max",MAX(OFFSET(Nbeach!$E$10,12*$A24,4*(PlotControl!$C$6-1),12,1)),AVERAGE(OFFSET(Nbeach!$E$10,12*$A24,4*(PlotControl!$C$6-1),12,1))) -> 2865.7 | E24: =IF(PlotControl!$B$4 = "Annual Max",MAX(OFFSET(Ndam!$C$10,12*$A24,4*(PlotControl!$C$6-1),12,1)),AVERAGE(OFFSET(Ndam!$C$10,12*$A24,4*(PlotControl!$C$6-1),12,1))) -> 182.89 | F24: =IF(PlotControl!$B$4 = "Annual Max",MAX(OFFSET(Ndam!$D$10,12*$A24,4*(PlotControl!$C$6-1),12,1)),AVERAGE(OFFSET(Ndam!$D$10,12*$A24,4*(PlotControl!$C$6-1),12,1))) -> 182.89 | G24: =IF(PlotControl!$B$4 = "Annual Max",MAX(OFFSET(Ndam!$E$10,12*$A24,4*(PlotControl!$C$6-1),12,1)),AVERAGE(OFFSET(Ndam!$E$10,12*$A24,4*(PlotControl!$C$6-1),12,1))) -> 182.89 | H24: =IF(PlotControl!$B$4 = "Annual Max",MAX(OFFSET(Ebeach!$C$10,12*$A24,4*(PlotControl!$C$6-1),12,1)),AVERAGE(OFFSET(Ebeach!$C$10,12*$A24,4*(PlotControl!$C$6-1),12,1))) -> 369.74 | I24: =IF(PlotControl!$B$4 = "Annual Max",MAX(OFFSET(Ebeach!$D$10,12*$A24,4*(PlotControl!$C$6-1),12,1)),AVERAGE(OFFSET(Ebeach!$D$10,12*$A24,4*(PlotControl!$C$6-1),12,1))) -> 409.25 | J24: =IF(PlotControl!$B$4 = "Annual Max",MAX(OFFSET(Ebeach!$E$10,12*$A24,4*(PlotControl!$C$6-1),12,1)),AVERAGE(OFFSET(Ebeach!$E$10,12*$A24,4*(PlotControl!$C$6-1),12,1))) -> 450.41 | K24: =IF(PlotControl!$B$4 = "Annual Max",MAX(OFFSET(Edam!$C$10,12*$A24,4*(PlotControl!$C$6-1),12,1)),AVERAGE(OFFSET(Edam!$C$10,12*$A24,4*(PlotControl!$C$6-1),12,1))) -> 10.932 | L24: =IF(PlotControl!$B$4 = "Annual Max",MAX(OFFSET(Edam!$D$10,12*$A24,4*(PlotControl!$C$6-1),12,1)),AVERAGE(OFFSET(Edam!$D$10,12*$A24,4*(PlotControl!$C$6-1),12,1))) -> 10.932 | M24: =IF(PlotControl!$B$4 = "Annual Max",MAX(OFFSET(Edam!$E$10,12*$A24,4*(PlotControl!$C$6-1),12,1)),AVERAGE(OFFSET(Edam!$E$10,12*$A24,4*(PlotControl!$C$6-1),12,1))) -> 10.932 | N24: =IF(PlotControl!$B$4 = "Annual Max",MAX(OFFSET(Sbeach!$C$10,12*$A24,4*(PlotControl!$C$6-1),12,1)),AVERAGE(OFFSET(Sbeach!$C$10,12*$A24,4*(PlotControl!$C$6-1),12,1))) -> 1228.9 | O24: =IF(PlotControl!$B$4 = "Annual Max",MAX(OFFSET(Sbeach!$D$10,12*$A24,4*(PlotControl!$C$6-1),12,1)),AVERAGE(OFFSET(Sbeach!$D$10,12*$A24,4*(PlotControl!$C$6-1),12,1))) -> 1308.5 | P24: =IF(PlotControl!$B$4 = "Annual Max",MAX(OFFSET(Sbeach!$E$10,12*$A24,4*(PlotControl!$C$6-1),12,1)),AVERAGE(OFFSET(Sbeach!$E$10,12*$A24,4*(PlotControl!$C$6-1),12,1))) -> 1390 | Q24: =IF(PlotControl!$B$4 = "Annual Max",MAX(OFFSET(Sdam!$C$10,12*$A24,4*(PlotControl!$C$6-1),12,1)),AVERAGE(OFFSET(Sdam!$C$10,12*$A24,4*(PlotControl!$C$6-1),12,1))) -> 19.2 | R24: =IF(PlotControl!$B$4 = "Annual Max",MAX(OFFSET(Sdam!$D$10,12*$A24,4*(PlotControl!$C$6-1),12,1)),AVERAGE(OFFSET(Sdam!$D$10,12*$A24,4*(PlotControl!$C$6-1),12,1))) -> 19.2 | S24: =IF(PlotControl!$B$4 = "Annual Max",MAX(OFFSET(Sdam!$E$10,12*$A24,4*(PlotControl!$C$6-1),12,1)),AVERAGE(OFFSET(Sdam!$E$10,12*$A24,4*(PlotControl!$C$6-1),12,1))) -> 19.201 | T24: =IF(PlotControl!$B$4 = "Annual Max",MAX(OFFSET(Cbeach!$C$10,12*$A24,4*(PlotControl!$C$6-1),12,1)),AVERAGE(OFFSET(Cbeach!$C$10,12*$A24,4*(PlotControl!$C$6-1),12,1))) -> 312.52 | U24: =IF(PlotControl!$B$4 = "Annual Max",MAX(OFFSET(Cbeach!$D$10,12*$A24,4*(PlotControl!$C$6-1),12,1)),AVERAGE(OFFSET(Cbeach!$D$10,12*$A24,4*(PlotControl!$C$6-1),12,1))) -> 346.91 | V24: =IF(PlotControl!$B$4 = "Annual Max",MAX(OFFSET(Cbeach!$E$10,12*$A24,4*(PlotControl!$C$6-1),12,1)),AVERAGE(OFFSET(Cbeach!$E$10,12*$A24,4*(PlotControl!$C$6-1),12,1))) -> 390.43
A25: 20 | B25: =IF(PlotControl!$B$4 = "Annual Max",MAX(OFFSET(Nbeach!$C$10,12*$A25,4*(PlotControl!$C$6-1),12,1)),AVERAGE(OFFSET(Nbeach!$C$10,12*$A25,4*(PlotControl!$C$6-1),12,1))) -> 2657.1 | C25: =IF(PlotControl!$B$4 = "Annual Max",MAX(OFFSET(Nbeach!$D$10,12*$A25,4*(PlotControl!$C$6-1),12,1)),AVERAGE(OFFSET(Nbeach!$D$10,12*$A25,4*(PlotControl!$C$6-1),12,1))) -> 2760.5 | D25: =IF(PlotControl!$B$4 = "Annual Max",MAX(OFFSET(Nbeach!$E$10,12*$A25,4*(PlotControl!$C$6-1),12,1)),AVERAGE(OFFSET(Nbeach!$E$10,12*$A25,4*(PlotControl!$C$6-1),12,1))) -> 2865.6 | E25: =IF(PlotControl!$B$4 = "Annual Max",MAX(OFFSET(Ndam!$C$10,12*$A25,4*(PlotControl!$C$6-1),12,1)),AVERAGE(OFFSET(Ndam!$C$10,12*$A25,4*(PlotControl!$C$6-1),12,1))) -> 183.45 | F25: =IF(PlotControl!$B$4 = "Annual Max",MAX(OFFSET(Ndam!$D$10,12*$A25,4*(PlotControl!$C$6-1),12,1)),AVERAGE(OFFSET(Ndam!$D$10,12*$A25,4*(PlotControl!$C$6-1),12,1))) -> 183.45 | G25: =IF(PlotControl!$B$4 = "Annual Max",MAX(OFFSET(Ndam!$E$10,12*$A25,4*(PlotControl!$C$6-1),12,1)),AVERAGE(OFFSET(Ndam!$E$10,12*$A25,4*(PlotControl!$C$6-1),12,1))) -> 183.45 | H25: =IF(PlotControl!$B$4 = "Annual Max",MAX(OFFSET(Ebeach!$C$10,12*$A25,4*(PlotControl!$C$6-1),12,1)),AVERAGE(OFFSET(Ebeach!$C$10,12*$A25,4*(PlotControl!$C$6-1),12,1))) -> 369.74 | I25: =IF(PlotControl!$B$4 = "Annual Max",MAX(OFFSET(Ebeach!$D$10,12*$A25,4*(PlotControl!$C$6-1),12,1)),AVERAGE(OFFSET(Ebeach!$D$10,12*$A25,4*(PlotControl!$C$6-1),12,1))) -> 409.24 | J25: =IF(PlotControl!$B$4 = "Annual Max",MAX(OFFSET(Ebeach!$E$10,12*$A25,4*(PlotControl!$C$6-1),12,1)),AVERAGE(OFFSET(Ebeach!$E$10,12*$A25,4*(PlotControl!$C$6-1),12,1))) -> 450.4 | K25: =IF(PlotControl!$B$4 = "Annual Max",MAX(OFFSET(Edam!$C$10,12*$A25,4*(PlotControl!$C$6-1),12,1)),AVERAGE(OFFSET(Edam!$C$10,12*$A25,4*(PlotControl!$C$6-1),12,1))) -> 11.021 | L25: =IF(PlotControl!$B$4 = "Annual Max",MAX(OFFSET(Edam!$D$10,12*$A25,4*(PlotControl!$C$6-1),12,1)),AVERAGE(OFFSET(Edam!$D$10,12*$A25,4*(PlotControl!$C$6-1),12,1))) -> 11.021 | M25: =IF(PlotControl!$B$4 = "Annual Max",MAX(OFFSET(Edam!$E$10,12*$A25,4*(PlotControl!$C$6-1),12,1)),AVERAGE(OFFSET(Edam!$E$10,12*$A25,4*(PlotControl!$C$6-1),12,1))) -> 11.021 | N25: =IF(PlotControl!$B$4 = "Annual Max",MAX(OFFSET(Sbeach!$C$10,12*$A25,4*(PlotControl!$C$6-1),12,1)),AVERAGE(OFFSET(Sbeach!$C$10,12*$A25,4*(PlotControl!$C$6-1),12,1))) -> 1262.8 | O25: =IF(PlotControl!$B$4 = "Annual Max",MAX(OFFSET(Sbeach!$D$10,12*$A25,4*(PlotControl!$C$6-1),12,1)),AVERAGE(OFFSET(Sbeach!$D$10,12*$A25,4*(PlotControl!$C$6-1),12,1))) -> 1342.8 | P25: =IF(PlotControl!$B$4 = "Annual Max",MAX(OFFSET(Sbeach!$E$10,12*$A25,4*(PlotControl!$C$6-1),12,1)),AVERAGE(OFFSET(Sbeach!$E$10,12*$A25,4*(PlotControl!$C$6-1),12,1))) -> 1423.4 | Q25: =IF(PlotControl!$B$4 = "Annual Max",MAX(OFFSET(Sdam!$C$10,12*$A25,4*(PlotControl!$C$6-1),12,1)),AVERAGE(OFFSET(Sdam!$C$10,12*$A25,4*(PlotControl!$C$6-1),12,1))) -> 19.402 | R25: =IF(PlotControl!$B$4 = "Annual Max",MAX(OFFSET(Sdam!$D$10,12*$A25,4*(PlotControl!$C$6-1),12,1)),AVERAGE(OFFSET(Sdam!$D$10,12*$A25,4*(PlotControl!$C$6-1),12,1))) -> 19.402 | S25: =IF(PlotControl!$B$4 = "Annual Max",MAX(OFFSET(Sdam!$E$10,12*$A25,4*(PlotControl!$C$6-1),12,1)),AVERAGE(OFFSET(Sdam!$E$10,12*$A25,4*(PlotControl!$C$6-1),12,1))) -> 19.402 | T25: =IF(PlotControl!$B$4 = "Annual Max",MAX(OFFSET(Cbeach!$C$10,12*$A25,4*(PlotControl!$C$6-1),12,1)),AVERAGE(OFFSET(Cbeach!$C$10,12*$A25,4*(PlotControl!$C$6-1),12,1))) -> 312.49 | U25: =IF(PlotControl!$B$4 = "Annual Max",MAX(OFFSET(Cbeach!$D$10,12*$A25,4*(PlotControl!$C$6-1),12,1)),AVERAGE(OFFSET(Cbeach!$D$10,12*$A25,4*(PlotControl!$C$6-1),12,1))) -> 346.9 | V25: =IF(PlotControl!$B$4 = "Annual Max",MAX(OFFSET(Cbeach!$E$10,12*$A25,4*(PlotControl!$C$6-1),12,1)),AVERAGE(OFFSET(Cbeach!$E$10,12*$A25,4*(PlotControl!$C$6-1),12,1))) -> 390.36
A26: 21 | B26: =IF(PlotControl!$B$4 = "Annual Max",MAX(OFFSET(Nbeach!$C$10,12*$A26,4*(PlotControl!$C$6-1),12,1)),AVERAGE(OFFSET(Nbeach!$C$10,12*$A26,4*(PlotControl!$C$6-1),12,1))) -> 2657.1 | C26: =IF(PlotControl!$B$4 = "Annual Max",MAX(OFFSET(Nbeach!$D$10,12*$A26,4*(PlotControl!$C$6-1),12,1)),AVERAGE(OFFSET(Nbeach!$D$10,12*$A26,4*(PlotControl!$C$6-1),12,1))) -> 2760.5 | D26: =IF(PlotControl!$B$4 = "Annual Max",MAX(OFFSET(Nbeach!$E$10,12*$A26,4*(PlotControl!$C$6-1),12,1)),AVERAGE(OFFSET(Nbeach!$E$10,12*$A26,4*(PlotControl!$C$6-1),12,1))) -> 2865.6 | E26: =IF(PlotControl!$B$4 = "Annual Max",MAX(OFFSET(Ndam!$C$10,12*$A26,4*(PlotControl!$C$6-1),12,1)),AVERAGE(OFFSET(Ndam!$C$10,12*$A26,4*(PlotControl!$C$6-1),12,1))) -> 183.45 | F26: =IF(PlotControl!$B$4 = "Annual Max",MAX(OFFSET(Ndam!$D$10,12*$A26,4*(PlotControl!$C$6-1),12,1)),AVERAGE(OFFSET(Ndam!$D$10,12*$A26,4*(PlotControl!$C$6-1),12,1))) -> 183.45 | G26: =IF(PlotControl!$B$4 = "Annual Max",MAX(OFFSET(Ndam!$E$10,12*$A26,4*(PlotControl!$C$6-1),12,1)),AVERAGE(OFFSET(Ndam!$E$10,12*$A26,4*(PlotControl!$C$6-1),12,1))) -> 183.45 | H26: =IF(PlotControl!$B$4 = "Annual Max",MAX(OFFSET(Ebeach!$C$10,12*$A26,4*(PlotControl!$C$6-1),12,1)),AVERAGE(OFFSET(Ebeach!$C$10,12*$A26,4*(PlotControl!$C$6-1),12,1))) -> 369.74 | I26: =IF(PlotControl!$B$4 = "Annual Max",MAX(OFFSET(Ebeach!$D$10,12*$A26,4*(PlotControl!$C$6-1),12,1)),AVERAGE(OFFSET(Ebeach!$D$10,12*$A26,4*(PlotControl!$C$6-1),12,1))) -> 409.23 | J26: =IF(PlotControl!$B$4 = "Annual Max",MAX(OFFSET(Ebeach!$E$10,12*$A26,4*(PlotControl!$C$6-1),12,1)),AVERAGE(OFFSET(Ebeach!$E$10,12*$A26,4*(PlotControl!$C$6-1),12,1))) -> 450.39 | K26: =IF(PlotControl!$B$4 = "Annual Max",MAX(OFFSET(Edam!$C$10,12*$A26,4*(PlotControl!$C$6-1),12,1)),AVERAGE(OFFSET(Edam!$C$10,12*$A26,4*(PlotControl!$C$6-1),12,1))) -> 11.02 | L26: =IF(PlotControl!$B$4 = "Annual Max",MAX(OFFSET(Edam!$D$10,12*$A26,4*(PlotControl!$C$6-1),12,1)),AVERAGE(OFFSET(Edam!$D$10,12*$A26,4*(PlotControl!$C$6-1),12,1))) -> 11.021 | M26: =IF(PlotControl!$B$4 = "Annual Max",MAX(OFFSET(Edam!$E$10,12*$A26,4*(PlotControl!$C$6-1),12,1)),AVERAGE(OFFSET(Edam!$E$10,12*$A26,4*(PlotControl!$C$6-1),12,1))) -> 11.021 | N26: =IF(PlotControl!$B$4 = "Annual Max",MAX(OFFSET(Sbeach!$C$10,12*$A26,4*(PlotControl!$C$6-1),12,1)),AVERAGE(OFFSET(Sbeach!$C$10,12*$A26,4*(PlotControl!$C$6-1),12,1))) -> 1262.8 | O26: =IF(PlotControl!$B$4 = "Annual Max",MAX(OFFSET(Sbeach!$D$10,12*$A26,4*(PlotControl!$C$6-1),12,1)),AVERAGE(OFFSET(Sbeach!$D$10,12*$A26,4*(PlotControl!$C$6-1),12,1))) -> 1342.8 | P26: =IF(PlotControl!$B$4 = "Annual Max",MAX(OFFSET(Sbeach!$E$10,12*$A26,4*(PlotControl!$C$6-1),12,1)),AVERAGE(OFFSET(Sbeach!$E$10,12*$A26,4*(PlotControl!$C$6-1),12,1))) -> 1423.4 | Q26: =IF(PlotControl!$B$4 = "Annual Max",MAX(OFFSET(Sdam!$C$10,12*$A26,4*(PlotControl!$C$6-1),12,1)),AVERAGE(OFFSET(Sdam!$C$10,12*$A26,4*(PlotControl!$C$6-1),12,1))) -> 19.402 | R26: =IF(PlotControl!$B$4 = "Annual Max",MAX(OFFSET(Sdam!$D$10,12*$A26,4*(PlotControl!$C$6-1),12,1)),AVERAGE(OFFSET(Sdam!$D$10,12*$A26,4*(PlotControl!$C$6-1),12,1))) -> 19.402 | S26: =IF(PlotControl!$B$4 = "Annual Max",MAX(OFFSET(Sdam!$E$10,12*$A26,4*(PlotControl!$C$6-1),12,1)),AVERAGE(OFFSET(Sdam!$E$10,12*$A26,4*(PlotControl!$C$6-1),12,1))) -> 19.402 | T26: =IF(PlotControl!$B$4 = "Annual Max",MAX(OFFSET(Cbeach!$C$10,12*$A26,4*(PlotControl!$C$6-1),12,1)),AVERAGE(OFFSET(Cbeach!$C$10,12*$A26,4*(PlotControl!$C$6-1),12,1))) -> 312.48 | U26: =IF(PlotControl!$B$4 = "Annual Max",MAX(OFFSET(Cbeach!$D$10,12*$A26,4*(PlotControl!$C$6-1),12,1)),AVERAGE(OFFSET(Cbeach!$D$10,12*$A26,4*(PlotControl!$C$6-1),12,1))) -> 346.9 | V26: =IF(PlotControl!$B$4 = "Annual Max",MAX(OFFSET(Cbeach!$E$10,12*$A26,4*(PlotControl!$C$6-1),12,1)),AVERAGE(OFFSET(Cbeach!$E$10,12*$A26,4*(PlotControl!$C$6-1),12,1))) -> 390.36
A27: 22 | B27: =IF(PlotControl!$B$4 = "Annual Max",MAX(OFFSET(Nbeach!$C$10,12*$A27,4*(PlotControl!$C$6-1),12,1)),AVERAGE(OFFSET(Nbeach!$C$10,12*$A27,4*(PlotControl!$C$6-1),12,1))) -> 2657.1 | C27: =IF(PlotControl!$B$4 = "Annual Max",MAX(OFFSET(Nbeach!$D$10,12*$A27,4*(PlotControl!$C$6-1),12,1)),AVERAGE(OFFSET(Nbeach!$D$10,12*$A27,4*(PlotControl!$C$6-1),12,1))) -> 2760.5 | D27: =IF(PlotControl!$B$4 = "Annual Max",MAX(OFFSET(Nbeach!$E$10,12*$A27,4*(PlotControl!$C$6-1),12,1)),AVERAGE(OFFSET(Nbeach!$E$10,12*$A27,4*(PlotControl!$C$6-1),12,1))) -> 2865.6 | E27: =IF(PlotControl!$B$4 = "Annual Max",MAX(OFFSET(Ndam!$C$10,12*$A27,4*(PlotControl!$C$6-1),12,1)),AVERAGE(OFFSET(Ndam!$C$10,12*$A27,4*(PlotControl!$C$6-1),12,1))) -> 183.45 | F27: =IF(PlotControl!$B$4 = "Annual Max",MAX(OFFSET(Ndam!$D$10,12*$A27,4*(PlotControl!$C$6-1),12,1)),AVERAGE(OFFSET(Ndam!$D$10,12*$A27,4*(PlotControl!$C$6-1),12,1))) -> 183.45 | G27: =IF(PlotControl!$B$4 = "Annual Max",MAX(OFFSET(Ndam!$E$10,12*$A27,4*(PlotControl!$C$6-1),12,1)),AVERAGE(OFFSET(Ndam!$E$10,12*$A27,4*(PlotControl!$C$6-1),12,1))) -> 183.45 | H27: =IF(PlotControl!$B$4 = "Annual Max",MAX(OFFSET(Ebeach!$C$10,12*$A27,4*(PlotControl!$C$6-1),12,1)),AVERAGE(OFFSET(Ebeach!$C$10,12*$A27,4*(PlotControl!$C$6-1),12,1))) -> 369.74 | I27: =IF(PlotControl!$B$4 = "Annual Max",MAX(OFFSET(Ebeach!$D$10,12*$A27,4*(PlotControl!$C$6-1),12,1)),AVERAGE(OFFSET(Ebeach!$D$10,12*$A27,4*(PlotControl!$C$6-1),12,1))) -> 409.23 | J27: =IF(PlotControl!$B$4 = "Annual Max",MAX(OFFSET(Ebeach!$E$10,12*$A27,4*(PlotControl!$C$6-1),12,1)),AVERAGE(OFFSET(Ebeach!$E$10,12*$A27,4*(PlotControl!$C$6-1),12,1))) -> 450.38 | K27: =IF(PlotControl!$B$4 = "Annual Max",MAX(OFFSET(Edam!$C$10,12*$A27,4*(PlotControl!$C$6-1),12,1)),AVERAGE(OFFSET(Edam!$C$10,12*$A27,4*(PlotControl!$C$6-1),12,1))) -> 11.02 | L27: =IF(PlotControl!$B$4 = "Annual Max",MAX(OFFSET(Edam!$D$10,12*$A27,4*(PlotControl!$C$6-1),12,1)),AVERAGE(OFFSET(Edam!$D$10,12*$A27,4*(PlotControl!$C$6-1),12,1))) -> 11.021 | M27: =IF(PlotControl!$B$4 = "Annual Max",MAX(OFFSET(Edam!$E$10,12*$A27,4*(PlotControl!$C$6-1),12,1)),AVERAGE(OFFSET(Edam!$E$10,12*$A27,4*(PlotControl!$C$6-1),12,1))) -> 11.021 | N27: =IF(PlotControl!$B$4 = "Annual Max",MAX(OFFSET(Sbeach!$C$10,12*$A27,4*(PlotControl!$C$6-1),12,1)),AVERAGE(OFFSET(Sbeach!$C$10,12*$A27,4*(PlotControl!$C$6-1),12,1))) -> 1262.7 | O27: =IF(PlotControl!$B$4 = "Annual Max",MAX(OFFSET(Sbeach!$D$10,12*$A27,4*(PlotControl!$C$6-1),12,1)),AVERAGE(OFFSET(Sbeach!$D$10,12*$A27,4*(PlotControl!$C$6-1),12,1))) -> 1342.8 | P27: =IF(PlotControl!$B$4 = "Annual Max",MAX(OFFSET(Sbeach!$E$10,12*$A27,4*(PlotControl!$C$6-1),12,1)),AVERAGE(OFFSET(Sbeach!$E$10,12*$A27,4*(PlotControl!$C$6-1),12,1))) -> 1423.4 | Q27: =IF(PlotControl!$B$4 = "Annual Max",MAX(OFFSET(Sdam!$C$10,12*$A27,4*(PlotControl!$C$6-1),12,1)),AVERAGE(OFFSET(Sdam!$C$10,12*$A27,4*(PlotControl!$C$6-1),12,1))) -> 19.402 | R27: =IF(PlotControl!$B$4 = "Annual Max",MAX(OFFSET(Sdam!$D$10,12*$A27,4*(PlotControl!$C$6-1),12,1)),AVERAGE(OFFSET(Sdam!$D$10,12*$A27,4*(PlotControl!$C$6-1),12,1))) -> 19.402 | S27: =IF(PlotControl!$B$4 = "Annual Max",MAX(OFFSET(Sdam!$E$10,12*$A27,4*(PlotControl!$C$6-1),12,1)),AVERAGE(OFFSET(Sdam!$E$10,12*$A27,4*(PlotControl!$C$6-1),12,1))) -> 19.402 | T27: =IF(PlotControl!$B$4 = "Annual Max",MAX(OFFSET(Cbeach!$C$10,12*$A27,4*(PlotControl!$C$6-1),12,1)),AVERAGE(OFFSET(Cbeach!$C$10,12*$A27,4*(PlotControl!$C$6-1),12,1))) -> 312.48 | U27: =IF(PlotControl!$B$4 = "Annual Max",MAX(OFFSET(Cbeach!$D$10,12*$A27,4*(PlotControl!$C$6-1),12,1)),AVERAGE(OFFSET(Cbeach!$D$10,12*$A27,4*(PlotControl!$C$6-1),12,1))) -> 346.89 | V27: =IF(PlotControl!$B$4 = "Annual Max",MAX(OFFSET(Cbeach!$E$10,12*$A27,4*(PlotControl!$C$6-1),12,1)),AVERAGE(OFFSET(Cbeach!$E$10,12*$A27,4*(PlotControl!$C$6-1),12,1))) -> 390.35
A28: 23 | B28: =IF(PlotControl!$B$4 = "Annual Max",MAX(OFFSET(Nbeach!$C$10,12*$A28,4*(PlotControl!$C$6-1),12,1)),AVERAGE(OFFSET(Nbeach!$C$10,12*$A28,4*(PlotControl!$C$6-1),12,1))) -> 2657.1 | C28: =IF(PlotControl!$B$4 = "Annual Max",MAX(OFFSET(Nbeach!$D$10,12*$A28,4*(PlotControl!$C$6-1),12,1)),AVERAGE(OFFSET(Nbeach!$D$10,12*$A28,4*(PlotControl!$C$6-1),12,1))) -> 2760.5 | D28: =IF(PlotControl!$B$4 = "Annual Max",MAX(OFFSET(Nbeach!$E$10,12*$A28,4*(PlotControl!$C$6-1),12,1)),AVERAGE(OFFSET(Nbeach!$E$10,12*$A28,4*(PlotControl!$C$6-1),12,1))) -> 2865.6 | E28: =IF(PlotControl!$B$4 = "Annual Max",MAX(OFFSET(Ndam!$C$10,12*$A28,4*(PlotControl!$C$6-1),12,1)),AVERAGE(OFFSET(Ndam!$C$10,12*$A28,4*(PlotControl!$C$6-1),12,1))) -> 183.45 | F28: =IF(PlotControl!$B$4 = "Annual Max",MAX(OFFSET(Ndam!$D$10,12*$A28,4*(PlotControl!$C$6-1),12,1)),AVERAGE(OFFSET(Ndam!$D$10,12*$A28,4*(PlotControl!$C$6-1),12,1))) -> 183.45 | G28: =IF(PlotControl!$B$4 = "Annual Max",MAX(OFFSET(Ndam!$E$10,12*$A28,4*(PlotControl!$C$6-1),12,1)),AVERAGE(OFFSET(Ndam!$E$10,12*$A28,4*(PlotControl!$C$6-1),12,1))) -> 183.45 | H28: =IF(PlotControl!$B$4 = "Annual Max",MAX(OFFSET(Ebeach!$C$10,12*$A28,4*(PlotControl!$C$6-1),12,1)),AVERAGE(OFFSET(Ebeach!$C$10,12*$A28,4*(PlotControl!$C$6-1),12,1))) -> 369.73 | I28: =IF(PlotControl!$B$4 = "Annual Max",MAX(OFFSET(Ebeach!$D$10,12*$A28,4*(PlotControl!$C$6-1),12,1)),AVERAGE(OFFSET(Ebeach!$D$10,12*$A28,4*(PlotControl!$C$6-1),12,1))) -> 409.22 | J28: =IF(PlotControl!$B$4 = "Annual Max",MAX(OFFSET(Ebeach!$E$10,12*$A28,4*(PlotControl!$C$6-1),12,1)),AVERAGE(OFFSET(Ebeach!$E$10,12*$A28,4*(PlotControl!$C$6-1),12,1))) -> 450.37 | K28: =IF(PlotControl!$B$4 = "Annual Max",MAX(OFFSET(Edam!$C$10,12*$A28,4*(PlotControl!$C$6-1),12,1)),AVERAGE(OFFSET(Edam!$C$10,12*$A28,4*(PlotControl!$C$6-1),12,1))) -> 11.02 | L28: =IF(PlotControl!$B$4 = "Annual Max",MAX(OFFSET(Edam!$D$10,12*$A28,4*(PlotControl!$C$6-1),12,1)),AVERAGE(OFFSET(Edam!$D$10,12*$A28,4*(PlotControl!$C$6-1),12,1))) -> 11.021 | M28: =IF(PlotControl!$B$4 = "Annual Max",MAX(OFFSET(Edam!$E$10,12*$A28,4*(PlotControl!$C$6-1),12,1)),AVERAGE(OFFSET(Edam!$E$10,12*$A28,4*(PlotControl!$C$6-1),12,1))) -> 11.021 | N28: =IF(PlotControl!$B$4 = "Annual Max",MAX(OFFSET(Sbeach!$C$10,12*$A28,4*(PlotControl!$C$6-1),12,1)),AVERAGE(OFFSET(Sbeach!$C$10,12*$A28,4*(PlotControl!$C$6-1),12,1))) -> 1262.7 | O28: =IF(PlotControl!$B$4 = "Annual Max",MAX(OFFSET(Sbeach!$D$10,12*$A28,4*(PlotControl!$C$6-1),12,1)),AVERAGE(OFFSET(Sbeach!$D$10,12*$A28,4*(PlotControl!$C$6-1),12,1))) -> 1342.8 | P28: =IF(PlotControl!$B$4 = "Annual Max",MAX(OFFSET(Sbeach!$E$10,12*$A28,4*(PlotControl!$C$6-1),12,1)),AVERAGE(OFFSET(Sbeach!$E$10,12*$A28,4*(PlotControl!$C$6-1),12,1))) -> 1423.4 | Q28: =IF(PlotControl!$B$4 = "Annual Max",MAX(OFFSET(Sdam!$C$10,12*$A28,4*(PlotControl!$C$6-1),12,1)),AVERAGE(OFFSET(Sdam!$C$10,12*$A28,4*(PlotControl!$C$6-1),12,1))) -> 19.402 | R28: =IF(PlotControl!$B$4 = "Annual Max",MAX(OFFSET(Sdam!$D$10,12*$A28,4*(PlotControl!$C$6-1),12,1)),AVERAGE(OFFSET(Sdam!$D$10,12*$A28,4*(PlotControl!$C$6-1),12,1))) -> 19.402 | S28: =IF(PlotControl!$B$4 = "Annual Max",MAX(OFFSET(Sdam!$E$10,12*$A28,4*(PlotControl!$C$6-1),12,1)),AVERAGE(OFFSET(Sdam!$E$10,12*$A28,4*(PlotControl!$C$6-1),12,1))) -> 19.402 | T28: =IF(PlotControl!$B$4 = "Annual Max",MAX(OFFSET(Cbeach!$C$10,12*$A28,4*(PlotControl!$C$6-1),12,1)),AVERAGE(OFFSET(Cbeach!$C$10,12*$A28,4*(PlotControl!$C$6-1),12,1))) -> 312.47 | U28: =IF(PlotControl!$B$4 = "Annual Max",MAX(OFFSET(Cbeach!$D$10,12*$A28,4*(PlotControl!$C$6-1),12,1)),AVERAGE(OFFSET(Cbeach!$D$10,12*$A28,4*(PlotControl!$C$6-1),12,1))) -> 346.89 | V28: =IF(PlotControl!$B$4 = "Annual Max",MAX(OFFSET(Cbeach!$E$10,12*$A28,4*(PlotControl!$C$6-1),12,1)),AVERAGE(OFFSET(Cbeach!$E$10,12*$A28,4*(PlotControl!$C$6-1),12,1))) -> 390.34
A29: 24 | B29: =IF(PlotControl!$B$4 = "Annual Max",MAX(OFFSET(Nbeach!$C$10,12*$A29,4*(PlotControl!$C$6-1),12,1)),AVERAGE(OFFSET(Nbeach!$C$10,12*$A29,4*(PlotControl!$C$6-1),12,1))) -> 2657.1 | C29: =IF(PlotControl!$B$4 = "Annual Max",MAX(OFFSET(Nbeach!$D$10,12*$A29,4*(PlotControl!$C$6-1),12,1)),AVERAGE(OFFSET(Nbeach!$D$10,12*$A29,4*(PlotControl!$C$6-1),12,1))) -> 2760.5 | D29: =IF(PlotControl!$B$4 = "Annual Max",MAX(OFFSET(Nbeach!$E$10,12*$A29,4*(PlotControl!$C$6-1),12,1)),AVERAGE(OFFSET(Nbeach!$E$10,12*$A29,4*(PlotControl!$C$6-1),12,1))) -> 2865.6 | E29: =IF(PlotControl!$B$4 = "Annual Max",MAX(OFFSET(Ndam!$C$10,12*$A29,4*(PlotControl!$C$6-1),12,1)),AVERAGE(OFFSET(Ndam!$C$10,12*$A29,4*(PlotControl!$C$6-1),12,1))) -> 183.45 | F29: =IF(PlotControl!$B$4 = "Annual Max",MAX(OFFSET(Ndam!$D$10,12*$A29,4*(PlotControl!$C$6-1),12,1)),AVERAGE(OFFSET(Ndam!$D$10,12*$A29,4*(PlotControl!$C$6-1),12,1))) -> 183.45 | G29: =IF(PlotControl!$B$4 = "Annual Max",MAX(OFFSET(Ndam!$E$10,12*$A29,4*(PlotControl!$C$6-1),12,1)),AVERAGE(OFFSET(Ndam!$E$10,12*$A29,4*(PlotControl!$C$6-1),12,1))) -> 183.45 | H29: =IF(PlotControl!$B$4 = "Annual Max",MAX(OFFSET(Ebeach!$C$10,12*$A29,4*(PlotControl!$C$6-1),12,1)),AVERAGE(OFFSET(Ebeach!$C$10,12*$A29,4*(PlotControl!$C$6-1),12,1))) -> 369.73 | I29: =IF(PlotControl!$B$4 = "Annual Max",MAX(OFFSET(Ebeach!$D$10,12*$A29,4*(PlotControl!$C$6-1),12,1)),AVERAGE(OFFSET(Ebeach!$D$10,12*$A29,4*(PlotControl!$C$6-1),12,1))) -> 409.22 | J29: =IF(PlotControl!$B$4 = "Annual Max",MAX(OFFSET(Ebeach!$E$10,12*$A29,4*(PlotControl!$C$6-1),12,1)),AVERAGE(OFFSET(Ebeach!$E$10,12*$A29,4*(PlotControl!$C$6-1),12,1))) -> 450.36 | K29: =IF(PlotControl!$B$4 = "Annual Max",MAX(OFFSET(Edam!$C$10,12*$A29,4*(PlotControl!$C$6-1),12,1)),AVERAGE(OFFSET(Edam!$C$10,12*$A29,4*(PlotControl!$C$6-1),12,1))) -> 11.02 | L29: =IF(PlotControl!$B$4 = "Annual Max",MAX(OFFSET(Edam!$D$10,12*$A29,4*(PlotControl!$C$6-1),12,1)),AVERAGE(OFFSET(Edam!$D$10,12*$A29,4*(PlotControl!$C$6-1),12,1))) -> 11.02 | M29: =IF(PlotControl!$B$4 = "Annual Max",MAX(OFFSET(Edam!$E$10,12*$A29,4*(PlotControl!$C$6-1),12,1)),AVERAGE(OFFSET(Edam!$E$10,12*$A29,4*(PlotControl!$C$6-1),12,1))) -> 11.021 | N29: =IF(PlotControl!$B$4 = "Annual Max",MAX(OFFSET(Sbeach!$C$10,12*$A29,4*(PlotControl!$C$6-1),12,1)),AVERAGE(OFFSET(Sbeach!$C$10,12*$A29,4*(PlotControl!$C$6-1),12,1))) -> 1262.7 | O29: =IF(PlotControl!$B$4 = "Annual Max",MAX(OFFSET(Sbeach!$D$10,12*$A29,4*(PlotControl!$C$6-1),12,1)),AVERAGE(OFFSET(Sbeach!$D$10,12*$A29,4*(PlotControl!$C$6-1),12,1))) -> 1342.8 | P29: =IF(PlotControl!$B$4 = "Annual Max",MAX(OFFSET(Sbeach!$E$10,12*$A29,4*(PlotControl!$C$6-1),12,1)),AVERAGE(OFFSET(Sbeach!$E$10,12*$A29,4*(PlotControl!$C$6-1),12,1))) -> 1423.4 | Q29: =IF(PlotControl!$B$4 = "Annual Max",MAX(OFFSET(Sdam!$C$10,12*$A29,4*(PlotControl!$C$6-1),12,1)),AVERAGE(OFFSET(Sdam!$C$10,12*$A29,4*(PlotControl!$C$6-1),12,1))) -> 19.402 | R29: =IF(PlotControl!$B$4 = "Annual Max",MAX(OFFSET(Sdam!$D$10,12*$A29,4*(PlotControl!$C$6-1),12,1)),AVERAGE(OFFSET(Sdam!$D$10,12*$A29,4*(PlotControl!$C$6-1),12,1))) -> 19.402 | S29: =IF(PlotControl!$B$4 = "Annual Max",MAX(OFFSET(Sdam!$E$10,12*$A29,4*(PlotControl!$C$6-1),12,1)),AVERAGE(OFFSET(Sdam!$E$10,12*$A29,4*(PlotControl!$C$6-1),12,1))) -> 19.402 | T29: =IF(PlotControl!$B$4 = "Annual Max",MAX(OFFSET(Cbeach!$C$10,12*$A29,4*(PlotControl!$C$6-1),12,1)),AVERAGE(OFFSET(Cbeach!$C$10,12*$A29,4*(PlotControl!$C$6-1),12,1))) -> 312.46 | U29: =IF(PlotControl!$B$4 = "Annual Max",MAX(OFFSET(Cbeach!$D$10,12*$A29,4*(PlotControl!$C$6-1),12,1)),AVERAGE(OFFSET(Cbeach!$D$10,12*$A29,4*(PlotControl!$C$6-1),12,1))) -> 346.89 | V29: =IF(PlotControl!$B$4 = "Annual Max",MAX(OFFSET(Cbeach!$E$10,12*$A29,4*(PlotControl!$C$6-1),12,1)),AVERAGE(OFFSET(Cbeach!$E$10,12*$A29,4*(PlotControl!$C$6-1),12,1))) -> 390.33
A30: 25 | B30: =IF(PlotControl!$B$4 = "Annual Max",MAX(OFFSET(Nbeach!$C$10,12*$A30,4*(PlotControl!$C$6-1),12,1)),AVERAGE(OFFSET(Nbeach!$C$10,12*$A30,4*(PlotControl!$C$6-1),12,1))) -> 2657.1 | C30: =IF(PlotControl!$B$4 = "Annual Max",MAX(OFFSET(Nbeach!$D$10,12*$A30,4*(PlotControl!$C$6-1),12,1)),AVERAGE(OFFSET(Nbeach!$D$10,12*$A30,4*(PlotControl!$C$6-1),12,1))) -> 2760.4 | D30: =IF(PlotControl!$B$4 = "Annual Max",MAX(OFFSET(Nbeach!$E$10,12*$A30,4*(PlotControl!$C$6-1),12,1)),AVERAGE(OFFSET(Nbeach!$E$10,12*$A30,4*(PlotControl!$C$6-1),12,1))) -> 2865.6 | E30: =IF(PlotControl!$B$4 = "Annual Max",MAX(OFFSET(Ndam!$C$10,12*$A30,4*(PlotControl!$C$6-1),12,1)),AVERAGE(OFFSET(Ndam!$C$10,12*$A30,4*(PlotControl!$C$6-1),12,1))) -> 183.44 | F30: =IF(PlotControl!$B$4 = "Annual Max",MAX(OFFSET(Ndam!$D$10,12*$A30,4*(PlotControl!$C$6-1),12,1)),AVERAGE(OFFSET(Ndam!$D$10,12*$A30,4*(PlotControl!$C$6-1),12,1))) -> 183.45 | G30: =IF(PlotControl!$B$4 = "Annual Max",MAX(OFFSET(Ndam!$E$10,12*$A30,4*(PlotControl!$C$6-1),12,1)),AVERAGE(OFFSET(Ndam!$E$10,12*$A30,4*(PlotControl!$C$6-1),12,1))) -> 183.45 | H30: =IF(PlotControl!$B$4 = "Annual Max",MAX(OFFSET(Ebeach!$C$10,12*$A30,4*(PlotControl!$C$6-1),12,1)),AVERAGE(OFFSET(Ebeach!$C$10,12*$A30,4*(PlotControl!$C$6-1),12,1))) -> 369.73 | I30: =IF(PlotControl!$B$4 = "Annual Max",MAX(OFFSET(Ebeach!$D$10,12*$A30,4*(PlotControl!$C$6-1),12,1)),AVERAGE(OFFSET(Ebeach!$D$10,12*$A30,4*(PlotControl!$C$6-1),12,1))) -> 409.21 | J30: =IF(PlotControl!$B$4 = "Annual Max",MAX(OFFSET(Ebeach!$E$10,12*$A30,4*(PlotControl!$C$6-1),12,1)),AVERAGE(OFFSET(Ebeach!$E$10,12*$A30,4*(PlotControl!$C$6-1),12,1))) -> 450.35 | K30: =IF(PlotControl!$B$4 = "Annual Max",MAX(OFFSET(Edam!$C$10,12*$A30,4*(PlotControl!$C$6-1),12,1)),AVERAGE(OFFSET(Edam!$C$10,12*$A30,4*(PlotControl!$C$6-1),12,1))) -> 11.02 | L30: =IF(PlotControl!$B$4 = "Annual Max",MAX(OFFSET(Edam!$D$10,12*$A30,4*(PlotControl!$C$6-1),12,1)),AVERAGE(OFFSET(Edam!$D$10,12*$A30,4*(PlotControl!$C$6-1),12,1))) -> 11.02 | M30: =IF(PlotControl!$B$4 = "Annual Max",MAX(OFFSET(Edam!$E$10,12*$A30,4*(PlotControl!$C$6-1),12,1)),AVERAGE(OFFSET(Edam!$E$10,12*$A30,4*(PlotControl!$C$6-1),12,1))) -> 11.021 | N30: =IF(PlotControl!$B$4 = "Annual Max",MAX(OFFSET(Sbeach!$C$10,12*$A30,4*(PlotControl!$C$6-1),12,1)),AVERAGE(OFFSET(Sbeach!$C$10,12*$A30,4*(PlotControl!$C$6-1),12,1))) -> 1262.7 | O30: =IF(PlotControl!$B$4 = "Annual Max",MAX(OFFSET(Sbeach!$D$10,12*$A30,4*(PlotControl!$C$6-1),12,1)),AVERAGE(OFFSET(Sbeach!$D$10,12*$A30,4*(PlotControl!$C$6-1),12,1))) -> 1342.8 | P30: =IF(PlotControl!$B$4 = "Annual Max",MAX(OFFSET(Sbeach!$E$10,12*$A30,4*(PlotControl!$C$6-1),12,1)),AVERAGE(OFFSET(Sbeach!$E$10,12*$A30,4*(PlotControl!$C$6-1),12,1))) -> 1423.3 | Q30: =IF(PlotControl!$B$4 = "Annual Max",MAX(OFFSET(Sdam!$C$10,12*$A30,4*(PlotControl!$C$6-1),12,1)),AVERAGE(OFFSET(Sdam!$C$10,12*$A30,4*(PlotControl!$C$6-1),12,1))) -> 19.402 | R30: =IF(PlotControl!$B$4 = "Annual Max",MAX(OFFSET(Sdam!$D$10,12*$A30,4*(PlotControl!$C$6-1),12,1)),AVERAGE(OFFSET(Sdam!$D$10,12*$A30,4*(PlotControl!$C$6-1),12,1))) -> 19.402 | S30: =IF(PlotControl!$B$4 = "Annual Max",MAX(OFFSET(Sdam!$E$10,12*$A30,4*(PlotControl!$C$6-1),12,1)),AVERAGE(OFFSET(Sdam!$E$10,12*$A30,4*(PlotControl!$C$6-1),12,1))) -> 19.402 | T30: =IF(PlotControl!$B$4 = "Annual Max",MAX(OFFSET(Cbeach!$C$10,12*$A30,4*(PlotControl!$C$6-1),12,1)),AVERAGE(OFFSET(Cbeach!$C$10,12*$A30,4*(PlotControl!$C$6-1),12,1))) -> 312.46 | U30: =IF(PlotControl!$B$4 = "Annual Max",MAX(OFFSET(Cbeach!$D$10,12*$A30,4*(PlotControl!$C$6-1),12,1)),AVERAGE(OFFSET(Cbeach!$D$10,12*$A30,4*(PlotControl!$C$6-1),12,1))) -> 346.86 | V30: =IF(PlotControl!$B$4 = "Annual Max",MAX(OFFSET(Cbeach!$E$10,12*$A30,4*(PlotControl!$C$6-1),12,1)),AVERAGE(OFFSET(Cbeach!$E$10,12*$A30,4*(PlotControl!$C$6-1),12,1))) -> 390.33
A31: 26 | B31: =IF(PlotControl!$B$4 = "Annual Max",MAX(OFFSET(Nbeach!$C$10,12*$A31,4*(PlotControl!$C$6-1),12,1)),AVERAGE(OFFSET(Nbeach!$C$10,12*$A31,4*(PlotControl!$C$6-1),12,1))) -> 2657 | C31: =IF(PlotControl!$B$4 = "Annual Max",MAX(OFFSET(Nbeach!$D$10,12*$A31,4*(PlotControl!$C$6-1),12,1)),AVERAGE(OFFSET(Nbeach!$D$10,12*$A31,4*(PlotControl!$C$6-1),12,1))) -> 2760.4 | D31: =IF(PlotControl!$B$4 = "Annual Max",MAX(OFFSET(Nbeach!$E$10,12*$A31,4*(PlotControl!$C$6-1),12,1)),AVERAGE(OFFSET(Nbeach!$E$10,12*$A31,4*(PlotControl!$C$6-1),12,1))) -> 2865.6 | E31: =IF(PlotControl!$B$4 = "Annual Max",MAX(OFFSET(Ndam!$C$10,12*$A31,4*(PlotControl!$C$6-1),12,1)),AVERAGE(OFFSET(Ndam!$C$10,12*$A31,4*(PlotControl!$C$6-1),12,1))) -> 183.44 | F31: =IF(PlotControl!$B$4 = "Annual Max",MAX(OFFSET(Ndam!$D$10,12*$A31,4*(PlotControl!$C$6-1),12,1)),AVERAGE(OFFSET(Ndam!$D$10,12*$A31,4*(PlotControl!$C$6-1),12,1))) -> 183.45 | G31: =IF(PlotControl!$B$4 = "Annual Max",MAX(OFFSET(Ndam!$E$10,12*$A31,4*(PlotControl!$C$6-1),12,1)),AVERAGE(OFFSET(Ndam!$E$10,12*$A31,4*(PlotControl!$C$6-1),12,1))) -> 183.45 | H31: =IF(PlotControl!$B$4 = "Annual Max",MAX(OFFSET(Ebeach!$C$10,12*$A31,4*(PlotControl!$C$6-1),12,1)),AVERAGE(OFFSET(Ebeach!$C$10,12*$A31,4*(PlotControl!$C$6-1),12,1))) -> 369.72 | I31: =IF(PlotControl!$B$4 = "Annual Max",MAX(OFFSET(Ebeach!$D$10,12*$A31,4*(PlotControl!$C$6-1),12,1)),AVERAGE(OFFSET(Ebeach!$D$10,12*$A31,4*(PlotControl!$C$6-1),12,1))) -> 409.2 | J31: =IF(PlotControl!$B$4 = "Annual Max",MAX(OFFSET(Ebeach!$E$10,12*$A31,4*(PlotControl!$C$6-1),12,1)),AVERAGE(OFFSET(Ebeach!$E$10,12*$A31,4*(PlotControl!$C$6-1),12,1))) -> 450.34 | K31: =IF(PlotControl!$B$4 = "Annual Max",MAX(OFFSET(Edam!$C$10,12*$A31,4*(PlotControl!$C$6-1),12,1)),AVERAGE(OFFSET(Edam!$C$10,12*$A31,4*(PlotControl!$C$6-1),12,1))) -> 11.02 | L31: =IF(PlotControl!$B$4 = "Annual Max",MAX(OFFSET(Edam!$D$10,12*$A31,4*(PlotControl!$C$6-1),12,1)),AVERAGE(OFFSET(Edam!$D$10,12*$A31,4*(PlotControl!$C$6-1),12,1))) -> 11.02 | M31: =IF(PlotControl!$B$4 = "Annual Max",MAX(OFFSET(Edam!$E$10,12*$A31,4*(PlotControl!$C$6-1),12,1)),AVERAGE(OFFSET(Edam!$E$10,12*$A31,4*(PlotControl!$C$6-1),12,1))) -> 11.021 | N31: =IF(PlotControl!$B$4 = "Annual Max",MAX(OFFSET(Sbeach!$C$10,12*$A31,4*(PlotControl!$C$6-1),12,1)),AVERAGE(OFFSET(Sbeach!$C$10,12*$A31,4*(PlotControl!$C$6-1),12,1))) -> 1262.7 | O31: =IF(PlotControl!$B$4 = "Annual Max",MAX(OFFSET(Sbeach!$D$10,12*$A31,4*(PlotControl!$C$6-1),12,1)),AVERAGE(OFFSET(Sbeach!$D$10,12*$A31,4*(PlotControl!$C$6-1),12,1))) -> 1342.8 | P31: =IF(PlotControl!$B$4 = "Annual Max",MAX(OFFSET(Sbeach!$E$10,12*$A31,4*(PlotControl!$C$6-1),12,1)),AVERAGE(OFFSET(Sbeach!$E$10,12*$A31,4*(PlotControl!$C$6-1),12,1))) -> 1423.3 | Q31: =IF(PlotControl!$B$4 = "Annual Max",MAX(OFFSET(Sdam!$C$10,12*$A31,4*(PlotControl!$C$6-1),12,1)),AVERAGE(OFFSET(Sdam!$C$10,12*$A31,4*(PlotControl!$C$6-1),12,1))) -> 19.402 | R31: =IF(PlotControl!$B$4 = "Annual Max",MAX(OFFSET(Sdam!$D$10,12*$A31,4*(PlotControl!$C$6-1),12,1)),AVERAGE(OFFSET(Sdam!$D$10,12*$A31,4*(PlotControl!$C$6-1),12,1))) -> 19.402 | S31: =IF(PlotControl!$B$4 = "Annual Max",MAX(OFFSET(Sdam!$E$10,12*$A31,4*(PlotControl!$C$6-1),12,1)),AVERAGE(OFFSET(Sdam!$E$10,12*$A31,4*(PlotControl!$C$6-1),12,1))) -> 19.402 | T31: =IF(PlotControl!$B$4 = "Annual Max",MAX(OFFSET(Cbeach!$C$10,12*$A31,4*(PlotControl!$C$6-1),12,1)),AVERAGE(OFFSET(Cbeach!$C$10,12*$A31,4*(PlotControl!$C$6-1),12,1))) -> 312.45 | U31: =IF(PlotControl!$B$4 = "Annual Max",MAX(OFFSET(Cbeach!$D$10,12*$A31,4*(PlotControl!$C$6-1),12,1)),AVERAGE(OFFSET(Cbeach!$D$10,12*$A31,4*(PlotControl!$C$6-1),12,1))) -> 346.82 | V31: =IF(PlotControl!$B$4 = "Annual Max",MAX(OFFSET(Cbeach!$E$10,12*$A31,4*(PlotControl!$C$6-1),12,1)),AVERAGE(OFFSET(Cbeach!$E$10,12*$A31,4*(PlotControl!$C$6-1),12,1))) -> 390.32
A32: 27 | B32: =IF(PlotControl!$B$4 = "Annual Max",MAX(OFFSET(Nbeach!$C$10,12*$A32,4*(PlotControl!$C$6-1),12,1)),AVERAGE(OFFSET(Nbeach!$C$10,12*$A32,4*(PlotControl!$C$6-1),12,1))) -> 2657 | C32: =IF(PlotControl!$B$4 = "Annual Max",MAX(OFFSET(Nbeach!$D$10,12*$A32,4*(PlotControl!$C$6-1),12,1)),AVERAGE(OFFSET(Nbeach!$D$10,12*$A32,4*(PlotControl!$C$6-1),12,1))) -> 2760.4 | D32: =IF(PlotControl!$B$4 = "Annual Max",MAX(OFFSET(Nbeach!$E$10,12*$A32,4*(PlotControl!$C$6-1),12,1)),AVERAGE(OFFSET(Nbeach!$E$10,12*$A32,4*(PlotControl!$C$6-1),12,1))) -> 2865.6 | E32: =IF(PlotControl!$B$4 = "Annual Max",MAX(OFFSET(Ndam!$C$10,12*$A32,4*(PlotControl!$C$6-1),12,1)),AVERAGE(OFFSET(Ndam!$C$10,12*$A32,4*(PlotControl!$C$6-1),12,1))) -> 183.44 | F32: =IF(PlotControl!$B$4 = "Annual Max",MAX(OFFSET(Ndam!$D$10,12*$A32,4*(PlotControl!$C$6-1),12,1)),AVERAGE(OFFSET(Ndam!$D$10,12*$A32,4*(PlotControl!$C$6-1),12,1))) -> 183.45 | G32: =IF(PlotControl!$B$4 = "Annual Max",MAX(OFFSET(Ndam!$E$10,12*$A32,4*(PlotControl!$C$6-1),12,1)),AVERAGE(OFFSET(Ndam!$E$10,12*$A32,4*(PlotControl!$C$6-1),12,1))) -> 183.45 | H32: =IF(PlotControl!$B$4 = "Annual Max",MAX(OFFSET(Ebeach!$C$10,12*$A32,4*(PlotControl!$C$6-1),12,1)),AVERAGE(OFFSET(Ebeach!$C$10,12*$A32,4*(PlotControl!$C$6-1),12,1))) -> 369.72 | I32: =IF(PlotControl!$B$4 = "Annual Max",MAX(OFFSET(Ebeach!$D$10,12*$A32,4*(PlotControl!$C$6-1),12,1)),AVERAGE(OFFSET(Ebeach!$D$10,12*$A32,4*(PlotControl!$C$6-1),12,1))) -> 409.2 | J32: =IF(PlotControl!$B$4 = "Annual Max",MAX(OFFSET(Ebeach!$E$10,12*$A32,4*(PlotControl!$C$6-1),12,1)),AVERAGE(OFFSET(Ebeach!$E$10,12*$A32,4*(PlotControl!$C$6-1),12,1))) -> 450.32 | K32: =IF(PlotControl!$B$4 = "Annual Max",MAX(OFFSET(Edam!$C$10,12*$A32,4*(PlotControl!$C$6-1),12,1)),AVERAGE(OFFSET(Edam!$C$10,12*$A32,4*(PlotControl!$C$6-1),12,1))) -> 11.02 | L32: =IF(PlotControl!$B$4 = "Annual Max",MAX(OFFSET(Edam!$D$10,12*$A32,4*(PlotControl!$C$6-1),12,1)),AVERAGE(OFFSET(Edam!$D$10,12*$A32,4*(PlotControl!$C$6-1),12,1))) -> 11.02 | M32: =IF(PlotControl!$B$4 = "Annual Max",MAX(OFFSET(Edam!$E$10,12*$A32,4*(PlotControl!$C$6-1),12,1)),AVERAGE(OFFSET(Edam!$E$10,12*$A32,4*(PlotControl!$C$6-1),12,1))) -> 11.021 | N32: =IF(PlotControl!$B$4 = "Annual Max",MAX(OFFSET(Sbeach!$C$10,12*$A32,4*(PlotControl!$C$6-1),12,1)),AVERAGE(OFFSET(Sbeach!$C$10,12*$A32,4*(PlotControl!$C$6-1),12,1))) -> 1262.7 | O32: =IF(PlotControl!$B$4 = "Annual Max",MAX(OFFSET(Sbeach!$D$10,12*$A32,4*(PlotControl!$C$6-1),12,1)),AVERAGE(OFFSET(Sbeach!$D$10,12*$A32,4*(PlotControl!$C$6-1),12,1))) -> 1342.8 | P32: =IF(PlotControl!$B$4 = "Annual Max",MAX(OFFSET(Sbeach!$E$10,12*$A32,4*(PlotControl!$C$6-1),12,1)),AVERAGE(OFFSET(Sbeach!$E$10,12*$A32,4*(PlotControl!$C$6-1),12,1))) -> 1423.3 | Q32: =IF(PlotControl!$B$4 = "Annual Max",MAX(OFFSET(Sdam!$C$10,12*$A32,4*(PlotControl!$C$6-1),12,1)),AVERAGE(OFFSET(Sdam!$C$10,12*$A32,4*(PlotControl!$C$6-1),12,1))) -> 19.402 | R32: =IF(PlotControl!$B$4 = "Annual Max",MAX(OFFSET(Sdam!$D$10,12*$A32,4*(PlotControl!$C$6-1),12,1)),AVERAGE(OFFSET(Sdam!$D$10,12*$A32,4*(PlotControl!$C$6-1),12,1))) -> 19.402 | S32: =IF(PlotControl!$B$4 = "Annual Max",MAX(OFFSET(Sdam!$E$10,12*$A32,4*(PlotControl!$C$6-1),12,1)),AVERAGE(OFFSET(Sdam!$E$10,12*$A32,4*(PlotControl!$C$6-1),12,1))) -> 19.402 | T32: =IF(PlotControl!$B$4 = "Annual Max",MAX(OFFSET(Cbeach!$C$10,12*$A32,4*(PlotControl!$C$6-1),12,1)),AVERAGE(OFFSET(Cbeach!$C$10,12*$A32,4*(PlotControl!$C$6-1),12,1))) -> 312.45 | U32: =IF(PlotControl!$B$4 = "Annual Max",MAX(OFFSET(Cbeach!$D$10,12*$A32,4*(PlotControl!$C$6-1),12,1)),AVERAGE(OFFSET(Cbeach!$D$10,12*$A32,4*(PlotControl!$C$6-1),12,1))) -> 346.78 | V32: =IF(PlotControl!$B$4 = "Annual Max",MAX(OFFSET(Cbeach!$E$10,12*$A32,4*(PlotControl!$C$6-1),12,1)),AVERAGE(OFFSET(Cbeach!$E$10,12*$A32,4*(PlotControl!$C$6-1),12,1))) -> 390.31
A33: 28 | B33: =IF(PlotControl!$B$4 = "Annual Max",MAX(OFFSET(Nbeach!$C$10,12*$A33,4*(PlotControl!$C$6-1),12,1)),AVERAGE(OFFSET(Nbeach!$C$10,12*$A33,4*(PlotControl!$C$6-1),12,1))) -> 2657 | C33: =IF(PlotControl!$B$4 = "Annual Max",MAX(OFFSET(Nbeach!$D$10,12*$A33,4*(PlotControl!$C$6-1),12,1)),AVERAGE(OFFSET(Nbeach!$D$10,12*$A33,4*(PlotControl!$C$6-1),12,1))) -> 2760.4 | D33: =IF(PlotControl!$B$4 = "Annual Max",MAX(OFFSET(Nbeach!$E$10,12*$A33,4*(PlotControl!$C$6-1),12,1)),AVERAGE(OFFSET(Nbeach!$E$10,12*$A33,4*(PlotControl!$C$6-1),12,1))) -> 2865.6 | E33: =IF(PlotControl!$B$4 = "Annual Max",MAX(OFFSET(Ndam!$C$10,12*$A33,4*(PlotControl!$C$6-1),12,1)),AVERAGE(OFFSET(Ndam!$C$10,12*$A33,4*(PlotControl!$C$6-1),12,1))) -> 183.44 | F33: =IF(PlotControl!$B$4 = "Annual Max",MAX(OFFSET(Ndam!$D$10,12*$A33,4*(PlotControl!$C$6-1),12,1)),AVERAGE(OFFSET(Ndam!$D$10,12*$A33,4*(PlotControl!$C$6-1),12,1))) -> 183.45 | G33: =IF(PlotControl!$B$4 = "Annual Max",MAX(OFFSET(Ndam!$E$10,12*$A33,4*(PlotControl!$C$6-1),12,1)),AVERAGE(OFFSET(Ndam!$E$10,12*$A33,4*(PlotControl!$C$6-1),12,1))) -> 183.45 | H33: =IF(PlotControl!$B$4 = "Annual Max",MAX(OFFSET(Ebeach!$C$10,12*$A33,4*(PlotControl!$C$6-1),12,1)),AVERAGE(OFFSET(Ebeach!$C$10,12*$A33,4*(PlotControl!$C$6-1),12,1))) -> 369.72 | I33: =IF(PlotControl!$B$4 = "Annual Max",MAX(OFFSET(Ebeach!$D$10,12*$A33,4*(PlotControl!$C$6-1),12,1)),AVERAGE(OFFSET(Ebeach!$D$10,12*$A33,4*(PlotControl!$C$6-1),12,1))) -> 409.19 | J33: =IF(PlotControl!$B$4 = "Annual Max",MAX(OFFSET(Ebeach!$E$10,12*$A33,4*(PlotControl!$C$6-1),12,1)),AVERAGE(OFFSET(Ebeach!$E$10,12*$A33,4*(PlotControl!$C$6-1),12,1))) -> 450.31 | K33: =IF(PlotControl!$B$4 = "Annual Max",MAX(OFFSET(Edam!$C$10,12*$A33,4*(PlotControl!$C$6-1),12,1)),AVERAGE(OFFSET(Edam!$C$10,12*$A33,4*(PlotControl!$C$6-1),12,1))) -> 11.02 | L33: =IF(PlotControl!$B$4 = "Annual Max",MAX(OFFSET(Edam!$D$10,12*$A33,4*(PlotControl!$C$6-1),12,1)),AVERAGE(OFFSET(Edam!$D$10,12*$A33,4*(PlotControl!$C$6-1),12,1))) -> 11.02 | M33: =IF(PlotControl!$B$4 = "Annual Max",MAX(OFFSET(Edam!$E$10,12*$A33,4*(PlotControl!$C$6-1),12,1)),AVERAGE(OFFSET(Edam!$E$10,12*$A33,4*(PlotControl!$C$6-1),12,1))) -> 11.02 | N33: =IF(PlotControl!$B$4 = "Annual Max",MAX(OFFSET(Sbeach!$C$10,12*$A33,4*(PlotControl!$C$6-1),12,1)),AVERAGE(OFFSET(Sbeach!$C$10,12*$A33,4*(PlotControl!$C$6-1),12,1))) -> 1262.7 | O33: =IF(PlotControl!$B$4 = "Annual Max",MAX(OFFSET(Sbeach!$D$10,12*$A33,4*(PlotControl!$C$6-1),12,1)),AVERAGE(OFFSET(Sbeach!$D$10,12*$A33,4*(PlotControl!$C$6-1),12,1))) -> 1342.8 | P33: =IF(PlotControl!$B$4 = "Annual Max",MAX(OFFSET(Sbeach!$E$10,12*$A33,4*(PlotControl!$C$6-1),12,1)),AVERAGE(OFFSET(Sbeach!$E$10,12*$A33,4*(PlotControl!$C$6-1),12,1))) -> 1423.3 | Q33: =IF(PlotControl!$B$4 = "Annual Max",MAX(OFFSET(Sdam!$C$10,12*$A33,4*(PlotControl!$C$6-1),12,1)),AVERAGE(OFFSET(Sdam!$C$10,12*$A33,4*(PlotControl!$C$6-1),12,1))) -> 19.402 | R33: =IF(PlotControl!$B$4 = "Annual Max",MAX(OFFSET(Sdam!$D$10,12*$A33,4*(PlotControl!$C$6-1),12,1)),AVERAGE(OFFSET(Sdam!$D$10,12*$A33,4*(PlotControl!$C$6-1),12,1))) -> 19.402 | S33: =IF(PlotControl!$B$4 = "Annual Max",MAX(OFFSET(Sdam!$E$10,12*$A33,4*(PlotControl!$C$6-1),12,1)),AVERAGE(OFFSET(Sdam!$E$10,12*$A33,4*(PlotControl!$C$6-1),12,1))) -> 19.402 | T33: =IF(PlotControl!$B$4 = "Annual Max",MAX(OFFSET(Cbeach!$C$10,12*$A33,4*(PlotControl!$C$6-1),12,1)),AVERAGE(OFFSET(Cbeach!$C$10,12*$A33,4*(PlotControl!$C$6-1),12,1))) -> 312.44 | U33: =IF(PlotControl!$B$4 = "Annual Max",MAX(OFFSET(Cbeach!$D$10,12*$A33,4*(PlotControl!$C$6-1),12,1)),AVERAGE(OFFSET(Cbeach!$D$10,12*$A33,4*(PlotControl!$C$6-1),12,1))) -> 346.75 | V33: =IF(PlotControl!$B$4 = "Annual Max",MAX(OFFSET(Cbeach!$E$10,12*$A33,4*(PlotControl!$C$6-1),12,1)),AVERAGE(OFFSET(Cbeach!$E$10,12*$A33,4*(PlotControl!$C$6-1),12,1))) -> 390.31
A34: 29 | B34: =IF(PlotControl!$B$4 = "Annual Max",MAX(OFFSET(Nbeach!$C$10,12*$A34,4*(PlotControl!$C$6-1),12,1)),AVERAGE(OFFSET(Nbeach!$C$10,12*$A34,4*(PlotControl!$C$6-1),12,1))) -> 2657 | C34: =IF(PlotControl!$B$4 = "Annual Max",MAX(OFFSET(Nbeach!$D$10,12*$A34,4*(PlotControl!$C$6-1),12,1)),AVERAGE(OFFSET(Nbeach!$D$10,12*$A34,4*(PlotControl!$C$6-1),12,1))) -> 2760.4 | D34: =IF(PlotControl!$B$4 = "Annual Max",MAX(OFFSET(Nbeach!$E$10,12*$A34,4*(PlotControl!$C$6-1),12,1)),AVERAGE(OFFSET(Nbeach!$E$10,12*$A34,4*(PlotControl!$C$6-1),12,1))) -> 2865.6 | E34: =IF(PlotControl!$B$4 = "Annual Max",MAX(OFFSET(Ndam!$C$10,12*$A34,4*(PlotControl!$C$6-1),12,1)),AVERAGE(OFFSET(Ndam!$C$10,12*$A34,4*(PlotControl!$C$6-1),12,1))) -> 183.44 | F34: =IF(PlotControl!$B$4 = "Annual Max",MAX(OFFSET(Ndam!$D$10,12*$A34,4*(PlotControl!$C$6-1),12,1)),AVERAGE(OFFSET(Ndam!$D$10,12*$A34,4*(PlotControl!$C$6-1),12,1))) -> 183.45 | G34: =IF(PlotControl!$B$4 = "Annual Max",MAX(OFFSET(Ndam!$E$10,12*$A34,4*(PlotControl!$C$6-1),12,1)),AVERAGE(OFFSET(Ndam!$E$10,12*$A34,4*(PlotControl!$C$6-1),12,1))) -> 183.45 | H34: =IF(PlotControl!$B$4 = "Annual Max",MAX(OFFSET(Ebeach!$C$10,12*$A34,4*(PlotControl!$C$6-1),12,1)),AVERAGE(OFFSET(Ebeach!$C$10,12*$A34,4*(PlotControl!$C$6-1),12,1))) -> 369.71 | I34: =IF(PlotControl!$B$4 = "Annual Max",MAX(OFFSET(Ebeach!$D$10,12*$A34,4*(PlotControl!$C$6-1),12,1)),AVERAGE(OFFSET(Ebeach!$D$10,12*$A34,4*(PlotControl!$C$6-1),12,1))) -> 409.18 | J34: =IF(PlotControl!$B$4 = "Annual Max",MAX(OFFSET(Ebeach!$E$10,12*$A34,4*(PlotControl!$C$6-1),12,1)),AVERAGE(OFFSET(Ebeach!$E$10,12*$A34,4*(PlotControl!$C$6-1),12,1))) -> 450.3 | K34: =IF(PlotControl!$B$4 = "Annual Max",MAX(OFFSET(Edam!$C$10,12*$A34,4*(PlotControl!$C$6-1),12,1)),AVERAGE(OFFSET(Edam!$C$10,12*$A34,4*(PlotControl!$C$6-1),12,1))) -> 11.02 | L34: =IF(PlotControl!$B$4 = "Annual Max",MAX(OFFSET(Edam!$D$10,12*$A34,4*(PlotControl!$C$6-1),12,1)),AVERAGE(OFFSET(Edam!$D$10,12*$A34,4*(PlotControl!$C$6-1),12,1))) -> 11.02 | M34: =IF(PlotControl!$B$4 = "Annual Max",MAX(OFFSET(Edam!$E$10,12*$A34,4*(PlotControl!$C$6-1),12,1)),AVERAGE(OFFSET(Edam!$E$10,12*$A34,4*(PlotControl!$C$6-1),12,1))) -> 11.02 | N34: =IF(PlotControl!$B$4 = "Annual Max",MAX(OFFSET(Sbeach!$C$10,12*$A34,4*(PlotControl!$C$6-1),12,1)),AVERAGE(OFFSET(Sbeach!$C$10,12*$A34,4*(PlotControl!$C$6-1),12,1))) -> 1262.7 | O34: =IF(PlotControl!$B$4 = "Annual Max",MAX(OFFSET(Sbeach!$D$10,12*$A34,4*(PlotControl!$C$6-1),12,1)),AVERAGE(OFFSET(Sbeach!$D$10,12*$A34,4*(PlotControl!$C$6-1),12,1))) -> 1342.8 | P34: =IF(PlotControl!$B$4 = "Annual Max",MAX(OFFSET(Sbeach!$E$10,12*$A34,4*(PlotControl!$C$6-1),12,1)),AVERAGE(OFFSET(Sbeach!$E$10,12*$A34,4*(PlotControl!$C$6-1),12,1))) -> 1423.3 | Q34: =IF(PlotControl!$B$4 = "Annual Max",MAX(OFFSET(Sdam!$C$10,12*$A34,4*(PlotControl!$C$6-1),12,1)),AVERAGE(OFFSET(Sdam!$C$10,12*$A34,4*(PlotControl!$C$6-1),12,1))) -> 19.402 | R34: =IF(PlotControl!$B$4 = "Annual Max",MAX(OFFSET(Sdam!$D$10,12*$A34,4*(PlotControl!$C$6-1),12,1)),AVERAGE(OFFSET(Sdam!$D$10,12*$A34,4*(PlotControl!$C$6-1),12,1))) -> 19.402 | S34: =IF(PlotControl!$B$4 = "Annual Max",MAX(OFFSET(Sdam!$E$10,12*$A34,4*(PlotControl!$C$6-1),12,1)),AVERAGE(OFFSET(Sdam!$E$10,12*$A34,4*(PlotControl!$C$6-1),12,1))) -> 19.402 | T34: =IF(PlotControl!$B$4 = "Annual Max",MAX(OFFSET(Cbeach!$C$10,12*$A34,4*(PlotControl!$C$6-1),12,1)),AVERAGE(OFFSET(Cbeach!$C$10,12*$A34,4*(PlotControl!$C$6-1),12,1))) -> 312.43 | U34: =IF(PlotControl!$B$4 = "Annual Max",MAX(OFFSET(Cbeach!$D$10,12*$A34,4*(PlotControl!$C$6-1),12,1)),AVERAGE(OFFSET(Cbeach!$D$10,12*$A34,4*(PlotControl!$C$6-1),12,1))) -> 346.72 | V34: =IF(PlotControl!$B$4 = "Annual Max",MAX(OFFSET(Cbeach!$E$10,12*$A34,4*(PlotControl!$C$6-1),12,1)),AVERAGE(OFFSET(Cbeach!$E$10,12*$A34,4*(PlotControl!$C$6-1),12,1))) -> 390.3
A35: 30 | B35: =IF(PlotControl!$B$4 = "Annual Max",MAX(OFFSET(Nbeach!$C$10,12*$A35,4*(PlotControl!$C$6-1),12,1)),AVERAGE(OFFSET(Nbeach!$C$10,12*$A35,4*(PlotControl!$C$6-1),12,1))) -> 2657 | C35: =IF(PlotControl!$B$4 = "Annual Max",MAX(OFFSET(Nbeach!$D$10,12*$A35,4*(PlotControl!$C$6-1),12,1)),AVERAGE(OFFSET(Nbeach!$D$10,12*$A35,4*(PlotControl!$C$6-1),12,1))) -> 2760.4 | D35: =IF(PlotControl!$B$4 = "Annual Max",MAX(OFFSET(Nbeach!$E$10,12*$A35,4*(PlotControl!$C$6-1),12,1)),AVERAGE(OFFSET(Nbeach!$E$10,12*$A35,4*(PlotControl!$C$6-1),12,1))) -> 2865.6 | E35: =IF(PlotControl!$B$4 = "Annual Max",MAX(OFFSET(Ndam!$C$10,12*$A35,4*(PlotControl!$C$6-1),12,1)),AVERAGE(OFFSET(Ndam!$C$10,12*$A35,4*(PlotControl!$C$6-1),12,1))) -> 183.44 | F35: =IF(PlotControl!$B$4 = "Annual Max",MAX(OFFSET(Ndam!$D$10,12*$A35,4*(PlotControl!$C$6-1),12,1)),AVERAGE(OFFSET(Ndam!$D$10,12*$A35,4*(PlotControl!$C$6-1),12,1))) -> 183.45 | G35: =IF(PlotControl!$B$4 = "Annual Max",MAX(OFFSET(Ndam!$E$10,12*$A35,4*(PlotControl!$C$6-1),12,1)),AVERAGE(OFFSET(Ndam!$E$10,12*$A35,4*(PlotControl!$C$6-1),12,1))) -> 183.45 | H35: =IF(PlotControl!$B$4 = "Annual Max",MAX(OFFSET(Ebeach!$C$10,12*$A35,4*(PlotControl!$C$6-1),12,1)),AVERAGE(OFFSET(Ebeach!$C$10,12*$A35,4*(PlotControl!$C$6-1),12,1))) -> 369.71 | I35: =IF(PlotControl!$B$4 = "Annual Max",MAX(OFFSET(Ebeach!$D$10,12*$A35,4*(PlotControl!$C$6-1),12,1)),AVERAGE(OFFSET(Ebeach!$D$10,12*$A35,4*(PlotControl!$C$6-1),12,1))) -> 409.17 | J35: =IF(PlotControl!$B$4 = "Annual Max",MAX(OFFSET(Ebeach!$E$10,12*$A35,4*(PlotControl!$C$6-1),12,1)),AVERAGE(OFFSET(Ebeach!$E$10,12*$A35,4*(PlotControl!$C$6-1),12,1))) -> 450.29 | K35: =IF(PlotControl!$B$4 = "Annual Max",MAX(OFFSET(Edam!$C$10,12*$A35,4*(PlotControl!$C$6-1),12,1)),AVERAGE(OFFSET(Edam!$C$10,12*$A35,4*(PlotControl!$C$6-1),12,1))) -> 11.02 | L35: =IF(PlotControl!$B$4 = "Annual Max",MAX(OFFSET(Edam!$D$10,12*$A35,4*(PlotControl!$C$6-1),12,1)),AVERAGE(OFFSET(Edam!$D$10,12*$A35,4*(PlotControl!$C$6-1),12,1))) -> 11.02 | M35: =IF(PlotControl!$B$4 = "Annual Max",MAX(OFFSET(Edam!$E$10,12*$A35,4*(PlotControl!$C$6-1),12,1)),AVERAGE(OFFSET(Edam!$E$10,12*$A35,4*(PlotControl!$C$6-1),12,1))) -> 11.02 | N35: =IF(PlotControl!$B$4 = "Annual Max",MAX(OFFSET(Sbeach!$C$10,12*$A35,4*(PlotControl!$C$6-1),12,1)),AVERAGE(OFFSET(Sbeach!$C$10,12*$A35,4*(PlotControl!$C$6-1),12,1))) -> 1262.7 | O35: =IF(PlotControl!$B$4 = "Annual Max",MAX(OFFSET(Sbeach!$D$10,12*$A35,4*(PlotControl!$C$6-1),12,1)),AVERAGE(OFFSET(Sbeach!$D$10,12*$A35,4*(PlotControl!$C$6-1),12,1))) -> 1342.8 | P35: =IF(PlotControl!$B$4 = "Annual Max",MAX(OFFSET(Sbeach!$E$10,12*$A35,4*(PlotControl!$C$6-1),12,1)),AVERAGE(OFFSET(Sbeach!$E$10,12*$A35,4*(PlotControl!$C$6-1),12,1))) -> 1423.3 | Q35: =IF(PlotControl!$B$4 = "Annual Max",MAX(OFFSET(Sdam!$C$10,12*$A35,4*(PlotControl!$C$6-1),12,1)),AVERAGE(OFFSET(Sdam!$C$10,12*$A35,4*(PlotControl!$C$6-1),12,1))) -> 19.402 | R35: =IF(PlotControl!$B$4 = "Annual Max",MAX(OFFSET(Sdam!$D$10,12*$A35,4*(PlotControl!$C$6-1),12,1)),AVERAGE(OFFSET(Sdam!$D$10,12*$A35,4*(PlotControl!$C$6-1),12,1))) -> 19.402 | S35: =IF(PlotControl!$B$4 = "Annual Max",MAX(OFFSET(Sdam!$E$10,12*$A35,4*(PlotControl!$C$6-1),12,1)),AVERAGE(OFFSET(Sdam!$E$10,12*$A35,4*(PlotControl!$C$6-1),12,1))) -> 19.402 | T35: =IF(PlotControl!$B$4 = "Annual Max",MAX(OFFSET(Cbeach!$C$10,12*$A35,4*(PlotControl!$C$6-1),12,1)),AVERAGE(OFFSET(Cbeach!$C$10,12*$A35,4*(PlotControl!$C$6-1),12,1))) -> 312.43 | U35: =IF(PlotControl!$B$4 = "Annual Max",MAX(OFFSET(Cbeach!$D$10,12*$A35,4*(PlotControl!$C$6-1),12,1)),AVERAGE(OFFSET(Cbeach!$D$10,12*$A35,4*(PlotControl!$C$6-1),12,1))) -> 346.68 | V35: =IF(PlotControl!$B$4 = "Annual Max",MAX(OFFSET(Cbeach!$E$10,12*$A35,4*(PlotControl!$C$6-1),12,1)),AVERAGE(OFFSET(Cbeach!$E$10,12*$A35,4*(PlotControl!$C$6-1),12,1))) -> 390.29
A36: 31 | B36: =IF(PlotControl!$B$4 = "Annual Max",MAX(OFFSET(Nbeach!$C$10,12*$A36,4*(PlotControl!$C$6-1),12,1)),AVERAGE(OFFSET(Nbeach!$C$10,12*$A36,4*(PlotControl!$C$6-1),12,1))) -> 2657 | C36: =IF(PlotControl!$B$4 = "Annual Max",MAX(OFFSET(Nbeach!$D$10,12*$A36,4*(PlotControl!$C$6-1),12,1)),AVERAGE(OFFSET(Nbeach!$D$10,12*$A36,4*(PlotControl!$C$6-1),12,1))) -> 2760.4 | D36: =IF(PlotControl!$B$4 = "Annual Max",MAX(OFFSET(Nbeach!$E$10,12*$A36,4*(PlotControl!$C$6-1),12,1)),AVERAGE(OFFSET(Nbeach!$E$10,12*$A36,4*(PlotControl!$C$6-1),12,1))) -> 2865.6 | E36: =IF(PlotControl!$B$4 = "Annual Max",MAX(OFFSET(Ndam!$C$10,12*$A36,4*(PlotControl!$C$6-1),12,1)),AVERAGE(OFFSET(Ndam!$C$10,12*$A36,4*(PlotControl!$C$6-1),12,1))) -> 183.44 | F36: =IF(PlotControl!$B$4 = "Annual Max",MAX(OFFSET(Ndam!$D$10,12*$A36,4*(PlotControl!$C$6-1),12,1)),AVERAGE(OFFSET(Ndam!$D$10,12*$A36,4*(PlotControl!$C$6-1),12,1))) -> 183.44 | G36: =IF(PlotControl!$B$4 = "Annual Max",MAX(OFFSET(Ndam!$E$10,12*$A36,4*(PlotControl!$C$6-1),12,1)),AVERAGE(OFFSET(Ndam!$E$10,12*$A36,4*(PlotControl!$C$6-1),12,1))) -> 183.45 | H36: =IF(PlotControl!$B$4 = "Annual Max",MAX(OFFSET(Ebeach!$C$10,12*$A36,4*(PlotControl!$C$6-1),12,1)),AVERAGE(OFFSET(Ebeach!$C$10,12*$A36,4*(PlotControl!$C$6-1),12,1))) -> 369.7 | I36: =IF(PlotControl!$B$4 = "Annual Max",MAX(OFFSET(Ebeach!$D$10,12*$A36,4*(PlotControl!$C$6-1),12,1)),AVERAGE(OFFSET(Ebeach!$D$10,12*$A36,4*(PlotControl!$C$6-1),12,1))) -> 409.17 | J36: =IF(PlotControl!$B$4 = "Annual Max",MAX(OFFSET(Ebeach!$E$10,12*$A36,4*(PlotControl!$C$6-1),12,1)),AVERAGE(OFFSET(Ebeach!$E$10,12*$A36,4*(PlotControl!$C$6-1),12,1))) -> 450.28 | K36: =IF(PlotControl!$B$4 = "Annual Max",MAX(OFFSET(Edam!$C$10,12*$A36,4*(PlotControl!$C$6-1),12,1)),AVERAGE(OFFSET(Edam!$C$10,12*$A36,4*(PlotControl!$C$6-1),12,1))) -> 11.02 | L36: =IF(PlotControl!$B$4 = "Annual Max",MAX(OFFSET(Edam!$D$10,12*$A36,4*(PlotControl!$C$6-1),12,1)),AVERAGE(OFFSET(Edam!$D$10,12*$A36,4*(PlotControl!$C$6-1),12,1))) -> 11.02 | M36: =IF(PlotControl!$B$4 = "Annual Max",MAX(OFFSET(Edam!$E$10,12*$A36,4*(PlotControl!$C$6-1),12,1)),AVERAGE(OFFSET(Edam!$E$10,12*$A36,4*(PlotControl!$C$6-1),12,1))) -> 11.02 | N36: =IF(PlotControl!$B$4 = "Annual Max",MAX(OFFSET(Sbeach!$C$10,12*$A36,4*(PlotControl!$C$6-1),12,1)),AVERAGE(OFFSET(Sbeach!$C$10,12*$A36,4*(PlotControl!$C$6-1),12,1))) -> 1262.7 | O36: =IF(PlotControl!$B$4 = "Annual Max",MAX(OFFSET(Sbeach!$D$10,12*$A36,4*(PlotControl!$C$6-1),12,1)),AVERAGE(OFFSET(Sbeach!$D$10,12*$A36,4*(PlotControl!$C$6-1),12,1))) -> 1342.8 | P36: =IF(PlotControl!$B$4 = "Annual Max",MAX(OFFSET(Sbeach!$E$10,12*$A36,4*(PlotControl!$C$6-1),12,1)),AVERAGE(OFFSET(Sbeach!$E$10,12*$A36,4*(PlotControl!$C$6-1),12,1))) -> 1423.3 | Q36: =IF(PlotControl!$B$4 = "Annual Max",MAX(OFFSET(Sdam!$C$10,12*$A36,4*(PlotControl!$C$6-1),12,1)),AVERAGE(OFFSET(Sdam!$C$10,12*$A36,4*(PlotControl!$C$6-1),12,1))) -> 19.402 | R36: =IF(PlotControl!$B$4 = "Annual Max",MAX(OFFSET(Sdam!$D$10,12*$A36,4*(PlotControl!$C$6-1),12,1)),AVERAGE(OFFSET(Sdam!$D$10,12*$A36,4*(PlotControl!$C$6-1),12,1))) -> 19.402 | S36: =IF(PlotControl!$B$4 = "Annual Max",MAX(OFFSET(Sdam!$E$10,12*$A36,4*(PlotControl!$C$6-1),12,1)),AVERAGE(OFFSET(Sdam!$E$10,12*$A36,4*(PlotControl!$C$6-1),12,1))) -> 19.402 | T36: =IF(PlotControl!$B$4 = "Annual Max",MAX(OFFSET(Cbeach!$C$10,12*$A36,4*(PlotControl!$C$6-1),12,1)),AVERAGE(OFFSET(Cbeach!$C$10,12*$A36,4*(PlotControl!$C$6-1),12,1))) -> 312.42 | U36: =IF(PlotControl!$B$4 = "Annual Max",MAX(OFFSET(Cbeach!$D$10,12*$A36,4*(PlotControl!$C$6-1),12,1)),AVERAGE(OFFSET(Cbeach!$D$10,12*$A36,4*(PlotControl!$C$6-1),12,1))) -> 346.66 | V36: =IF(PlotControl!$B$4 = "Annual Max",MAX(OFFSET(Cbeach!$E$10,12*$A36,4*(PlotControl!$C$6-1),12,1)),AVERAGE(OFFSET(Cbeach!$E$10,12*$A36,4*(PlotControl!$C$6-1),12,1))) -> 390.28
A37: 32 | B37: =IF(PlotControl!$B$4 = "Annual Max",MAX(OFFSET(Nbeach!$C$10,12*$A37,4*(PlotControl!$C$6-1),12,1)),AVERAGE(OFFSET(Nbeach!$C$10,12*$A37,4*(PlotControl!$C$6-1),12,1))) -> 2657 | C37: =IF(PlotControl!$B$4 = "Annual Max",MAX(OFFSET(Nbeach!$D$10,12*$A37,4*(PlotControl!$C$6-1),12,1)),AVERAGE(OFFSET(Nbeach!$D$10,12*$A37,4*(PlotControl!$C$6-1),12,1))) -> 2760.4 | D37: =IF(PlotControl!$B$4 = "Annual Max",MAX(OFFSET(Nbeach!$E$10,12*$A37,4*(PlotControl!$C$6-1),12,1)),AVERAGE(OFFSET(Nbeach!$E$10,12*$A37,4*(PlotControl!$C$6-1),12,1))) -> 2865.6 | E37: =IF(PlotControl!$B$4 = "Annual Max",MAX(OFFSET(Ndam!$C$10,12*$A37,4*(PlotControl!$C$6-1),12,1)),AVERAGE(OFFSET(Ndam!$C$10,12*$A37,4*(PlotControl!$C$6-1),12,1))) -> 183.44 | F37: =IF(PlotControl!$B$4 = "Annual Max",MAX(OFFSET(Ndam!$D$10,12*$A37,4*(PlotControl!$C$6-1),12,1)),AVERAGE(OFFSET(Ndam!$D$10,12*$A37,4*(PlotControl!$C$6-1),12,1))) -> 183.44 | G37: =IF(PlotControl!$B$4 = "Annual Max",MAX(OFFSET(Ndam!$E$10,12*$A37,4*(PlotControl!$C$6-1),12,1)),AVERAGE(OFFSET(Ndam!$E$10,12*$A37,4*(PlotControl!$C$6-1),12,1))) -> 183.45 | H37: =IF(PlotControl!$B$4 = "Annual Max",MAX(OFFSET(Ebeach!$C$10,12*$A37,4*(PlotControl!$C$6-1),12,1)),AVERAGE(OFFSET(Ebeach!$C$10,12*$A37,4*(PlotControl!$C$6-1),12,1))) -> 369.69 | I37: =IF(PlotControl!$B$4 = "Annual Max",MAX(OFFSET(Ebeach!$D$10,12*$A37,4*(PlotControl!$C$6-1),12,1)),AVERAGE(OFFSET(Ebeach!$D$10,12*$A37,4*(PlotControl!$C$6-1),12,1))) -> 409.16 | J37: =IF(PlotControl!$B$4 = "Annual Max",MAX(OFFSET(Ebeach!$E$10,12*$A37,4*(PlotControl!$C$6-1),12,1)),AVERAGE(OFFSET(Ebeach!$E$10,12*$A37,4*(PlotControl!$C$6-1),12,1))) -> 450.26 | K37: =IF(PlotControl!$B$4 = "Annual Max",MAX(OFFSET(Edam!$C$10,12*$A37,4*(PlotControl!$C$6-1),12,1)),AVERAGE(OFFSET(Edam!$C$10,12*$A37,4*(PlotControl!$C$6-1),12,1))) -> 11.02 | L37: =IF(PlotControl!$B$4 = "Annual Max",MAX(OFFSET(Edam!$D$10,12*$A37,4*(PlotControl!$C$6-1),12,1)),AVERAGE(OFFSET(Edam!$D$10,12*$A37,4*(PlotControl!$C$6-1),12,1))) -> 11.02 | M37: =IF(PlotControl!$B$4 = "Annual Max",MAX(OFFSET(Edam!$E$10,12*$A37,4*(PlotControl!$C$6-1),12,1)),AVERAGE(OFFSET(Edam!$E$10,12*$A37,4*(PlotControl!$C$6-1),12,1))) -> 11.02 | N37: =IF(PlotControl!$B$4 = "Annual Max",MAX(OFFSET(Sbeach!$C$10,12*$A37,4*(PlotControl!$C$6-1),12,1)),AVERAGE(OFFSET(Sbeach!$C$10,12*$A37,4*(PlotControl!$C$6-1),12,1))) -> 1262.7 | O37: =IF(PlotControl!$B$4 = "Annual Max",MAX(OFFSET(Sbeach!$D$10,12*$A37,4*(PlotControl!$C$6-1),12,1)),AVERAGE(OFFSET(Sbeach!$D$10,12*$A37,4*(PlotControl!$C$6-1),12,1))) -> 1342.8 | P37: =IF(PlotControl!$B$4 = "Annual Max",MAX(OFFSET(Sbeach!$E$10,12*$A37,4*(PlotControl!$C$6-1),12,1)),AVERAGE(OFFSET(Sbeach!$E$10,12*$A37,4*(PlotControl!$C$6-1),12,1))) -> 1423.3 | Q37: =IF(PlotControl!$B$4 = "Annual Max",MAX(OFFSET(Sdam!$C$10,12*$A37,4*(PlotControl!$C$6-1),12,1)),AVERAGE(OFFSET(Sdam!$C$10,12*$A37,4*(PlotControl!$C$6-1),12,1))) -> 19.402 | R37: =IF(PlotControl!$B$4 = "Annual Max",MAX(OFFSET(Sdam!$D$10,12*$A37,4*(PlotControl!$C$6-1),12,1)),AVERAGE(OFFSET(Sdam!$D$10,12*$A37,4*(PlotControl!$C$6-1),12,1))) -> 19.402 | S37: =IF(PlotControl!$B$4 = "Annual Max",MAX(OFFSET(Sdam!$E$10,12*$A37,4*(PlotControl!$C$6-1),12,1)),AVERAGE(OFFSET(Sdam!$E$10,12*$A37,4*(PlotControl!$C$6-1),12,1))) -> 19.402 | T37: =IF(PlotControl!$B$4 = "Annual Max",MAX(OFFSET(Cbeach!$C$10,12*$A37,4*(PlotControl!$C$6-1),12,1)),AVERAGE(OFFSET(Cbeach!$C$10,12*$A37,4*(PlotControl!$C$6-1),12,1))) -> 312.41 | U37: =IF(PlotControl!$B$4 = "Annual Max",MAX(OFFSET(Cbeach!$D$10,12*$A37,4*(PlotControl!$C$6-1),12,1)),AVERAGE(OFFSET(Cbeach!$D$10,12*$A37,4*(PlotControl!$C$6-1),12,1))) -> 346.63 | V37: =IF(PlotControl!$B$4 = "Annual Max",MAX(OFFSET(Cbeach!$E$10,12*$A37,4*(PlotControl!$C$6-1),12,1)),AVERAGE(OFFSET(Cbeach!$E$10,12*$A37,4*(PlotControl!$C$6-1),12,1))) -> 390.27
A38: 33 | B38: =IF(PlotControl!$B$4 = "Annual Max",MAX(OFFSET(Nbeach!$C$10,12*$A38,4*(PlotControl!$C$6-1),12,1)),AVERAGE(OFFSET(Nbeach!$C$10,12*$A38,4*(PlotControl!$C$6-1),12,1))) -> 2657 | C38: =IF(PlotControl!$B$4 = "Annual Max",MAX(OFFSET(Nbeach!$D$10,12*$A38,4*(PlotControl!$C$6-1),12,1)),AVERAGE(OFFSET(Nbeach!$D$10,12*$A38,4*(PlotControl!$C$6-1),12,1))) -> 2760.4 | D38: =IF(PlotControl!$B$4 = "Annual Max",MAX(OFFSET(Nbeach!$E$10,12*$A38,4*(PlotControl!$C$6-1),12,1)),AVERAGE(OFFSET(Nbeach!$E$10,12*$A38,4*(PlotControl!$C$6-1),12,1))) -> 2865.6 | E38: =IF(PlotControl!$B$4 = "Annual Max",MAX(OFFSET(Ndam!$C$10,12*$A38,4*(PlotControl!$C$6-1),12,1)),AVERAGE(OFFSET(Ndam!$C$10,12*$A38,4*(PlotControl!$C$6-1),12,1))) -> 183.44 | F38: =IF(PlotControl!$B$4 = "Annual Max",MAX(OFFSET(Ndam!$D$10,12*$A38,4*(PlotControl!$C$6-1),12,1)),AVERAGE(OFFSET(Ndam!$D$10,12*$A38,4*(PlotControl!$C$6-1),12,1))) -> 183.44 | G38: =IF(PlotControl!$B$4 = "Annual Max",MAX(OFFSET(Ndam!$E$10,12*$A38,4*(PlotControl!$C$6-1),12,1)),AVERAGE(OFFSET(Ndam!$E$10,12*$A38,4*(PlotControl!$C$6-1),12,1))) -> 183.45 | H38: =IF(PlotControl!$B$4 = "Annual Max",MAX(OFFSET(Ebeach!$C$10,12*$A38,4*(PlotControl!$C$6-1),12,1)),AVERAGE(OFFSET(Ebeach!$C$10,12*$A38,4*(PlotControl!$C$6-1),12,1))) -> 369.68 | I38: =IF(PlotControl!$B$4 = "Annual Max",MAX(OFFSET(Ebeach!$D$10,12*$A38,4*(PlotControl!$C$6-1),12,1)),AVERAGE(OFFSET(Ebeach!$D$10,12*$A38,4*(PlotControl!$C$6-1),12,1))) -> 409.15 | J38: =IF(PlotControl!$B$4 = "Annual Max",MAX(OFFSET(Ebeach!$E$10,12*$A38,4*(PlotControl!$C$6-1),12,1)),AVERAGE(OFFSET(Ebeach!$E$10,12*$A38,4*(PlotControl!$C$6-1),12,1))) -> 450.25 | K38: =IF(PlotControl!$B$4 = "Annual Max",MAX(OFFSET(Edam!$C$10,12*$A38,4*(PlotControl!$C$6-1),12,1)),AVERAGE(OFFSET(Edam!$C$10,12*$A38,4*(PlotControl!$C$6-1),12,1))) -> 11.02 | L38: =IF(PlotControl!$B$4 = "Annual Max",MAX(OFFSET(Edam!$D$10,12*$A38,4*(PlotControl!$C$6-1),12,1)),AVERAGE(OFFSET(Edam!$D$10,12*$A38,4*(PlotControl!$C$6-1),12,1))) -> 11.02 | M38: =IF(PlotControl!$B$4 = "Annual Max",MAX(OFFSET(Edam!$E$10,12*$A38,4*(PlotControl!$C$6-1),12,1)),AVERAGE(OFFSET(Edam!$E$10,12*$A38,4*(PlotControl!$C$6-1),12,1))) -> 11.02 | N38: =IF(PlotControl!$B$4 = "Annual Max",MAX(OFFSET(Sbeach!$C$10,12*$A38,4*(PlotControl!$C$6-1),12,1)),AVERAGE(OFFSET(Sbeach!$C$10,12*$A38,4*(PlotControl!$C$6-1),12,1))) -> 1262.7 | O38: =IF(PlotControl!$B$4 = "Annual Max",MAX(OFFSET(Sbeach!$D$10,12*$A38,4*(PlotControl!$C$6-1),12,1)),AVERAGE(OFFSET(Sbeach!$D$10,12*$A38,4*(PlotControl!$C$6-1),12,1))) -> 1342.8 | P38: =IF(PlotControl!$B$4 = "Annual Max",MAX(OFFSET(Sbeach!$E$10,12*$A38,4*(PlotControl!$C$6-1),12,1)),AVERAGE(OFFSET(Sbeach!$E$10,12*$A38,4*(PlotControl!$C$6-1),12,1))) -> 1423.3 | Q38: =IF(PlotControl!$B$4 = "Annual Max",MAX(OFFSET(Sdam!$C$10,12*$A38,4*(PlotControl!$C$6-1),12,1)),AVERAGE(OFFSET(Sdam!$C$10,12*$A38,4*(PlotControl!$C$6-1),12,1))) -> 19.402 | R38: =IF(PlotControl!$B$4 = "Annual Max",MAX(OFFSET(Sdam!$D$10,12*$A38,4*(PlotControl!$C$6-1),12,1)),AVERAGE(OFFSET(Sdam!$D$10,12*$A38,4*(PlotControl!$C$6-1),12,1))) -> 19.402 | S38: =IF(PlotControl!$B$4 = "Annual Max",MAX(OFFSET(Sdam!$E$10,12*$A38,4*(PlotControl!$C$6-1),12,1)),AVERAGE(OFFSET(Sdam!$E$10,12*$A38,4*(PlotControl!$C$6-1),12,1))) -> 19.402 | T38: =IF(PlotControl!$B$4 = "Annual Max",MAX(OFFSET(Cbeach!$C$10,12*$A38,4*(PlotControl!$C$6-1),12,1)),AVERAGE(OFFSET(Cbeach!$C$10,12*$A38,4*(PlotControl!$C$6-1),12,1))) -> 312.41 | U38: =IF(PlotControl!$B$4 = "Annual Max",MAX(OFFSET(Cbeach!$D$10,12*$A38,4*(PlotControl!$C$6-1),12,1)),AVERAGE(OFFSET(Cbeach!$D$10,12*$A38,4*(PlotControl!$C$6-1),12,1))) -> 346.59 | V38: =IF(PlotControl!$B$4 = "Annual Max",MAX(OFFSET(Cbeach!$E$10,12*$A38,4*(PlotControl!$C$6-1),12,1)),AVERAGE(OFFSET(Cbeach!$E$10,12*$A38,4*(PlotControl!$C$6-1),12,1))) -> 390.26
A39: 34 | B39: =IF(PlotControl!$B$4 = "Annual Max",MAX(OFFSET(Nbeach!$C$10,12*$A39,4*(PlotControl!$C$6-1),12,1)),AVERAGE(OFFSET(Nbeach!$C$10,12*$A39,4*(PlotControl!$C$6-1),12,1))) -> 2657 | C39: =IF(PlotControl!$B$4 = "Annual Max",MAX(OFFSET(Nbeach!$D$10,12*$A39,4*(PlotControl!$C$6-1),12,1)),AVERAGE(OFFSET(Nbeach!$D$10,12*$A39,4*(PlotControl!$C$6-1),12,1))) -> 2760.4 | D39: =IF(PlotControl!$B$4 = "Annual Max",MAX(OFFSET(Nbeach!$E$10,12*$A39,4*(PlotControl!$C$6-1),12,1)),AVERAGE(OFFSET(Nbeach!$E$10,12*$A39,4*(PlotControl!$C$6-1),12,1))) -> 2865.6 | E39: =IF(PlotControl!$B$4 = "Annual Max",MAX(OFFSET(Ndam!$C$10,12*$A39,4*(PlotControl!$C$6-1),12,1)),AVERAGE(OFFSET(Ndam!$C$10,12*$A39,4*(PlotControl!$C$6-1),12,1))) -> 183.44 | F39: =IF(PlotControl!$B$4 = "Annual Max",MAX(OFFSET(Ndam!$D$10,12*$A39,4*(PlotControl!$C$6-1),12,1)),AVERAGE(OFFSET(Ndam!$D$10,12*$A39,4*(PlotControl!$C$6-1),12,1))) -> 183.44 | G39: =IF(PlotControl!$B$4 = "Annual Max",MAX(OFFSET(Ndam!$E$10,12*$A39,4*(PlotControl!$C$6-1),12,1)),AVERAGE(OFFSET(Ndam!$E$10,12*$A39,4*(PlotControl!$C$6-1),12,1))) -> 183.45 | H39: =IF(PlotControl!$B$4 = "Annual Max",MAX(OFFSET(Ebeach!$C$10,12*$A39,4*(PlotControl!$C$6-1),12,1)),AVERAGE(OFFSET(Ebeach!$C$10,12*$A39,4*(PlotControl!$C$6-1),12,1))) -> 369.67 | I39: =IF(PlotControl!$B$4 = "Annual Max",MAX(OFFSET(Ebeach!$D$10,12*$A39,4*(PlotControl!$C$6-1),12,1)),AVERAGE(OFFSET(Ebeach!$D$10,12*$A39,4*(PlotControl!$C$6-1),12,1))) -> 409.15 | J39: =IF(PlotControl!$B$4 = "Annual Max",MAX(OFFSET(Ebeach!$E$10,12*$A39,4*(PlotControl!$C$6-1),12,1)),AVERAGE(OFFSET(Ebeach!$E$10,12*$A39,4*(PlotControl!$C$6-1),12,1))) -> 450.24 | K39: =IF(PlotControl!$B$4 = "Annual Max",MAX(OFFSET(Edam!$C$10,12*$A39,4*(PlotControl!$C$6-1),12,1)),AVERAGE(OFFSET(Edam!$C$10,12*$A39,4*(PlotControl!$C$6-1),12,1))) -> 11.02 | L39: =IF(PlotControl!$B$4 = "Annual Max",MAX(OFFSET(Edam!$D$10,12*$A39,4*(PlotControl!$C$6-1),12,1)),AVERAGE(OFFSET(Edam!$D$10,12*$A39,4*(PlotControl!$C$6-1),12,1))) -> 11.02 | M39: =IF(PlotControl!$B$4 = "Annual Max",MAX(OFFSET(Edam!$E$10,12*$A39,4*(PlotControl!$C$6-1),12,1)),AVERAGE(OFFSET(Edam!$E$10,12*$A39,4*(PlotControl!$C$6-1),12,1))) -> 11.02 | N39: =IF(PlotControl!$B$4 = "Annual Max",MAX(OFFSET(Sbeach!$C$10,12*$A39,4*(PlotControl!$C$6-1),12,1)),AVERAGE(OFFSET(Sbeach!$C$10,12*$A39,4*(PlotControl!$C$6-1),12,1))) -> 1262.7 | O39: =IF(PlotControl!$B$4 = "Annual Max",MAX(OFFSET(Sbeach!$D$10,12*$A39,4*(PlotControl!$C$6-1),12,1)),AVERAGE(OFFSET(Sbeach!$D$10,12*$A39,4*(PlotControl!$C$6-1),12,1))) -> 1342.8 | P39: =IF(PlotControl!$B$4 = "Annual Max",MAX(OFFSET(Sbeach!$E$10,12*$A39,4*(PlotControl!$C$6-1),12,1)),AVERAGE(OFFSET(Sbeach!$E$10,12*$A39,4*(PlotControl!$C$6-1),12,1))) -> 1423.3 | Q39: =IF(PlotControl!$B$4 = "Annual Max",MAX(OFFSET(Sdam!$C$10,12*$A39,4*(PlotControl!$C$6-1),12,1)),AVERAGE(OFFSET(Sdam!$C$10,12*$A39,4*(PlotControl!$C$6-1),12,1))) -> 19.402 | R39: =IF(PlotControl!$B$4 = "Annual Max",MAX(OFFSET(Sdam!$D$10,12*$A39,4*(PlotControl!$C$6-1),12,1)),AVERAGE(OFFSET(Sdam!$D$10,12*$A39,4*(PlotControl!$C$6-1),12,1))) -> 19.402 | S39: =IF(PlotControl!$B$4 = "Annual Max",MAX(OFFSET(Sdam!$E$10,12*$A39,4*(PlotControl!$C$6-1),12,1)),AVERAGE(OFFSET(Sdam!$E$10,12*$A39,4*(PlotControl!$C$6-1),12,1))) -> 19.402 | T39: =IF(PlotControl!$B$4 = "Annual Max",MAX(OFFSET(Cbeach!$C$10,12*$A39,4*(PlotControl!$C$6-1),12,1)),AVERAGE(OFFSET(Cbeach!$C$10,12*$A39,4*(PlotControl!$C$6-1),12,1))) -> 312.4 | U39: =IF(PlotControl!$B$4 = "Annual Max",MAX(OFFSET(Cbeach!$D$10,12*$A39,4*(PlotControl!$C$6-1),12,1)),AVERAGE(OFFSET(Cbeach!$D$10,12*$A39,4*(PlotControl!$C$6-1),12,1))) -> 346.55 | V39: =IF(PlotControl!$B$4 = "Annual Max",MAX(OFFSET(Cbeach!$E$10,12*$A39,4*(PlotControl!$C$6-1),12,1)),AVERAGE(OFFSET(Cbeach!$E$10,12*$A39,4*(PlotControl!$C$6-1),12,1))) -> 390.25
A40: 35 | B40: =IF(PlotControl!$B$4 = "Annual Max",MAX(OFFSET(Nbeach!$C$10,12*$A40,4*(PlotControl!$C$6-1),12,1)),AVERAGE(OFFSET(Nbeach!$C$10,12*$A40,4*(PlotControl!$C$6-1),12,1))) -> 2657 | C40: =IF(PlotControl!$B$4 = "Annual Max",MAX(OFFSET(Nbeach!$D$10,12*$A40,4*(PlotControl!$C$6-1),12,1)),AVERAGE(OFFSET(Nbeach!$D$10,12*$A40,4*(PlotControl!$C$6-1),12,1))) -> 2760.3 | D40: =IF(PlotControl!$B$4 = "Annual Max",MAX(OFFSET(Nbeach!$E$10,12*$A40,4*(PlotControl!$C$6-1),12,1)),AVERAGE(OFFSET(Nbeach!$E$10,12*$A40,4*(PlotControl!$C$6-1),12,1))) -> 2865.6 | E40: =IF(PlotControl!$B$4 = "Annual Max",MAX(OFFSET(Ndam!$C$10,12*$A40,4*(PlotControl!$C$6-1),12,1)),AVERAGE(OFFSET(Ndam!$C$10,12*$A40,4*(PlotControl!$C$6-1),12,1))) -> 183.44 | F40: =IF(PlotControl!$B$4 = "Annual Max",MAX(OFFSET(Ndam!$D$10,12*$A40,4*(PlotControl!$C$6-1),12,1)),AVERAGE(OFFSET(Ndam!$D$10,12*$A40,4*(PlotControl!$C$6-1),12,1))) -> 183.44 | G40: =IF(PlotControl!$B$4 = "Annual Max",MAX(OFFSET(Ndam!$E$10,12*$A40,4*(PlotControl!$C$6-1),12,1)),AVERAGE(OFFSET(Ndam!$E$10,12*$A40,4*(PlotControl!$C$6-1),12,1))) -> 183.45 | H40: =IF(PlotControl!$B$4 = "Annual Max",MAX(OFFSET(Ebeach!$C$10,12*$A40,4*(PlotControl!$C$6-1),12,1)),AVERAGE(OFFSET(Ebeach!$C$10,12*$A40,4*(PlotControl!$C$6-1),12,1))) -> 369.66 | I40: =IF(PlotControl!$B$4 = "Annual Max",MAX(OFFSET(Ebeach!$D$10,12*$A40,4*(PlotControl!$C$6-1),12,1)),AVERAGE(OFFSET(Ebeach!$D$10,12*$A40,4*(PlotControl!$C$6-1),12,1))) -> 409.14 | J40: =IF(PlotControl!$B$4 = "Annual Max",MAX(OFFSET(Ebeach!$E$10,12*$A40,4*(PlotControl!$C$6-1),12,1)),AVERAGE(OFFSET(Ebeach!$E$10,12*$A40,4*(PlotControl!$C$6-1),12,1))) -> 450.28 | K40: =IF(PlotControl!$B$4 = "Annual Max",MAX(OFFSET(Edam!$C$10,12*$A40,4*(PlotControl!$C$6-1),12,1)),AVERAGE(OFFSET(Edam!$C$10,12*$A40,4*(PlotControl!$C$6-1),12,1))) -> 11.02 | L40: =IF(PlotControl!$B$4 = "Annual Max",MAX(OFFSET(Edam!$D$10,12*$A40,4*(PlotControl!$C$6-1),12,1)),AVERAGE(OFFSET(Edam!$D$10,12*$A40,4*(PlotControl!$C$6-1),12,1))) -> 11.02 | M40: =IF(PlotControl!$B$4 = "Annual Max",MAX(OFFSET(Edam!$E$10,12*$A40,4*(PlotControl!$C$6-1),12,1)),AVERAGE(OFFSET(Edam!$E$10,12*$A40,4*(PlotControl!$C$6-1),12,1))) -> 11.02 | N40: =IF(PlotControl!$B$4 = "Annual Max",MAX(OFFSET(Sbeach!$C$10,12*$A40,4*(PlotControl!$C$6-1),12,1)),AVERAGE(OFFSET(Sbeach!$C$10,12*$A40,4*(PlotControl!$C$6-1),12,1))) -> 1262.7 | O40: =IF(PlotControl!$B$4 = "Annual Max",MAX(OFFSET(Sbeach!$D$10,12*$A40,4*(PlotControl!$C$6-1),12,1)),AVERAGE(OFFSET(Sbeach!$D$10,12*$A40,4*(PlotControl!$C$6-1),12,1))) -> 1342.8 | P40: =IF(PlotControl!$B$4 = "Annual Max",MAX(OFFSET(Sbeach!$E$10,12*$A40,4*(PlotControl!$C$6-1),12,1)),AVERAGE(OFFSET(Sbeach!$E$10,12*$A40,4*(PlotControl!$C$6-1),12,1))) -> 1423.3 | Q40: =IF(PlotControl!$B$4 = "Annual Max",MAX(OFFSET(Sdam!$C$10,12*$A40,4*(PlotControl!$C$6-1),12,1)),AVERAGE(OFFSET(Sdam!$C$10,12*$A40,4*(PlotControl!$C$6-1),12,1))) -> 19.402 | R40: =IF(PlotControl!$B$4 = "Annual Max",MAX(OFFSET(Sdam!$D$10,12*$A40,4*(PlotControl!$C$6-1),12,1)),AVERAGE(OFFSET(Sdam!$D$10,12*$A40,4*(PlotControl!$C$6-1),12,1))) -> 19.402 | S40: =IF(PlotControl!$B$4 = "Annual Max",MAX(OFFSET(Sdam!$E$10,12*$A40,4*(PlotControl!$C$6-1),12,1)),AVERAGE(OFFSET(Sdam!$E$10,12*$A40,4*(PlotControl!$C$6-1),12,1))) -> 19.402 | T40: =IF(PlotControl!$B$4 = "Annual Max",MAX(OFFSET(Cbeach!$C$10,12*$A40,4*(PlotControl!$C$6-1),12,1)),AVERAGE(OFFSET(Cbeach!$C$10,12*$A40,4*(PlotControl!$C$6-1),12,1))) -> 312.39 | U40: =IF(PlotControl!$B$4 = "Annual Max",MAX(OFFSET(Cbeach!$D$10,12*$A40,4*(PlotControl!$C$6-1),12,1)),AVERAGE(OFFSET(Cbeach!$D$10,12*$A40,4*(PlotControl!$C$6-1),12,1))) -> 346.52 | V40: =IF(PlotControl!$B$4 = "Annual Max",MAX(OFFSET(Cbeach!$E$10,12*$A40,4*(PlotControl!$C$6-1),12,1)),AVERAGE(OFFSET(Cbeach!$E$10,12*$A40,4*(PlotControl!$C$6-1),12,1))) -> 390.24
A41: 36 | B41: =IF(PlotControl!$B$4 = "Annual Max",MAX(OFFSET(Nbeach!$C$10,12*$A41,4*(PlotControl!$C$6-1),12,1)),AVERAGE(OFFSET(Nbeach!$C$10,12*$A41,4*(PlotControl!$C$6-1),12,1))) -> 2657 | C41: =IF(PlotControl!$B$4 = "Annual Max",MAX(OFFSET(Nbeach!$D$10,12*$A41,4*(PlotControl!$C$6-1),12,1)),AVERAGE(OFFSET(Nbeach!$D$10,12*$A41,4*(PlotControl!$C$6-1),12,1))) -> 2760.3 | D41: =IF(PlotControl!$B$4 = "Annual Max",MAX(OFFSET(Nbeach!$E$10,12*$A41,4*(PlotControl!$C$6-1),12,1)),AVERAGE(OFFSET(Nbeach!$E$10,12*$A41,4*(PlotControl!$C$6-1),12,1))) -> 2865.6 | E41: =IF(PlotControl!$B$4 = "Annual Max",MAX(OFFSET(Ndam!$C$10,12*$A41,4*(PlotControl!$C$6-1),12,1)),AVERAGE(OFFSET(Ndam!$C$10,12*$A41,4*(PlotControl!$C$6-1),12,1))) -> 183.44 | F41: =IF(PlotControl!$B$4 = "Annual Max",MAX(OFFSET(Ndam!$D$10,12*$A41,4*(PlotControl!$C$6-1),12,1)),AVERAGE(OFFSET(Ndam!$D$10,12*$A41,4*(PlotControl!$C$6-1),12,1))) -> 183.44 | G41: =IF(PlotControl!$B$4 = "Annual Max",MAX(OFFSET(Ndam!$E$10,12*$A41,4*(PlotControl!$C$6-1),12,1)),AVERAGE(OFFSET(Ndam!$E$10,12*$A41,4*(PlotControl!$C$6-1),12,1))) -> 183.45 | H41: =IF(PlotControl!$B$4 = "Annual Max",MAX(OFFSET(Ebeach!$C$10,12*$A41,4*(PlotControl!$C$6-1),12,1)),AVERAGE(OFFSET(Ebeach!$C$10,12*$A41,4*(PlotControl!$C$6-1),12,1))) -> 369.65 | I41: =IF(PlotControl!$B$4 = "Annual Max",MAX(OFFSET(Ebeach!$D$10,12*$A41,4*(PlotControl!$C$6-1),12,1)),AVERAGE(OFFSET(Ebeach!$D$10,12*$A41,4*(PlotControl!$C$6-1),12,1))) -> 409.13 | J41: =IF(PlotControl!$B$4 = "Annual Max",MAX(OFFSET(Ebeach!$E$10,12*$A41,4*(PlotControl!$C$6-1),12,1)),AVERAGE(OFFSET(Ebeach!$E$10,12*$A41,4*(PlotControl!$C$6-1),12,1))) -> 450.22 | K41: =IF(PlotControl!$B$4 = "Annual Max",MAX(OFFSET(Edam!$C$10,12*$A41,4*(PlotControl!$C$6-1),12,1)),AVERAGE(OFFSET(Edam!$C$10,12*$A41,4*(PlotControl!$C$6-1),12,1))) -> 11.02 | L41: =IF(PlotControl!$B$4 = "Annual Max",MAX(OFFSET(Edam!$D$10,12*$A41,4*(PlotControl!$C$6-1),12,1)),AVERAGE(OFFSET(Edam!$D$10,12*$A41,4*(PlotControl!$C$6-1),12,1))) -> 11.02 | M41: =IF(PlotControl!$B$4 = "Annual Max",MAX(OFFSET(Edam!$E$10,12*$A41,4*(PlotControl!$C$6-1),12,1)),AVERAGE(OFFSET(Edam!$E$10,12*$A41,4*(PlotControl!$C$6-1),12,1))) -> 11.02 | N41: =IF(PlotControl!$B$4 = "Annual Max",MAX(OFFSET(Sbeach!$C$10,12*$A41,4*(PlotControl!$C$6-1),12,1)),AVERAGE(OFFSET(Sbeach!$C$10,12*$A41,4*(PlotControl!$C$6-1),12,1))) -> 1262.7 | O41: =IF(PlotControl!$B$4 = "Annual Max",MAX(OFFSET(Sbeach!$D$10,12*$A41,4*(PlotControl!$C$6-1),12,1)),AVERAGE(OFFSET(Sbeach!$D$10,12*$A41,4*(PlotControl!$C$6-1),12,1))) -> 1342.7 | P41: =IF(PlotControl!$B$4 = "Annual Max",MAX(OFFSET(Sbeach!$E$10,12*$A41,4*(PlotControl!$C$6-1),12,1)),AVERAGE(OFFSET(Sbeach!$E$10,12*$A41,4*(PlotControl!$C$6-1),12,1))) -> 1423.3 | Q41: =IF(PlotControl!$B$4 = "Annual Max",MAX(OFFSET(Sdam!$C$10,12*$A41,4*(PlotControl!$C$6-1),12,1)),AVERAGE(OFFSET(Sdam!$C$10,12*$A41,4*(PlotControl!$C$6-1),12,1))) -> 19.402 | R41: =IF(PlotControl!$B$4 = "Annual Max",MAX(OFFSET(Sdam!$D$10,12*$A41,4*(PlotControl!$C$6-1),12,1)),AVERAGE(OFFSET(Sdam!$D$10,12*$A41,4*(PlotControl!$C$6-1),12,1))) -> 19.402 | S41: =IF(PlotControl!$B$4 = "Annual Max",MAX(OFFSET(Sdam!$E$10,12*$A41,4*(PlotControl!$C$6-1),12,1)),AVERAGE(OFFSET(Sdam!$E$10,12*$A41,4*(PlotControl!$C$6-1),12,1))) -> 19.402 | T41: =IF(PlotControl!$B$4 = "Annual Max",MAX(OFFSET(Cbeach!$C$10,12*$A41,4*(PlotControl!$C$6-1),12,1)),AVERAGE(OFFSET(Cbeach!$C$10,12*$A41,4*(PlotControl!$C$6-1),12,1))) -> 312.38 | U41: =IF(PlotControl!$B$4 = "Annual Max",MAX(OFFSET(Cbeach!$D$10,12*$A41,4*(PlotControl!$C$6-1),12,1)),AVERAGE(OFFSET(Cbeach!$D$10,12*$A41,4*(PlotControl!$C$6-1),12,1))) -> 346.49 | V41: =IF(PlotControl!$B$4 = "Annual Max",MAX(OFFSET(Cbeach!$E$10,12*$A41,4*(PlotControl!$C$6-1),12,1)),AVERAGE(OFFSET(Cbeach!$E$10,12*$A41,4*(PlotControl!$C$6-1),12,1))) -> 390.23
A42: 37 | B42: =IF(PlotControl!$B$4 = "Annual Max",MAX(OFFSET(Nbeach!$C$10,12*$A42,4*(PlotControl!$C$6-1),12,1)),AVERAGE(OFFSET(Nbeach!$C$10,12*$A42,4*(PlotControl!$C$6-1),12,1))) -> 2656.9 | C42: =IF(PlotControl!$B$4 = "Annual Max",MAX(OFFSET(Nbeach!$D$10,12*$A42,4*(PlotControl!$C$6-1),12,1)),AVERAGE(OFFSET(Nbeach!$D$10,12*$A42,4*(PlotControl!$C$6-1),12,1))) -> 2760.3 | D42: =IF(PlotControl!$B$4 = "Annual Max",MAX(OFFSET(Nbeach!$E$10,12*$A42,4*(PlotControl!$C$6-1),12,1)),AVERAGE(OFFSET(Nbeach!$E$10,12*$A42,4*(PlotControl!$C$6-1),12,1))) -> 2865.6 | E42: =IF(PlotControl!$B$4 = "Annual Max",MAX(OFFSET(Ndam!$C$10,12*$A42,4*(PlotControl!$C$6-1),12,1)),AVERAGE(OFFSET(Ndam!$C$10,12*$A42,4*(PlotControl!$C$6-1),12,1))) -> 183.44 | F42: =IF(PlotControl!$B$4 = "Annual Max",MAX(OFFSET(Ndam!$D$10,12*$A42,4*(PlotControl!$C$6-1),12,1)),AVERAGE(OFFSET(Ndam!$D$10,12*$A42,4*(PlotControl!$C$6-1),12,1))) -> 183.44 | G42: =IF(PlotControl!$B$4 = "Annual Max",MAX(OFFSET(Ndam!$E$10,12*$A42,4*(PlotControl!$C$6-1),12,1)),AVERAGE(OFFSET(Ndam!$E$10,12*$A42,4*(PlotControl!$C$6-1),12,1))) -> 183.45 | H42: =IF(PlotControl!$B$4 = "Annual Max",MAX(OFFSET(Ebeach!$C$10,12*$A42,4*(PlotControl!$C$6-1),12,1)),AVERAGE(OFFSET(Ebeach!$C$10,12*$A42,4*(PlotControl!$C$6-1),12,1))) -> 369.64 | I42: =IF(PlotControl!$B$4 = "Annual Max",MAX(OFFSET(Ebeach!$D$10,12*$A42,4*(PlotControl!$C$6-1),12,1)),AVERAGE(OFFSET(Ebeach!$D$10,12*$A42,4*(PlotControl!$C$6-1),12,1))) -> 409.13 | J42: =IF(PlotControl!$B$4 = "Annual Max",MAX(OFFSET(Ebeach!$E$10,12*$A42,4*(PlotControl!$C$6-1),12,1)),AVERAGE(OFFSET(Ebeach!$E$10,12*$A42,4*(PlotControl!$C$6-1),12,1))) -> 450.21 | K42: =IF(PlotControl!$B$4 = "Annual Max",MAX(OFFSET(Edam!$C$10,12*$A42,4*(PlotControl!$C$6-1),12,1)),AVERAGE(OFFSET(Edam!$C$10,12*$A42,4*(PlotControl!$C$6-1),12,1))) -> 11.02 | L42: =IF(PlotControl!$B$4 = "Annual Max",MAX(OFFSET(Edam!$D$10,12*$A42,4*(PlotControl!$C$6-1),12,1)),AVERAGE(OFFSET(Edam!$D$10,12*$A42,4*(PlotControl!$C$6-1),12,1))) -> 11.02 | M42: =IF(PlotControl!$B$4 = "Annual Max",MAX(OFFSET(Edam!$E$10,12*$A42,4*(PlotControl!$C$6-1),12,1)),AVERAGE(OFFSET(Edam!$E$10,12*$A42,4*(PlotControl!$C$6-1),12,1))) -> 11.02 | N42: =IF(PlotControl!$B$4 = "Annual Max",MAX(OFFSET(Sbeach!$C$10,12*$A42,4*(PlotControl!$C$6-1),12,1)),AVERAGE(OFFSET(Sbeach!$C$10,12*$A42,4*(PlotControl!$C$6-1),12,1))) -> 1262.7 | O42: =IF(PlotControl!$B$4 = "Annual Max",MAX(OFFSET(Sbeach!$D$10,12*$A42,4*(PlotControl!$C$6-1),12,1)),AVERAGE(OFFSET(Sbeach!$D$10,12*$A42,4*(PlotControl!$C$6-1),12,1))) -> 1342.7 | P42: =IF(PlotControl!$B$4 = "Annual Max",MAX(OFFSET(Sbeach!$E$10,12*$A42,4*(PlotControl!$C$6-1),12,1)),AVERAGE(OFFSET(Sbeach!$E$10,12*$A42,4*(PlotControl!$C$6-1),12,1))) -> 1423.3 | Q42: =IF(PlotControl!$B$4 = "Annual Max",MAX(OFFSET(Sdam!$C$10,12*$A42,4*(PlotControl!$C$6-1),12,1)),AVERAGE(OFFSET(Sdam!$C$10,12*$A42,4*(PlotControl!$C$6-1),12,1))) -> 19.402 | R42: =IF(PlotControl!$B$4 = "Annual Max",MAX(OFFSET(Sdam!$D$10,12*$A42,4*(PlotControl!$C$6-1),12,1)),AVERAGE(OFFSET(Sdam!$D$10,12*$A42,4*(PlotControl!$C$6-1),12,1))) -> 19.402 | S42: =IF(PlotControl!$B$4 = "Annual Max",MAX(OFFSET(Sdam!$E$10,12*$A42,4*(PlotControl!$C$6-1),12,1)),AVERAGE(OFFSET(Sdam!$E$10,12*$A42,4*(PlotControl!$C$6-1),12,1))) -> 19.402 | T42: =IF(PlotControl!$B$4 = "Annual Max",MAX(OFFSET(Cbeach!$C$10,12*$A42,4*(PlotControl!$C$6-1),12,1)),AVERAGE(OFFSET(Cbeach!$C$10,12*$A42,4*(PlotControl!$C$6-1),12,1))) -> 312.38 | U42: =IF(PlotControl!$B$4 = "Annual Max",MAX(OFFSET(Cbeach!$D$10,12*$A42,4*(PlotControl!$C$6-1),12,1)),AVERAGE(OFFSET(Cbeach!$D$10,12*$A42,4*(PlotControl!$C$6-1),12,1))) -> 346.46 | V42: =IF(PlotControl!$B$4 = "Annual Max",MAX(OFFSET(Cbeach!$E$10,12*$A42,4*(PlotControl!$C$6-1),12,1)),AVERAGE(OFFSET(Cbeach!$E$10,12*$A42,4*(PlotControl!$C$6-1),12,1))) -> 390.22
A43: 38 | B43: =IF(PlotControl!$B$4 = "Annual Max",MAX(OFFSET(Nbeach!$C$10,12*$A43,4*(PlotControl!$C$6-1),12,1)),AVERAGE(OFFSET(Nbeach!$C$10,12*$A43,4*(PlotControl!$C$6-1),12,1))) -> 2656.9 | C43: =IF(PlotControl!$B$4 = "Annual Max",MAX(OFFSET(Nbeach!$D$10,12*$A43,4*(PlotControl!$C$6-1),12,1)),AVERAGE(OFFSET(Nbeach!$D$10,12*$A43,4*(PlotControl!$C$6-1),12,1))) -> 2760.3 | D43: =IF(PlotControl!$B$4 = "Annual Max",MAX(OFFSET(Nbeach!$E$10,12*$A43,4*(PlotControl!$C$6-1),12,1)),AVERAGE(OFFSET(Nbeach!$E$10,12*$A43,4*(PlotControl!$C$6-1),12,1))) -> 2865.6 | E43: =IF(PlotControl!$B$4 = "Annual Max",MAX(OFFSET(Ndam!$C$10,12*$A43,4*(PlotControl!$C$6-1),12,1)),AVERAGE(OFFSET(Ndam!$C$10,12*$A43,4*(PlotControl!$C$6-1),12,1))) -> 183.44 | F43: =IF(PlotControl!$B$4 = "Annual Max",MAX(OFFSET(Ndam!$D$10,12*$A43,4*(PlotControl!$C$6-1),12,1)),AVERAGE(OFFSET(Ndam!$D$10,12*$A43,4*(PlotControl!$C$6-1),12,1))) -> 183.44 | G43: =IF(PlotControl!$B$4 = "Annual Max",MAX(OFFSET(Ndam!$E$10,12*$A43,4*(PlotControl!$C$6-1),12,1)),AVERAGE(OFFSET(Ndam!$E$10,12*$A43,4*(PlotControl!$C$6-1),12,1))) -> 183.45 | H43: =IF(PlotControl!$B$4 = "Annual Max",MAX(OFFSET(Ebeach!$C$10,12*$A43,4*(PlotControl!$C$6-1),12,1)),AVERAGE(OFFSET(Ebeach!$C$10,12*$A43,4*(PlotControl!$C$6-1),12,1))) -> 369.63 | I43: =IF(PlotControl!$B$4 = "Annual Max",MAX(OFFSET(Ebeach!$D$10,12*$A43,4*(PlotControl!$C$6-1),12,1)),AVERAGE(OFFSET(Ebeach!$D$10,12*$A43,4*(PlotControl!$C$6-1),12,1))) -> 409.13 | J43: =IF(PlotControl!$B$4 = "Annual Max",MAX(OFFSET(Ebeach!$E$10,12*$A43,4*(PlotControl!$C$6-1),12,1)),AVERAGE(OFFSET(Ebeach!$E$10,12*$A43,4*(PlotControl!$C$6-1),12,1))) -> 450.2 | K43: =IF(PlotControl!$B$4 = "Annual Max",MAX(OFFSET(Edam!$C$10,12*$A43,4*(PlotControl!$C$6-1),12,1)),AVERAGE(OFFSET(Edam!$C$10,12*$A43,4*(PlotControl!$C$6-1),12,1))) -> 11.02 | L43: =IF(PlotControl!$B$4 = "Annual Max",MAX(OFFSET(Edam!$D$10,12*$A43,4*(PlotControl!$C$6-1),12,1)),AVERAGE(OFFSET(Edam!$D$10,12*$A43,4*(PlotControl!$C$6-1),12,1))) -> 11.02 | M43: =IF(PlotControl!$B$4 = "Annual Max",MAX(OFFSET(Edam!$E$10,12*$A43,4*(PlotControl!$C$6-1),12,1)),AVERAGE(OFFSET(Edam!$E$10,12*$A43,4*(PlotControl!$C$6-1),12,1))) -> 11.02 | N43: =IF(PlotControl!$B$4 = "Annual Max",MAX(OFFSET(Sbeach!$C$10,12*$A43,4*(PlotControl!$C$6-1),12,1)),AVERAGE(OFFSET(Sbeach!$C$10,12*$A43,4*(PlotControl!$C$6-1),12,1))) -> 1262.7 | O43: =IF(PlotControl!$B$4 = "Annual Max",MAX(OFFSET(Sbeach!$D$10,12*$A43,4*(PlotControl!$C$6-1),12,1)),AVERAGE(OFFSET(Sbeach!$D$10,12*$A43,4*(PlotControl!$C$6-1),12,1))) -> 1342.7 | P43: =IF(PlotControl!$B$4 = "Annual Max",MAX(OFFSET(Sbeach!$E$10,12*$A43,4*(PlotControl!$C$6-1),12,1)),AVERAGE(OFFSET(Sbeach!$E$10,12*$A43,4*(PlotControl!$C$6-1),12,1))) -> 1423.3 | Q43: =IF(PlotControl!$B$4 = "Annual Max",MAX(OFFSET(Sdam!$C$10,12*$A43,4*(PlotControl!$C$6-1),12,1)),AVERAGE(OFFSET(Sdam!$C$10,12*$A43,4*(PlotControl!$C$6-1),12,1))) -> 19.402 | R43: =IF(PlotControl!$B$4 = "Annual Max",MAX(OFFSET(Sdam!$D$10,12*$A43,4*(PlotControl!$C$6-1),12,1)),AVERAGE(OFFSET(Sdam!$D$10,12*$A43,4*(PlotControl!$C$6-1),12,1))) -> 19.402 | S43: =IF(PlotControl!$B$4 = "Annual Max",MAX(OFFSET(Sdam!$E$10,12*$A43,4*(PlotControl!$C$6-1),12,1)),AVERAGE(OFFSET(Sdam!$E$10,12*$A43,4*(PlotControl!$C$6-1),12,1))) -> 19.402 | T43: =IF(PlotControl!$B$4 = "Annual Max",MAX(OFFSET(Cbeach!$C$10,12*$A43,4*(PlotControl!$C$6-1),12,1)),AVERAGE(OFFSET(Cbeach!$C$10,12*$A43,4*(PlotControl!$C$6-1),12,1))) -> 312.37 | U43: =IF(PlotControl!$B$4 = "Annual Max",MAX(OFFSET(Cbeach!$D$10,12*$A43,4*(PlotControl!$C$6-1),12,1)),AVERAGE(OFFSET(Cbeach!$D$10,12*$A43,4*(PlotControl!$C$6-1),12,1))) -> 346.43 | V43: =IF(PlotControl!$B$4 = "Annual Max",MAX(OFFSET(Cbeach!$E$10,12*$A43,4*(PlotControl!$C$6-1),12,1)),AVERAGE(OFFSET(Cbeach!$E$10,12*$A43,4*(PlotControl!$C$6-1),12,1))) -> 390.21
A44: 39 | B44: =IF(PlotControl!$B$4 = "Annual Max",MAX(OFFSET(Nbeach!$C$10,12*$A44,4*(PlotControl!$C$6-1),12,1)),AVERAGE(OFFSET(Nbeach!$C$10,12*$A44,4*(PlotControl!$C$6-1),12,1))) -> 2656.9 | C44: =IF(PlotControl!$B$4 = "Annual Max",MAX(OFFSET(Nbeach!$D$10,12*$A44,4*(PlotControl!$C$6-1),12,1)),AVERAGE(OFFSET(Nbeach!$D$10,12*$A44,4*(PlotControl!$C$6-1),12,1))) -> 2760.3 | D44: =IF(PlotControl!$B$4 = "Annual Max",MAX(OFFSET(Nbeach!$E$10,12*$A44,4*(PlotControl!$C$6-1),12,1)),AVERAGE(OFFSET(Nbeach!$E$10,12*$A44,4*(PlotControl!$C$6-1),12,1))) -> 2865.6 | E44: =IF(PlotControl!$B$4 = "Annual Max",MAX(OFFSET(Ndam!$C$10,12*$A44,4*(PlotControl!$C$6-1),12,1)),AVERAGE(OFFSET(Ndam!$C$10,12*$A44,4*(PlotControl!$C$6-1),12,1))) -> 183.44 | F44: =IF(PlotControl!$B$4 = "Annual Max",MAX(OFFSET(Ndam!$D$10,12*$A44,4*(PlotControl!$C$6-1),12,1)),AVERAGE(OFFSET(Ndam!$D$10,12*$A44,4*(PlotControl!$C$6-1),12,1))) -> 183.44 | G44: =IF(PlotControl!$B$4 = "Annual Max",MAX(OFFSET(Ndam!$E$10,12*$A44,4*(PlotControl!$C$6-1),12,1)),AVERAGE(OFFSET(Ndam!$E$10,12*$A44,4*(PlotControl!$C$6-1),12,1))) -> 183.44 | H44: =IF(PlotControl!$B$4 = "Annual Max",MAX(OFFSET(Ebeach!$C$10,12*$A44,4*(PlotControl!$C$6-1),12,1)),AVERAGE(OFFSET(Ebeach!$C$10,12*$A44,4*(PlotControl!$C$6-1),12,1))) -> 369.62 | I44: =IF(PlotControl!$B$4 = "Annual Max",MAX(OFFSET(Ebeach!$D$10,12*$A44,4*(PlotControl!$C$6-1),12,1)),AVERAGE(OFFSET(Ebeach!$D$10,12*$A44,4*(PlotControl!$C$6-1),12,1))) -> 409.13 | J44: =IF(PlotControl!$B$4 = "Annual Max",MAX(OFFSET(Ebeach!$E$10,12*$A44,4*(PlotControl!$C$6-1),12,1)),AVERAGE(OFFSET(Ebeach!$E$10,12*$A44,4*(PlotControl!$C$6-1),12,1))) -> 450.2 | K44: =IF(PlotControl!$B$4 = "Annual Max",MAX(OFFSET(Edam!$C$10,12*$A44,4*(PlotControl!$C$6-1),12,1)),AVERAGE(OFFSET(Edam!$C$10,12*$A44,4*(PlotControl!$C$6-1),12,1))) -> 11.02 | L44: =IF(PlotControl!$B$4 = "Annual Max",MAX(OFFSET(Edam!$D$10,12*$A44,4*(PlotControl!$C$6-1),12,1)),AVERAGE(OFFSET(Edam!$D$10,12*$A44,4*(PlotControl!$C$6-1),12,1))) -> 11.02 | M44: =IF(PlotControl!$B$4 = "Annual Max",MAX(OFFSET(Edam!$E$10,12*$A44,4*(PlotControl!$C$6-1),12,1)),AVERAGE(OFFSET(Edam!$E$10,12*$A44,4*(PlotControl!$C$6-1),12,1))) -> 11.02 | N44: =IF(PlotControl!$B$4 = "Annual Max",MAX(OFFSET(Sbeach!$C$10,12*$A44,4*(PlotControl!$C$6-1),12,1)),AVERAGE(OFFSET(Sbeach!$C$10,12*$A44,4*(PlotControl!$C$6-1),12,1))) -> 1262.7 | O44: =IF(PlotControl!$B$4 = "Annual Max",MAX(OFFSET(Sbeach!$D$10,12*$A44,4*(PlotControl!$C$6-1),12,1)),AVERAGE(OFFSET(Sbeach!$D$10,12*$A44,4*(PlotControl!$C$6-1),12,1))) -> 1342.7 | P44: =IF(PlotControl!$B$4 = "Annual Max",MAX(OFFSET(Sbeach!$E$10,12*$A44,4*(PlotControl!$C$6-1),12,1)),AVERAGE(OFFSET(Sbeach!$E$10,12*$A44,4*(PlotControl!$C$6-1),12,1))) -> 1423.3 | Q44: =IF(PlotControl!$B$4 = "Annual Max",MAX(OFFSET(Sdam!$C$10,12*$A44,4*(PlotControl!$C$6-1),12,1)),AVERAGE(OFFSET(Sdam!$C$10,12*$A44,4*(PlotControl!$C$6-1),12,1))) -> 19.402 | R44: =IF(PlotControl!$B$4 = "Annual Max",MAX(OFFSET(Sdam!$D$10,12*$A44,4*(PlotControl!$C$6-1),12,1)),AVERAGE(OFFSET(Sdam!$D$10,12*$A44,4*(PlotControl!$C$6-1),12,1))) -> 19.402 | S44: =IF(PlotControl!$B$4 = "Annual Max",MAX(OFFSET(Sdam!$E$10,12*$A44,4*(PlotControl!$C$6-1),12,1)),AVERAGE(OFFSET(Sdam!$E$10,12*$A44,4*(PlotControl!$C$6-1),12,1))) -> 19.402 | T44: =IF(PlotControl!$B$4 = "Annual Max",MAX(OFFSET(Cbeach!$C$10,12*$A44,4*(PlotControl!$C$6-1),12,1)),AVERAGE(OFFSET(Cbeach!$C$10,12*$A44,4*(PlotControl!$C$6-1),12,1))) -> 312.37 | U44: =IF(PlotControl!$B$4 = "Annual Max",MAX(OFFSET(Cbeach!$D$10,12*$A44,4*(PlotControl!$C$6-1),12,1)),AVERAGE(OFFSET(Cbeach!$D$10,12*$A44,4*(PlotControl!$C$6-1),12,1))) -> 346.4 | V44: =IF(PlotControl!$B$4 = "Annual Max",MAX(OFFSET(Cbeach!$E$10,12*$A44,4*(PlotControl!$C$6-1),12,1)),AVERAGE(OFFSET(Cbeach!$E$10,12*$A44,4*(PlotControl!$C$6-1),12,1))) -> 390.2
A45: 40 | B45: =IF(PlotControl!$B$4 = "Annual Max",MAX(OFFSET(Nbeach!$C$10,12*$A45,4*(PlotControl!$C$6-1),12,1)),AVERAGE(OFFSET(Nbeach!$C$10,12*$A45,4*(PlotControl!$C$6-1),12,1))) -> 2656.9 | C45: =IF(PlotControl!$B$4 = "Annual Max",MAX(OFFSET(Nbeach!$D$10,12*$A45,4*(PlotControl!$C$6-1),12,1)),AVERAGE(OFFSET(Nbeach!$D$10,12*$A45,4*(PlotControl!$C$6-1),12,1))) -> 2760.3 | D45: =IF(PlotControl!$B$4 = "Annual Max",MAX(OFFSET(Nbeach!$E$10,12*$A45,4*(PlotControl!$C$6-1),12,1)),AVERAGE(OFFSET(Nbeach!$E$10,12*$A45,4*(PlotControl!$C$6-1),12,1))) -> 2865.5 | E45: =IF(PlotControl!$B$4 = "Annual Max",MAX(OFFSET(Ndam!$C$10,12*$A45,4*(PlotControl!$C$6-1),12,1)),AVERAGE(OFFSET(Ndam!$C$10,12*$A45,4*(PlotControl!$C$6-1),12,1))) -> 183.44 | F45: =IF(PlotControl!$B$4 = "Annual Max",MAX(OFFSET(Ndam!$D$10,12*$A45,4*(PlotControl!$C$6-1),12,1)),AVERAGE(OFFSET(Ndam!$D$10,12*$A45,4*(PlotControl!$C$6-1),12,1))) -> 183.44 | G45: =IF(PlotControl!$B$4 = "Annual Max",MAX(OFFSET(Ndam!$E$10,12*$A45,4*(PlotControl!$C$6-1),12,1)),AVERAGE(OFFSET(Ndam!$E$10,12*$A45,4*(PlotControl!$C$6-1),12,1))) -> 183.44 | H45: =IF(PlotControl!$B$4 = "Annual Max",MAX(OFFSET(Ebeach!$C$10,12*$A45,4*(PlotControl!$C$6-1),12,1)),AVERAGE(OFFSET(Ebeach!$C$10,12*$A45,4*(PlotControl!$C$6-1),12,1))) -> 369.61 | I45: =IF(PlotControl!$B$4 = "Annual Max",MAX(OFFSET(Ebeach!$D$10,12*$A45,4*(PlotControl!$C$6-1),12,1)),AVERAGE(OFFSET(Ebeach!$D$10,12*$A45,4*(PlotControl!$C$6-1),12,1))) -> 409.12 | J45: =IF(PlotControl!$B$4 = "Annual Max",MAX(OFFSET(Ebeach!$E$10,12*$A45,4*(PlotControl!$C$6-1),12,1)),AVERAGE(OFFSET(Ebeach!$E$10,12*$A45,4*(PlotControl!$C$6-1),12,1))) -> 450.19 | K45: =IF(PlotControl!$B$4 = "Annual Max",MAX(OFFSET(Edam!$C$10,12*$A45,4*(PlotControl!$C$6-1),12,1)),AVERAGE(OFFSET(Edam!$C$10,12*$A45,4*(PlotControl!$C$6-1),12,1))) -> 11.02 | L45: =IF(PlotControl!$B$4 = "Annual Max",MAX(OFFSET(Edam!$D$10,12*$A45,4*(PlotControl!$C$6-1),12,1)),AVERAGE(OFFSET(Edam!$D$10,12*$A45,4*(PlotControl!$C$6-1),12,1))) -> 11.02 | M45: =IF(PlotControl!$B$4 = "Annual Max",MAX(OFFSET(Edam!$E$10,12*$A45,4*(PlotControl!$C$6-1),12,1)),AVERAGE(OFFSET(Edam!$E$10,12*$A45,4*(PlotControl!$C$6-1),12,1))) -> 11.02 | N45: =IF(PlotControl!$B$4 = "Annual Max",MAX(OFFSET(Sbeach!$C$10,12*$A45,4*(PlotControl!$C$6-1),12,1)),AVERAGE(OFFSET(Sbeach!$C$10,12*$A45,4*(PlotControl!$C$6-1),12,1))) -> 1262.7 | O45: =IF(PlotControl!$B$4 = "Annual Max",MAX(OFFSET(Sbeach!$D$10,12*$A45,4*(PlotControl!$C$6-1),12,1)),AVERAGE(OFFSET(Sbeach!$D$10,12*$A45,4*(PlotControl!$C$6-1),12,1))) -> 1342.7 | P45: =IF(PlotControl!$B$4 = "Annual Max",MAX(OFFSET(Sbeach!$E$10,12*$A45,4*(PlotControl!$C$6-1),12,1)),AVERAGE(OFFSET(Sbeach!$E$10,12*$A45,4*(PlotControl!$C$6-1),12,1))) -> 1423.3 | Q45: =IF(PlotControl!$B$4 = "Annual Max",MAX(OFFSET(Sdam!$C$10,12*$A45,4*(PlotControl!$C$6-1),12,1)),AVERAGE(OFFSET(Sdam!$C$10,12*$A45,4*(PlotControl!$C$6-1),12,1))) -> 19.402 | R45: =IF(PlotControl!$B$4 = "Annual Max",MAX(OFFSET(Sdam!$D$10,12*$A45,4*(PlotControl!$C$6-1),12,1)),AVERAGE(OFFSET(Sdam!$D$10,12*$A45,4*(PlotControl!$C$6-1),12,1))) -> 19.402 | S45: =IF(PlotControl!$B$4 = "Annual Max",MAX(OFFSET(Sdam!$E$10,12*$A45,4*(PlotControl!$C$6-1),12,1)),AVERAGE(OFFSET(Sdam!$E$10,12*$A45,4*(PlotControl!$C$6-1),12,1))) -> 19.402 | T45: =IF(PlotControl!$B$4 = "Annual Max",MAX(OFFSET(Cbeach!$C$10,12*$A45,4*(PlotControl!$C$6-1),12,1)),AVERAGE(OFFSET(Cbeach!$C$10,12*$A45,4*(PlotControl!$C$6-1),12,1))) -> 312.36 | U45: =IF(PlotControl!$B$4 = "Annual Max",MAX(OFFSET(Cbeach!$D$10,12*$A45,4*(PlotControl!$C$6-1),12,1)),AVERAGE(OFFSET(Cbeach!$D$10,12*$A45,4*(PlotControl!$C$6-1),12,1))) -> 346.36 | V45: =IF(PlotControl!$B$4 = "Annual Max",MAX(OFFSET(Cbeach!$E$10,12*$A45,4*(PlotControl!$C$6-1),12,1)),AVERAGE(OFFSET(Cbeach!$E$10,12*$A45,4*(PlotControl!$C$6-1),12,1))) -> 390.19
A46: 41 | B46: =IF(PlotControl!$B$4 = "Annual Max",MAX(OFFSET(Nbeach!$C$10,12*$A46,4*(PlotControl!$C$6-1),12,1)),AVERAGE(OFFSET(Nbeach!$C$10,12*$A46,4*(PlotControl!$C$6-1),12,1))) -> 2656.9 | C46: =IF(PlotControl!$B$4 = "Annual Max",MAX(OFFSET(Nbeach!$D$10,12*$A46,4*(PlotControl!$C$6-1),12,1)),AVERAGE(OFFSET(Nbeach!$D$10,12*$A46,4*(PlotControl!$C$6-1),12,1))) -> 2760.3 | D46: =IF(PlotControl!$B$4 = "Annual Max",MAX(OFFSET(Nbeach!$E$10,12*$A46,4*(PlotControl!$C$6-1),12,1)),AVERAGE(OFFSET(Nbeach!$E$10,12*$A46,4*(PlotControl!$C$6-1),12,1))) -> 2865.5 | E46: =IF(PlotControl!$B$4 = "Annual Max",MAX(OFFSET(Ndam!$C$10,12*$A46,4*(PlotControl!$C$6-1),12,1)),AVERAGE(OFFSET(Ndam!$C$10,12*$A46,4*(PlotControl!$C$6-1),12,1))) -> 183.44 | F46: =IF(PlotControl!$B$4 = "Annual Max",MAX(OFFSET(Ndam!$D$10,12*$A46,4*(PlotControl!$C$6-1),12,1)),AVERAGE(OFFSET(Ndam!$D$10,12*$A46,4*(PlotControl!$C$6-1),12,1))) -> 183.44 | G46: =IF(PlotControl!$B$4 = "Annual Max",MAX(OFFSET(Ndam!$E$10,12*$A46,4*(PlotControl!$C$6-1),12,1)),AVERAGE(OFFSET(Ndam!$E$10,12*$A46,4*(PlotControl!$C$6-1),12,1))) -> 183.44 | H46: =IF(PlotControl!$B$4 = "Annual Max",MAX(OFFSET(Ebeach!$C$10,12*$A46,4*(PlotControl!$C$6-1),12,1)),AVERAGE(OFFSET(Ebeach!$C$10,12*$A46,4*(PlotControl!$C$6-1),12,1))) -> 369.6 | I46: =IF(PlotControl!$B$4 = "Annual Max",MAX(OFFSET(Ebeach!$D$10,12*$A46,4*(PlotControl!$C$6-1),12,1)),AVERAGE(OFFSET(Ebeach!$D$10,12*$A46,4*(PlotControl!$C$6-1),12,1))) -> 409.12 | J46: =IF(PlotControl!$B$4 = "Annual Max",MAX(OFFSET(Ebeach!$E$10,12*$A46,4*(PlotControl!$C$6-1),12,1)),AVERAGE(OFFSET(Ebeach!$E$10,12*$A46,4*(PlotControl!$C$6-1),12,1))) -> 450.18 | K46: =IF(PlotControl!$B$4 = "Annual Max",MAX(OFFSET(Edam!$C$10,12*$A46,4*(PlotControl!$C$6-1),12,1)),AVERAGE(OFFSET(Edam!$C$10,12*$A46,4*(PlotControl!$C$6-1),12,1))) -> 11.02 | L46: =IF(PlotControl!$B$4 = "Annual Max",MAX(OFFSET(Edam!$D$10,12*$A46,4*(PlotControl!$C$6-1),12,1)),AVERAGE(OFFSET(Edam!$D$10,12*$A46,4*(PlotControl!$C$6-1),12,1))) -> 11.02 | M46: =IF(PlotControl!$B$4 = "Annual Max",MAX(OFFSET(Edam!$E$10,12*$A46,4*(PlotControl!$C$6-1),12,1)),AVERAGE(OFFSET(Edam!$E$10,12*$A46,4*(PlotControl!$C$6-1),12,1))) -> 11.02 | N46: =IF(PlotControl!$B$4 = "Annual Max",MAX(OFFSET(Sbeach!$C$10,12*$A46,4*(PlotControl!$C$6-1),12,1)),AVERAGE(OFFSET(Sbeach!$C$10,12*$A46,4*(PlotControl!$C$6-1),12,1))) -> 1262.7 | O46: =IF(PlotControl!$B$4 = "Annual Max",MAX(OFFSET(Sbeach!$D$10,12*$A46,4*(PlotControl!$C$6-1),12,1)),AVERAGE(OFFSET(Sbeach!$D$10,12*$A46,4*(PlotControl!$C$6-1),12,1))) -> 1342.7 | P46: =IF(PlotControl!$B$4 = "Annual Max",MAX(OFFSET(Sbeach!$E$10,12*$A46,4*(PlotControl!$C$6-1),12,1)),AVERAGE(OFFSET(Sbeach!$E$10,12*$A46,4*(PlotControl!$C$6-1),12,1))) -> 1423.3 | Q46: =IF(PlotControl!$B$4 = "Annual Max",MAX(OFFSET(Sdam!$C$10,12*$A46,4*(PlotControl!$C$6-1),12,1)),AVERAGE(OFFSET(Sdam!$C$10,12*$A46,4*(PlotControl!$C$6-1),12,1))) -> 19.402 | R46: =IF(PlotControl!$B$4 = "Annual Max",MAX(OFFSET(Sdam!$D$10,12*$A46,4*(PlotControl!$C$6-1),12,1)),AVERAGE(OFFSET(Sdam!$D$10,12*$A46,4*(PlotControl!$C$6-1),12,1))) -> 19.402 | S46: =IF(PlotControl!$B$4 = "Annual Max",MAX(OFFSET(Sdam!$E$10,12*$A46,4*(PlotControl!$C$6-1),12,1)),AVERAGE(OFFSET(Sdam!$E$10,12*$A46,4*(PlotControl!$C$6-1),12,1))) -> 19.402 | T46: =IF(PlotControl!$B$4 = "Annual Max",MAX(OFFSET(Cbeach!$C$10,12*$A46,4*(PlotControl!$C$6-1),12,1)),AVERAGE(OFFSET(Cbeach!$C$10,12*$A46,4*(PlotControl!$C$6-1),12,1))) -> 312.35 | U46: =IF(PlotControl!$B$4 = "Annual Max",MAX(OFFSET(Cbeach!$D$10,12*$A46,4*(PlotControl!$C$6-1),12,1)),AVERAGE(OFFSET(Cbeach!$D$10,12*$A46,4*(PlotControl!$C$6-1),12,1))) -> 346.32 | V46: =IF(PlotControl!$B$4 = "Annual Max",MAX(OFFSET(Cbeach!$E$10,12*$A46,4*(PlotControl!$C$6-1),12,1)),AVERAGE(OFFSET(Cbeach!$E$10,12*$A46,4*(PlotControl!$C$6-1),12,1))) -> 390.18
A47: 42 | B47: =IF(PlotControl!$B$4 = "Annual Max",MAX(OFFSET(Nbeach!$C$10,12*$A47,4*(PlotControl!$C$6-1),12,1)),AVERAGE(OFFSET(Nbeach!$C$10,12*$A47,4*(PlotControl!$C$6-1),12,1))) -> 2656.9 | C47: =IF(PlotControl!$B$4 = "Annual Max",MAX(OFFSET(Nbeach!$D$10,12*$A47,4*(PlotControl!$C$6-1),12,1)),AVERAGE(OFFSET(Nbeach!$D$10,12*$A47,4*(PlotControl!$C$6-1),12,1))) -> 2760.3 | D47: =IF(PlotControl!$B$4 = "Annual Max",MAX(OFFSET(Nbeach!$E$10,12*$A47,4*(PlotControl!$C$6-1),12,1)),AVERAGE(OFFSET(Nbeach!$E$10,12*$A47,4*(PlotControl!$C$6-1),12,1))) -> 2865.5 | E47: =IF(PlotControl!$B$4 = "Annual Max",MAX(OFFSET(Ndam!$C$10,12*$A47,4*(PlotControl!$C$6-1),12,1)),AVERAGE(OFFSET(Ndam!$C$10,12*$A47,4*(PlotControl!$C$6-1),12,1))) -> 183.44 | F47: =IF(PlotControl!$B$4 = "Annual Max",MAX(OFFSET(Ndam!$D$10,12*$A47,4*(PlotControl!$C$6-1),12,1)),AVERAGE(OFFSET(Ndam!$D$10,12*$A47,4*(PlotControl!$C$6-1),12,1))) -> 183.44 | G47: =IF(PlotControl!$B$4 = "Annual Max",MAX(OFFSET(Ndam!$E$10,12*$A47,4*(PlotControl!$C$6-1),12,1)),AVERAGE(OFFSET(Ndam!$E$10,12*$A47,4*(PlotControl!$C$6-1),12,1))) -> 183.44 | H47: =IF(PlotControl!$B$4 = "Annual Max",MAX(OFFSET(Ebeach!$C$10,12*$A47,4*(PlotControl!$C$6-1),12,1)),AVERAGE(OFFSET(Ebeach!$C$10,12*$A47,4*(PlotControl!$C$6-1),12,1))) -> 369.59 | I47: =IF(PlotControl!$B$4 = "Annual Max",MAX(OFFSET(Ebeach!$D$10,12*$A47,4*(PlotControl!$C$6-1),12,1)),AVERAGE(OFFSET(Ebeach!$D$10,12*$A47,4*(PlotControl!$C$6-1),12,1))) -> 409.12 | J47: =IF(PlotControl!$B$4 = "Annual Max",MAX(OFFSET(Ebeach!$E$10,12*$A47,4*(PlotControl!$C$6-1),12,1)),AVERAGE(OFFSET(Ebeach!$E$10,12*$A47,4*(PlotControl!$C$6-1),12,1))) -> 450.17 | K47: =IF(PlotControl!$B$4 = "Annual Max",MAX(OFFSET(Edam!$C$10,12*$A47,4*(PlotControl!$C$6-1),12,1)),AVERAGE(OFFSET(Edam!$C$10,12*$A47,4*(PlotControl!$C$6-1),12,1))) -> 11.02 | L47: =IF(PlotControl!$B$4 = "Annual Max",MAX(OFFSET(Edam!$D$10,12*$A47,4*(PlotControl!$C$6-1),12,1)),AVERAGE(OFFSET(Edam!$D$10,12*$A47,4*(PlotControl!$C$6-1),12,1))) -> 11.02 | M47: =IF(PlotControl!$B$4 = "Annual Max",MAX(OFFSET(Edam!$E$10,12*$A47,4*(PlotControl!$C$6-1),12,1)),AVERAGE(OFFSET(Edam!$E$10,12*$A47,4*(PlotControl!$C$6-1),12,1))) -> 11.02 | N47: =IF(PlotControl!$B$4 = "Annual Max",MAX(OFFSET(Sbeach!$C$10,12*$A47,4*(PlotControl!$C$6-1),12,1)),AVERAGE(OFFSET(Sbeach!$C$10,12*$A47,4*(PlotControl!$C$6-1),12,1))) -> 1262.6 | O47: =IF(PlotControl!$B$4 = "Annual Max",MAX(OFFSET(Sbeach!$D$10,12*$A47,4*(PlotControl!$C$6-1),12,1)),AVERAGE(OFFSET(Sbeach!$D$10,12*$A47,4*(PlotControl!$C$6-1),12,1))) -> 1342.7 | P47: =IF(PlotControl!$B$4 = "Annual Max",MAX(OFFSET(Sbeach!$E$10,12*$A47,4*(PlotControl!$C$6-1),12,1)),AVERAGE(OFFSET(Sbeach!$E$10,12*$A47,4*(PlotControl!$C$6-1),12,1))) -> 1423.3 | Q47: =IF(PlotControl!$B$4 = "Annual Max",MAX(OFFSET(Sdam!$C$10,12*$A47,4*(PlotControl!$C$6-1),12,1)),AVERAGE(OFFSET(Sdam!$C$10,12*$A47,4*(PlotControl!$C$6-1),12,1))) -> 19.402 | R47: =IF(PlotControl!$B$4 = "Annual Max",MAX(OFFSET(Sdam!$D$10,12*$A47,4*(PlotControl!$C$6-1),12,1)),AVERAGE(OFFSET(Sdam!$D$10,12*$A47,4*(PlotControl!$C$6-1),12,1))) -> 19.402 | S47: =IF(PlotControl!$B$4 = "Annual Max",MAX(OFFSET(Sdam!$E$10,12*$A47,4*(PlotControl!$C$6-1),12,1)),AVERAGE(OFFSET(Sdam!$E$10,12*$A47,4*(PlotControl!$C$6-1),12,1))) -> 19.402 | T47: =IF(PlotControl!$B$4 = "Annual Max",MAX(OFFSET(Cbeach!$C$10,12*$A47,4*(PlotControl!$C$6-1),12,1)),AVERAGE(OFFSET(Cbeach!$C$10,12*$A47,4*(PlotControl!$C$6-1),12,1))) -> 312.35 | U47: =IF(PlotControl!$B$4 = "Annual Max",MAX(OFFSET(Cbeach!$D$10,12*$A47,4*(PlotControl!$C$6-1),12,1)),AVERAGE(OFFSET(Cbeach!$D$10,12*$A47,4*(PlotControl!$C$6-1),12,1))) -> 346.28 | V47: =IF(PlotControl!$B$4 = "Annual Max",MAX(OFFSET(Cbeach!$E$10,12*$A47,4*(PlotControl!$C$6-1),12,1)),AVERAGE(OFFSET(Cbeach!$E$10,12*$A47,4*(PlotControl!$C$6-1),12,1))) -> 390.17
A48: 43 | B48: =IF(PlotControl!$B$4 = "Annual Max",MAX(OFFSET(Nbeach!$C$10,12*$A48,4*(PlotControl!$C$6-1),12,1)),AVERAGE(OFFSET(Nbeach!$C$10,12*$A48,4*(PlotControl!$C$6-1),12,1))) -> 2656.9 | C48: =IF(PlotControl!$B$4 = "Annual Max",MAX(OFFSET(Nbeach!$D$10,12*$A48,4*(PlotControl!$C$6-1),12,1)),AVERAGE(OFFSET(Nbeach!$D$10,12*$A48,4*(PlotControl!$C$6-1),12,1))) -> 2760.3 | D48: =IF(PlotControl!$B$4 = "Annual Max",MAX(OFFSET(Nbeach!$E$10,12*$A48,4*(PlotControl!$C$6-1),12,1)),AVERAGE(OFFSET(Nbeach!$E$10,12*$A48,4*(PlotControl!$C$6-1),12,1))) -> 2865.5 | E48: =IF(PlotControl!$B$4 = "Annual Max",MAX(OFFSET(Ndam!$C$10,12*$A48,4*(PlotControl!$C$6-1),12,1)),AVERAGE(OFFSET(Ndam!$C$10,12*$A48,4*(PlotControl!$C$6-1),12,1))) -> 183.44 | F48: =IF(PlotControl!$B$4 = "Annual Max",MAX(OFFSET(Ndam!$D$10,12*$A48,4*(PlotControl!$C$6-1),12,1)),AVERAGE(OFFSET(Ndam!$D$10,12*$A48,4*(PlotControl!$C$6-1),12,1))) -> 183.44 | G48: =IF(PlotControl!$B$4 = "Annual Max",MAX(OFFSET(Ndam!$E$10,12*$A48,4*(PlotControl!$C$6-1),12,1)),AVERAGE(OFFSET(Ndam!$E$10,12*$A48,4*(PlotControl!$C$6-1),12,1))) -> 183.44 | H48: =IF(PlotControl!$B$4 = "Annual Max",MAX(OFFSET(Ebeach!$C$10,12*$A48,4*(PlotControl!$C$6-1),12,1)),AVERAGE(OFFSET(Ebeach!$C$10,12*$A48,4*(PlotControl!$C$6-1),12,1))) -> 369.58 | I48: =IF(PlotControl!$B$4 = "Annual Max",MAX(OFFSET(Ebeach!$D$10,12*$A48,4*(PlotControl!$C$6-1),12,1)),AVERAGE(OFFSET(Ebeach!$D$10,12*$A48,4*(PlotControl!$C$6-1),12,1))) -> 409.12 | J48: =IF(PlotControl!$B$4 = "Annual Max",MAX(OFFSET(Ebeach!$E$10,12*$A48,4*(PlotControl!$C$6-1),12,1)),AVERAGE(OFFSET(Ebeach!$E$10,12*$A48,4*(PlotControl!$C$6-1),12,1))) -> 450.16 | K48: =IF(PlotControl!$B$4 = "Annual Max",MAX(OFFSET(Edam!$C$10,12*$A48,4*(PlotControl!$C$6-1),12,1)),AVERAGE(OFFSET(Edam!$C$10,12*$A48,4*(PlotControl!$C$6-1),12,1))) -> 11.02 | L48: =IF(PlotControl!$B$4 = "Annual Max",MAX(OFFSET(Edam!$D$10,12*$A48,4*(PlotControl!$C$6-1),12,1)),AVERAGE(OFFSET(Edam!$D$10,12*$A48,4*(PlotControl!$C$6-1),12,1))) -> 11.02 | M48: =IF(PlotControl!$B$4 = "Annual Max",MAX(OFFSET(Edam!$E$10,12*$A48,4*(PlotControl!$C$6-1),12,1)),AVERAGE(OFFSET(Edam!$E$10,12*$A48,4*(PlotControl!$C$6-1),12,1))) -> 11.02 | N48: =IF(PlotControl!$B$4 = "Annual Max",MAX(OFFSET(Sbeach!$C$10,12*$A48,4*(PlotControl!$C$6-1),12,1)),AVERAGE(OFFSET(Sbeach!$C$10,12*$A48,4*(PlotControl!$C$6-1),12,1))) -> 1262.6 | O48: =IF(PlotControl!$B$4 = "Annual Max",MAX(OFFSET(Sbeach!$D$10,12*$A48,4*(PlotControl!$C$6-1),12,1)),AVERAGE(OFFSET(Sbeach!$D$10,12*$A48,4*(PlotControl!$C$6-1),12,1))) -> 1342.7 | P48: =IF(PlotControl!$B$4 = "Annual Max",MAX(OFFSET(Sbeach!$E$10,12*$A48,4*(PlotControl!$C$6-1),12,1)),AVERAGE(OFFSET(Sbeach!$E$10,12*$A48,4*(PlotControl!$C$6-1),12,1))) -> 1423.3 | Q48: =IF(PlotControl!$B$4 = "Annual Max",MAX(OFFSET(Sdam!$C$10,12*$A48,4*(PlotControl!$C$6-1),12,1)),AVERAGE(OFFSET(Sdam!$C$10,12*$A48,4*(PlotControl!$C$6-1),12,1))) -> 19.402 | R48: =IF(PlotControl!$B$4 = "Annual Max",MAX(OFFSET(Sdam!$D$10,12*$A48,4*(PlotControl!$C$6-1),12,1)),AVERAGE(OFFSET(Sdam!$D$10,12*$A48,4*(PlotControl!$C$6-1),12,1))) -> 19.402 | S48: =IF(PlotControl!$B$4 = "Annual Max",MAX(OFFSET(Sdam!$E$10,12*$A48,4*(PlotControl!$C$6-1),12,1)),AVERAGE(OFFSET(Sdam!$E$10,12*$A48,4*(PlotControl!$C$6-1),12,1))) -> 19.402 | T48: =IF(PlotControl!$B$4 = "Annual Max",MAX(OFFSET(Cbeach!$C$10,12*$A48,4*(PlotControl!$C$6-1),12,1)),AVERAGE(OFFSET(Cbeach!$C$10,12*$A48,4*(PlotControl!$C$6-1),12,1))) -> 312.34 | U48: =IF(PlotControl!$B$4 = "Annual Max",MAX(OFFSET(Cbeach!$D$10,12*$A48,4*(PlotControl!$C$6-1),12,1)),AVERAGE(OFFSET(Cbeach!$D$10,12*$A48,4*(PlotControl!$C$6-1),12,1))) -> 346.25 | V48: =IF(PlotControl!$B$4 = "Annual Max",MAX(OFFSET(Cbeach!$E$10,12*$A48,4*(PlotControl!$C$6-1),12,1)),AVERAGE(OFFSET(Cbeach!$E$10,12*$A48,4*(PlotControl!$C$6-1),12,1))) -> 390.16
A49: 44 | B49: =IF(PlotControl!$B$4 = "Annual Max",MAX(OFFSET(Nbeach!$C$10,12*$A49,4*(PlotControl!$C$6-1),12,1)),AVERAGE(OFFSET(Nbeach!$C$10,12*$A49,4*(PlotControl!$C$6-1),12,1))) -> 2656.9 | C49: =IF(PlotControl!$B$4 = "Annual Max",MAX(OFFSET(Nbeach!$D$10,12*$A49,4*(PlotControl!$C$6-1),12,1)),AVERAGE(OFFSET(Nbeach!$D$10,12*$A49,4*(PlotControl!$C$6-1),12,1))) -> 2760.3 | D49: =IF(PlotControl!$B$4 = "Annual Max",MAX(OFFSET(Nbeach!$E$10,12*$A49,4*(PlotControl!$C$6-1),12,1)),AVERAGE(OFFSET(Nbeach!$E$10,12*$A49,4*(PlotControl!$C$6-1),12,1))) -> 2865.5 | E49: =IF(PlotControl!$B$4 = "Annual Max",MAX(OFFSET(Ndam!$C$10,12*$A49,4*(PlotControl!$C$6-1),12,1)),AVERAGE(OFFSET(Ndam!$C$10,12*$A49,4*(PlotControl!$C$6-1),12,1))) -> 183.44 | F49: =IF(PlotControl!$B$4 = "Annual Max",MAX(OFFSET(Ndam!$D$10,12*$A49,4*(PlotControl!$C$6-1),12,1)),AVERAGE(OFFSET(Ndam!$D$10,12*$A49,4*(PlotControl!$C$6-1),12,1))) -> 183.44 | G49: =IF(PlotControl!$B$4 = "Annual Max",MAX(OFFSET(Ndam!$E$10,12*$A49,4*(PlotControl!$C$6-1),12,1)),AVERAGE(OFFSET(Ndam!$E$10,12*$A49,4*(PlotControl!$C$6-1),12,1))) -> 183.44 | H49: =IF(PlotControl!$B$4 = "Annual Max",MAX(OFFSET(Ebeach!$C$10,12*$A49,4*(PlotControl!$C$6-1),12,1)),AVERAGE(OFFSET(Ebeach!$C$10,12*$A49,4*(PlotControl!$C$6-1),12,1))) -> 369.57 | I49: =IF(PlotControl!$B$4 = "Annual Max",MAX(OFFSET(Ebeach!$D$10,12*$A49,4*(PlotControl!$C$6-1),12,1)),AVERAGE(OFFSET(Ebeach!$D$10,12*$A49,4*(PlotControl!$C$6-1),12,1))) -> 409.12 | J49: =IF(PlotControl!$B$4 = "Annual Max",MAX(OFFSET(Ebeach!$E$10,12*$A49,4*(PlotControl!$C$6-1),12,1)),AVERAGE(OFFSET(Ebeach!$E$10,12*$A49,4*(PlotControl!$C$6-1),12,1))) -> 450.16 | K49: =IF(PlotControl!$B$4 = "Annual Max",MAX(OFFSET(Edam!$C$10,12*$A49,4*(PlotControl!$C$6-1),12,1)),AVERAGE(OFFSET(Edam!$C$10,12*$A49,4*(PlotControl!$C$6-1),12,1))) -> 11.02 | L49: =IF(PlotControl!$B$4 = "Annual Max",MAX(OFFSET(Edam!$D$10,12*$A49,4*(PlotControl!$C$6-1),12,1)),AVERAGE(OFFSET(Edam!$D$10,12*$A49,4*(PlotControl!$C$6-1),12,1))) -> 11.02 | M49: =IF(PlotControl!$B$4 = "Annual Max",MAX(OFFSET(Edam!$E$10,12*$A49,4*(PlotControl!$C$6-1),12,1)),AVERAGE(OFFSET(Edam!$E$10,12*$A49,4*(PlotControl!$C$6-1),12,1))) -> 11.02 | N49: =IF(PlotControl!$B$4 = "Annual Max",MAX(OFFSET(Sbeach!$C$10,12*$A49,4*(PlotControl!$C$6-1),12,1)),AVERAGE(OFFSET(Sbeach!$C$10,12*$A49,4*(PlotControl!$C$6-1),12,1))) -> 1262.6 | O49: =IF(PlotControl!$B$4 = "Annual Max",MAX(OFFSET(Sbeach!$D$10,12*$A49,4*(PlotControl!$C$6-1),12,1)),AVERAGE(OFFSET(Sbeach!$D$10,12*$A49,4*(PlotControl!$C$6-1),12,1))) -> 1342.7 | P49: =IF(PlotControl!$B$4 = "Annual Max",MAX(OFFSET(Sbeach!$E$10,12*$A49,4*(PlotControl!$C$6-1),12,1)),AVERAGE(OFFSET(Sbeach!$E$10,12*$A49,4*(PlotControl!$C$6-1),12,1))) -> 1423.3 | Q49: =IF(PlotControl!$B$4 = "Annual Max",MAX(OFFSET(Sdam!$C$10,12*$A49,4*(PlotControl!$C$6-1),12,1)),AVERAGE(OFFSET(Sdam!$C$10,12*$A49,4*(PlotControl!$C$6-1),12,1))) -> 19.402 | R49: =IF(PlotControl!$B$4 = "Annual Max",MAX(OFFSET(Sdam!$D$10,12*$A49,4*(PlotControl!$C$6-1),12,1)),AVERAGE(OFFSET(Sdam!$D$10,12*$A49,4*(PlotControl!$C$6-1),12,1))) -> 19.402 | S49: =IF(PlotControl!$B$4 = "Annual Max",MAX(OFFSET(Sdam!$E$10,12*$A49,4*(PlotControl!$C$6-1),12,1)),AVERAGE(OFFSET(Sdam!$E$10,12*$A49,4*(PlotControl!$C$6-1),12,1))) -> 19.402 | T49: =IF(PlotControl!$B$4 = "Annual Max",MAX(OFFSET(Cbeach!$C$10,12*$A49,4*(PlotControl!$C$6-1),12,1)),AVERAGE(OFFSET(Cbeach!$C$10,12*$A49,4*(PlotControl!$C$6-1),12,1))) -> 312.33 | U49: =IF(PlotControl!$B$4 = "Annual Max",MAX(OFFSET(Cbeach!$D$10,12*$A49,4*(PlotControl!$C$6-1),12,1)),AVERAGE(OFFSET(Cbeach!$D$10,12*$A49,4*(PlotControl!$C$6-1),12,1))) -> 346.21 | V49: =IF(PlotControl!$B$4 = "Annual Max",MAX(OFFSET(Cbeach!$E$10,12*$A49,4*(PlotControl!$C$6-1),12,1)),AVERAGE(OFFSET(Cbeach!$E$10,12*$A49,4*(PlotControl!$C$6-1),12,1))) -> 390.14
A50: 45 | B50: =IF(PlotControl!$B$4 = "Annual Max",MAX(OFFSET(Nbeach!$C$10,12*$A50,4*(PlotControl!$C$6-1),12,1)),AVERAGE(OFFSET(Nbeach!$C$10,12*$A50,4*(PlotControl!$C$6-1),12,1))) -> 2656.9 | C50: =IF(PlotControl!$B$4 = "Annual Max",MAX(OFFSET(Nbeach!$D$10,12*$A50,4*(PlotControl!$C$6-1),12,1)),AVERAGE(OFFSET(Nbeach!$D$10,12*$A50,4*(PlotControl!$C$6-1),12,1))) -> 2760.3 | D50: =IF(PlotControl!$B$4 = "Annual Max",MAX(OFFSET(Nbeach!$E$10,12*$A50,4*(PlotControl!$C$6-1),12,1)),AVERAGE(OFFSET(Nbeach!$E$10,12*$A50,4*(PlotControl!$C$6-1),12,1))) -> 2865.5 | E50: =IF(PlotControl!$B$4 = "Annual Max",MAX(OFFSET(Ndam!$C$10,12*$A50,4*(PlotControl!$C$6-1),12,1)),AVERAGE(OFFSET(Ndam!$C$10,12*$A50,4*(PlotControl!$C$6-1),12,1))) -> 183.44 | F50: =IF(PlotControl!$B$4 = "Annual Max",MAX(OFFSET(Ndam!$D$10,12*$A50,4*(PlotControl!$C$6-1),12,1)),AVERAGE(OFFSET(Ndam!$D$10,12*$A50,4*(PlotControl!$C$6-1),12,1))) -> 183.44 | G50: =IF(PlotControl!$B$4 = "Annual Max",MAX(OFFSET(Ndam!$E$10,12*$A50,4*(PlotControl!$C$6-1),12,1)),AVERAGE(OFFSET(Ndam!$E$10,12*$A50,4*(PlotControl!$C$6-1),12,1))) -> 183.44 | H50: =IF(PlotControl!$B$4 = "Annual Max",MAX(OFFSET(Ebeach!$C$10,12*$A50,4*(PlotControl!$C$6-1),12,1)),AVERAGE(OFFSET(Ebeach!$C$10,12*$A50,4*(PlotControl!$C$6-1),12,1))) -> 369.56 | I50: =IF(PlotControl!$B$4 = "Annual Max",MAX(OFFSET(Ebeach!$D$10,12*$A50,4*(PlotControl!$C$6-1),12,1)),AVERAGE(OFFSET(Ebeach!$D$10,12*$A50,4*(PlotControl!$C$6-1),12,1))) -> 409.12 | J50: =IF(PlotControl!$B$4 = "Annual Max",MAX(OFFSET(Ebeach!$E$10,12*$A50,4*(PlotControl!$C$6-1),12,1)),AVERAGE(OFFSET(Ebeach!$E$10,12*$A50,4*(PlotControl!$C$6-1),12,1))) -> 450.15 | K50: =IF(PlotControl!$B$4 = "Annual Max",MAX(OFFSET(Edam!$C$10,12*$A50,4*(PlotControl!$C$6-1),12,1)),AVERAGE(OFFSET(Edam!$C$10,12*$A50,4*(PlotControl!$C$6-1),12,1))) -> 11.02 | L50: =IF(PlotControl!$B$4 = "Annual Max",MAX(OFFSET(Edam!$D$10,12*$A50,4*(PlotControl!$C$6-1),12,1)),AVERAGE(OFFSET(Edam!$D$10,12*$A50,4*(PlotControl!$C$6-1),12,1))) -> 11.02 | M50: =IF(PlotControl!$B$4 = "Annual Max",MAX(OFFSET(Edam!$E$10,12*$A50,4*(PlotControl!$C$6-1),12,1)),AVERAGE(OFFSET(Edam!$E$10,12*$A50,4*(PlotControl!$C$6-1),12,1))) -> 11.02 | N50: =IF(PlotControl!$B$4 = "Annual Max",MAX(OFFSET(Sbeach!$C$10,12*$A50,4*(PlotControl!$C$6-1),12,1)),AVERAGE(OFFSET(Sbeach!$C$10,12*$A50,4*(PlotControl!$C$6-1),12,1))) -> 1262.6 | O50: =IF(PlotControl!$B$4 = "Annual Max",MAX(OFFSET(Sbeach!$D$10,12*$A50,4*(PlotControl!$C$6-1),12,1)),AVERAGE(OFFSET(Sbeach!$D$10,12*$A50,4*(PlotControl!$C$6-1),12,1))) -> 1342.7 | P50: =IF(PlotControl!$B$4 = "Annual Max",MAX(OFFSET(Sbeach!$E$10,12*$A50,4*(PlotControl!$C$6-1),12,1)),AVERAGE(OFFSET(Sbeach!$E$10,12*$A50,4*(PlotControl!$C$6-1),12,1))) -> 1423.3 | Q50: =IF(PlotControl!$B$4 = "Annual Max",MAX(OFFSET(Sdam!$C$10,12*$A50,4*(PlotControl!$C$6-1),12,1)),AVERAGE(OFFSET(Sdam!$C$10,12*$A50,4*(PlotControl!$C$6-1),12,1))) -> 19.402 | R50: =IF(PlotControl!$B$4 = "Annual Max",MAX(OFFSET(Sdam!$D$10,12*$A50,4*(PlotControl!$C$6-1),12,1)),AVERAGE(OFFSET(Sdam!$D$10,12*$A50,4*(PlotControl!$C$6-1),12,1))) -> 19.402 | S50: =IF(PlotControl!$B$4 = "Annual Max",MAX(OFFSET(Sdam!$E$10,12*$A50,4*(PlotControl!$C$6-1),12,1)),AVERAGE(OFFSET(Sdam!$E$10,12*$A50,4*(PlotControl!$C$6-1),12,1))) -> 19.402 | T50: =IF(PlotControl!$B$4 = "Annual Max",MAX(OFFSET(Cbeach!$C$10,12*$A50,4*(PlotControl!$C$6-1),12,1)),AVERAGE(OFFSET(Cbeach!$C$10,12*$A50,4*(PlotControl!$C$6-1),12,1))) -> 312.33 | U50: =IF(PlotControl!$B$4 = "Annual Max",MAX(OFFSET(Cbeach!$D$10,12*$A50,4*(PlotControl!$C$6-1),12,1)),AVERAGE(OFFSET(Cbeach!$D$10,12*$A50,4*(PlotControl!$C$6-1),12,1))) -> 346.18 | V50: =IF(PlotControl!$B$4 = "Annual Max",MAX(OFFSET(Cbeach!$E$10,12*$A50,4*(PlotControl!$C$6-1),12,1)),AVERAGE(OFFSET(Cbeach!$E$10,12*$A50,4*(PlotControl!$C$6-1),12,1))) -> 390.13
A51: 46 | B51: =IF(PlotControl!$B$4 = "Annual Max",MAX(OFFSET(Nbeach!$C$10,12*$A51,4*(PlotControl!$C$6-1),12,1)),AVERAGE(OFFSET(Nbeach!$C$10,12*$A51,4*(PlotControl!$C$6-1),12,1))) -> 2656.9 | C51: =IF(PlotControl!$B$4 = "Annual Max",MAX(OFFSET(Nbeach!$D$10,12*$A51,4*(PlotControl!$C$6-1),12,1)),AVERAGE(OFFSET(Nbeach!$D$10,12*$A51,4*(PlotControl!$C$6-1),12,1))) -> 2760.2 | D51: =IF(PlotControl!$B$4 = "Annual Max",MAX(OFFSET(Nbeach!$E$10,12*$A51,4*(PlotControl!$C$6-1),12,1)),AVERAGE(OFFSET(Nbeach!$E$10,12*$A51,4*(PlotControl!$C$6-1),12,1))) -> 2865.4 | E51: =IF(PlotControl!$B$4 = "Annual Max",MAX(OFFSET(Ndam!$C$10,12*$A51,4*(PlotControl!$C$6-1),12,1)),AVERAGE(OFFSET(Ndam!$C$10,12*$A51,4*(PlotControl!$C$6-1),12,1))) -> 183.44 | F51: =IF(PlotControl!$B$4 = "Annual Max",MAX(OFFSET(Ndam!$D$10,12*$A51,4*(PlotControl!$C$6-1),12,1)),AVERAGE(OFFSET(Ndam!$D$10,12*$A51,4*(PlotControl!$C$6-1),12,1))) -> 183.44 | G51: =IF(PlotControl!$B$4 = "Annual Max",MAX(OFFSET(Ndam!$E$10,12*$A51,4*(PlotControl!$C$6-1),12,1)),AVERAGE(OFFSET(Ndam!$E$10,12*$A51,4*(PlotControl!$C$6-1),12,1))) -> 183.44 | H51: =IF(PlotControl!$B$4 = "Annual Max",MAX(OFFSET(Ebeach!$C$10,12*$A51,4*(PlotControl!$C$6-1),12,1)),AVERAGE(OFFSET(Ebeach!$C$10,12*$A51,4*(PlotControl!$C$6-1),12,1))) -> 369.55 | I51: =IF(PlotControl!$B$4 = "Annual Max",MAX(OFFSET(Ebeach!$D$10,12*$A51,4*(PlotControl!$C$6-1),12,1)),AVERAGE(OFFSET(Ebeach!$D$10,12*$A51,4*(PlotControl!$C$6-1),12,1))) -> 409.11 | J51: =IF(PlotControl!$B$4 = "Annual Max",MAX(OFFSET(Ebeach!$E$10,12*$A51,4*(PlotControl!$C$6-1),12,1)),AVERAGE(OFFSET(Ebeach!$E$10,12*$A51,4*(PlotControl!$C$6-1),12,1))) -> 450.14 | K51: =IF(PlotControl!$B$4 = "Annual Max",MAX(OFFSET(Edam!$C$10,12*$A51,4*(PlotControl!$C$6-1),12,1)),AVERAGE(OFFSET(Edam!$C$10,12*$A51,4*(PlotControl!$C$6-1),12,1))) -> 11.02 | L51: =IF(PlotControl!$B$4 = "Annual Max",MAX(OFFSET(Edam!$D$10,12*$A51,4*(PlotControl!$C$6-1),12,1)),AVERAGE(OFFSET(Edam!$D$10,12*$A51,4*(PlotControl!$C$6-1),12,1))) -> 11.02 | M51: =IF(PlotControl!$B$4 = "Annual Max",MAX(OFFSET(Edam!$E$10,12*$A51,4*(PlotControl!$C$6-1),12,1)),AVERAGE(OFFSET(Edam!$E$10,12*$A51,4*(PlotControl!$C$6-1),12,1))) -> 11.02 | N51: =IF(PlotControl!$B$4 = "Annual Max",MAX(OFFSET(Sbeach!$C$10,12*$A51,4*(PlotControl!$C$6-1),12,1)),AVERAGE(OFFSET(Sbeach!$C$10,12*$A51,4*(PlotControl!$C$6-1),12,1))) -> 1262.6 | O51: =IF(PlotControl!$B$4 = "Annual Max",MAX(OFFSET(Sbeach!$D$10,12*$A51,4*(PlotControl!$C$6-1),12,1)),AVERAGE(OFFSET(Sbeach!$D$10,12*$A51,4*(PlotControl!$C$6-1),12,1))) -> 1342.7 | P51: =IF(PlotControl!$B$4 = "Annual Max",MAX(OFFSET(Sbeach!$E$10,12*$A51,4*(PlotControl!$C$6-1),12,1)),AVERAGE(OFFSET(Sbeach!$E$10,12*$A51,4*(PlotControl!$C$6-1),12,1))) -> 1423.3 | Q51: =IF(PlotControl!$B$4 = "Annual Max",MAX(OFFSET(Sdam!$C$10,12*$A51,4*(PlotControl!$C$6-1),12,1)),AVERAGE(OFFSET(Sdam!$C$10,12*$A51,4*(PlotControl!$C$6-1),12,1))) -> 19.402 | R51: =IF(PlotControl!$B$4 = "Annual Max",MAX(OFFSET(Sdam!$D$10,12*$A51,4*(PlotControl!$C$6-1),12,1)),AVERAGE(OFFSET(Sdam!$D$10,12*$A51,4*(PlotControl!$C$6-1),12,1))) -> 19.402 | S51: =IF(PlotControl!$B$4 = "Annual Max",MAX(OFFSET(Sdam!$E$10,12*$A51,4*(PlotControl!$C$6-1),12,1)),AVERAGE(OFFSET(Sdam!$E$10,12*$A51,4*(PlotControl!$C$6-1),12,1))) -> 19.402 | T51: =IF(PlotControl!$B$4 = "Annual Max",MAX(OFFSET(Cbeach!$C$10,12*$A51,4*(PlotControl!$C$6-1),12,1)),AVERAGE(OFFSET(Cbeach!$C$10,12*$A51,4*(PlotControl!$C$6-1),12,1))) -> 312.32 | U51: =IF(PlotControl!$B$4 = "Annual Max",MAX(OFFSET(Cbeach!$D$10,12*$A51,4*(PlotControl!$C$6-1),12,1)),AVERAGE(OFFSET(Cbeach!$D$10,12*$A51,4*(PlotControl!$C$6-1),12,1))) -> 346.17 | V51: =IF(PlotControl!$B$4 = "Annual Max",MAX(OFFSET(Cbeach!$E$10,12*$A51,4*(PlotControl!$C$6-1),12,1)),AVERAGE(OFFSET(Cbeach!$E$10,12*$A51,4*(PlotControl!$C$6-1),12,1))) -> 390.12
A52: 47 | B52: =IF(PlotControl!$B$4 = "Annual Max",MAX(OFFSET(Nbeach!$C$10,12*$A52,4*(PlotControl!$C$6-1),12,1)),AVERAGE(OFFSET(Nbeach!$C$10,12*$A52,4*(PlotControl!$C$6-1),12,1))) -> 2656.9 | C52: =IF(PlotControl!$B$4 = "Annual Max",MAX(OFFSET(Nbeach!$D$10,12*$A52,4*(PlotControl!$C$6-1),12,1)),AVERAGE(OFFSET(Nbeach!$D$10,12*$A52,4*(PlotControl!$C$6-1),12,1))) -> 2760.2 | D52: =IF(PlotControl!$B$4 = "Annual Max",MAX(OFFSET(Nbeach!$E$10,12*$A52,4*(PlotControl!$C$6-1),12,1)),AVERAGE(OFFSET(Nbeach!$E$10,12*$A52,4*(PlotControl!$C$6-1),12,1))) -> 2865.4 | E52: =IF(PlotControl!$B$4 = "Annual Max",MAX(OFFSET(Ndam!$C$10,12*$A52,4*(PlotControl!$C$6-1),12,1)),AVERAGE(OFFSET(Ndam!$C$10,12*$A52,4*(PlotControl!$C$6-1),12,1))) -> 183.44 | F52: =IF(PlotControl!$B$4 = "Annual Max",MAX(OFFSET(Ndam!$D$10,12*$A52,4*(PlotControl!$C$6-1),12,1)),AVERAGE(OFFSET(Ndam!$D$10,12*$A52,4*(PlotControl!$C$6-1),12,1))) -> 183.44 | G52: =IF(PlotControl!$B$4 = "Annual Max",MAX(OFFSET(Ndam!$E$10,12*$A52,4*(PlotControl!$C$6-1),12,1)),AVERAGE(OFFSET(Ndam!$E$10,12*$A52,4*(PlotControl!$C$6-1),12,1))) -> 183.44 | H52: =IF(PlotControl!$B$4 = "Annual Max",MAX(OFFSET(Ebeach!$C$10,12*$A52,4*(PlotControl!$C$6-1),12,1)),AVERAGE(OFFSET(Ebeach!$C$10,12*$A52,4*(PlotControl!$C$6-1),12,1))) -> 369.54 | I52: =IF(PlotControl!$B$4 = "Annual Max",MAX(OFFSET(Ebeach!$D$10,12*$A52,4*(PlotControl!$C$6-1),12,1)),AVERAGE(OFFSET(Ebeach!$D$10,12*$A52,4*(PlotControl!$C$6-1),12,1))) -> 409.11 | J52: =IF(PlotControl!$B$4 = "Annual Max",MAX(OFFSET(Ebeach!$E$10,12*$A52,4*(PlotControl!$C$6-1),12,1)),AVERAGE(OFFSET(Ebeach!$E$10,12*$A52,4*(PlotControl!$C$6-1),12,1))) -> 450.13 | K52: =IF(PlotControl!$B$4 = "Annual Max",MAX(OFFSET(Edam!$C$10,12*$A52,4*(PlotControl!$C$6-1),12,1)),AVERAGE(OFFSET(Edam!$C$10,12*$A52,4*(PlotControl!$C$6-1),12,1))) -> 11.02 | L52: =IF(PlotControl!$B$4 = "Annual Max",MAX(OFFSET(Edam!$D$10,12*$A52,4*(PlotControl!$C$6-1),12,1)),AVERAGE(OFFSET(Edam!$D$10,12*$A52,4*(PlotControl!$C$6-1),12,1))) -> 11.02 | M52: =IF(PlotControl!$B$4 = "Annual Max",MAX(OFFSET(Edam!$E$10,12*$A52,4*(PlotControl!$C$6-1),12,1)),AVERAGE(OFFSET(Edam!$E$10,12*$A52,4*(PlotControl!$C$6-1),12,1))) -> 11.02 | N52: =IF(PlotControl!$B$4 = "Annual Max",MAX(OFFSET(Sbeach!$C$10,12*$A52,4*(PlotControl!$C$6-1),12,1)),AVERAGE(OFFSET(Sbeach!$C$10,12*$A52,4*(PlotControl!$C$6-1),12,1))) -> 1262.6 | O52: =IF(PlotControl!$B$4 = "Annual Max",MAX(OFFSET(Sbeach!$D$10,12*$A52,4*(PlotControl!$C$6-1),12,1)),AVERAGE(OFFSET(Sbeach!$D$10,12*$A52,4*(PlotControl!$C$6-1),12,1))) -> 1342.7 | P52: =IF(PlotControl!$B$4 = "Annual Max",MAX(OFFSET(Sbeach!$E$10,12*$A52,4*(PlotControl!$C$6-1),12,1)),AVERAGE(OFFSET(Sbeach!$E$10,12*$A52,4*(PlotControl!$C$6-1),12,1))) -> 1423.3 | Q52: =IF(PlotControl!$B$4 = "Annual Max",MAX(OFFSET(Sdam!$C$10,12*$A52,4*(PlotControl!$C$6-1),12,1)),AVERAGE(OFFSET(Sdam!$C$10,12*$A52,4*(PlotControl!$C$6-1),12,1))) -> 19.402 | R52: =IF(PlotControl!$B$4 = "Annual Max",MAX(OFFSET(Sdam!$D$10,12*$A52,4*(PlotControl!$C$6-1),12,1)),AVERAGE(OFFSET(Sdam!$D$10,12*$A52,4*(PlotControl!$C$6-1),12,1))) -> 19.402 | S52: =IF(PlotControl!$B$4 = "Annual Max",MAX(OFFSET(Sdam!$E$10,12*$A52,4*(PlotControl!$C$6-1),12,1)),AVERAGE(OFFSET(Sdam!$E$10,12*$A52,4*(PlotControl!$C$6-1),12,1))) -> 19.402 | T52: =IF(PlotControl!$B$4 = "Annual Max",MAX(OFFSET(Cbeach!$C$10,12*$A52,4*(PlotControl!$C$6-1),12,1)),AVERAGE(OFFSET(Cbeach!$C$10,12*$A52,4*(PlotControl!$C$6-1),12,1))) -> 312.31 | U52: =IF(PlotControl!$B$4 = "Annual Max",MAX(OFFSET(Cbeach!$D$10,12*$A52,4*(PlotControl!$C$6-1),12,1)),AVERAGE(OFFSET(Cbeach!$D$10,12*$A52,4*(PlotControl!$C$6-1),12,1))) -> 346.16 | V52: =IF(PlotControl!$B$4 = "Annual Max",MAX(OFFSET(Cbeach!$E$10,12*$A52,4*(PlotControl!$C$6-1),12,1)),AVERAGE(OFFSET(Cbeach!$E$10,12*$A52,4*(PlotControl!$C$6-1),12,1))) -> 390.11
A53: 48 | B53: =IF(PlotControl!$B$4 = "Annual Max",MAX(OFFSET(Nbeach!$C$10,12*$A53,4*(PlotControl!$C$6-1),12,1)),AVERAGE(OFFSET(Nbeach!$C$10,12*$A53,4*(PlotControl!$C$6-1),12,1))) -> 2656.8 | C53: =IF(PlotControl!$B$4 = "Annual Max",MAX(OFFSET(Nbeach!$D$10,12*$A53,4*(PlotControl!$C$6-1),12,1)),AVERAGE(OFFSET(Nbeach!$D$10,12*$A53,4*(PlotControl!$C$6-1),12,1))) -> 2760.2 | D53: =IF(PlotControl!$B$4 = "Annual Max",MAX(OFFSET(Nbeach!$E$10,12*$A53,4*(PlotControl!$C$6-1),12,1)),AVERAGE(OFFSET(Nbeach!$E$10,12*$A53,4*(PlotControl!$C$6-1),12,1))) -> 2865.4 | E53: =IF(PlotControl!$B$4 = "Annual Max",MAX(OFFSET(Ndam!$C$10,12*$A53,4*(PlotControl!$C$6-1),12,1)),AVERAGE(OFFSET(Ndam!$C$10,12*$A53,4*(PlotControl!$C$6-1),12,1))) -> 183.44 | F53: =IF(PlotControl!$B$4 = "Annual Max",MAX(OFFSET(Ndam!$D$10,12*$A53,4*(PlotControl!$C$6-1),12,1)),AVERAGE(OFFSET(Ndam!$D$10,12*$A53,4*(PlotControl!$C$6-1),12,1))) -> 183.44 | G53: =IF(PlotControl!$B$4 = "Annual Max",MAX(OFFSET(Ndam!$E$10,12*$A53,4*(PlotControl!$C$6-1),12,1)),AVERAGE(OFFSET(Ndam!$E$10,12*$A53,4*(PlotControl!$C$6-1),12,1))) -> 183.44 | H53: =IF(PlotControl!$B$4 = "Annual Max",MAX(OFFSET(Ebeach!$C$10,12*$A53,4*(PlotControl!$C$6-1),12,1)),AVERAGE(OFFSET(Ebeach!$C$10,12*$A53,4*(PlotControl!$C$6-1),12,1))) -> 369.54 | I53: =IF(PlotControl!$B$4 = "Annual Max",MAX(OFFSET(Ebeach!$D$10,12*$A53,4*(PlotControl!$C$6-1),12,1)),AVERAGE(OFFSET(Ebeach!$D$10,12*$A53,4*(PlotControl!$C$6-1),12,1))) -> 409.11 | J53: =IF(PlotControl!$B$4 = "Annual Max",MAX(OFFSET(Ebeach!$E$10,12*$A53,4*(PlotControl!$C$6-1),12,1)),AVERAGE(OFFSET(Ebeach!$E$10,12*$A53,4*(PlotControl!$C$6-1),12,1))) -> 450.13 | K53: =IF(PlotControl!$B$4 = "Annual Max",MAX(OFFSET(Edam!$C$10,12*$A53,4*(PlotControl!$C$6-1),12,1)),AVERAGE(OFFSET(Edam!$C$10,12*$A53,4*(PlotControl!$C$6-1),12,1))) -> 11.02 | L53: =IF(PlotControl!$B$4 = "Annual Max",MAX(OFFSET(Edam!$D$10,12*$A53,4*(PlotControl!$C$6-1),12,1)),AVERAGE(OFFSET(Edam!$D$10,12*$A53,4*(PlotControl!$C$6-1),12,1))) -> 11.02 | M53: =IF(PlotControl!$B$4 = "Annual Max",MAX(OFFSET(Edam!$E$10,12*$A53,4*(PlotControl!$C$6-1),12,1)),AVERAGE(OFFSET(Edam!$E$10,12*$A53,4*(PlotControl!$C$6-1),12,1))) -> 11.02 | N53: =IF(PlotControl!$B$4 = "Annual Max",MAX(OFFSET(Sbeach!$C$10,12*$A53,4*(PlotControl!$C$6-1),12,1)),AVERAGE(OFFSET(Sbeach!$C$10,12*$A53,4*(PlotControl!$C$6-1),12,1))) -> 1262.5 | O53: =IF(PlotControl!$B$4 = "Annual Max",MAX(OFFSET(Sbeach!$D$10,12*$A53,4*(PlotControl!$C$6-1),12,1)),AVERAGE(OFFSET(Sbeach!$D$10,12*$A53,4*(PlotControl!$C$6-1),12,1))) -> 1342.7 | P53: =IF(PlotControl!$B$4 = "Annual Max",MAX(OFFSET(Sbeach!$E$10,12*$A53,4*(PlotControl!$C$6-1),12,1)),AVERAGE(OFFSET(Sbeach!$E$10,12*$A53,4*(PlotControl!$C$6-1),12,1))) -> 1423.3 | Q53: =IF(PlotControl!$B$4 = "Annual Max",MAX(OFFSET(Sdam!$C$10,12*$A53,4*(PlotControl!$C$6-1),12,1)),AVERAGE(OFFSET(Sdam!$C$10,12*$A53,4*(PlotControl!$C$6-1),12,1))) -> 19.402 | R53: =IF(PlotControl!$B$4 = "Annual Max",MAX(OFFSET(Sdam!$D$10,12*$A53,4*(PlotControl!$C$6-1),12,1)),AVERAGE(OFFSET(Sdam!$D$10,12*$A53,4*(PlotControl!$C$6-1),12,1))) -> 19.402 | S53: =IF(PlotControl!$B$4 = "Annual Max",MAX(OFFSET(Sdam!$E$10,12*$A53,4*(PlotControl!$C$6-1),12,1)),AVERAGE(OFFSET(Sdam!$E$10,12*$A53,4*(PlotControl!$C$6-1),12,1))) -> 19.402 | T53: =IF(PlotControl!$B$4 = "Annual Max",MAX(OFFSET(Cbeach!$C$10,12*$A53,4*(PlotControl!$C$6-1),12,1)),AVERAGE(OFFSET(Cbeach!$C$10,12*$A53,4*(PlotControl!$C$6-1),12,1))) -> 312.31 | U53: =IF(PlotControl!$B$4 = "Annual Max",MAX(OFFSET(Cbeach!$D$10,12*$A53,4*(PlotControl!$C$6-1),12,1)),AVERAGE(OFFSET(Cbeach!$D$10,12*$A53,4*(PlotControl!$C$6-1),12,1))) -> 346.15 | V53: =IF(PlotControl!$B$4 = "Annual Max",MAX(OFFSET(Cbeach!$E$10,12*$A53,4*(PlotControl!$C$6-1),12,1)),AVERAGE(OFFSET(Cbeach!$E$10,12*$A53,4*(PlotControl!$C$6-1),12,1))) -> 390.1
A54: 49 | B54: =IF(PlotControl!$B$4 = "Annual Max",MAX(OFFSET(Nbeach!$C$10,12*$A54,4*(PlotControl!$C$6-1),12,1)),AVERAGE(OFFSET(Nbeach!$C$10,12*$A54,4*(PlotControl!$C$6-1),12,1))) -> 2656.8 | C54: =IF(PlotControl!$B$4 = "Annual Max",MAX(OFFSET(Nbeach!$D$10,12*$A54,4*(PlotControl!$C$6-1),12,1)),AVERAGE(OFFSET(Nbeach!$D$10,12*$A54,4*(PlotControl!$C$6-1),12,1))) -> 2760.2 | D54: =IF(PlotControl!$B$4 = "Annual Max",MAX(OFFSET(Nbeach!$E$10,12*$A54,4*(PlotControl!$C$6-1),12,1)),AVERAGE(OFFSET(Nbeach!$E$10,12*$A54,4*(PlotControl!$C$6-1),12,1))) -> 2865.4 | E54: =IF(PlotControl!$B$4 = "Annual Max",MAX(OFFSET(Ndam!$C$10,12*$A54,4*(PlotControl!$C$6-1),12,1)),AVERAGE(OFFSET(Ndam!$C$10,12*$A54,4*(PlotControl!$C$6-1),12,1))) -> 183.44 | F54: =IF(PlotControl!$B$4 = "Annual Max",MAX(OFFSET(Ndam!$D$10,12*$A54,4*(PlotControl!$C$6-1),12,1)),AVERAGE(OFFSET(Ndam!$D$10,12*$A54,4*(PlotControl!$C$6-1),12,1))) -> 183.44 | G54: =IF(PlotControl!$B$4 = "Annual Max",MAX(OFFSET(Ndam!$E$10,12*$A54,4*(PlotControl!$C$6-1),12,1)),AVERAGE(OFFSET(Ndam!$E$10,12*$A54,4*(PlotControl!$C$6-1),12,1))) -> 183.44 | H54: =IF(PlotControl!$B$4 = "Annual Max",MAX(OFFSET(Ebeach!$C$10,12*$A54,4*(PlotControl!$C$6-1),12,1)),AVERAGE(OFFSET(Ebeach!$C$10,12*$A54,4*(PlotControl!$C$6-1),12,1))) -> 369.53 | I54: =IF(PlotControl!$B$4 = "Annual Max",MAX(OFFSET(Ebeach!$D$10,12*$A54,4*(PlotControl!$C$6-1),12,1)),AVERAGE(OFFSET(Ebeach!$D$10,12*$A54,4*(PlotControl!$C$6-1),12,1))) -> 409.11 | J54: =IF(PlotControl!$B$4 = "Annual Max",MAX(OFFSET(Ebeach!$E$10,12*$A54,4*(PlotControl!$C$6-1),12,1)),AVERAGE(OFFSET(Ebeach!$E$10,12*$A54,4*(PlotControl!$C$6-1),12,1))) -> 450.12 | K54: =IF(PlotControl!$B$4 = "Annual Max",MAX(OFFSET(Edam!$C$10,12*$A54,4*(PlotControl!$C$6-1),12,1)),AVERAGE(OFFSET(Edam!$C$10,12*$A54,4*(PlotControl!$C$6-1),12,1))) -> 11.02 | L54: =IF(PlotControl!$B$4 = "Annual Max",MAX(OFFSET(Edam!$D$10,12*$A54,4*(PlotControl!$C$6-1),12,1)),AVERAGE(OFFSET(Edam!$D$10,12*$A54,4*(PlotControl!$C$6-1),12,1))) -> 11.02 | M54: =IF(PlotControl!$B$4 = "Annual Max",MAX(OFFSET(Edam!$E$10,12*$A54,4*(PlotControl!$C$6-1),12,1)),AVERAGE(OFFSET(Edam!$E$10,12*$A54,4*(PlotControl!$C$6-1),12,1))) -> 11.02 | N54: =IF(PlotControl!$B$4 = "Annual Max",MAX(OFFSET(Sbeach!$C$10,12*$A54,4*(PlotControl!$C$6-1),12,1)),AVERAGE(OFFSET(Sbeach!$C$10,12*$A54,4*(PlotControl!$C$6-1),12,1))) -> 1262.5 | O54: =IF(PlotControl!$B$4 = "Annual Max",MAX(OFFSET(Sbeach!$D$10,12*$A54,4*(PlotControl!$C$6-1),12,1)),AVERAGE(OFFSET(Sbeach!$D$10,12*$A54,4*(PlotControl!$C$6-1),12,1))) -> 1342.7 | P54: =IF(PlotControl!$B$4 = "Annual Max",MAX(OFFSET(Sbeach!$E$10,12*$A54,4*(PlotControl!$C$6-1),12,1)),AVERAGE(OFFSET(Sbeach!$E$10,12*$A54,4*(PlotControl!$C$6-1),12,1))) -> 1423.3 | Q54: =IF(PlotControl!$B$4 = "Annual Max",MAX(OFFSET(Sdam!$C$10,12*$A54,4*(PlotControl!$C$6-1),12,1)),AVERAGE(OFFSET(Sdam!$C$10,12*$A54,4*(PlotControl!$C$6-1),12,1))) -> 19.402 | R54: =IF(PlotControl!$B$4 = "Annual Max",MAX(OFFSET(Sdam!$D$10,12*$A54,4*(PlotControl!$C$6-1),12,1)),AVERAGE(OFFSET(Sdam!$D$10,12*$A54,4*(PlotControl!$C$6-1),12,1))) -> 19.402 | S54: =IF(PlotControl!$B$4 = "Annual Max",MAX(OFFSET(Sdam!$E$10,12*$A54,4*(PlotControl!$C$6-1),12,1)),AVERAGE(OFFSET(Sdam!$E$10,12*$A54,4*(PlotControl!$C$6-1),12,1))) -> 19.402 | T54: =IF(PlotControl!$B$4 = "Annual Max",MAX(OFFSET(Cbeach!$C$10,12*$A54,4*(PlotControl!$C$6-1),12,1)),AVERAGE(OFFSET(Cbeach!$C$10,12*$A54,4*(PlotControl!$C$6-1),12,1))) -> 312.3 | U54: =IF(PlotControl!$B$4 = "Annual Max",MAX(OFFSET(Cbeach!$D$10,12*$A54,4*(PlotControl!$C$6-1),12,1)),AVERAGE(OFFSET(Cbeach!$D$10,12*$A54,4*(PlotControl!$C$6-1),12,1))) -> 346.14 | V54: =IF(PlotControl!$B$4 = "Annual Max",MAX(OFFSET(Cbeach!$E$10,12*$A54,4*(PlotControl!$C$6-1),12,1)),AVERAGE(OFFSET(Cbeach!$E$10,12*$A54,4*(PlotControl!$C$6-1),12,1))) -> 390.09
A55: 50 | B55: =IF(PlotControl!$B$4 = "Annual Max",MAX(OFFSET(Nbeach!$C$10,12*$A55,4*(PlotControl!$C$6-1),12,1)),AVERAGE(OFFSET(Nbeach!$C$10,12*$A55,4*(PlotControl!$C$6-1),12,1))) -> 2656.8 | C55: =IF(PlotControl!$B$4 = "Annual Max",MAX(OFFSET(Nbeach!$D$10,12*$A55,4*(PlotControl!$C$6-1),12,1)),AVERAGE(OFFSET(Nbeach!$D$10,12*$A55,4*(PlotControl!$C$6-1),12,1))) -> 2760.2 | D55: =IF(PlotControl!$B$4 = "Annual Max",MAX(OFFSET(Nbeach!$E$10,12*$A55,4*(PlotControl!$C$6-1),12,1)),AVERAGE(OFFSET(Nbeach!$E$10,12*$A55,4*(PlotControl!$C$6-1),12,1))) -> 2865.4 | E55: =IF(PlotControl!$B$4 = "Annual Max",MAX(OFFSET(Ndam!$C$10,12*$A55,4*(PlotControl!$C$6-1),12,1)),AVERAGE(OFFSET(Ndam!$C$10,12*$A55,4*(PlotControl!$C$6-1),12,1))) -> 183.44 | F55: =IF(PlotControl!$B$4 = "Annual Max",MAX(OFFSET(Ndam!$D$10,12*$A55,4*(PlotControl!$C$6-1),12,1)),AVERAGE(OFFSET(Ndam!$D$10,12*$A55,4*(PlotControl!$C$6-1),12,1))) -> 183.44 | G55: =IF(PlotControl!$B$4 = "Annual Max",MAX(OFFSET(Ndam!$E$10,12*$A55,4*(PlotControl!$C$6-1),12,1)),AVERAGE(OFFSET(Ndam!$E$10,12*$A55,4*(PlotControl!$C$6-1),12,1))) -> 183.44 | H55: =IF(PlotControl!$B$4 = "Annual Max",MAX(OFFSET(Ebeach!$C$10,12*$A55,4*(PlotControl!$C$6-1),12,1)),AVERAGE(OFFSET(Ebeach!$C$10,12*$A55,4*(PlotControl!$C$6-1),12,1))) -> 369.52 | I55: =IF(PlotControl!$B$4 = "Annual Max",MAX(OFFSET(Ebeach!$D$10,12*$A55,4*(PlotControl!$C$6-1),12,1)),AVERAGE(OFFSET(Ebeach!$D$10,12*$A55,4*(PlotControl!$C$6-1),12,1))) -> 409.1 | J55: =IF(PlotControl!$B$4 = "Annual Max",MAX(OFFSET(Ebeach!$E$10,12*$A55,4*(PlotControl!$C$6-1),12,1)),AVERAGE(OFFSET(Ebeach!$E$10,12*$A55,4*(PlotControl!$C$6-1),12,1))) -> 450.12 | K55: =IF(PlotControl!$B$4 = "Annual Max",MAX(OFFSET(Edam!$C$10,12*$A55,4*(PlotControl!$C$6-1),12,1)),AVERAGE(OFFSET(Edam!$C$10,12*$A55,4*(PlotControl!$C$6-1),12,1))) -> 11.02 | L55: =IF(PlotControl!$B$4 = "Annual Max",MAX(OFFSET(Edam!$D$10,12*$A55,4*(PlotControl!$C$6-1),12,1)),AVERAGE(OFFSET(Edam!$D$10,12*$A55,4*(PlotControl!$C$6-1),12,1))) -> 11.02 | M55: =IF(PlotControl!$B$4 = "Annual Max",MAX(OFFSET(Edam!$E$10,12*$A55,4*(PlotControl!$C$6-1),12,1)),AVERAGE(OFFSET(Edam!$E$10,12*$A55,4*(PlotControl!$C$6-1),12,1))) -> 11.02 | N55: =IF(PlotControl!$B$4 = "Annual Max",MAX(OFFSET(Sbeach!$C$10,12*$A55,4*(PlotControl!$C$6-1),12,1)),AVERAGE(OFFSET(Sbeach!$C$10,12*$A55,4*(PlotControl!$C$6-1),12,1))) -> 1262.5 | O55: =IF(PlotControl!$B$4 = "Annual Max",MAX(OFFSET(Sbeach!$D$10,12*$A55,4*(PlotControl!$C$6-1),12,1)),AVERAGE(OFFSET(Sbeach!$D$10,12*$A55,4*(PlotControl!$C$6-1),12,1))) -> 1342.7 | P55: =IF(PlotControl!$B$4 = "Annual Max",MAX(OFFSET(Sbeach!$E$10,12*$A55,4*(PlotControl!$C$6-1),12,1)),AVERAGE(OFFSET(Sbeach!$E$10,12*$A55,4*(PlotControl!$C$6-1),12,1))) -> 1423.3 | Q55: =IF(PlotControl!$B$4 = "Annual Max",MAX(OFFSET(Sdam!$C$10,12*$A55,4*(PlotControl!$C$6-1),12,1)),AVERAGE(OFFSET(Sdam!$C$10,12*$A55,4*(PlotControl!$C$6-1),12,1))) -> 19.402 | R55: =IF(PlotControl!$B$4 = "Annual Max",MAX(OFFSET(Sdam!$D$10,12*$A55,4*(PlotControl!$C$6-1),12,1)),AVERAGE(OFFSET(Sdam!$D$10,12*$A55,4*(PlotControl!$C$6-1),12,1))) -> 19.402 | S55: =IF(PlotControl!$B$4 = "Annual Max",MAX(OFFSET(Sdam!$E$10,12*$A55,4*(PlotControl!$C$6-1),12,1)),AVERAGE(OFFSET(Sdam!$E$10,12*$A55,4*(PlotControl!$C$6-1),12,1))) -> 19.402 | T55: =IF(PlotControl!$B$4 = "Annual Max",MAX(OFFSET(Cbeach!$C$10,12*$A55,4*(PlotControl!$C$6-1),12,1)),AVERAGE(OFFSET(Cbeach!$C$10,12*$A55,4*(PlotControl!$C$6-1),12,1))) -> 312.29 | U55: =IF(PlotControl!$B$4 = "Annual Max",MAX(OFFSET(Cbeach!$D$10,12*$A55,4*(PlotControl!$C$6-1),12,1)),AVERAGE(OFFSET(Cbeach!$D$10,12*$A55,4*(PlotControl!$C$6-1),12,1))) -> 346.13 | V55: =IF(PlotControl!$B$4 = "Annual Max",MAX(OFFSET(Cbeach!$E$10,12*$A55,4*(PlotControl!$C$6-1),12,1)),AVERAGE(OFFSET(Cbeach!$E$10,12*$A55,4*(PlotControl!$C$6-1),12,1))) -> 390.08
A56: 51 | B56: =IF(PlotControl!$B$4 = "Annual Max",MAX(OFFSET(Nbeach!$C$10,12*$A56,4*(PlotControl!$C$6-1),12,1)),AVERAGE(OFFSET(Nbeach!$C$10,12*$A56,4*(PlotControl!$C$6-1),12,1))) -> 2656.8 | C56: =IF(PlotControl!$B$4 = "Annual Max",MAX(OFFSET(Nbeach!$D$10,12*$A56,4*(PlotControl!$C$6-1),12,1)),AVERAGE(OFFSET(Nbeach!$D$10,12*$A56,4*(PlotControl!$C$6-1),12,1))) -> 2760.2 | D56: =IF(PlotControl!$B$4 = "Annual Max",MAX(OFFSET(Nbeach!$E$10,12*$A56,4*(PlotControl!$C$6-1),12,1)),AVERAGE(OFFSET(Nbeach!$E$10,12*$A56,4*(PlotControl!$C$6-1),12,1))) -> 2865.3 | E56: =IF(PlotControl!$B$4 = "Annual Max",MAX(OFFSET(Ndam!$C$10,12*$A56,4*(PlotControl!$C$6-1),12,1)),AVERAGE(OFFSET(Ndam!$C$10,12*$A56,4*(PlotControl!$C$6-1),12,1))) -> 183.44 | F56: =IF(PlotControl!$B$4 = "Annual Max",MAX(OFFSET(Ndam!$D$10,12*$A56,4*(PlotControl!$C$6-1),12,1)),AVERAGE(OFFSET(Ndam!$D$10,12*$A56,4*(PlotControl!$C$6-1),12,1))) -> 183.44 | G56: =IF(PlotControl!$B$4 = "Annual Max",MAX(OFFSET(Ndam!$E$10,12*$A56,4*(PlotControl!$C$6-1),12,1)),AVERAGE(OFFSET(Ndam!$E$10,12*$A56,4*(PlotControl!$C$6-1),12,1))) -> 183.44 | H56: =IF(PlotControl!$B$4 = "Annual Max",MAX(OFFSET(Ebeach!$C$10,12*$A56,4*(PlotControl!$C$6-1),12,1)),AVERAGE(OFFSET(Ebeach!$C$10,12*$A56,4*(PlotControl!$C$6-1),12,1))) -> 369.51 | I56: =IF(PlotControl!$B$4 = "Annual Max",MAX(OFFSET(Ebeach!$D$10,12*$A56,4*(PlotControl!$C$6-1),12,1)),AVERAGE(OFFSET(Ebeach!$D$10,12*$A56,4*(PlotControl!$C$6-1),12,1))) -> 409.1 | J56: =IF(PlotControl!$B$4 = "Annual Max",MAX(OFFSET(Ebeach!$E$10,12*$A56,4*(PlotControl!$C$6-1),12,1)),AVERAGE(OFFSET(Ebeach!$E$10,12*$A56,4*(PlotControl!$C$6-1),12,1))) -> 450.11 | K56: =IF(PlotControl!$B$4 = "Annual Max",MAX(OFFSET(Edam!$C$10,12*$A56,4*(PlotControl!$C$6-1),12,1)),AVERAGE(OFFSET(Edam!$C$10,12*$A56,4*(PlotControl!$C$6-1),12,1))) -> 11.02 | L56: =IF(PlotControl!$B$4 = "Annual Max",MAX(OFFSET(Edam!$D$10,12*$A56,4*(PlotControl!$C$6-1),12,1)),AVERAGE(OFFSET(Edam!$D$10,12*$A56,4*(PlotControl!$C$6-1),12,1))) -> 11.02 | M56: =IF(PlotControl!$B$4 = "Annual Max",MAX(OFFSET(Edam!$E$10,12*$A56,4*(PlotControl!$C$6-1),12,1)),AVERAGE(OFFSET(Edam!$E$10,12*$A56,4*(PlotControl!$C$6-1),12,1))) -> 11.02 | N56: =IF(PlotControl!$B$4 = "Annual Max",MAX(OFFSET(Sbeach!$C$10,12*$A56,4*(PlotControl!$C$6-1),12,1)),AVERAGE(OFFSET(Sbeach!$C$10,12*$A56,4*(PlotControl!$C$6-1),12,1))) -> 1262.5 | O56: =IF(PlotControl!$B$4 = "Annual Max",MAX(OFFSET(Sbeach!$D$10,12*$A56,4*(PlotControl!$C$6-1),12,1)),AVERAGE(OFFSET(Sbeach!$D$10,12*$A56,4*(PlotControl!$C$6-1),12,1))) -> 1342.7 | P56: =IF(PlotControl!$B$4 = "Annual Max",MAX(OFFSET(Sbeach!$E$10,12*$A56,4*(PlotControl!$C$6-1),12,1)),AVERAGE(OFFSET(Sbeach!$E$10,12*$A56,4*(PlotControl!$C$6-1),12,1))) -> 1423.3 | Q56: =IF(PlotControl!$B$4 = "Annual Max",MAX(OFFSET(Sdam!$C$10,12*$A56,4*(PlotControl!$C$6-1),12,1)),AVERAGE(OFFSET(Sdam!$C$10,12*$A56,4*(PlotControl!$C$6-1),12,1))) -> 19.402 | R56: =IF(PlotControl!$B$4 = "Annual Max",MAX(OFFSET(Sdam!$D$10,12*$A56,4*(PlotControl!$C$6-1),12,1)),AVERAGE(OFFSET(Sdam!$D$10,12*$A56,4*(PlotControl!$C$6-1),12,1))) -> 19.402 | S56: =IF(PlotControl!$B$4 = "Annual Max",MAX(OFFSET(Sdam!$E$10,12*$A56,4*(PlotControl!$C$6-1),12,1)),AVERAGE(OFFSET(Sdam!$E$10,12*$A56,4*(PlotControl!$C$6-1),12,1))) -> 19.402 | T56: =IF(PlotControl!$B$4 = "Annual Max",MAX(OFFSET(Cbeach!$C$10,12*$A56,4*(PlotControl!$C$6-1),12,1)),AVERAGE(OFFSET(Cbeach!$C$10,12*$A56,4*(PlotControl!$C$6-1),12,1))) -> 312.29 | U56: =IF(PlotControl!$B$4 = "Annual Max",MAX(OFFSET(Cbeach!$D$10,12*$A56,4*(PlotControl!$C$6-1),12,1)),AVERAGE(OFFSET(Cbeach!$D$10,12*$A56,4*(PlotControl!$C$6-1),12,1))) -> 346.13 | V56: =IF(PlotControl!$B$4 = "Annual Max",MAX(OFFSET(Cbeach!$E$10,12*$A56,4*(PlotControl!$C$6-1),12,1)),AVERAGE(OFFSET(Cbeach!$E$10,12*$A56,4*(PlotControl!$C$6-1),12,1))) -> 390.07
A57: 52 | B57: =IF(PlotControl!$B$4 = "Annual Max",MAX(OFFSET(Nbeach!$C$10,12*$A57,4*(PlotControl!$C$6-1),12,1)),AVERAGE(OFFSET(Nbeach!$C$10,12*$A57,4*(PlotControl!$C$6-1),12,1))) -> 2656.8 | C57: =IF(PlotControl!$B$4 = "Annual Max",MAX(OFFSET(Nbeach!$D$10,12*$A57,4*(PlotControl!$C$6-1),12,1)),AVERAGE(OFFSET(Nbeach!$D$10,12*$A57,4*(PlotControl!$C$6-1),12,1))) -> 2760.2 | D57: =IF(PlotControl!$B$4 = "Annual Max",MAX(OFFSET(Nbeach!$E$10,12*$A57,4*(PlotControl!$C$6-1),12,1)),AVERAGE(OFFSET(Nbeach!$E$10,12*$A57,4*(PlotControl!$C$6-1),12,1))) -> 2865.3 | E57: =IF(PlotControl!$B$4 = "Annual Max",MAX(OFFSET(Ndam!$C$10,12*$A57,4*(PlotControl!$C$6-1),12,1)),AVERAGE(OFFSET(Ndam!$C$10,12*$A57,4*(PlotControl!$C$6-1),12,1))) -> 183.44 | F57: =IF(PlotControl!$B$4 = "Annual Max",MAX(OFFSET(Ndam!$D$10,12*$A57,4*(PlotControl!$C$6-1),12,1)),AVERAGE(OFFSET(Ndam!$D$10,12*$A57,4*(PlotControl!$C$6-1),12,1))) -> 183.44 | G57: =IF(PlotControl!$B$4 = "Annual Max",MAX(OFFSET(Ndam!$E$10,12*$A57,4*(PlotControl!$C$6-1),12,1)),AVERAGE(OFFSET(Ndam!$E$10,12*$A57,4*(PlotControl!$C$6-1),12,1))) -> 183.44 | H57: =IF(PlotControl!$B$4 = "Annual Max",MAX(OFFSET(Ebeach!$C$10,12*$A57,4*(PlotControl!$C$6-1),12,1)),AVERAGE(OFFSET(Ebeach!$C$10,12*$A57,4*(PlotControl!$C$6-1),12,1))) -> 369.5 | I57: =IF(PlotControl!$B$4 = "Annual Max",MAX(OFFSET(Ebeach!$D$10,12*$A57,4*(PlotControl!$C$6-1),12,1)),AVERAGE(OFFSET(Ebeach!$D$10,12*$A57,4*(PlotControl!$C$6-1),12,1))) -> 409.1 | J57: =IF(PlotControl!$B$4 = "Annual Max",MAX(OFFSET(Ebeach!$E$10,12*$A57,4*(PlotControl!$C$6-1),12,1)),AVERAGE(OFFSET(Ebeach!$E$10,12*$A57,4*(PlotControl!$C$6-1),12,1))) -> 450.11 | K57: =IF(PlotControl!$B$4 = "Annual Max",MAX(OFFSET(Edam!$C$10,12*$A57,4*(PlotControl!$C$6-1),12,1)),AVERAGE(OFFSET(Edam!$C$10,12*$A57,4*(PlotControl!$C$6-1),12,1))) -> 11.02 | L57: =IF(PlotControl!$B$4 = "Annual Max",MAX(OFFSET(Edam!$D$10,12*$A57,4*(PlotControl!$C$6-1),12,1)),AVERAGE(OFFSET(Edam!$D$10,12*$A57,4*(PlotControl!$C$6-1),12,1))) -> 11.02 | M57: =IF(PlotControl!$B$4 = "Annual Max",MAX(OFFSET(Edam!$E$10,12*$A57,4*(PlotControl!$C$6-1),12,1)),AVERAGE(OFFSET(Edam!$E$10,12*$A57,4*(PlotControl!$C$6-1),12,1))) -> 11.02 | N57: =IF(PlotControl!$B$4 = "Annual Max",MAX(OFFSET(Sbeach!$C$10,12*$A57,4*(PlotControl!$C$6-1),12,1)),AVERAGE(OFFSET(Sbeach!$C$10,12*$A57,4*(PlotControl!$C$6-1),12,1))) -> 1262.5 | O57: =IF(PlotControl!$B$4 = "Annual Max",MAX(OFFSET(Sbeach!$D$10,12*$A57,4*(PlotControl!$C$6-1),12,1)),AVERAGE(OFFSET(Sbeach!$D$10,12*$A57,4*(PlotControl!$C$6-1),12,1))) -> 1342.7 | P57: =IF(PlotControl!$B$4 = "Annual Max",MAX(OFFSET(Sbeach!$E$10,12*$A57,4*(PlotControl!$C$6-1),12,1)),AVERAGE(OFFSET(Sbeach!$E$10,12*$A57,4*(PlotControl!$C$6-1),12,1))) -> 1423.3 | Q57: =IF(PlotControl!$B$4 = "Annual Max",MAX(OFFSET(Sdam!$C$10,12*$A57,4*(PlotControl!$C$6-1),12,1)),AVERAGE(OFFSET(Sdam!$C$10,12*$A57,4*(PlotControl!$C$6-1),12,1))) -> 19.402 | R57: =IF(PlotControl!$B$4 = "Annual Max",MAX(OFFSET(Sdam!$D$10,12*$A57,4*(PlotControl!$C$6-1),12,1)),AVERAGE(OFFSET(Sdam!$D$10,12*$A57,4*(PlotControl!$C$6-1),12,1))) -> 19.402 | S57: =IF(PlotControl!$B$4 = "Annual Max",MAX(OFFSET(Sdam!$E$10,12*$A57,4*(PlotControl!$C$6-1),12,1)),AVERAGE(OFFSET(Sdam!$E$10,12*$A57,4*(PlotControl!$C$6-1),12,1))) -> 19.402 | T57: =IF(PlotControl!$B$4 = "Annual Max",MAX(OFFSET(Cbeach!$C$10,12*$A57,4*(PlotControl!$C$6-1),12,1)),AVERAGE(OFFSET(Cbeach!$C$10,12*$A57,4*(PlotControl!$C$6-1),12,1))) -> 312.28 | U57: =IF(PlotControl!$B$4 = "Annual Max",MAX(OFFSET(Cbeach!$D$10,12*$A57,4*(PlotControl!$C$6-1),12,1)),AVERAGE(OFFSET(Cbeach!$D$10,12*$A57,4*(PlotControl!$C$6-1),12,1))) -> 346.12 | V57: =IF(PlotControl!$B$4 = "Annual Max",MAX(OFFSET(Cbeach!$E$10,12*$A57,4*(PlotControl!$C$6-1),12,1)),AVERAGE(OFFSET(Cbeach!$E$10,12*$A57,4*(PlotControl!$C$6-1),12,1))) -> 390.05
A58: 53 | B58: =IF(PlotControl!$B$4 = "Annual Max",MAX(OFFSET(Nbeach!$C$10,12*$A58,4*(PlotControl!$C$6-1),12,1)),AVERAGE(OFFSET(Nbeach!$C$10,12*$A58,4*(PlotControl!$C$6-1),12,1))) -> 2656.8 | C58: =IF(PlotControl!$B$4 = "Annual Max",MAX(OFFSET(Nbeach!$D$10,12*$A58,4*(PlotControl!$C$6-1),12,1)),AVERAGE(OFFSET(Nbeach!$D$10,12*$A58,4*(PlotControl!$C$6-1),12,1))) -> 2760.2 | D58: =IF(PlotControl!$B$4 = "Annual Max",MAX(OFFSET(Nbeach!$E$10,12*$A58,4*(PlotControl!$C$6-1),12,1)),AVERAGE(OFFSET(Nbeach!$E$10,12*$A58,4*(PlotControl!$C$6-1),12,1))) -> 2865.3 | E58: =IF(PlotControl!$B$4 = "Annual Max",MAX(OFFSET(Ndam!$C$10,12*$A58,4*(PlotControl!$C$6-1),12,1)),AVERAGE(OFFSET(Ndam!$C$10,12*$A58,4*(PlotControl!$C$6-1),12,1))) -> 183.44 | F58: =IF(PlotControl!$B$4 = "Annual Max",MAX(OFFSET(Ndam!$D$10,12*$A58,4*(PlotControl!$C$6-1),12,1)),AVERAGE(OFFSET(Ndam!$D$10,12*$A58,4*(PlotControl!$C$6-1),12,1))) -> 183.44 | G58: =IF(PlotControl!$B$4 = "Annual Max",MAX(OFFSET(Ndam!$E$10,12*$A58,4*(PlotControl!$C$6-1),12,1)),AVERAGE(OFFSET(Ndam!$E$10,12*$A58,4*(PlotControl!$C$6-1),12,1))) -> 183.44 | H58: =IF(PlotControl!$B$4 = "Annual Max",MAX(OFFSET(Ebeach!$C$10,12*$A58,4*(PlotControl!$C$6-1),12,1)),AVERAGE(OFFSET(Ebeach!$C$10,12*$A58,4*(PlotControl!$C$6-1),12,1))) -> 369.49 | I58: =IF(PlotControl!$B$4 = "Annual Max",MAX(OFFSET(Ebeach!$D$10,12*$A58,4*(PlotControl!$C$6-1),12,1)),AVERAGE(OFFSET(Ebeach!$D$10,12*$A58,4*(PlotControl!$C$6-1),12,1))) -> 409.1 | J58: =IF(PlotControl!$B$4 = "Annual Max",MAX(OFFSET(Ebeach!$E$10,12*$A58,4*(PlotControl!$C$6-1),12,1)),AVERAGE(OFFSET(Ebeach!$E$10,12*$A58,4*(PlotControl!$C$6-1),12,1))) -> 450.11 | K58: =IF(PlotControl!$B$4 = "Annual Max",MAX(OFFSET(Edam!$C$10,12*$A58,4*(PlotControl!$C$6-1),12,1)),AVERAGE(OFFSET(Edam!$C$10,12*$A58,4*(PlotControl!$C$6-1),12,1))) -> 11.02 | L58: =IF(PlotControl!$B$4 = "Annual Max",MAX(OFFSET(Edam!$D$10,12*$A58,4*(PlotControl!$C$6-1),12,1)),AVERAGE(OFFSET(Edam!$D$10,12*$A58,4*(PlotControl!$C$6-1),12,1))) -> 11.02 | M58: =IF(PlotControl!$B$4 = "Annual Max",MAX(OFFSET(Edam!$E$10,12*$A58,4*(PlotControl!$C$6-1),12,1)),AVERAGE(OFFSET(Edam!$E$10,12*$A58,4*(PlotControl!$C$6-1),12,1))) -> 11.02 | N58: =IF(PlotControl!$B$4 = "Annual Max",MAX(OFFSET(Sbeach!$C$10,12*$A58,4*(PlotControl!$C$6-1),12,1)),AVERAGE(OFFSET(Sbeach!$C$10,12*$A58,4*(PlotControl!$C$6-1),12,1))) -> 1262.5 | O58: =IF(PlotControl!$B$4 = "Annual Max",MAX(OFFSET(Sbeach!$D$10,12*$A58,4*(PlotControl!$C$6-1),12,1)),AVERAGE(OFFSET(Sbeach!$D$10,12*$A58,4*(PlotControl!$C$6-1),12,1))) -> 1342.7 | P58: =IF(PlotControl!$B$4 = "Annual Max",MAX(OFFSET(Sbeach!$E$10,12*$A58,4*(PlotControl!$C$6-1),12,1)),AVERAGE(OFFSET(Sbeach!$E$10,12*$A58,4*(PlotControl!$C$6-1),12,1))) -> 1423.3 | Q58: =IF(PlotControl!$B$4 = "Annual Max",MAX(OFFSET(Sdam!$C$10,12*$A58,4*(PlotControl!$C$6-1),12,1)),AVERAGE(OFFSET(Sdam!$C$10,12*$A58,4*(PlotControl!$C$6-1),12,1))) -> 19.402 | R58: =IF(PlotControl!$B$4 = "Annual Max",MAX(OFFSET(Sdam!$D$10,12*$A58,4*(PlotControl!$C$6-1),12,1)),AVERAGE(OFFSET(Sdam!$D$10,12*$A58,4*(PlotControl!$C$6-1),12,1))) -> 19.402 | S58: =IF(PlotControl!$B$4 = "Annual Max",MAX(OFFSET(Sdam!$E$10,12*$A58,4*(PlotControl!$C$6-1),12,1)),AVERAGE(OFFSET(Sdam!$E$10,12*$A58,4*(PlotControl!$C$6-1),12,1))) -> 19.402 | T58: =IF(PlotControl!$B$4 = "Annual Max",MAX(OFFSET(Cbeach!$C$10,12*$A58,4*(PlotControl!$C$6-1),12,1)),AVERAGE(OFFSET(Cbeach!$C$10,12*$A58,4*(PlotControl!$C$6-1),12,1))) -> 312.26 | U58: =IF(PlotControl!$B$4 = "Annual Max",MAX(OFFSET(Cbeach!$D$10,12*$A58,4*(PlotControl!$C$6-1),12,1)),AVERAGE(OFFSET(Cbeach!$D$10,12*$A58,4*(PlotControl!$C$6-1),12,1))) -> 346.11 | V58: =IF(PlotControl!$B$4 = "Annual Max",MAX(OFFSET(Cbeach!$E$10,12*$A58,4*(PlotControl!$C$6-1),12,1)),AVERAGE(OFFSET(Cbeach!$E$10,12*$A58,4*(PlotControl!$C$6-1),12,1))) -> 390.04
A59: 54 | B59: =IF(PlotControl!$B$4 = "Annual Max",MAX(OFFSET(Nbeach!$C$10,12*$A59,4*(PlotControl!$C$6-1),12,1)),AVERAGE(OFFSET(Nbeach!$C$10,12*$A59,4*(PlotControl!$C$6-1),12,1))) -> 2656.8 | C59: =IF(PlotControl!$B$4 = "Annual Max",MAX(OFFSET(Nbeach!$D$10,12*$A59,4*(PlotControl!$C$6-1),12,1)),AVERAGE(OFFSET(Nbeach!$D$10,12*$A59,4*(PlotControl!$C$6-1),12,1))) -> 2760.2 | D59: =IF(PlotControl!$B$4 = "Annual Max",MAX(OFFSET(Nbeach!$E$10,12*$A59,4*(PlotControl!$C$6-1),12,1)),AVERAGE(OFFSET(Nbeach!$E$10,12*$A59,4*(PlotControl!$C$6-1),12,1))) -> 2865.3 | E59: =IF(PlotControl!$B$4 = "Annual Max",MAX(OFFSET(Ndam!$C$10,12*$A59,4*(PlotControl!$C$6-1),12,1)),AVERAGE(OFFSET(Ndam!$C$10,12*$A59,4*(PlotControl!$C$6-1),12,1))) -> 183.44 | F59: =IF(PlotControl!$B$4 = "Annual Max",MAX(OFFSET(Ndam!$D$10,12*$A59,4*(PlotControl!$C$6-1),12,1)),AVERAGE(OFFSET(Ndam!$D$10,12*$A59,4*(PlotControl!$C$6-1),12,1))) -> 183.44 | G59: =IF(PlotControl!$B$4 = "Annual Max",MAX(OFFSET(Ndam!$E$10,12*$A59,4*(PlotControl!$C$6-1),12,1)),AVERAGE(OFFSET(Ndam!$E$10,12*$A59,4*(PlotControl!$C$6-1),12,1))) -> 183.44 | H59: =IF(PlotControl!$B$4 = "Annual Max",MAX(OFFSET(Ebeach!$C$10,12*$A59,4*(PlotControl!$C$6-1),12,1)),AVERAGE(OFFSET(Ebeach!$C$10,12*$A59,4*(PlotControl!$C$6-1),12,1))) -> 369.48 | I59: =IF(PlotControl!$B$4 = "Annual Max",MAX(OFFSET(Ebeach!$D$10,12*$A59,4*(PlotControl!$C$6-1),12,1)),AVERAGE(OFFSET(Ebeach!$D$10,12*$A59,4*(PlotControl!$C$6-1),12,1))) -> 409.1 | J59: =IF(PlotControl!$B$4 = "Annual Max",MAX(OFFSET(Ebeach!$E$10,12*$A59,4*(PlotControl!$C$6-1),12,1)),AVERAGE(OFFSET(Ebeach!$E$10,12*$A59,4*(PlotControl!$C$6-1),12,1))) -> 450.11 | K59: =IF(PlotControl!$B$4 = "Annual Max",MAX(OFFSET(Edam!$C$10,12*$A59,4*(PlotControl!$C$6-1),12,1)),AVERAGE(OFFSET(Edam!$C$10,12*$A59,4*(PlotControl!$C$6-1),12,1))) -> 11.02 | L59: =IF(PlotControl!$B$4 = "Annual Max",MAX(OFFSET(Edam!$D$10,12*$A59,4*(PlotControl!$C$6-1),12,1)),AVERAGE(OFFSET(Edam!$D$10,12*$A59,4*(PlotControl!$C$6-1),12,1))) -> 11.02 | M59: =IF(PlotControl!$B$4 = "Annual Max",MAX(OFFSET(Edam!$E$10,12*$A59,4*(PlotControl!$C$6-1),12,1)),AVERAGE(OFFSET(Edam!$E$10,12*$A59,4*(PlotControl!$C$6-1),12,1))) -> 11.02 | N59: =IF(PlotControl!$B$4 = "Annual Max",MAX(OFFSET(Sbeach!$C$10,12*$A59,4*(PlotControl!$C$6-1),12,1)),AVERAGE(OFFSET(Sbeach!$C$10,12*$A59,4*(PlotControl!$C$6-1),12,1))) -> 1262.4 | O59: =IF(PlotControl!$B$4 = "Annual Max",MAX(OFFSET(Sbeach!$D$10,12*$A59,4*(PlotControl!$C$6-1),12,1)),AVERAGE(OFFSET(Sbeach!$D$10,12*$A59,4*(PlotControl!$C$6-1),12,1))) -> 1342.7 | P59: =IF(PlotControl!$B$4 = "Annual Max",MAX(OFFSET(Sbeach!$E$10,12*$A59,4*(PlotControl!$C$6-1),12,1)),AVERAGE(OFFSET(Sbeach!$E$10,12*$A59,4*(PlotControl!$C$6-1),12,1))) -> 1423.3 | Q59: =IF(PlotControl!$B$4 = "Annual Max",MAX(OFFSET(Sdam!$C$10,12*$A59,4*(PlotControl!$C$6-1),12,1)),AVERAGE(OFFSET(Sdam!$C$10,12*$A59,4*(PlotControl!$C$6-1),12,1))) -> 19.402 | R59: =IF(PlotControl!$B$4 = "Annual Max",MAX(OFFSET(Sdam!$D$10,12*$A59,4*(PlotControl!$C$6-1),12,1)),AVERAGE(OFFSET(Sdam!$D$10,12*$A59,4*(PlotControl!$C$6-1),12,1))) -> 19.402 | S59: =IF(PlotControl!$B$4 = "Annual Max",MAX(OFFSET(Sdam!$E$10,12*$A59,4*(PlotControl!$C$6-1),12,1)),AVERAGE(OFFSET(Sdam!$E$10,12*$A59,4*(PlotControl!$C$6-1),12,1))) -> 19.402 | T59: =IF(PlotControl!$B$4 = "Annual Max",MAX(OFFSET(Cbeach!$C$10,12*$A59,4*(PlotControl!$C$6-1),12,1)),AVERAGE(OFFSET(Cbeach!$C$10,12*$A59,4*(PlotControl!$C$6-1),12,1))) -> 312.21 | U59: =IF(PlotControl!$B$4 = "Annual Max",MAX(OFFSET(Cbeach!$D$10,12*$A59,4*(PlotControl!$C$6-1),12,1)),AVERAGE(OFFSET(Cbeach!$D$10,12*$A59,4*(PlotControl!$C$6-1),12,1))) -> 346.1 | V59: =IF(PlotControl!$B$4 = "Annual Max",MAX(OFFSET(Cbeach!$E$10,12*$A59,4*(PlotControl!$C$6-1),12,1)),AVERAGE(OFFSET(Cbeach!$E$10,12*$A59,4*(PlotControl!$C$6-1),12,1))) -> 390.03
A60: 55 | B60: =IF(PlotControl!$B$4 = "Annual Max",MAX(OFFSET(Nbeach!$C$10,12*$A60,4*(PlotControl!$C$6-1),12,1)),AVERAGE(OFFSET(Nbeach!$C$10,12*$A60,4*(PlotControl!$C$6-1),12,1))) -> 2656.8 | C60: =IF(PlotControl!$B$4 = "Annual Max",MAX(OFFSET(Nbeach!$D$10,12*$A60,4*(PlotControl!$C$6-1),12,1)),AVERAGE(OFFSET(Nbeach!$D$10,12*$A60,4*(PlotControl!$C$6-1),12,1))) -> 2760.2 | D60: =IF(PlotControl!$B$4 = "Annual Max",MAX(OFFSET(Nbeach!$E$10,12*$A60,4*(PlotControl!$C$6-1),12,1)),AVERAGE(OFFSET(Nbeach!$E$10,12*$A60,4*(PlotControl!$C$6-1),12,1))) -> 2865.3 | E60: =IF(PlotControl!$B$4 = "Annual Max",MAX(OFFSET(Ndam!$C$10,12*$A60,4*(PlotControl!$C$6-1),12,1)),AVERAGE(OFFSET(Ndam!$C$10,12*$A60,4*(PlotControl!$C$6-1),12,1))) -> 183.44 | F60: =IF(PlotControl!$B$4 = "Annual Max",MAX(OFFSET(Ndam!$D$10,12*$A60,4*(PlotControl!$C$6-1),12,1)),AVERAGE(OFFSET(Ndam!$D$10,12*$A60,4*(PlotControl!$C$6-1),12,1))) -> 183.44 | G60: =IF(PlotControl!$B$4 = "Annual Max",MAX(OFFSET(Ndam!$E$10,12*$A60,4*(PlotControl!$C$6-1),12,1)),AVERAGE(OFFSET(Ndam!$E$10,12*$A60,4*(PlotControl!$C$6-1),12,1))) -> 183.44 | H60: =IF(PlotControl!$B$4 = "Annual Max",MAX(OFFSET(Ebeach!$C$10,12*$A60,4*(PlotControl!$C$6-1),12,1)),AVERAGE(OFFSET(Ebeach!$C$10,12*$A60,4*(PlotControl!$C$6-1),12,1))) -> 369.47 | I60: =IF(PlotControl!$B$4 = "Annual Max",MAX(OFFSET(Ebeach!$D$10,12*$A60,4*(PlotControl!$C$6-1),12,1)),AVERAGE(OFFSET(Ebeach!$D$10,12*$A60,4*(PlotControl!$C$6-1),12,1))) -> 409.1 | J60: =IF(PlotControl!$B$4 = "Annual Max",MAX(OFFSET(Ebeach!$E$10,12*$A60,4*(PlotControl!$C$6-1),12,1)),AVERAGE(OFFSET(Ebeach!$E$10,12*$A60,4*(PlotControl!$C$6-1),12,1))) -> 450.1 | K60: =IF(PlotControl!$B$4 = "Annual Max",MAX(OFFSET(Edam!$C$10,12*$A60,4*(PlotControl!$C$6-1),12,1)),AVERAGE(OFFSET(Edam!$C$10,12*$A60,4*(PlotControl!$C$6-1),12,1))) -> 11.02 | L60: =IF(PlotControl!$B$4 = "Annual Max",MAX(OFFSET(Edam!$D$10,12*$A60,4*(PlotControl!$C$6-1),12,1)),AVERAGE(OFFSET(Edam!$D$10,12*$A60,4*(PlotControl!$C$6-1),12,1))) -> 11.02 | M60: =IF(PlotControl!$B$4 = "Annual Max",MAX(OFFSET(Edam!$E$10,12*$A60,4*(PlotControl!$C$6-1),12,1)),AVERAGE(OFFSET(Edam!$E$10,12*$A60,4*(PlotControl!$C$6-1),12,1))) -> 11.02 | N60: =IF(PlotControl!$B$4 = "Annual Max",MAX(OFFSET(Sbeach!$C$10,12*$A60,4*(PlotControl!$C$6-1),12,1)),AVERAGE(OFFSET(Sbeach!$C$10,12*$A60,4*(PlotControl!$C$6-1),12,1))) -> 1262.4 | O60: =IF(PlotControl!$B$4 = "Annual Max",MAX(OFFSET(Sbeach!$D$10,12*$A60,4*(PlotControl!$C$6-1),12,1)),AVERAGE(OFFSET(Sbeach!$D$10,12*$A60,4*(PlotControl!$C$6-1),12,1))) -> 1342.7 | P60: =IF(PlotControl!$B$4 = "Annual Max",MAX(OFFSET(Sbeach!$E$10,12*$A60,4*(PlotControl!$C$6-1),12,1)),AVERAGE(OFFSET(Sbeach!$E$10,12*$A60,4*(PlotControl!$C$6-1),12,1))) -> 1423.3 | Q60: =IF(PlotControl!$B$4 = "Annual Max",MAX(OFFSET(Sdam!$C$10,12*$A60,4*(PlotControl!$C$6-1),12,1)),AVERAGE(OFFSET(Sdam!$C$10,12*$A60,4*(PlotControl!$C$6-1),12,1))) -> 19.402 | R60: =IF(PlotControl!$B$4 = "Annual Max",MAX(OFFSET(Sdam!$D$10,12*$A60,4*(PlotControl!$C$6-1),12,1)),AVERAGE(OFFSET(Sdam!$D$10,12*$A60,4*(PlotControl!$C$6-1),12,1))) -> 19.402 | S60: =IF(PlotControl!$B$4 = "Annual Max",MAX(OFFSET(Sdam!$E$10,12*$A60,4*(PlotControl!$C$6-1),12,1)),AVERAGE(OFFSET(Sdam!$E$10,12*$A60,4*(PlotControl!$C$6-1),12,1))) -> 19.402 | T60: =IF(PlotControl!$B$4 = "Annual Max",MAX(OFFSET(Cbeach!$C$10,12*$A60,4*(PlotControl!$C$6-1),12,1)),AVERAGE(OFFSET(Cbeach!$C$10,12*$A60,4*(PlotControl!$C$6-1),12,1))) -> 312.16 | U60: =IF(PlotControl!$B$4 = "Annual Max",MAX(OFFSET(Cbeach!$D$10,12*$A60,4*(PlotControl!$C$6-1),12,1)),AVERAGE(OFFSET(Cbeach!$D$10,12*$A60,4*(PlotControl!$C$6-1),12,1))) -> 346.09 | V60: =IF(PlotControl!$B$4 = "Annual Max",MAX(OFFSET(Cbeach!$E$10,12*$A60,4*(PlotControl!$C$6-1),12,1)),AVERAGE(OFFSET(Cbeach!$E$10,12*$A60,4*(PlotControl!$C$6-1),12,1))) -> 390.02
A61: 56 | B61: =IF(PlotControl!$B$4 = "Annual Max",MAX(OFFSET(Nbeach!$C$10,12*$A61,4*(PlotControl!$C$6-1),12,1)),AVERAGE(OFFSET(Nbeach!$C$10,12*$A61,4*(PlotControl!$C$6-1),12,1))) -> 2656.8 | C61: =IF(PlotControl!$B$4 = "Annual Max",MAX(OFFSET(Nbeach!$D$10,12*$A61,4*(PlotControl!$C$6-1),12,1)),AVERAGE(OFFSET(Nbeach!$D$10,12*$A61,4*(PlotControl!$C$6-1),12,1))) -> 2760.2 | D61: =IF(PlotControl!$B$4 = "Annual Max",MAX(OFFSET(Nbeach!$E$10,12*$A61,4*(PlotControl!$C$6-1),12,1)),AVERAGE(OFFSET(Nbeach!$E$10,12*$A61,4*(PlotControl!$C$6-1),12,1))) -> 2865.2 | E61: =IF(PlotControl!$B$4 = "Annual Max",MAX(OFFSET(Ndam!$C$10,12*$A61,4*(PlotControl!$C$6-1),12,1)),AVERAGE(OFFSET(Ndam!$C$10,12*$A61,4*(PlotControl!$C$6-1),12,1))) -> 183.44 | F61: =IF(PlotControl!$B$4 = "Annual Max",MAX(OFFSET(Ndam!$D$10,12*$A61,4*(PlotControl!$C$6-1),12,1)),AVERAGE(OFFSET(Ndam!$D$10,12*$A61,4*(PlotControl!$C$6-1),12,1))) -> 183.44 | G61: =IF(PlotControl!$B$4 = "Annual Max",MAX(OFFSET(Ndam!$E$10,12*$A61,4*(PlotControl!$C$6-1),12,1)),AVERAGE(OFFSET(Ndam!$E$10,12*$A61,4*(PlotControl!$C$6-1),12,1))) -> 183.44 | H61: =IF(PlotControl!$B$4 = "Annual Max",MAX(OFFSET(Ebeach!$C$10,12*$A61,4*(PlotControl!$C$6-1),12,1)),AVERAGE(OFFSET(Ebeach!$C$10,12*$A61,4*(PlotControl!$C$6-1),12,1))) -> 369.46 | I61: =IF(PlotControl!$B$4 = "Annual Max",MAX(OFFSET(Ebeach!$D$10,12*$A61,4*(PlotControl!$C$6-1),12,1)),AVERAGE(OFFSET(Ebeach!$D$10,12*$A61,4*(PlotControl!$C$6-1),12,1))) -> 409.09 | J61: =IF(PlotControl!$B$4 = "Annual Max",MAX(OFFSET(Ebeach!$E$10,12*$A61,4*(PlotControl!$C$6-1),12,1)),AVERAGE(OFFSET(Ebeach!$E$10,12*$A61,4*(PlotControl!$C$6-1),12,1))) -> 450.1 | K61: =IF(PlotControl!$B$4 = "Annual Max",MAX(OFFSET(Edam!$C$10,12*$A61,4*(PlotControl!$C$6-1),12,1)),AVERAGE(OFFSET(Edam!$C$10,12*$A61,4*(PlotControl!$C$6-1),12,1))) -> 11.02 | L61: =IF(PlotControl!$B$4 = "Annual Max",MAX(OFFSET(Edam!$D$10,12*$A61,4*(PlotControl!$C$6-1),12,1)),AVERAGE(OFFSET(Edam!$D$10,12*$A61,4*(PlotControl!$C$6-1),12,1))) -> 11.02 | M61: =IF(PlotControl!$B$4 = "Annual Max",MAX(OFFSET(Edam!$E$10,12*$A61,4*(PlotControl!$C$6-1),12,1)),AVERAGE(OFFSET(Edam!$E$10,12*$A61,4*(PlotControl!$C$6-1),12,1))) -> 11.02 | N61: =IF(PlotControl!$B$4 = "Annual Max",MAX(OFFSET(Sbeach!$C$10,12*$A61,4*(PlotControl!$C$6-1),12,1)),AVERAGE(OFFSET(Sbeach!$C$10,12*$A61,4*(PlotControl!$C$6-1),12,1))) -> 1262.4 | O61: =IF(PlotControl!$B$4 = "Annual Max",MAX(OFFSET(Sbeach!$D$10,12*$A61,4*(PlotControl!$C$6-1),12,1)),AVERAGE(OFFSET(Sbeach!$D$10,12*$A61,4*(PlotControl!$C$6-1),12,1))) -> 1342.7 | P61: =IF(PlotControl!$B$4 = "Annual Max",MAX(OFFSET(Sbeach!$E$10,12*$A61,4*(PlotControl!$C$6-1),12,1)),AVERAGE(OFFSET(Sbeach!$E$10,12*$A61,4*(PlotControl!$C$6-1),12,1))) -> 1423.3 | Q61: =IF(PlotControl!$B$4 = "Annual Max",MAX(OFFSET(Sdam!$C$10,12*$A61,4*(PlotControl!$C$6-1),12,1)),AVERAGE(OFFSET(Sdam!$C$10,12*$A61,4*(PlotControl!$C$6-1),12,1))) -> 19.401 | R61: =IF(PlotControl!$B$4 = "Annual Max",MAX(OFFSET(Sdam!$D$10,12*$A61,4*(PlotControl!$C$6-1),12,1)),AVERAGE(OFFSET(Sdam!$D$10,12*$A61,4*(PlotControl!$C$6-1),12,1))) -> 19.402 | S61: =IF(PlotControl!$B$4 = "Annual Max",MAX(OFFSET(Sdam!$E$10,12*$A61,4*(PlotControl!$C$6-1),12,1)),AVERAGE(OFFSET(Sdam!$E$10,12*$A61,4*(PlotControl!$C$6-1),12,1))) -> 19.402 | T61: =IF(PlotControl!$B$4 = "Annual Max",MAX(OFFSET(Cbeach!$C$10,12*$A61,4*(PlotControl!$C$6-1),12,1)),AVERAGE(OFFSET(Cbeach!$C$10,12*$A61,4*(PlotControl!$C$6-1),12,1))) -> 312.12 | U61: =IF(PlotControl!$B$4 = "Annual Max",MAX(OFFSET(Cbeach!$D$10,12*$A61,4*(PlotControl!$C$6-1),12,1)),AVERAGE(OFFSET(Cbeach!$D$10,12*$A61,4*(PlotControl!$C$6-1),12,1))) -> 346.08 | V61: =IF(PlotControl!$B$4 = "Annual Max",MAX(OFFSET(Cbeach!$E$10,12*$A61,4*(PlotControl!$C$6-1),12,1)),AVERAGE(OFFSET(Cbeach!$E$10,12*$A61,4*(PlotControl!$C$6-1),12,1))) -> 390.01
A62: 57 | B62: =IF(PlotControl!$B$4 = "Annual Max",MAX(OFFSET(Nbeach!$C$10,12*$A62,4*(PlotControl!$C$6-1),12,1)),AVERAGE(OFFSET(Nbeach!$C$10,12*$A62,4*(PlotControl!$C$6-1),12,1))) -> 2656.8 | C62: =IF(PlotControl!$B$4 = "Annual Max",MAX(OFFSET(Nbeach!$D$10,12*$A62,4*(PlotControl!$C$6-1),12,1)),AVERAGE(OFFSET(Nbeach!$D$10,12*$A62,4*(PlotControl!$C$6-1),12,1))) -> 2760.1 | D62: =IF(PlotControl!$B$4 = "Annual Max",MAX(OFFSET(Nbeach!$E$10,12*$A62,4*(PlotControl!$C$6-1),12,1)),AVERAGE(OFFSET(Nbeach!$E$10,12*$A62,4*(PlotControl!$C$6-1),12,1))) -> 2865.2 | E62: =IF(PlotControl!$B$4 = "Annual Max",MAX(OFFSET(Ndam!$C$10,12*$A62,4*(PlotControl!$C$6-1),12,1)),AVERAGE(OFFSET(Ndam!$C$10,12*$A62,4*(PlotControl!$C$6-1),12,1))) -> 183.44 | F62: =IF(PlotControl!$B$4 = "Annual Max",MAX(OFFSET(Ndam!$D$10,12*$A62,4*(PlotControl!$C$6-1),12,1)),AVERAGE(OFFSET(Ndam!$D$10,12*$A62,4*(PlotControl!$C$6-1),12,1))) -> 183.44 | G62: =IF(PlotControl!$B$4 = "Annual Max",MAX(OFFSET(Ndam!$E$10,12*$A62,4*(PlotControl!$C$6-1),12,1)),AVERAGE(OFFSET(Ndam!$E$10,12*$A62,4*(PlotControl!$C$6-1),12,1))) -> 183.44 | H62: =IF(PlotControl!$B$4 = "Annual Max",MAX(OFFSET(Ebeach!$C$10,12*$A62,4*(PlotControl!$C$6-1),12,1)),AVERAGE(OFFSET(Ebeach!$C$10,12*$A62,4*(PlotControl!$C$6-1),12,1))) -> 369.45 | I62: =IF(PlotControl!$B$4 = "Annual Max",MAX(OFFSET(Ebeach!$D$10,12*$A62,4*(PlotControl!$C$6-1),12,1)),AVERAGE(OFFSET(Ebeach!$D$10,12*$A62,4*(PlotControl!$C$6-1),12,1))) -> 409.09 | J62: =IF(PlotControl!$B$4 = "Annual Max",MAX(OFFSET(Ebeach!$E$10,12*$A62,4*(PlotControl!$C$6-1),12,1)),AVERAGE(OFFSET(Ebeach!$E$10,12*$A62,4*(PlotControl!$C$6-1),12,1))) -> 450.1 | K62: =IF(PlotControl!$B$4 = "Annual Max",MAX(OFFSET(Edam!$C$10,12*$A62,4*(PlotControl!$C$6-1),12,1)),AVERAGE(OFFSET(Edam!$C$10,12*$A62,4*(PlotControl!$C$6-1),12,1))) -> 11.02 | L62: =IF(PlotControl!$B$4 = "Annual Max",MAX(OFFSET(Edam!$D$10,12*$A62,4*(PlotControl!$C$6-1),12,1)),AVERAGE(OFFSET(Edam!$D$10,12*$A62,4*(PlotControl!$C$6-1),12,1))) -> 11.02 | M62: =IF(PlotControl!$B$4 = "Annual Max",MAX(OFFSET(Edam!$E$10,12*$A62,4*(PlotControl!$C$6-1),12,1)),AVERAGE(OFFSET(Edam!$E$10,12*$A62,4*(PlotControl!$C$6-1),12,1))) -> 11.02 | N62: =IF(PlotControl!$B$4 = "Annual Max",MAX(OFFSET(Sbeach!$C$10,12*$A62,4*(PlotControl!$C$6-1),12,1)),AVERAGE(OFFSET(Sbeach!$C$10,12*$A62,4*(PlotControl!$C$6-1),12,1))) -> 1262.4 | O62: =IF(PlotControl!$B$4 = "Annual Max",MAX(OFFSET(Sbeach!$D$10,12*$A62,4*(PlotControl!$C$6-1),12,1)),AVERAGE(OFFSET(Sbeach!$D$10,12*$A62,4*(PlotControl!$C$6-1),12,1))) -> 1342.7 | P62: =IF(PlotControl!$B$4 = "Annual Max",MAX(OFFSET(Sbeach!$E$10,12*$A62,4*(PlotControl!$C$6-1),12,1)),AVERAGE(OFFSET(Sbeach!$E$10,12*$A62,4*(PlotControl!$C$6-1),12,1))) -> 1423.3 | Q62: =IF(PlotControl!$B$4 = "Annual Max",MAX(OFFSET(Sdam!$C$10,12*$A62,4*(PlotControl!$C$6-1),12,1)),AVERAGE(OFFSET(Sdam!$C$10,12*$A62,4*(PlotControl!$C$6-1),12,1))) -> 19.401 | R62: =IF(PlotControl!$B$4 = "Annual Max",MAX(OFFSET(Sdam!$D$10,12*$A62,4*(PlotControl!$C$6-1),12,1)),AVERAGE(OFFSET(Sdam!$D$10,12*$A62,4*(PlotControl!$C$6-1),12,1))) -> 19.402 | S62: =IF(PlotControl!$B$4 = "Annual Max",MAX(OFFSET(Sdam!$E$10,12*$A62,4*(PlotControl!$C$6-1),12,1)),AVERAGE(OFFSET(Sdam!$E$10,12*$A62,4*(PlotControl!$C$6-1),12,1))) -> 19.402 | T62: =IF(PlotControl!$B$4 = "Annual Max",MAX(OFFSET(Cbeach!$C$10,12*$A62,4*(PlotControl!$C$6-1),12,1)),AVERAGE(OFFSET(Cbeach!$C$10,12*$A62,4*(PlotControl!$C$6-1),12,1))) -> 312.07 | U62: =IF(PlotControl!$B$4 = "Annual Max",MAX(OFFSET(Cbeach!$D$10,12*$A62,4*(PlotControl!$C$6-1),12,1)),AVERAGE(OFFSET(Cbeach!$D$10,12*$A62,4*(PlotControl!$C$6-1),12,1))) -> 346.07 | V62: =IF(PlotControl!$B$4 = "Annual Max",MAX(OFFSET(Cbeach!$E$10,12*$A62,4*(PlotControl!$C$6-1),12,1)),AVERAGE(OFFSET(Cbeach!$E$10,12*$A62,4*(PlotControl!$C$6-1),12,1))) -> 390
A63: 58 | B63: =IF(PlotControl!$B$4 = "Annual Max",MAX(OFFSET(Nbeach!$C$10,12*$A63,4*(PlotControl!$C$6-1),12,1)),AVERAGE(OFFSET(Nbeach!$C$10,12*$A63,4*(PlotControl!$C$6-1),12,1))) -> 2656.8 | C63: =IF(PlotControl!$B$4 = "Annual Max",MAX(OFFSET(Nbeach!$D$10,12*$A63,4*(PlotControl!$C$6-1),12,1)),AVERAGE(OFFSET(Nbeach!$D$10,12*$A63,4*(PlotControl!$C$6-1),12,1))) -> 2760.1 | D63: =IF(PlotControl!$B$4 = "Annual Max",MAX(OFFSET(Nbeach!$E$10,12*$A63,4*(PlotControl!$C$6-1),12,1)),AVERAGE(OFFSET(Nbeach!$E$10,12*$A63,4*(PlotControl!$C$6-1),12,1))) -> 2865.2 | E63: =IF(PlotControl!$B$4 = "Annual Max",MAX(OFFSET(Ndam!$C$10,12*$A63,4*(PlotControl!$C$6-1),12,1)),AVERAGE(OFFSET(Ndam!$C$10,12*$A63,4*(PlotControl!$C$6-1),12,1))) -> 183.44 | F63: =IF(PlotControl!$B$4 = "Annual Max",MAX(OFFSET(Ndam!$D$10,12*$A63,4*(PlotControl!$C$6-1),12,1)),AVERAGE(OFFSET(Ndam!$D$10,12*$A63,4*(PlotControl!$C$6-1),12,1))) -> 183.44 | G63: =IF(PlotControl!$B$4 = "Annual Max",MAX(OFFSET(Ndam!$E$10,12*$A63,4*(PlotControl!$C$6-1),12,1)),AVERAGE(OFFSET(Ndam!$E$10,12*$A63,4*(PlotControl!$C$6-1),12,1))) -> 183.44 | H63: =IF(PlotControl!$B$4 = "Annual Max",MAX(OFFSET(Ebeach!$C$10,12*$A63,4*(PlotControl!$C$6-1),12,1)),AVERAGE(OFFSET(Ebeach!$C$10,12*$A63,4*(PlotControl!$C$6-1),12,1))) -> 369.44 | I63: =IF(PlotControl!$B$4 = "Annual Max",MAX(OFFSET(Ebeach!$D$10,12*$A63,4*(PlotControl!$C$6-1),12,1)),AVERAGE(OFFSET(Ebeach!$D$10,12*$A63,4*(PlotControl!$C$6-1),12,1))) -> 409.09 | J63: =IF(PlotControl!$B$4 = "Annual Max",MAX(OFFSET(Ebeach!$E$10,12*$A63,4*(PlotControl!$C$6-1),12,1)),AVERAGE(OFFSET(Ebeach!$E$10,12*$A63,4*(PlotControl!$C$6-1),12,1))) -> 450.1 | K63: =IF(PlotControl!$B$4 = "Annual Max",MAX(OFFSET(Edam!$C$10,12*$A63,4*(PlotControl!$C$6-1),12,1)),AVERAGE(OFFSET(Edam!$C$10,12*$A63,4*(PlotControl!$C$6-1),12,1))) -> 11.02 | L63: =IF(PlotControl!$B$4 = "Annual Max",MAX(OFFSET(Edam!$D$10,12*$A63,4*(PlotControl!$C$6-1),12,1)),AVERAGE(OFFSET(Edam!$D$10,12*$A63,4*(PlotControl!$C$6-1),12,1))) -> 11.02 | M63: =IF(PlotControl!$B$4 = "Annual Max",MAX(OFFSET(Edam!$E$10,12*$A63,4*(PlotControl!$C$6-1),12,1)),AVERAGE(OFFSET(Edam!$E$10,12*$A63,4*(PlotControl!$C$6-1),12,1))) -> 11.02 | N63: =IF(PlotControl!$B$4 = "Annual Max",MAX(OFFSET(Sbeach!$C$10,12*$A63,4*(PlotControl!$C$6-1),12,1)),AVERAGE(OFFSET(Sbeach!$C$10,12*$A63,4*(PlotControl!$C$6-1),12,1))) -> 1262.4 | O63: =IF(PlotControl!$B$4 = "Annual Max",MAX(OFFSET(Sbeach!$D$10,12*$A63,4*(PlotControl!$C$6-1),12,1)),AVERAGE(OFFSET(Sbeach!$D$10,12*$A63,4*(PlotControl!$C$6-1),12,1))) -> 1342.7 | P63: =IF(PlotControl!$B$4 = "Annual Max",MAX(OFFSET(Sbeach!$E$10,12*$A63,4*(PlotControl!$C$6-1),12,1)),AVERAGE(OFFSET(Sbeach!$E$10,12*$A63,4*(PlotControl!$C$6-1),12,1))) -> 1423.3 | Q63: =IF(PlotControl!$B$4 = "Annual Max",MAX(OFFSET(Sdam!$C$10,12*$A63,4*(PlotControl!$C$6-1),12,1)),AVERAGE(OFFSET(Sdam!$C$10,12*$A63,4*(PlotControl!$C$6-1),12,1))) -> 19.401 | R63: =IF(PlotControl!$B$4 = "Annual Max",MAX(OFFSET(Sdam!$D$10,12*$A63,4*(PlotControl!$C$6-1),12,1)),AVERAGE(OFFSET(Sdam!$D$10,12*$A63,4*(PlotControl!$C$6-1),12,1))) -> 19.402 | S63: =IF(PlotControl!$B$4 = "Annual Max",MAX(OFFSET(Sdam!$E$10,12*$A63,4*(PlotControl!$C$6-1),12,1)),AVERAGE(OFFSET(Sdam!$E$10,12*$A63,4*(PlotControl!$C$6-1),12,1))) -> 19.402 | T63: =IF(PlotControl!$B$4 = "Annual Max",MAX(OFFSET(Cbeach!$C$10,12*$A63,4*(PlotControl!$C$6-1),12,1)),AVERAGE(OFFSET(Cbeach!$C$10,12*$A63,4*(PlotControl!$C$6-1),12,1))) -> 312.01 | U63: =IF(PlotControl!$B$4 = "Annual Max",MAX(OFFSET(Cbeach!$D$10,12*$A63,4*(PlotControl!$C$6-1),12,1)),AVERAGE(OFFSET(Cbeach!$D$10,12*$A63,4*(PlotControl!$C$6-1),12,1))) -> 346.03 | V63: =IF(PlotControl!$B$4 = "Annual Max",MAX(OFFSET(Cbeach!$E$10,12*$A63,4*(PlotControl!$C$6-1),12,1)),AVERAGE(OFFSET(Cbeach!$E$10,12*$A63,4*(PlotControl!$C$6-1),12,1))) -> 389.99
A64: 59 | B64: =IF(PlotControl!$B$4 = "Annual Max",MAX(OFFSET(Nbeach!$C$10,12*$A64,4*(PlotControl!$C$6-1),12,1)),AVERAGE(OFFSET(Nbeach!$C$10,12*$A64,4*(PlotControl!$C$6-1),12,1))) -> 2656.8 | C64: =IF(PlotControl!$B$4 = "Annual Max",MAX(OFFSET(Nbeach!$D$10,12*$A64,4*(PlotControl!$C$6-1),12,1)),AVERAGE(OFFSET(Nbeach!$D$10,12*$A64,4*(PlotControl!$C$6-1),12,1))) -> 2760.1 | D64: =IF(PlotControl!$B$4 = "Annual Max",MAX(OFFSET(Nbeach!$E$10,12*$A64,4*(PlotControl!$C$6-1),12,1)),AVERAGE(OFFSET(Nbeach!$E$10,12*$A64,4*(PlotControl!$C$6-1),12,1))) -> 2865.2 | E64: =IF(PlotControl!$B$4 = "Annual Max",MAX(OFFSET(Ndam!$C$10,12*$A64,4*(PlotControl!$C$6-1),12,1)),AVERAGE(OFFSET(Ndam!$C$10,12*$A64,4*(PlotControl!$C$6-1),12,1))) -> 183.44 | F64: =IF(PlotControl!$B$4 = "Annual Max",MAX(OFFSET(Ndam!$D$10,12*$A64,4*(PlotControl!$C$6-1),12,1)),AVERAGE(OFFSET(Ndam!$D$10,12*$A64,4*(PlotControl!$C$6-1),12,1))) -> 183.44 | G64: =IF(PlotControl!$B$4 = "Annual Max",MAX(OFFSET(Ndam!$E$10,12*$A64,4*(PlotControl!$C$6-1),12,1)),AVERAGE(OFFSET(Ndam!$E$10,12*$A64,4*(PlotControl!$C$6-1),12,1))) -> 183.44 | H64: =IF(PlotControl!$B$4 = "Annual Max",MAX(OFFSET(Ebeach!$C$10,12*$A64,4*(PlotControl!$C$6-1),12,1)),AVERAGE(OFFSET(Ebeach!$C$10,12*$A64,4*(PlotControl!$C$6-1),12,1))) -> 369.43 | I64: =IF(PlotControl!$B$4 = "Annual Max",MAX(OFFSET(Ebeach!$D$10,12*$A64,4*(PlotControl!$C$6-1),12,1)),AVERAGE(OFFSET(Ebeach!$D$10,12*$A64,4*(PlotControl!$C$6-1),12,1))) -> 409.09 | J64: =IF(PlotControl!$B$4 = "Annual Max",MAX(OFFSET(Ebeach!$E$10,12*$A64,4*(PlotControl!$C$6-1),12,1)),AVERAGE(OFFSET(Ebeach!$E$10,12*$A64,4*(PlotControl!$C$6-1),12,1))) -> 450.09 | K64: =IF(PlotControl!$B$4 = "Annual Max",MAX(OFFSET(Edam!$C$10,12*$A64,4*(PlotControl!$C$6-1),12,1)),AVERAGE(OFFSET(Edam!$C$10,12*$A64,4*(PlotControl!$C$6-1),12,1))) -> 11.02 | L64: =IF(PlotControl!$B$4 = "Annual Max",MAX(OFFSET(Edam!$D$10,12*$A64,4*(PlotControl!$C$6-1),12,1)),AVERAGE(OFFSET(Edam!$D$10,12*$A64,4*(PlotControl!$C$6-1),12,1))) -> 11.02 | M64: =IF(PlotControl!$B$4 = "Annual Max",MAX(OFFSET(Edam!$E$10,12*$A64,4*(PlotControl!$C$6-1),12,1)),AVERAGE(OFFSET(Edam!$E$10,12*$A64,4*(PlotControl!$C$6-1),12,1))) -> 11.02 | N64: =IF(PlotControl!$B$4 = "Annual Max",MAX(OFFSET(Sbeach!$C$10,12*$A64,4*(PlotControl!$C$6-1),12,1)),AVERAGE(OFFSET(Sbeach!$C$10,12*$A64,4*(PlotControl!$C$6-1),12,1))) -> 1262.4 | O64: =IF(PlotControl!$B$4 = "Annual Max",MAX(OFFSET(Sbeach!$D$10,12*$A64,4*(PlotControl!$C$6-1),12,1)),AVERAGE(OFFSET(Sbeach!$D$10,12*$A64,4*(PlotControl!$C$6-1),12,1))) -> 1342.7 | P64: =IF(PlotControl!$B$4 = "Annual Max",MAX(OFFSET(Sbeach!$E$10,12*$A64,4*(PlotControl!$C$6-1),12,1)),AVERAGE(OFFSET(Sbeach!$E$10,12*$A64,4*(PlotControl!$C$6-1),12,1))) -> 1423.3 | Q64: =IF(PlotControl!$B$4 = "Annual Max",MAX(OFFSET(Sdam!$C$10,12*$A64,4*(PlotControl!$C$6-1),12,1)),AVERAGE(OFFSET(Sdam!$C$10,12*$A64,4*(PlotControl!$C$6-1),12,1))) -> 19.401 | R64: =IF(PlotControl!$B$4 = "Annual Max",MAX(OFFSET(Sdam!$D$10,12*$A64,4*(PlotControl!$C$6-1),12,1)),AVERAGE(OFFSET(Sdam!$D$10,12*$A64,4*(PlotControl!$C$6-1),12,1))) -> 19.402 | S64: =IF(PlotControl!$B$4 = "Annual Max",MAX(OFFSET(Sdam!$E$10,12*$A64,4*(PlotControl!$C$6-1),12,1)),AVERAGE(OFFSET(Sdam!$E$10,12*$A64,4*(PlotControl!$C$6-1),12,1))) -> 19.402 | T64: =IF(PlotControl!$B$4 = "Annual Max",MAX(OFFSET(Cbeach!$C$10,12*$A64,4*(PlotControl!$C$6-1),12,1)),AVERAGE(OFFSET(Cbeach!$C$10,12*$A64,4*(PlotControl!$C$6-1),12,1))) -> 312 | U64: =IF(PlotControl!$B$4 = "Annual Max",MAX(OFFSET(Cbeach!$D$10,12*$A64,4*(PlotControl!$C$6-1),12,1)),AVERAGE(OFFSET(Cbeach!$D$10,12*$A64,4*(PlotControl!$C$6-1),12,1))) -> 345.99 | V64: =IF(PlotControl!$B$4 = "Annual Max",MAX(OFFSET(Cbeach!$E$10,12*$A64,4*(PlotControl!$C$6-1),12,1)),AVERAGE(OFFSET(Cbeach!$E$10,12*$A64,4*(PlotControl!$C$6-1),12,1))) -> 389.98
A65: 60 | B65: =IF(PlotControl!$B$4 = "Annual Max",MAX(OFFSET(Nbeach!$C$10,12*$A65,4*(PlotControl!$C$6-1),12,1)),AVERAGE(OFFSET(Nbeach!$C$10,12*$A65,4*(PlotControl!$C$6-1),12,1))) -> 2656.7 | C65: =IF(PlotControl!$B$4 = "Annual Max",MAX(OFFSET(Nbeach!$D$10,12*$A65,4*(PlotControl!$C$6-1),12,1)),AVERAGE(OFFSET(Nbeach!$D$10,12*$A65,4*(PlotControl!$C$6-1),12,1))) -> 2760.1 | D65: =IF(PlotControl!$B$4 = "Annual Max",MAX(OFFSET(Nbeach!$E$10,12*$A65,4*(PlotControl!$C$6-1),12,1)),AVERAGE(OFFSET(Nbeach!$E$10,12*$A65,4*(PlotControl!$C$6-1),12,1))) -> 2865.2 | E65: =IF(PlotControl!$B$4 = "Annual Max",MAX(OFFSET(Ndam!$C$10,12*$A65,4*(PlotControl!$C$6-1),12,1)),AVERAGE(OFFSET(Ndam!$C$10,12*$A65,4*(PlotControl!$C$6-1),12,1))) -> 183.44 | F65: =IF(PlotControl!$B$4 = "Annual Max",MAX(OFFSET(Ndam!$D$10,12*$A65,4*(PlotControl!$C$6-1),12,1)),AVERAGE(OFFSET(Ndam!$D$10,12*$A65,4*(PlotControl!$C$6-1),12,1))) -> 183.44 | G65: =IF(PlotControl!$B$4 = "Annual Max",MAX(OFFSET(Ndam!$E$10,12*$A65,4*(PlotControl!$C$6-1),12,1)),AVERAGE(OFFSET(Ndam!$E$10,12*$A65,4*(PlotControl!$C$6-1),12,1))) -> 183.44 | H65: =IF(PlotControl!$B$4 = "Annual Max",MAX(OFFSET(Ebeach!$C$10,12*$A65,4*(PlotControl!$C$6-1),12,1)),AVERAGE(OFFSET(Ebeach!$C$10,12*$A65,4*(PlotControl!$C$6-1),12,1))) -> 369.42 | I65: =IF(PlotControl!$B$4 = "Annual Max",MAX(OFFSET(Ebeach!$D$10,12*$A65,4*(PlotControl!$C$6-1),12,1)),AVERAGE(OFFSET(Ebeach!$D$10,12*$A65,4*(PlotControl!$C$6-1),12,1))) -> 409.09 | J65: =IF(PlotControl!$B$4 = "Annual Max",MAX(OFFSET(Ebeach!$E$10,12*$A65,4*(PlotControl!$C$6-1),12,1)),AVERAGE(OFFSET(Ebeach!$E$10,12*$A65,4*(PlotControl!$C$6-1),12,1))) -> 450.09 | K65: =IF(PlotControl!$B$4 = "Annual Max",MAX(OFFSET(Edam!$C$10,12*$A65,4*(PlotControl!$C$6-1),12,1)),AVERAGE(OFFSET(Edam!$C$10,12*$A65,4*(PlotControl!$C$6-1),12,1))) -> 11.02 | L65: =IF(PlotControl!$B$4 = "Annual Max",MAX(OFFSET(Edam!$D$10,12*$A65,4*(PlotControl!$C$6-1),12,1)),AVERAGE(OFFSET(Edam!$D$10,12*$A65,4*(PlotControl!$C$6-1),12,1))) -> 11.02 | M65: =IF(PlotControl!$B$4 = "Annual Max",MAX(OFFSET(Edam!$E$10,12*$A65,4*(PlotControl!$C$6-1),12,1)),AVERAGE(OFFSET(Edam!$E$10,12*$A65,4*(PlotControl!$C$6-1),12,1))) -> 11.02 | N65: =IF(PlotControl!$B$4 = "Annual Max",MAX(OFFSET(Sbeach!$C$10,12*$A65,4*(PlotControl!$C$6-1),12,1)),AVERAGE(OFFSET(Sbeach!$C$10,12*$A65,4*(PlotControl!$C$6-1),12,1))) -> 1262.3 | O65: =IF(PlotControl!$B$4 = "Annual Max",MAX(OFFSET(Sbeach!$D$10,12*$A65,4*(PlotControl!$C$6-1),12,1)),AVERAGE(OFFSET(Sbeach!$D$10,12*$A65,4*(PlotControl!$C$6-1),12,1))) -> 1342.7 | P65: =IF(PlotControl!$B$4 = "Annual Max",MAX(OFFSET(Sbeach!$E$10,12*$A65,4*(PlotControl!$C$6-1),12,1)),AVERAGE(OFFSET(Sbeach!$E$10,12*$A65,4*(PlotControl!$C$6-1),12,1))) -> 1423.3 | Q65: =IF(PlotControl!$B$4 = "Annual Max",MAX(OFFSET(Sdam!$C$10,12*$A65,4*(PlotControl!$C$6-1),12,1)),AVERAGE(OFFSET(Sdam!$C$10,12*$A65,4*(PlotControl!$C$6-1),12,1))) -> 19.401 | R65: =IF(PlotControl!$B$4 = "Annual Max",MAX(OFFSET(Sdam!$D$10,12*$A65,4*(PlotControl!$C$6-1),12,1)),AVERAGE(OFFSET(Sdam!$D$10,12*$A65,4*(PlotControl!$C$6-1),12,1))) -> 19.402 | S65: =IF(PlotControl!$B$4 = "Annual Max",MAX(OFFSET(Sdam!$E$10,12*$A65,4*(PlotControl!$C$6-1),12,1)),AVERAGE(OFFSET(Sdam!$E$10,12*$A65,4*(PlotControl!$C$6-1),12,1))) -> 19.402 | T65: =IF(PlotControl!$B$4 = "Annual Max",MAX(OFFSET(Cbeach!$C$10,12*$A65,4*(PlotControl!$C$6-1),12,1)),AVERAGE(OFFSET(Cbeach!$C$10,12*$A65,4*(PlotControl!$C$6-1),12,1))) -> 312 | U65: =IF(PlotControl!$B$4 = "Annual Max",MAX(OFFSET(Cbeach!$D$10,12*$A65,4*(PlotControl!$C$6-1),12,1)),AVERAGE(OFFSET(Cbeach!$D$10,12*$A65,4*(PlotControl!$C$6-1),12,1))) -> 345.95 | V65: =IF(PlotControl!$B$4 = "Annual Max",MAX(OFFSET(Cbeach!$E$10,12*$A65,4*(PlotControl!$C$6-1),12,1)),AVERAGE(OFFSET(Cbeach!$E$10,12*$A65,4*(PlotControl!$C$6-1),12,1))) -> 389.97
A66: 61 | B66: =IF(PlotControl!$B$4 = "Annual Max",MAX(OFFSET(Nbeach!$C$10,12*$A66,4*(PlotControl!$C$6-1),12,1)),AVERAGE(OFFSET(Nbeach!$C$10,12*$A66,4*(PlotControl!$C$6-1),12,1))) -> 2656.7 | C66: =IF(PlotControl!$B$4 = "Annual Max",MAX(OFFSET(Nbeach!$D$10,12*$A66,4*(PlotControl!$C$6-1),12,1)),AVERAGE(OFFSET(Nbeach!$D$10,12*$A66,4*(PlotControl!$C$6-1),12,1))) -> 2760.1 | D66: =IF(PlotControl!$B$4 = "Annual Max",MAX(OFFSET(Nbeach!$E$10,12*$A66,4*(PlotControl!$C$6-1),12,1)),AVERAGE(OFFSET(Nbeach!$E$10,12*$A66,4*(PlotControl!$C$6-1),12,1))) -> 2865.1 | E66: =IF(PlotControl!$B$4 = "Annual Max",MAX(OFFSET(Ndam!$C$10,12*$A66,4*(PlotControl!$C$6-1),12,1)),AVERAGE(OFFSET(Ndam!$C$10,12*$A66,4*(PlotControl!$C$6-1),12,1))) -> 183.44 | F66: =IF(PlotControl!$B$4 = "Annual Max",MAX(OFFSET(Ndam!$D$10,12*$A66,4*(PlotControl!$C$6-1),12,1)),AVERAGE(OFFSET(Ndam!$D$10,12*$A66,4*(PlotControl!$C$6-1),12,1))) -> 183.44 | G66: =IF(PlotControl!$B$4 = "Annual Max",MAX(OFFSET(Ndam!$E$10,12*$A66,4*(PlotControl!$C$6-1),12,1)),AVERAGE(OFFSET(Ndam!$E$10,12*$A66,4*(PlotControl!$C$6-1),12,1))) -> 183.44 | H66: =IF(PlotControl!$B$4 = "Annual Max",MAX(OFFSET(Ebeach!$C$10,12*$A66,4*(PlotControl!$C$6-1),12,1)),AVERAGE(OFFSET(Ebeach!$C$10,12*$A66,4*(PlotControl!$C$6-1),12,1))) -> 369.41 | I66: =IF(PlotControl!$B$4 = "Annual Max",MAX(OFFSET(Ebeach!$D$10,12*$A66,4*(PlotControl!$C$6-1),12,1)),AVERAGE(OFFSET(Ebeach!$D$10,12*$A66,4*(PlotControl!$C$6-1),12,1))) -> 409.09 | J66: =IF(PlotControl!$B$4 = "Annual Max",MAX(OFFSET(Ebeach!$E$10,12*$A66,4*(PlotControl!$C$6-1),12,1)),AVERAGE(OFFSET(Ebeach!$E$10,12*$A66,4*(PlotControl!$C$6-1),12,1))) -> 450.09 | K66: =IF(PlotControl!$B$4 = "Annual Max",MAX(OFFSET(Edam!$C$10,12*$A66,4*(PlotControl!$C$6-1),12,1)),AVERAGE(OFFSET(Edam!$C$10,12*$A66,4*(PlotControl!$C$6-1),12,1))) -> 11.02 | L66: =IF(PlotControl!$B$4 = "Annual Max",MAX(OFFSET(Edam!$D$10,12*$A66,4*(PlotControl!$C$6-1),12,1)),AVERAGE(OFFSET(Edam!$D$10,12*$A66,4*(PlotControl!$C$6-1),12,1))) -> 11.02 | M66: =IF(PlotControl!$B$4 = "Annual Max",MAX(OFFSET(Edam!$E$10,12*$A66,4*(PlotControl!$C$6-1),12,1)),AVERAGE(OFFSET(Edam!$E$10,12*$A66,4*(PlotControl!$C$6-1),12,1))) -> 11.02 | N66: =IF(PlotControl!$B$4 = "Annual Max",MAX(OFFSET(Sbeach!$C$10,12*$A66,4*(PlotControl!$C$6-1),12,1)),AVERAGE(OFFSET(Sbeach!$C$10,12*$A66,4*(PlotControl!$C$6-1),12,1))) -> 1262.3 | O66: =IF(PlotControl!$B$4 = "Annual Max",MAX(OFFSET(Sbeach!$D$10,12*$A66,4*(PlotControl!$C$6-1),12,1)),AVERAGE(OFFSET(Sbeach!$D$10,12*$A66,4*(PlotControl!$C$6-1),12,1))) -> 1342.7 | P66: =IF(PlotControl!$B$4 = "Annual Max",MAX(OFFSET(Sbeach!$E$10,12*$A66,4*(PlotControl!$C$6-1),12,1)),AVERAGE(OFFSET(Sbeach!$E$10,12*$A66,4*(PlotControl!$C$6-1),12,1))) -> 1423.3 | Q66: =IF(PlotControl!$B$4 = "Annual Max",MAX(OFFSET(Sdam!$C$10,12*$A66,4*(PlotControl!$C$6-1),12,1)),AVERAGE(OFFSET(Sdam!$C$10,12*$A66,4*(PlotControl!$C$6-1),12,1))) -> 19.401 | R66: =IF(PlotControl!$B$4 = "Annual Max",MAX(OFFSET(Sdam!$D$10,12*$A66,4*(PlotControl!$C$6-1),12,1)),AVERAGE(OFFSET(Sdam!$D$10,12*$A66,4*(PlotControl!$C$6-1),12,1))) -> 19.402 | S66: =IF(PlotControl!$B$4 = "Annual Max",MAX(OFFSET(Sdam!$E$10,12*$A66,4*(PlotControl!$C$6-1),12,1)),AVERAGE(OFFSET(Sdam!$E$10,12*$A66,4*(PlotControl!$C$6-1),12,1))) -> 19.402 | T66: =IF(PlotControl!$B$4 = "Annual Max",MAX(OFFSET(Cbeach!$C$10,12*$A66,4*(PlotControl!$C$6-1),12,1)),AVERAGE(OFFSET(Cbeach!$C$10,12*$A66,4*(PlotControl!$C$6-1),12,1))) -> 311.99 | U66: =IF(PlotControl!$B$4 = "Annual Max",MAX(OFFSET(Cbeach!$D$10,12*$A66,4*(PlotControl!$C$6-1),12,1)),AVERAGE(OFFSET(Cbeach!$D$10,12*$A66,4*(PlotControl!$C$6-1),12,1))) -> 345.92 | V66: =IF(PlotControl!$B$4 = "Annual Max",MAX(OFFSET(Cbeach!$E$10,12*$A66,4*(PlotControl!$C$6-1),12,1)),AVERAGE(OFFSET(Cbeach!$E$10,12*$A66,4*(PlotControl!$C$6-1),12,1))) -> 389.96
A67: 62 | B67: =IF(PlotControl!$B$4 = "Annual Max",MAX(OFFSET(Nbeach!$C$10,12*$A67,4*(PlotControl!$C$6-1),12,1)),AVERAGE(OFFSET(Nbeach!$C$10,12*$A67,4*(PlotControl!$C$6-1),12,1))) -> 2656.7 | C67: =IF(PlotControl!$B$4 = "Annual Max",MAX(OFFSET(Nbeach!$D$10,12*$A67,4*(PlotControl!$C$6-1),12,1)),AVERAGE(OFFSET(Nbeach!$D$10,12*$A67,4*(PlotControl!$C$6-1),12,1))) -> 2760.1 | D67: =IF(PlotControl!$B$4 = "Annual Max",MAX(OFFSET(Nbeach!$E$10,12*$A67,4*(PlotControl!$C$6-1),12,1)),AVERAGE(OFFSET(Nbeach!$E$10,12*$A67,4*(PlotControl!$C$6-1),12,1))) -> 2865.1 | E67: =IF(PlotControl!$B$4 = "Annual Max",MAX(OFFSET(Ndam!$C$10,12*$A67,4*(PlotControl!$C$6-1),12,1)),AVERAGE(OFFSET(Ndam!$C$10,12*$A67,4*(PlotControl!$C$6-1),12,1))) -> 183.44 | F67: =IF(PlotControl!$B$4 = "Annual Max",MAX(OFFSET(Ndam!$D$10,12*$A67,4*(PlotControl!$C$6-1),12,1)),AVERAGE(OFFSET(Ndam!$D$10,12*$A67,4*(PlotControl!$C$6-1),12,1))) -> 183.44 | G67: =IF(PlotControl!$B$4 = "Annual Max",MAX(OFFSET(Ndam!$E$10,12*$A67,4*(PlotControl!$C$6-1),12,1)),AVERAGE(OFFSET(Ndam!$E$10,12*$A67,4*(PlotControl!$C$6-1),12,1))) -> 183.44 | H67: =IF(PlotControl!$B$4 = "Annual Max",MAX(OFFSET(Ebeach!$C$10,12*$A67,4*(PlotControl!$C$6-1),12,1)),AVERAGE(OFFSET(Ebeach!$C$10,12*$A67,4*(PlotControl!$C$6-1),12,1))) -> 369.4 | I67: =IF(PlotControl!$B$4 = "Annual Max",MAX(OFFSET(Ebeach!$D$10,12*$A67,4*(PlotControl!$C$6-1),12,1)),AVERAGE(OFFSET(Ebeach!$D$10,12*$A67,4*(PlotControl!$C$6-1),12,1))) -> 409.09 | J67: =IF(PlotControl!$B$4 = "Annual Max",MAX(OFFSET(Ebeach!$E$10,12*$A67,4*(PlotControl!$C$6-1),12,1)),AVERAGE(OFFSET(Ebeach!$E$10,12*$A67,4*(PlotControl!$C$6-1),12,1))) -> 450.09 | K67: =IF(PlotControl!$B$4 = "Annual Max",MAX(OFFSET(Edam!$C$10,12*$A67,4*(PlotControl!$C$6-1),12,1)),AVERAGE(OFFSET(Edam!$C$10,12*$A67,4*(PlotControl!$C$6-1),12,1))) -> 11.02 | L67: =IF(PlotControl!$B$4 = "Annual Max",MAX(OFFSET(Edam!$D$10,12*$A67,4*(PlotControl!$C$6-1),12,1)),AVERAGE(OFFSET(Edam!$D$10,12*$A67,4*(PlotControl!$C$6-1),12,1))) -> 11.02 | M67: =IF(PlotControl!$B$4 = "Annual Max",MAX(OFFSET(Edam!$E$10,12*$A67,4*(PlotControl!$C$6-1),12,1)),AVERAGE(OFFSET(Edam!$E$10,12*$A67,4*(PlotControl!$C$6-1),12,1))) -> 11.02 | N67: =IF(PlotControl!$B$4 = "Annual Max",MAX(OFFSET(Sbeach!$C$10,12*$A67,4*(PlotControl!$C$6-1),12,1)),AVERAGE(OFFSET(Sbeach!$C$10,12*$A67,4*(PlotControl!$C$6-1),12,1))) -> 1262.3 | O67: =IF(PlotControl!$B$4 = "Annual Max",MAX(OFFSET(Sbeach!$D$10,12*$A67,4*(PlotControl!$C$6-1),12,1)),AVERAGE(OFFSET(Sbeach!$D$10,12*$A67,4*(PlotControl!$C$6-1),12,1))) -> 1342.7 | P67: =IF(PlotControl!$B$4 = "Annual Max",MAX(OFFSET(Sbeach!$E$10,12*$A67,4*(PlotControl!$C$6-1),12,1)),AVERAGE(OFFSET(Sbeach!$E$10,12*$A67,4*(PlotControl!$C$6-1),12,1))) -> 1423.3 | Q67: =IF(PlotControl!$B$4 = "Annual Max",MAX(OFFSET(Sdam!$C$10,12*$A67,4*(PlotControl!$C$6-1),12,1)),AVERAGE(OFFSET(Sdam!$C$10,12*$A67,4*(PlotControl!$C$6-1),12,1))) -> 19.401 | R67: =IF(PlotControl!$B$4 = "Annual Max",MAX(OFFSET(Sdam!$D$10,12*$A67,4*(PlotControl!$C$6-1),12,1)),AVERAGE(OFFSET(Sdam!$D$10,12*$A67,4*(PlotControl!$C$6-1),12,1))) -> 19.402 | S67: =IF(PlotControl!$B$4 = "Annual Max",MAX(OFFSET(Sdam!$E$10,12*$A67,4*(PlotControl!$C$6-1),12,1)),AVERAGE(OFFSET(Sdam!$E$10,12*$A67,4*(PlotControl!$C$6-1),12,1))) -> 19.402 | T67: =IF(PlotControl!$B$4 = "Annual Max",MAX(OFFSET(Cbeach!$C$10,12*$A67,4*(PlotControl!$C$6-1),12,1)),AVERAGE(OFFSET(Cbeach!$C$10,12*$A67,4*(PlotControl!$C$6-1),12,1))) -> 311.98 | U67: =IF(PlotControl!$B$4 = "Annual Max",MAX(OFFSET(Cbeach!$D$10,12*$A67,4*(PlotControl!$C$6-1),12,1)),AVERAGE(OFFSET(Cbeach!$D$10,12*$A67,4*(PlotControl!$C$6-1),12,1))) -> 345.88 | V67: =IF(PlotControl!$B$4 = "Annual Max",MAX(OFFSET(Cbeach!$E$10,12*$A67,4*(PlotControl!$C$6-1),12,1)),AVERAGE(OFFSET(Cbeach!$E$10,12*$A67,4*(PlotControl!$C$6-1),12,1))) -> 389.94
A68: 63 | B68: =IF(PlotControl!$B$4 = "Annual Max",MAX(OFFSET(Nbeach!$C$10,12*$A68,4*(PlotControl!$C$6-1),12,1)),AVERAGE(OFFSET(Nbeach!$C$10,12*$A68,4*(PlotControl!$C$6-1),12,1))) -> 2656.7 | C68: =IF(PlotControl!$B$4 = "Annual Max",MAX(OFFSET(Nbeach!$D$10,12*$A68,4*(PlotControl!$C$6-1),12,1)),AVERAGE(OFFSET(Nbeach!$D$10,12*$A68,4*(PlotControl!$C$6-1),12,1))) -> 2760.1 | D68: =IF(PlotControl!$B$4 = "Annual Max",MAX(OFFSET(Nbeach!$E$10,12*$A68,4*(PlotControl!$C$6-1),12,1)),AVERAGE(OFFSET(Nbeach!$E$10,12*$A68,4*(PlotControl!$C$6-1),12,1))) -> 2865.1 | E68: =IF(PlotControl!$B$4 = "Annual Max",MAX(OFFSET(Ndam!$C$10,12*$A68,4*(PlotControl!$C$6-1),12,1)),AVERAGE(OFFSET(Ndam!$C$10,12*$A68,4*(PlotControl!$C$6-1),12,1))) -> 183.44 | F68: =IF(PlotControl!$B$4 = "Annual Max",MAX(OFFSET(Ndam!$D$10,12*$A68,4*(PlotControl!$C$6-1),12,1)),AVERAGE(OFFSET(Ndam!$D$10,12*$A68,4*(PlotControl!$C$6-1),12,1))) -> 183.44 | G68: =IF(PlotControl!$B$4 = "Annual Max",MAX(OFFSET(Ndam!$E$10,12*$A68,4*(PlotControl!$C$6-1),12,1)),AVERAGE(OFFSET(Ndam!$E$10,12*$A68,4*(PlotControl!$C$6-1),12,1))) -> 183.44 | H68: =IF(PlotControl!$B$4 = "Annual Max",MAX(OFFSET(Ebeach!$C$10,12*$A68,4*(PlotControl!$C$6-1),12,1)),AVERAGE(OFFSET(Ebeach!$C$10,12*$A68,4*(PlotControl!$C$6-1),12,1))) -> 369.39 | I68: =IF(PlotControl!$B$4 = "Annual Max",MAX(OFFSET(Ebeach!$D$10,12*$A68,4*(PlotControl!$C$6-1),12,1)),AVERAGE(OFFSET(Ebeach!$D$10,12*$A68,4*(PlotControl!$C$6-1),12,1))) -> 409.09 | J68: =IF(PlotControl!$B$4 = "Annual Max",MAX(OFFSET(Ebeach!$E$10,12*$A68,4*(PlotControl!$C$6-1),12,1)),AVERAGE(OFFSET(Ebeach!$E$10,12*$A68,4*(PlotControl!$C$6-1),12,1))) -> 450.08 | K68: =IF(PlotControl!$B$4 = "Annual Max",MAX(OFFSET(Edam!$C$10,12*$A68,4*(PlotControl!$C$6-1),12,1)),AVERAGE(OFFSET(Edam!$C$10,12*$A68,4*(PlotControl!$C$6-1),12,1))) -> 11.02 | L68: =IF(PlotControl!$B$4 = "Annual Max",MAX(OFFSET(Edam!$D$10,12*$A68,4*(PlotControl!$C$6-1),12,1)),AVERAGE(OFFSET(Edam!$D$10,12*$A68,4*(PlotControl!$C$6-1),12,1))) -> 11.02 | M68: =IF(PlotControl!$B$4 = "Annual Max",MAX(OFFSET(Edam!$E$10,12*$A68,4*(PlotControl!$C$6-1),12,1)),AVERAGE(OFFSET(Edam!$E$10,12*$A68,4*(PlotControl!$C$6-1),12,1))) -> 11.02 | N68: =IF(PlotControl!$B$4 = "Annual Max",MAX(OFFSET(Sbeach!$C$10,12*$A68,4*(PlotControl!$C$6-1),12,1)),AVERAGE(OFFSET(Sbeach!$C$10,12*$A68,4*(PlotControl!$C$6-1),12,1))) -> 1262.3 | O68: =IF(PlotControl!$B$4 = "Annual Max",MAX(OFFSET(Sbeach!$D$10,12*$A68,4*(PlotControl!$C$6-1),12,1)),AVERAGE(OFFSET(Sbeach!$D$10,12*$A68,4*(PlotControl!$C$6-1),12,1))) -> 1342.7 | P68: =IF(PlotControl!$B$4 = "Annual Max",MAX(OFFSET(Sbeach!$E$10,12*$A68,4*(PlotControl!$C$6-1),12,1)),AVERAGE(OFFSET(Sbeach!$E$10,12*$A68,4*(PlotControl!$C$6-1),12,1))) -> 1423.2 | Q68: =IF(PlotControl!$B$4 = "Annual Max",MAX(OFFSET(Sdam!$C$10,12*$A68,4*(PlotControl!$C$6-1),12,1)),AVERAGE(OFFSET(Sdam!$C$10,12*$A68,4*(PlotControl!$C$6-1),12,1))) -> 19.401 | R68: =IF(PlotControl!$B$4 = "Annual Max",MAX(OFFSET(Sdam!$D$10,12*$A68,4*(PlotControl!$C$6-1),12,1)),AVERAGE(OFFSET(Sdam!$D$10,12*$A68,4*(PlotControl!$C$6-1),12,1))) -> 19.402 | S68: =IF(PlotControl!$B$4 = "Annual Max",MAX(OFFSET(Sdam!$E$10,12*$A68,4*(PlotControl!$C$6-1),12,1)),AVERAGE(OFFSET(Sdam!$E$10,12*$A68,4*(PlotControl!$C$6-1),12,1))) -> 19.402 | T68: =IF(PlotControl!$B$4 = "Annual Max",MAX(OFFSET(Cbeach!$C$10,12*$A68,4*(PlotControl!$C$6-1),12,1)),AVERAGE(OFFSET(Cbeach!$C$10,12*$A68,4*(PlotControl!$C$6-1),12,1))) -> 311.98 | U68: =IF(PlotControl!$B$4 = "Annual Max",MAX(OFFSET(Cbeach!$D$10,12*$A68,4*(PlotControl!$C$6-1),12,1)),AVERAGE(OFFSET(Cbeach!$D$10,12*$A68,4*(PlotControl!$C$6-1),12,1))) -> 345.84 | V68: =IF(PlotControl!$B$4 = "Annual Max",MAX(OFFSET(Cbeach!$E$10,12*$A68,4*(PlotControl!$C$6-1),12,1)),AVERAGE(OFFSET(Cbeach!$E$10,12*$A68,4*(PlotControl!$C$6-1),12,1))) -> 389.93
A69: 64 | B69: =IF(PlotControl!$B$4 = "Annual Max",MAX(OFFSET(Nbeach!$C$10,12*$A69,4*(PlotControl!$C$6-1),12,1)),AVERAGE(OFFSET(Nbeach!$C$10,12*$A69,4*(PlotControl!$C$6-1),12,1))) -> 2656.7 | C69: =IF(PlotControl!$B$4 = "Annual Max",MAX(OFFSET(Nbeach!$D$10,12*$A69,4*(PlotControl!$C$6-1),12,1)),AVERAGE(OFFSET(Nbeach!$D$10,12*$A69,4*(PlotControl!$C$6-1),12,1))) -> 2760.1 | D69: =IF(PlotControl!$B$4 = "Annual Max",MAX(OFFSET(Nbeach!$E$10,12*$A69,4*(PlotControl!$C$6-1),12,1)),AVERAGE(OFFSET(Nbeach!$E$10,12*$A69,4*(PlotControl!$C$6-1),12,1))) -> 2865.1 | E69: =IF(PlotControl!$B$4 = "Annual Max",MAX(OFFSET(Ndam!$C$10,12*$A69,4*(PlotControl!$C$6-1),12,1)),AVERAGE(OFFSET(Ndam!$C$10,12*$A69,4*(PlotControl!$C$6-1),12,1))) -> 183.44 | F69: =IF(PlotControl!$B$4 = "Annual Max",MAX(OFFSET(Ndam!$D$10,12*$A69,4*(PlotControl!$C$6-1),12,1)),AVERAGE(OFFSET(Ndam!$D$10,12*$A69,4*(PlotControl!$C$6-1),12,1))) -> 183.44 | G69: =IF(PlotControl!$B$4 = "Annual Max",MAX(OFFSET(Ndam!$E$10,12*$A69,4*(PlotControl!$C$6-1),12,1)),AVERAGE(OFFSET(Ndam!$E$10,12*$A69,4*(PlotControl!$C$6-1),12,1))) -> 183.44 | H69: =IF(PlotControl!$B$4 = "Annual Max",MAX(OFFSET(Ebeach!$C$10,12*$A69,4*(PlotControl!$C$6-1),12,1)),AVERAGE(OFFSET(Ebeach!$C$10,12*$A69,4*(PlotControl!$C$6-1),12,1))) -> 369.38 | I69: =IF(PlotControl!$B$4 = "Annual Max",MAX(OFFSET(Ebeach!$D$10,12*$A69,4*(PlotControl!$C$6-1),12,1)),AVERAGE(OFFSET(Ebeach!$D$10,12*$A69,4*(PlotControl!$C$6-1),12,1))) -> 409.09 | J69: =IF(PlotControl!$B$4 = "Annual Max",MAX(OFFSET(Ebeach!$E$10,12*$A69,4*(PlotControl!$C$6-1),12,1)),AVERAGE(OFFSET(Ebeach!$E$10,12*$A69,4*(PlotControl!$C$6-1),12,1))) -> 450.08 | K69: =IF(PlotControl!$B$4 = "Annual Max",MAX(OFFSET(Edam!$C$10,12*$A69,4*(PlotControl!$C$6-1),12,1)),AVERAGE(OFFSET(Edam!$C$10,12*$A69,4*(PlotControl!$C$6-1),12,1))) -> 11.02 | L69: =IF(PlotControl!$B$4 = "Annual Max",MAX(OFFSET(Edam!$D$10,12*$A69,4*(PlotControl!$C$6-1),12,1)),AVERAGE(OFFSET(Edam!$D$10,12*$A69,4*(PlotControl!$C$6-1),12,1))) -> 11.02 | M69: =IF(PlotControl!$B$4 = "Annual Max",MAX(OFFSET(Edam!$E$10,12*$A69,4*(PlotControl!$C$6-1),12,1)),AVERAGE(OFFSET(Edam!$E$10,12*$A69,4*(PlotControl!$C$6-1),12,1))) -> 11.02 | N69: =IF(PlotControl!$B$4 = "Annual Max",MAX(OFFSET(Sbeach!$C$10,12*$A69,4*(PlotControl!$C$6-1),12,1)),AVERAGE(OFFSET(Sbeach!$C$10,12*$A69,4*(PlotControl!$C$6-1),12,1))) -> 1262.3 | O69: =IF(PlotControl!$B$4 = "Annual Max",MAX(OFFSET(Sbeach!$D$10,12*$A69,4*(PlotControl!$C$6-1),12,1)),AVERAGE(OFFSET(Sbeach!$D$10,12*$A69,4*(PlotControl!$C$6-1),12,1))) -> 1342.7 | P69: =IF(PlotControl!$B$4 = "Annual Max",MAX(OFFSET(Sbeach!$E$10,12*$A69,4*(PlotControl!$C$6-1),12,1)),AVERAGE(OFFSET(Sbeach!$E$10,12*$A69,4*(PlotControl!$C$6-1),12,1))) -> 1423.2 | Q69: =IF(PlotControl!$B$4 = "Annual Max",MAX(OFFSET(Sdam!$C$10,12*$A69,4*(PlotControl!$C$6-1),12,1)),AVERAGE(OFFSET(Sdam!$C$10,12*$A69,4*(PlotControl!$C$6-1),12,1))) -> 19.401 | R69: =IF(PlotControl!$B$4 = "Annual Max",MAX(OFFSET(Sdam!$D$10,12*$A69,4*(PlotControl!$C$6-1),12,1)),AVERAGE(OFFSET(Sdam!$D$10,12*$A69,4*(PlotControl!$C$6-1),12,1))) -> 19.402 | S69: =IF(PlotControl!$B$4 = "Annual Max",MAX(OFFSET(Sdam!$E$10,12*$A69,4*(PlotControl!$C$6-1),12,1)),AVERAGE(OFFSET(Sdam!$E$10,12*$A69,4*(PlotControl!$C$6-1),12,1))) -> 19.402 | T69: =IF(PlotControl!$B$4 = "Annual Max",MAX(OFFSET(Cbeach!$C$10,12*$A69,4*(PlotControl!$C$6-1),12,1)),AVERAGE(OFFSET(Cbeach!$C$10,12*$A69,4*(PlotControl!$C$6-1),12,1))) -> 311.97 | U69: =IF(PlotControl!$B$4 = "Annual Max",MAX(OFFSET(Cbeach!$D$10,12*$A69,4*(PlotControl!$C$6-1),12,1)),AVERAGE(OFFSET(Cbeach!$D$10,12*$A69,4*(PlotControl!$C$6-1),12,1))) -> 345.81 | V69: =IF(PlotControl!$B$4 = "Annual Max",MAX(OFFSET(Cbeach!$E$10,12*$A69,4*(PlotControl!$C$6-1),12,1)),AVERAGE(OFFSET(Cbeach!$E$10,12*$A69,4*(PlotControl!$C$6-1),12,1))) -> 389.92
A70: 65 | B70: =IF(PlotControl!$B$4 = "Annual Max",MAX(OFFSET(Nbeach!$C$10,12*$A70,4*(PlotControl!$C$6-1),12,1)),AVERAGE(OFFSET(Nbeach!$C$10,12*$A70,4*(PlotControl!$C$6-1),12,1))) -> 2656.7 | C70: =IF(PlotControl!$B$4 = "Annual Max",MAX(OFFSET(Nbeach!$D$10,12*$A70,4*(PlotControl!$C$6-1),12,1)),AVERAGE(OFFSET(Nbeach!$D$10,12*$A70,4*(PlotControl!$C$6-1),12,1))) -> 2760.1 | D70: =IF(PlotControl!$B$4 = "Annual Max",MAX(OFFSET(Nbeach!$E$10,12*$A70,4*(PlotControl!$C$6-1),12,1)),AVERAGE(OFFSET(Nbeach!$E$10,12*$A70,4*(PlotControl!$C$6-1),12,1))) -> 2865.1 | E70: =IF(PlotControl!$B$4 = "Annual Max",MAX(OFFSET(Ndam!$C$10,12*$A70,4*(PlotControl!$C$6-1),12,1)),AVERAGE(OFFSET(Ndam!$C$10,12*$A70,4*(PlotControl!$C$6-1),12,1))) -> 183.44 | F70: =IF(PlotControl!$B$4 = "Annual Max",MAX(OFFSET(Ndam!$D$10,12*$A70,4*(PlotControl!$C$6-1),12,1)),AVERAGE(OFFSET(Ndam!$D$10,12*$A70,4*(PlotControl!$C$6-1),12,1))) -> 183.44 | G70: =IF(PlotControl!$B$4 = "Annual Max",MAX(OFFSET(Ndam!$E$10,12*$A70,4*(PlotControl!$C$6-1),12,1)),AVERAGE(OFFSET(Ndam!$E$10,12*$A70,4*(PlotControl!$C$6-1),12,1))) -> 183.44 | H70: =IF(PlotControl!$B$4 = "Annual Max",MAX(OFFSET(Ebeach!$C$10,12*$A70,4*(PlotControl!$C$6-1),12,1)),AVERAGE(OFFSET(Ebeach!$C$10,12*$A70,4*(PlotControl!$C$6-1),12,1))) -> 369.38 | I70: =IF(PlotControl!$B$4 = "Annual Max",MAX(OFFSET(Ebeach!$D$10,12*$A70,4*(PlotControl!$C$6-1),12,1)),AVERAGE(OFFSET(Ebeach!$D$10,12*$A70,4*(PlotControl!$C$6-1),12,1))) -> 409.09 | J70: =IF(PlotControl!$B$4 = "Annual Max",MAX(OFFSET(Ebeach!$E$10,12*$A70,4*(PlotControl!$C$6-1),12,1)),AVERAGE(OFFSET(Ebeach!$E$10,12*$A70,4*(PlotControl!$C$6-1),12,1))) -> 450.08 | K70: =IF(PlotControl!$B$4 = "Annual Max",MAX(OFFSET(Edam!$C$10,12*$A70,4*(PlotControl!$C$6-1),12,1)),AVERAGE(OFFSET(Edam!$C$10,12*$A70,4*(PlotControl!$C$6-1),12,1))) -> 11.02 | L70: =IF(PlotControl!$B$4 = "Annual Max",MAX(OFFSET(Edam!$D$10,12*$A70,4*(PlotControl!$C$6-1),12,1)),AVERAGE(OFFSET(Edam!$D$10,12*$A70,4*(PlotControl!$C$6-1),12,1))) -> 11.02 | M70: =IF(PlotControl!$B$4 = "Annual Max",MAX(OFFSET(Edam!$E$10,12*$A70,4*(PlotControl!$C$6-1),12,1)),AVERAGE(OFFSET(Edam!$E$10,12*$A70,4*(PlotControl!$C$6-1),12,1))) -> 11.02 | N70: =IF(PlotControl!$B$4 = "Annual Max",MAX(OFFSET(Sbeach!$C$10,12*$A70,4*(PlotControl!$C$6-1),12,1)),AVERAGE(OFFSET(Sbeach!$C$10,12*$A70,4*(PlotControl!$C$6-1),12,1))) -> 1262.3 | O70: =IF(PlotControl!$B$4 = "Annual Max",MAX(OFFSET(Sbeach!$D$10,12*$A70,4*(PlotControl!$C$6-1),12,1)),AVERAGE(OFFSET(Sbeach!$D$10,12*$A70,4*(PlotControl!$C$6-1),12,1))) -> 1342.7 | P70: =IF(PlotControl!$B$4 = "Annual Max",MAX(OFFSET(Sbeach!$E$10,12*$A70,4*(PlotControl!$C$6-1),12,1)),AVERAGE(OFFSET(Sbeach!$E$10,12*$A70,4*(PlotControl!$C$6-1),12,1))) -> 1423.2 | Q70: =IF(PlotControl!$B$4 = "Annual Max",MAX(OFFSET(Sdam!$C$10,12*$A70,4*(PlotControl!$C$6-1),12,1)),AVERAGE(OFFSET(Sdam!$C$10,12*$A70,4*(PlotControl!$C$6-1),12,1))) -> 19.401 | R70: =IF(PlotControl!$B$4 = "Annual Max",MAX(OFFSET(Sdam!$D$10,12*$A70,4*(PlotControl!$C$6-1),12,1)),AVERAGE(OFFSET(Sdam!$D$10,12*$A70,4*(PlotControl!$C$6-1),12,1))) -> 19.402 | S70: =IF(PlotControl!$B$4 = "Annual Max",MAX(OFFSET(Sdam!$E$10,12*$A70,4*(PlotControl!$C$6-1),12,1)),AVERAGE(OFFSET(Sdam!$E$10,12*$A70,4*(PlotControl!$C$6-1),12,1))) -> 19.402 | T70: =IF(PlotControl!$B$4 = "Annual Max",MAX(OFFSET(Cbeach!$C$10,12*$A70,4*(PlotControl!$C$6-1),12,1)),AVERAGE(OFFSET(Cbeach!$C$10,12*$A70,4*(PlotControl!$C$6-1),12,1))) -> 311.97 | U70: =IF(PlotControl!$B$4 = "Annual Max",MAX(OFFSET(Cbeach!$D$10,12*$A70,4*(PlotControl!$C$6-1),12,1)),AVERAGE(OFFSET(Cbeach!$D$10,12*$A70,4*(PlotControl!$C$6-1),12,1))) -> 345.77 | V70: =IF(PlotControl!$B$4 = "Annual Max",MAX(OFFSET(Cbeach!$E$10,12*$A70,4*(PlotControl!$C$6-1),12,1)),AVERAGE(OFFSET(Cbeach!$E$10,12*$A70,4*(PlotControl!$C$6-1),12,1))) -> 389.91
A71: 66 | B71: =IF(PlotControl!$B$4 = "Annual Max",MAX(OFFSET(Nbeach!$C$10,12*$A71,4*(PlotControl!$C$6-1),12,1)),AVERAGE(OFFSET(Nbeach!$C$10,12*$A71,4*(PlotControl!$C$6-1),12,1))) -> 2656.7 | C71: =IF(PlotControl!$B$4 = "Annual Max",MAX(OFFSET(Nbeach!$D$10,12*$A71,4*(PlotControl!$C$6-1),12,1)),AVERAGE(OFFSET(Nbeach!$D$10,12*$A71,4*(PlotControl!$C$6-1),12,1))) -> 2760.1 | D71: =IF(PlotControl!$B$4 = "Annual Max",MAX(OFFSET(Nbeach!$E$10,12*$A71,4*(PlotControl!$C$6-1),12,1)),AVERAGE(OFFSET(Nbeach!$E$10,12*$A71,4*(PlotControl!$C$6-1),12,1))) -> 2865.1 | E71: =IF(PlotControl!$B$4 = "Annual Max",MAX(OFFSET(Ndam!$C$10,12*$A71,4*(PlotControl!$C$6-1),12,1)),AVERAGE(OFFSET(Ndam!$C$10,12*$A71,4*(PlotControl!$C$6-1),12,1))) -> 183.44 | F71: =IF(PlotControl!$B$4 = "Annual Max",MAX(OFFSET(Ndam!$D$10,12*$A71,4*(PlotControl!$C$6-1),12,1)),AVERAGE(OFFSET(Ndam!$D$10,12*$A71,4*(PlotControl!$C$6-1),12,1))) -> 183.44 | G71: =IF(PlotControl!$B$4 = "Annual Max",MAX(OFFSET(Ndam!$E$10,12*$A71,4*(PlotControl!$C$6-1),12,1)),AVERAGE(OFFSET(Ndam!$E$10,12*$A71,4*(PlotControl!$C$6-1),12,1))) -> 183.44 | H71: =IF(PlotControl!$B$4 = "Annual Max",MAX(OFFSET(Ebeach!$C$10,12*$A71,4*(PlotControl!$C$6-1),12,1)),AVERAGE(OFFSET(Ebeach!$C$10,12*$A71,4*(PlotControl!$C$6-1),12,1))) -> 369.37 | I71: =IF(PlotControl!$B$4 = "Annual Max",MAX(OFFSET(Ebeach!$D$10,12*$A71,4*(PlotControl!$C$6-1),12,1)),AVERAGE(OFFSET(Ebeach!$D$10,12*$A71,4*(PlotControl!$C$6-1),12,1))) -> 409.09 | J71: =IF(PlotControl!$B$4 = "Annual Max",MAX(OFFSET(Ebeach!$E$10,12*$A71,4*(PlotControl!$C$6-1),12,1)),AVERAGE(OFFSET(Ebeach!$E$10,12*$A71,4*(PlotControl!$C$6-1),12,1))) -> 450.07 | K71: =IF(PlotControl!$B$4 = "Annual Max",MAX(OFFSET(Edam!$C$10,12*$A71,4*(PlotControl!$C$6-1),12,1)),AVERAGE(OFFSET(Edam!$C$10,12*$A71,4*(PlotControl!$C$6-1),12,1))) -> 11.02 | L71: =IF(PlotControl!$B$4 = "Annual Max",MAX(OFFSET(Edam!$D$10,12*$A71,4*(PlotControl!$C$6-1),12,1)),AVERAGE(OFFSET(Edam!$D$10,12*$A71,4*(PlotControl!$C$6-1),12,1))) -> 11.02 | M71: =IF(PlotControl!$B$4 = "Annual Max",MAX(OFFSET(Edam!$E$10,12*$A71,4*(PlotControl!$C$6-1),12,1)),AVERAGE(OFFSET(Edam!$E$10,12*$A71,4*(PlotControl!$C$6-1),12,1))) -> 11.02 | N71: =IF(PlotControl!$B$4 = "Annual Max",MAX(OFFSET(Sbeach!$C$10,12*$A71,4*(PlotControl!$C$6-1),12,1)),AVERAGE(OFFSET(Sbeach!$C$10,12*$A71,4*(PlotControl!$C$6-1),12,1))) -> 1262.2 | O71: =IF(PlotControl!$B$4 = "Annual Max",MAX(OFFSET(Sbeach!$D$10,12*$A71,4*(PlotControl!$C$6-1),12,1)),AVERAGE(OFFSET(Sbeach!$D$10,12*$A71,4*(PlotControl!$C$6-1),12,1))) -> 1342.7 | P71: =IF(PlotControl!$B$4 = "Annual Max",MAX(OFFSET(Sbeach!$E$10,12*$A71,4*(PlotControl!$C$6-1),12,1)),AVERAGE(OFFSET(Sbeach!$E$10,12*$A71,4*(PlotControl!$C$6-1),12,1))) -> 1423.2 | Q71: =IF(PlotControl!$B$4 = "Annual Max",MAX(OFFSET(Sdam!$C$10,12*$A71,4*(PlotControl!$C$6-1),12,1)),AVERAGE(OFFSET(Sdam!$C$10,12*$A71,4*(PlotControl!$C$6-1),12,1))) -> 19.401 | R71: =IF(PlotControl!$B$4 = "Annual Max",MAX(OFFSET(Sdam!$D$10,12*$A71,4*(PlotControl!$C$6-1),12,1)),AVERAGE(OFFSET(Sdam!$D$10,12*$A71,4*(PlotControl!$C$6-1),12,1))) -> 19.402 | S71: =IF(PlotControl!$B$4 = "Annual Max",MAX(OFFSET(Sdam!$E$10,12*$A71,4*(PlotControl!$C$6-1),12,1)),AVERAGE(OFFSET(Sdam!$E$10,12*$A71,4*(PlotControl!$C$6-1),12,1))) -> 19.402 | T71: =IF(PlotControl!$B$4 = "Annual Max",MAX(OFFSET(Cbeach!$C$10,12*$A71,4*(PlotControl!$C$6-1),12,1)),AVERAGE(OFFSET(Cbeach!$C$10,12*$A71,4*(PlotControl!$C$6-1),12,1))) -> 311.96 | U71: =IF(PlotControl!$B$4 = "Annual Max",MAX(OFFSET(Cbeach!$D$10,12*$A71,4*(PlotControl!$C$6-1),12,1)),AVERAGE(OFFSET(Cbeach!$D$10,12*$A71,4*(PlotControl!$C$6-1),12,1))) -> 345.73 | V71: =IF(PlotControl!$B$4 = "Annual Max",MAX(OFFSET(Cbeach!$E$10,12*$A71,4*(PlotControl!$C$6-1),12,1)),AVERAGE(OFFSET(Cbeach!$E$10,12*$A71,4*(PlotControl!$C$6-1),12,1))) -> 389.9
A72: 67 | B72: =IF(PlotControl!$B$4 = "Annual Max",MAX(OFFSET(Nbeach!$C$10,12*$A72,4*(PlotControl!$C$6-1),12,1)),AVERAGE(OFFSET(Nbeach!$C$10,12*$A72,4*(PlotControl!$C$6-1),12,1))) -> 2656.7 | C72: =IF(PlotControl!$B$4 = "Annual Max",MAX(OFFSET(Nbeach!$D$10,12*$A72,4*(PlotControl!$C$6-1),12,1)),AVERAGE(OFFSET(Nbeach!$D$10,12*$A72,4*(PlotControl!$C$6-1),12,1))) -> 2760.1 | D72: =IF(PlotControl!$B$4 = "Annual Max",MAX(OFFSET(Nbeach!$E$10,12*$A72,4*(PlotControl!$C$6-1),12,1)),AVERAGE(OFFSET(Nbeach!$E$10,12*$A72,4*(PlotControl!$C$6-1),12,1))) -> 2865 | E72: =IF(PlotControl!$B$4 = "Annual Max",MAX(OFFSET(Ndam!$C$10,12*$A72,4*(PlotControl!$C$6-1),12,1)),AVERAGE(OFFSET(Ndam!$C$10,12*$A72,4*(PlotControl!$C$6-1),12,1))) -> 183.44 | F72: =IF(PlotControl!$B$4 = "Annual Max",MAX(OFFSET(Ndam!$D$10,12*$A72,4*(PlotControl!$C$6-1),12,1)),AVERAGE(OFFSET(Ndam!$D$10,12*$A72,4*(PlotControl!$C$6-1),12,1))) -> 183.44 | G72: =IF(PlotControl!$B$4 = "Annual Max",MAX(OFFSET(Ndam!$E$10,12*$A72,4*(PlotControl!$C$6-1),12,1)),AVERAGE(OFFSET(Ndam!$E$10,12*$A72,4*(PlotControl!$C$6-1),12,1))) -> 183.44 | H72: =IF(PlotControl!$B$4 = "Annual Max",MAX(OFFSET(Ebeach!$C$10,12*$A72,4*(PlotControl!$C$6-1),12,1)),AVERAGE(OFFSET(Ebeach!$C$10,12*$A72,4*(PlotControl!$C$6-1),12,1))) -> 369.36 | I72: =IF(PlotControl!$B$4 = "Annual Max",MAX(OFFSET(Ebeach!$D$10,12*$A72,4*(PlotControl!$C$6-1),12,1)),AVERAGE(OFFSET(Ebeach!$D$10,12*$A72,4*(PlotControl!$C$6-1),12,1))) -> 409.09 | J72: =IF(PlotControl!$B$4 = "Annual Max",MAX(OFFSET(Ebeach!$E$10,12*$A72,4*(PlotControl!$C$6-1),12,1)),AVERAGE(OFFSET(Ebeach!$E$10,12*$A72,4*(PlotControl!$C$6-1),12,1))) -> 450.07 | K72: =IF(PlotControl!$B$4 = "Annual Max",MAX(OFFSET(Edam!$C$10,12*$A72,4*(PlotControl!$C$6-1),12,1)),AVERAGE(OFFSET(Edam!$C$10,12*$A72,4*(PlotControl!$C$6-1),12,1))) -> 11.02 | L72: =IF(PlotControl!$B$4 = "Annual Max",MAX(OFFSET(Edam!$D$10,12*$A72,4*(PlotControl!$C$6-1),12,1)),AVERAGE(OFFSET(Edam!$D$10,12*$A72,4*(PlotControl!$C$6-1),12,1))) -> 11.02 | M72: =IF(PlotControl!$B$4 = "Annual Max",MAX(OFFSET(Edam!$E$10,12*$A72,4*(PlotControl!$C$6-1),12,1)),AVERAGE(OFFSET(Edam!$E$10,12*$A72,4*(PlotControl!$C$6-1),12,1))) -> 11.02 | N72: =IF(PlotControl!$B$4 = "Annual Max",MAX(OFFSET(Sbeach!$C$10,12*$A72,4*(PlotControl!$C$6-1),12,1)),AVERAGE(OFFSET(Sbeach!$C$10,12*$A72,4*(PlotControl!$C$6-1),12,1))) -> 1262.2 | O72: =IF(PlotControl!$B$4 = "Annual Max",MAX(OFFSET(Sbeach!$D$10,12*$A72,4*(PlotControl!$C$6-1),12,1)),AVERAGE(OFFSET(Sbeach!$D$10,12*$A72,4*(PlotControl!$C$6-1),12,1))) -> 1342.7 | P72: =IF(PlotControl!$B$4 = "Annual Max",MAX(OFFSET(Sbeach!$E$10,12*$A72,4*(PlotControl!$C$6-1),12,1)),AVERAGE(OFFSET(Sbeach!$E$10,12*$A72,4*(PlotControl!$C$6-1),12,1))) -> 1423.2 | Q72: =IF(PlotControl!$B$4 = "Annual Max",MAX(OFFSET(Sdam!$C$10,12*$A72,4*(PlotControl!$C$6-1),12,1)),AVERAGE(OFFSET(Sdam!$C$10,12*$A72,4*(PlotControl!$C$6-1),12,1))) -> 19.401 | R72: =IF(PlotControl!$B$4 = "Annual Max",MAX(OFFSET(Sdam!$D$10,12*$A72,4*(PlotControl!$C$6-1),12,1)),AVERAGE(OFFSET(Sdam!$D$10,12*$A72,4*(PlotControl!$C$6-1),12,1))) -> 19.402 | S72: =IF(PlotControl!$B$4 = "Annual Max",MAX(OFFSET(Sdam!$E$10,12*$A72,4*(PlotControl!$C$6-1),12,1)),AVERAGE(OFFSET(Sdam!$E$10,12*$A72,4*(PlotControl!$C$6-1),12,1))) -> 19.402 | T72: =IF(PlotControl!$B$4 = "Annual Max",MAX(OFFSET(Cbeach!$C$10,12*$A72,4*(PlotControl!$C$6-1),12,1)),AVERAGE(OFFSET(Cbeach!$C$10,12*$A72,4*(PlotControl!$C$6-1),12,1))) -> 311.95 | U72: =IF(PlotControl!$B$4 = "Annual Max",MAX(OFFSET(Cbeach!$D$10,12*$A72,4*(PlotControl!$C$6-1),12,1)),AVERAGE(OFFSET(Cbeach!$D$10,12*$A72,4*(PlotControl!$C$6-1),12,1))) -> 345.69 | V72: =IF(PlotControl!$B$4 = "Annual Max",MAX(OFFSET(Cbeach!$E$10,12*$A72,4*(PlotControl!$C$6-1),12,1)),AVERAGE(OFFSET(Cbeach!$E$10,12*$A72,4*(PlotControl!$C$6-1),12,1))) -> 389.89
